Workbook

Sheet Eingabe
A4: =IF(Hilfe!B1=YEAR(TODAY()),"Fondsdepot versus CleVesto Select","Version ist ungültig!") -> Fondsdepot versus CleVesto Select
A6: Eingaben
A8: Gesamt-Bruttoeinkommen p. a. | C8: 125000 | E8: Familienstand
A9: Laufzeit in Jahren | C9: =Hilfe!B54 -> 12 | E9: erwartete Rendite (BVI) p. a.
A10: =IF(Hilfe!B3=1,"monatlicher Beitrag",IF(Hilfe!B3=2,"jährlicher Beitrag","Einmalbeitrag")) -> Einmalbeitrag | C10: 100000 | E10: Art der Anlage
A11: Zahlweise | E11: Dachfondskosten (TER abzgl. Æ Fondskosten) | G11: 0
A12: Wechsel
A13: Tarifgruppe
A15: Optionen / Detaileingaben
C17: Aktienfonds | E17: Mischfonds | G17: Rentenfonds / VVW
A18: Depotaufteilung zu Beginn | C18: 0.5 | E18: 0.5 | G18: =IF(1-C18-E18<0,"Achtung!",1-C18-E18) -> 0
C20: Aktienfonds | E20: Mischfonds | G20: Rentenfonds / VVW
A21: Ausgabeaufschlag | C21: 0.01 | E21: 0.01 | G21: 0.01
A22: Wechselgebühr | C22: 0.01 | E22: 0.01 | G22: 0.01
G23: (VVW=Vermögensverwaltung)
C24: Pauschalgebühr p.a. | E24: Volumenabhängig p.a.
A25: Depotgebühren / Service-Fee p. a. (Bank / Vermögensverwaltung) | C25: 39 | E25: 0.005
C27: Freibetrag p.a. | E27: Abschmelzen p.a. um | G27: =IF(C28/Hilfe!B9>801,"Achtung: Freibetrag ist zu hoch!","") -> 
A28: Sparer-Pauschbetrag/Freibetrag | C28: 1602 | E28: 0
A29: (ledig 801€ / verh. 1602 €)
C30: Ablaufleistung FLV
A31: Individuelle Vorgabe | C31: 0 | E31: =IF(C31>0,"ACHTUNG: Eine individuelle Ablaufleistung wurde vorgegeben!","") -> 
B32: (Eingabe 0 € bedeutet, es wird mit Standardwerten gerechnet)
A33: Berechnung
A35: Die folgenden Berechnungen wurden auf Basis Ihrer Angaben und den Einstellungen im Reiter "Wechsel" unter Berücksichtigung aller Kosten, Steuern sowie des Solidaritätszuschlags erstellt.
A37: Auszahlung bei einer Fonds-Direktanlage (Veränderung in (%) durch Vorabpauschale im Vergleich zum aktuellen Basiszins ) | E37: Auszahlung bei CleVesto Select (ca.) (Veränderung in (%) im Vergleich zur Fonds-Direktanlage mit aktuellem Basiszins)
B38: Vorabpauschale mit
A39: ="mit aktuellem Basiszins ("&'Berechnung Ratierlich heute'!M1*100&"%)" -> mit aktuellem Basiszins (0%) | C39: =Hilfe!F20 -> 163520.7111 | E39: Nach Abgeltungsteuer | G39: =Hilfe!G45 -> 167011.5805 | H39: =G39/$C$39-1 -> 0.02134817899
A40: ="mit simulierten Basiszins ("&'Berechnung Ratierlich 2%'!M1*100&"%)" -> mit simulierten Basiszins (2%) | C40: =Hilfe!F21 -> 158085.1986 | D40: =C40/$C$39-1 -> -0.03324051376 | E40: Halbeinkünfteverfahren | G40: =Hilfe!G46 -> 170957.884 | H40: 0.04548153478
A41: ="mit simulierten Basiszins ("&'Berechnung Ratierlich 4%'!M1*100&"%)" -> mit simulierten Basiszins (4%) | C41: =Hilfe!F22 -> 152762.2276 | D41: =C41/$C$39-1 -> -0.0657927881 | E41: Teilentnahmen (über 20 J.) | G41: =Hilfe!G47 -> 170957.968 | H41: 0.04548204847
E42: Mit Steuerfrei Konzept | G42: =Hilfe!G48 -> 186376 | H42: 0.1397699946
A43: ="Bei den Berechnungen wurden "&Wechsel!I31&" Wechsel berücksichtigt!" -> Bei den Berechnungen wurden 3 Wechsel berücksichtigt!
B44: =IF(Wechsel!I31=Wechsel!C6,"","ACHTUNG: Durch Rundungen konnten nur "&Wechsel!I31&" Wechsel berücksichtigt werden!") -> 
A47: Im Folgenden ist die Fonds-Direktanlage im Depot (mit verschiedenen Basiszinssätzen als Annahme) und die Fondspolice (mit verschiedenen Entnahme-Besteuerungen) grafisch nach Kosten und Steuer gegenüber gestellt:
A48: Rückkaufswerte nach Kosten und Steuer
A67: Der Gesetzgeber besteuert nicht ausschüttende (thesaurierende) und teilausschüttende Fonds ähnlich. Aus diesem Grund muss der Anleger - unabhängig vom gewählten Fondstyp - immer einen Mindestbetrag vom Fondsanteilswert versteuern - die sogenannte Vorabpauschale. Entwickelt sich ein Fonds im Laufe des Jahres negativ, ist keine Vorabpauschale fällig, d.h. sie kann nie negativ werden. Ist die Ausschüttung kleiner als die Vorabpauschale, muss trotzdem mindestens die Vorabpauschale versteuert werden.
A68: Um die Vorabpauschale zu ermitteln, legt das Bundesministerium der Finanzen jedes Jahr den maßgeblichen Zinssatz (Basiszins) im Bundessteuerblatt fest. Der Basiszins leitet sich aus langfristigen Renditen öffentlicher Anleihen ab. Dies bedeutet: Wenn die Zinsen steigen, steigt der Basiszins und somit auch die jährliche Vorabpauschale. Dies ist für eine langfristige Prognose wichtig, da man mit moderat steigenden Zinsen rechnen sollte. Für eine langfristige Prognose wird deshalb auch ein Basiszins in Höhe von 2% und 4% dargestellt.
A70: Sicherungsmechanismen und Renditeerwartung
A72: Neben der Renditebetrachtung ist zusätzlich zu beachten, wie wahrscheinlich es ist, eine entsprechende Rendite zu erwirtschaften.
A73: ="Um die Renditevorgabe von "&Hilfe!E3*100&"% p. a. einordnen zu können, wurden zum Vergleich "&"alle monatlichen Verläufe des Deutschen Aktienindex (DAX®) in dem Zeitraum 30.10.1959 bis 30.12."&Hilfe!B1&" berechnet. In der folgenden Tabelle sind der schlechteste und der beste und zusätzlich der Mittelwert über alle Verläufe aufgeführt. " -> Um die Renditevorgabe von 6% p. a. einordnen zu können, wurden zum Vergleich alle monatlichen Verläufe des Deutschen Aktienindex (DAX®) in dem Zeitraum 30.10.1959 bis 30.12.2022 berechnet. In der folgenden Tabelle sind der schlechteste und der beste und zusätzlich der Mittelwert über alle Verläufe aufgeführt.
B74: Historische DAX®-Verläufe (Rendite ohne Kosten / Steuer)
B75: Bester Verlauf | D75: =Hilfe!F106 -> 0.124648753
B76: Schlechtester Verlauf | D76: =Hilfe!D106 -> 0.01066156645
B77: Mittelwert aller Verläufe | D77: =Hilfe!E106 -> 0.05743910694
B78: Anzahl mögl. Verläufe | D78: =Hilfe!G106 -> 602
B79: Laufzeit | D79: =Hilfe!C106 -> 12
A83: 1. Rebalancing
A84: An der Börse kommt es immer wieder vor, dass sich Märkte unterschiedlich entwickeln. Um von diesem Effekt zu profitieren, kann ein sogenanntes Rebalancing vereinbart werden. Aus Märkten - die sich sehr gut entwickeln - wird ein Teil entnommen und in Märkte investiert, die Aufholpotential haben.
A100: 2. Sicherungsbausteine
A101: Ein weiterer Sicherungsmechanismus - der in der Fondspolice genutzt werden kann - ist die Sicherung im Deckungsstock der Versicherungsgesellschaft. Dieser bietet die Garantie eines festen Wertes, kann sich also nicht negativ entwickeln. Die Alternative im Direktanlage-Depot - Geldmarkt- und Rentenfonds - mussten in Krisenzeiten teilweise zweistellige Verluste hinnehmen. Die sicher Anlage kann bei einer Einmalanlage genutzt werden, um nach und nach in den Aktienmarkt zu investieren - und nicht auf einmal. Dieses sogenannte Anlaufmanagement bewirkt, dass der Zeitpunkt des Einstiegs nicht mehr ganz so relevant ist. Genauso kann es natürlich auch für ein Ablaufmanagement genutzt werden - zur Sicherung der Gewinne!
A138: Fazit
A139: Die Sicherungsmechanismen wirken nicht renditemindernd wie einer festen Beitragsgarantie - ganz im Gegenteil: Die Renditechancen werden eher erhöht.
A140: In der jetzigen Niedrigzinsphase ist eine Beitragsgarantie sehr teuer. Dies zeigt die schematische Darstellung:
B142: Übersicht - Garantie versus Sicherheit
B143: Beitragssumme | E143: =Hilfe!E29 -> 100000
B144: Garantiepolice (ca. 2%) | E144: =ROUND(IF(Hilfe!B3=1,FV(2%/Hilfe!B4,Eingabe!C9*Hilfe!B4,-'Berechnung Ratierlich heute'!C11/12),'Berechnung EB heute'!C11*(1+2%)^Hilfe!B54)/100,0)*100 -> 125600
B146: ="Ohne Garantie (Mittelwert: ca. "&FIXED(D77*100,2)&"%)" -> Ohne Garantie (Mittelwert: ca. 5,74%) | E146: =ROUND(IF(Hilfe!B3=1,FV(D77/Hilfe!B4,Eingabe!C9*Hilfe!B4,-'Berechnung Ratierlich heute'!C11/12),'Berechnung EB heute'!C11*(1+D77)^Hilfe!B54)/100,0)*100 -> 193500
B147: Kosten Garantie (im Mittel) | E147: =E146-E144 -> 67900
A149: ="Gegenüber des Mittelwertes der Vergangenheit hätte der Vertrag mit Garantie ca. "&FIXED(E147,0)&" € weniger erwirtschaftet ohne dass die Garantie überhaupt benötigt worden wäre! Dies bedeutet: Im Mittel hätte es "&FIXED(E147,0)&" € gekostet, eine Beitragssumme von "&FIXED(E143,0)&" € Beitrag zu sichern." -> Gegenüber des Mittelwertes der Vergangenheit hätte der Vertrag mit Garantie ca. 67.900 € weniger erwirtschaftet ohne dass die Garantie überhaupt benötigt worden wäre! Dies bedeutet: Im Mittel hätte es 67.900 € gekostet, eine Beitragssumme von 100.000 € Beitrag zu sichern.
A150: Sicherungsmechanismen können das Verlustrisiko von Fonds deutlich minimieren und die Renditeerwartung erhöhen. Sie stehen kosten- und steueroptimiert nur bei Fondspolicen zur Verfügung.
F152: ="Stand: 1/"&Hilfe!B1&"" -> Stand: 1/2022
A153: Quelle: Eigene Berechnungen auf Basis Ihrer Angaben und der gesetzlichen / steuerrechtlichen Daten.
A154: Für die Richtigkeit der Angaben kann keine Gewähr übernommen werden, denn Programm- und Berechnungsfehler sind trotz sorgfältigstem Vorgehen nicht ausgeschlossen.

Sheet Steuer
A1: =IF(Hilfe!B1=YEAR(TODAY()),"Steuerübersicht der Fonds-Direktanlage","Version ist ungültig!") -> Steuerübersicht der Fonds-Direktanlage
A3: Bei der Fonds-Direktanlage fällt jedes Jahr die sogenannte Vorabpauschale an (der Freibetrag wird dagegen gerechnet). Diese bezieht sich auf den Basiszins.
A5: ="Vorabpauschale bei dem diesjährigen Basiszins von "&FIXED('Berechnung Ratierlich heute'!M1,4)*100&"% p.a.." -> Vorabpauschale bei dem diesjährigen Basiszins von 0% p.a..
A22: Gesamtsteuerbelastung
A39: ="Vorabpauschale bei dem diesjährigen Basiszins von "&FIXED('Berechnung Ratierlich heute'!M1,4)*100&"% p.a. und mit 2% p.a. und 4% p.a..." -> Vorabpauschale bei dem diesjährigen Basiszins von 0% p.a. und mit 2% p.a. und 4% p.a...

Sheet Steuerübersicht (hidden)
A1: Laufzeit | B1: Fonds | D1: Fonds | F1: Fonds
B2: Heute | D2: 0.02 | F2: 0.04
A3: 1 | B3: =MAX(0,IF(Hilfe!$B$3=3,'Berechnung EB heute'!K11-'Berechnung EB heute'!P11,'Berechnung Ratierlich heute'!K11-'Berechnung Ratierlich heute'!P11)) -> 0 | C3: =IF(Hilfe!$B$3=3,'Berechnung EB heute'!Q11,'Berechnung Ratierlich heute'!Q11) -> 0 | D3: =MAX(0,IF(Hilfe!$B$3=3,'Berechnung EB 2%'!K11-'Berechnung EB 2%'!P11,'Berechnung Ratierlich 2%'!K11-'Berechnung Ratierlich 2%'!P11)) -> 0 | E3: =IF(Hilfe!$B$3=3,'Berechnung EB 2%'!Q11,'Berechnung Ratierlich 2%'!Q11) -> 0 | F3: =MAX(0,IF(Hilfe!$B$3=3,'Berechnung EB 4%'!K11-'Berechnung EB 4%'!P11,'Berechnung Ratierlich 4%'!K11-'Berechnung Ratierlich 4%'!P11)) -> 0 | G3: =IF(Hilfe!$B$3=3,'Berechnung EB 4%'!Q11,'Berechnung Ratierlich 4%'!Q11) -> 0
A4: 2 | B4: =MAX(0,IF(Hilfe!$B$3=3,'Berechnung EB heute'!K12-'Berechnung EB heute'!P12,'Berechnung Ratierlich heute'!K12-'Berechnung Ratierlich heute'!P12)) -> 0 | C4: =IF(Hilfe!$B$3=3,'Berechnung EB heute'!Q12,'Berechnung Ratierlich heute'!Q12) -> 0 | D4: =MAX(0,IF(Hilfe!$B$3=3,'Berechnung EB 2%'!K12-'Berechnung EB 2%'!P12,'Berechnung Ratierlich 2%'!K12-'Berechnung Ratierlich 2%'!P12)) -> 0 | E4: =IF(Hilfe!$B$3=3,'Berechnung EB 2%'!Q12,'Berechnung Ratierlich 2%'!Q12) -> 0 | F4: =MAX(0,IF(Hilfe!$B$3=3,'Berechnung EB 4%'!K12-'Berechnung EB 4%'!P12,'Berechnung Ratierlich 4%'!K12-'Berechnung Ratierlich 4%'!P12)) -> 0 | G4: =IF(Hilfe!$B$3=3,'Berechnung EB 4%'!Q12,'Berechnung Ratierlich 4%'!Q12) -> 0
A5: 3 | B5: =MAX(0,IF(Hilfe!$B$3=3,'Berechnung EB heute'!K13-'Berechnung EB heute'!P13,'Berechnung Ratierlich heute'!K13-'Berechnung Ratierlich heute'!P13)) -> 0 | C5: =IF(Hilfe!$B$3=3,'Berechnung EB heute'!Q13,'Berechnung Ratierlich heute'!Q13) -> 2006.027506 | D5: =MAX(0,IF(Hilfe!$B$3=3,'Berechnung EB 2%'!K13-'Berechnung EB 2%'!P13,'Berechnung Ratierlich 2%'!K13-'Berechnung Ratierlich 2%'!P13)) -> 0 | E5: =IF(Hilfe!$B$3=3,'Berechnung EB 2%'!Q13,'Berechnung Ratierlich 2%'!Q13) -> 3278.944819 | F5: =MAX(0,IF(Hilfe!$B$3=3,'Berechnung EB 4%'!K13-'Berechnung EB 4%'!P13,'Berechnung Ratierlich 4%'!K13-'Berechnung Ratierlich 4%'!P13)) -> 0 | G5: =IF(Hilfe!$B$3=3,'Berechnung EB 4%'!Q13,'Berechnung Ratierlich 4%'!Q13) -> 4551.862133
A6: 4 | B6: =MAX(0,IF(Hilfe!$B$3=3,'Berechnung EB heute'!K14-'Berechnung EB heute'!P14,'Berechnung Ratierlich heute'!K14-'Berechnung Ratierlich heute'!P14)) -> 0 | C6: =IF(Hilfe!$B$3=3,'Berechnung EB heute'!Q14,'Berechnung Ratierlich heute'!Q14) -> 0 | D6: =MAX(0,IF(Hilfe!$B$3=3,'Berechnung EB 2%'!K14-'Berechnung EB 2%'!P14,'Berechnung Ratierlich 2%'!K14-'Berechnung Ratierlich 2%'!P14)) -> 0 | E6: =IF(Hilfe!$B$3=3,'Berechnung EB 2%'!Q14,'Berechnung Ratierlich 2%'!Q14) -> 0 | F6: =MAX(0,IF(Hilfe!$B$3=3,'Berechnung EB 4%'!K14-'Berechnung EB 4%'!P14,'Berechnung Ratierlich 4%'!K14-'Berechnung Ratierlich 4%'!P14)) -> 0 | G6: =IF(Hilfe!$B$3=3,'Berechnung EB 4%'!Q14,'Berechnung Ratierlich 4%'!Q14) -> 0
A7: 5 | B7: =MAX(0,IF(Hilfe!$B$3=3,'Berechnung EB heute'!K15-'Berechnung EB heute'!P15,'Berechnung Ratierlich heute'!K15-'Berechnung Ratierlich heute'!P15)) -> 0 | C7: =IF(Hilfe!$B$3=3,'Berechnung EB heute'!Q15,'Berechnung Ratierlich heute'!Q15) -> 0 | D7: =MAX(0,IF(Hilfe!$B$3=3,'Berechnung EB 2%'!K15-'Berechnung EB 2%'!P15,'Berechnung Ratierlich 2%'!K15-'Berechnung Ratierlich 2%'!P15)) -> 0 | E7: =IF(Hilfe!$B$3=3,'Berechnung EB 2%'!Q15,'Berechnung Ratierlich 2%'!Q15) -> 0 | F7: =MAX(0,IF(Hilfe!$B$3=3,'Berechnung EB 4%'!K15-'Berechnung EB 4%'!P15,'Berechnung Ratierlich 4%'!K15-'Berechnung Ratierlich 4%'!P15)) -> 0 | G7: =IF(Hilfe!$B$3=3,'Berechnung EB 4%'!Q15,'Berechnung Ratierlich 4%'!Q15) -> 0
A8: 6 | B8: =MAX(0,IF(Hilfe!$B$3=3,'Berechnung EB heute'!K16-'Berechnung EB heute'!P16,'Berechnung Ratierlich heute'!K16-'Berechnung Ratierlich heute'!P16)) -> 0 | C8: =IF(Hilfe!$B$3=3,'Berechnung EB heute'!Q16,'Berechnung Ratierlich heute'!Q16) -> 2912.466148 | D8: =MAX(0,IF(Hilfe!$B$3=3,'Berechnung EB 2%'!K16-'Berechnung EB 2%'!P16,'Berechnung Ratierlich 2%'!K16-'Berechnung Ratierlich 2%'!P16)) -> 0 | E8: =IF(Hilfe!$B$3=3,'Berechnung EB 2%'!Q16,'Berechnung Ratierlich 2%'!Q16) -> 4429.290645 | F8: =MAX(0,IF(Hilfe!$B$3=3,'Berechnung EB 4%'!K16-'Berechnung EB 4%'!P16,'Berechnung Ratierlich 4%'!K16-'Berechnung Ratierlich 4%'!P16)) -> 0 | G8: =IF(Hilfe!$B$3=3,'Berechnung EB 4%'!Q16,'Berechnung Ratierlich 4%'!Q16) -> 5910.709343
A9: 7 | B9: =MAX(0,IF(Hilfe!$B$3=3,'Berechnung EB heute'!K17-'Berechnung EB heute'!P17,'Berechnung Ratierlich heute'!K17-'Berechnung Ratierlich heute'!P17)) -> 0 | C9: =IF(Hilfe!$B$3=3,'Berechnung EB heute'!Q17,'Berechnung Ratierlich heute'!Q17) -> 0 | D9: =MAX(0,IF(Hilfe!$B$3=3,'Berechnung EB 2%'!K17-'Berechnung EB 2%'!P17,'Berechnung Ratierlich 2%'!K17-'Berechnung Ratierlich 2%'!P17)) -> 0 | E9: =IF(Hilfe!$B$3=3,'Berechnung EB 2%'!Q17,'Berechnung Ratierlich 2%'!Q17) -> 0 | F9: =MAX(0,IF(Hilfe!$B$3=3,'Berechnung EB 4%'!K17-'Berechnung EB 4%'!P17,'Berechnung Ratierlich 4%'!K17-'Berechnung Ratierlich 4%'!P17)) -> 0 | G9: =IF(Hilfe!$B$3=3,'Berechnung EB 4%'!Q17,'Berechnung Ratierlich 4%'!Q17) -> 0
A10: 8 | B10: =MAX(0,IF(Hilfe!$B$3=3,'Berechnung EB heute'!K18-'Berechnung EB heute'!P18,'Berechnung Ratierlich heute'!K18-'Berechnung Ratierlich heute'!P18)) -> 0 | C10: =IF(Hilfe!$B$3=3,'Berechnung EB heute'!Q18,'Berechnung Ratierlich heute'!Q18) -> 0 | D10: =MAX(0,IF(Hilfe!$B$3=3,'Berechnung EB 2%'!K18-'Berechnung EB 2%'!P18,'Berechnung Ratierlich 2%'!K18-'Berechnung Ratierlich 2%'!P18)) -> 0 | E10: =IF(Hilfe!$B$3=3,'Berechnung EB 2%'!Q18,'Berechnung Ratierlich 2%'!Q18) -> 0 | F10: =MAX(0,IF(Hilfe!$B$3=3,'Berechnung EB 4%'!K18-'Berechnung EB 4%'!P18,'Berechnung Ratierlich 4%'!K18-'Berechnung Ratierlich 4%'!P18)) -> 0 | G10: =IF(Hilfe!$B$3=3,'Berechnung EB 4%'!Q18,'Berechnung Ratierlich 4%'!Q18) -> 0
A11: 9 | B11: =MAX(0,IF(Hilfe!$B$3=3,'Berechnung EB heute'!K19-'Berechnung EB heute'!P19,'Berechnung Ratierlich heute'!K19-'Berechnung Ratierlich heute'!P19)) -> 0 | C11: =IF(Hilfe!$B$3=3,'Berechnung EB heute'!Q19,'Berechnung Ratierlich heute'!Q19) -> 3975.938838 | D11: =MAX(0,IF(Hilfe!$B$3=3,'Berechnung EB 2%'!K19-'Berechnung EB 2%'!P19,'Berechnung Ratierlich 2%'!K19-'Berechnung Ratierlich 2%'!P19)) -> 0 | E11: =IF(Hilfe!$B$3=3,'Berechnung EB 2%'!Q19,'Berechnung Ratierlich 2%'!Q19) -> 5751.878471 | F11: =MAX(0,IF(Hilfe!$B$3=3,'Berechnung EB 4%'!K19-'Berechnung EB 4%'!P19,'Berechnung Ratierlich 4%'!K19-'Berechnung Ratierlich 4%'!P19)) -> 0 | G11: =IF(Hilfe!$B$3=3,'Berechnung EB 4%'!Q19,'Berechnung Ratierlich 4%'!Q19) -> 7440.07721
A12: 10 | B12: =MAX(0,IF(Hilfe!$B$3=3,'Berechnung EB heute'!K20-'Berechnung EB heute'!P20,'Berechnung Ratierlich heute'!K20-'Berechnung Ratierlich heute'!P20)) -> 0 | C12: =IF(Hilfe!$B$3=3,'Berechnung EB heute'!Q20,'Berechnung Ratierlich heute'!Q20) -> 0 | D12: =MAX(0,IF(Hilfe!$B$3=3,'Berechnung EB 2%'!K20-'Berechnung EB 2%'!P20,'Berechnung Ratierlich 2%'!K20-'Berechnung Ratierlich 2%'!P20)) -> 0 | E12: =IF(Hilfe!$B$3=3,'Berechnung EB 2%'!Q20,'Berechnung Ratierlich 2%'!Q20) -> 0 | F12: =MAX(0,IF(Hilfe!$B$3=3,'Berechnung EB 4%'!K20-'Berechnung EB 4%'!P20,'Berechnung Ratierlich 4%'!K20-'Berechnung Ratierlich 4%'!P20)) -> 0 | G12: =IF(Hilfe!$B$3=3,'Berechnung EB 4%'!Q20,'Berechnung Ratierlich 4%'!Q20) -> 0
A13: 11 | B13: =MAX(0,IF(Hilfe!$B$3=3,'Berechnung EB heute'!K21-'Berechnung EB heute'!P21,'Berechnung Ratierlich heute'!K21-'Berechnung Ratierlich heute'!P21)) -> 0 | C13: =IF(Hilfe!$B$3=3,'Berechnung EB heute'!Q21,'Berechnung Ratierlich heute'!Q21) -> 0 | D13: =MAX(0,IF(Hilfe!$B$3=3,'Berechnung EB 2%'!K21-'Berechnung EB 2%'!P21,'Berechnung Ratierlich 2%'!K21-'Berechnung Ratierlich 2%'!P21)) -> 0 | E13: =IF(Hilfe!$B$3=3,'Berechnung EB 2%'!Q21,'Berechnung Ratierlich 2%'!Q21) -> 0 | F13: =MAX(0,IF(Hilfe!$B$3=3,'Berechnung EB 4%'!K21-'Berechnung EB 4%'!P21,'Berechnung Ratierlich 4%'!K21-'Berechnung Ratierlich 4%'!P21)) -> 0 | G13: =IF(Hilfe!$B$3=3,'Berechnung EB 4%'!Q21,'Berechnung Ratierlich 4%'!Q21) -> 0
A14: 12 | B14: =MAX(0,IF(Hilfe!$B$3=3,'Berechnung EB heute'!K22-'Berechnung EB heute'!P22,'Berechnung Ratierlich heute'!K22-'Berechnung Ratierlich heute'!P22)) -> 0 | C14: =IF(Hilfe!$B$3=3,'Berechnung EB heute'!Q22,'Berechnung Ratierlich heute'!Q22) -> 0 | D14: =MAX(0,IF(Hilfe!$B$3=3,'Berechnung EB 2%'!K22-'Berechnung EB 2%'!P22,'Berechnung Ratierlich 2%'!K22-'Berechnung Ratierlich 2%'!P22)) -> 0 | E14: =IF(Hilfe!$B$3=3,'Berechnung EB 2%'!Q22,'Berechnung Ratierlich 2%'!Q22) -> 0 | F14: =MAX(0,IF(Hilfe!$B$3=3,'Berechnung EB 4%'!K22-'Berechnung EB 4%'!P22,'Berechnung Ratierlich 4%'!K22-'Berechnung Ratierlich 4%'!P22)) -> 0 | G14: =IF(Hilfe!$B$3=3,'Berechnung EB 4%'!Q22,'Berechnung Ratierlich 4%'!Q22) -> 0
A15: 13 | B15: =MAX(0,IF(Hilfe!$B$3=3,'Berechnung EB heute'!K23-'Berechnung EB heute'!P23,'Berechnung Ratierlich heute'!K23-'Berechnung Ratierlich heute'!P23)) -> 0 | C15: =IF(Hilfe!$B$3=3,'Berechnung EB heute'!Q23,'Berechnung Ratierlich heute'!Q23) -> 0 | D15: =MAX(0,IF(Hilfe!$B$3=3,'Berechnung EB 2%'!K23-'Berechnung EB 2%'!P23,'Berechnung Ratierlich 2%'!K23-'Berechnung Ratierlich 2%'!P23)) -> 0 | E15: =IF(Hilfe!$B$3=3,'Berechnung EB 2%'!Q23,'Berechnung Ratierlich 2%'!Q23) -> 0 | F15: =MAX(0,IF(Hilfe!$B$3=3,'Berechnung EB 4%'!K23-'Berechnung EB 4%'!P23,'Berechnung Ratierlich 4%'!K23-'Berechnung Ratierlich 4%'!P23)) -> 0 | G15: =IF(Hilfe!$B$3=3,'Berechnung EB 4%'!Q23,'Berechnung Ratierlich 4%'!Q23) -> 0
A16: 14 | B16: =MAX(0,IF(Hilfe!$B$3=3,'Berechnung EB heute'!K24-'Berechnung EB heute'!P24,'Berechnung Ratierlich heute'!K24-'Berechnung Ratierlich heute'!P24)) -> 0 | C16: =IF(Hilfe!$B$3=3,'Berechnung EB heute'!Q24,'Berechnung Ratierlich heute'!Q24) -> 0 | D16: =MAX(0,IF(Hilfe!$B$3=3,'Berechnung EB 2%'!K24-'Berechnung EB 2%'!P24,'Berechnung Ratierlich 2%'!K24-'Berechnung Ratierlich 2%'!P24)) -> 0 | E16: =IF(Hilfe!$B$3=3,'Berechnung EB 2%'!Q24,'Berechnung Ratierlich 2%'!Q24) -> 0 | F16: =MAX(0,IF(Hilfe!$B$3=3,'Berechnung EB 4%'!K24-'Berechnung EB 4%'!P24,'Berechnung Ratierlich 4%'!K24-'Berechnung Ratierlich 4%'!P24)) -> 0 | G16: =IF(Hilfe!$B$3=3,'Berechnung EB 4%'!Q24,'Berechnung Ratierlich 4%'!Q24) -> 0
A17: 15 | B17: =MAX(0,IF(Hilfe!$B$3=3,'Berechnung EB heute'!K25-'Berechnung EB heute'!P25,'Berechnung Ratierlich heute'!K25-'Berechnung Ratierlich heute'!P25)) -> 0 | C17: =IF(Hilfe!$B$3=3,'Berechnung EB heute'!Q25,'Berechnung Ratierlich heute'!Q25) -> 0 | D17: =MAX(0,IF(Hilfe!$B$3=3,'Berechnung EB 2%'!K25-'Berechnung EB 2%'!P25,'Berechnung Ratierlich 2%'!K25-'Berechnung Ratierlich 2%'!P25)) -> 0 | E17: =IF(Hilfe!$B$3=3,'Berechnung EB 2%'!Q25,'Berechnung Ratierlich 2%'!Q25) -> 0 | F17: =MAX(0,IF(Hilfe!$B$3=3,'Berechnung EB 4%'!K25-'Berechnung EB 4%'!P25,'Berechnung Ratierlich 4%'!K25-'Berechnung Ratierlich 4%'!P25)) -> 0 | G17: =IF(Hilfe!$B$3=3,'Berechnung EB 4%'!Q25,'Berechnung Ratierlich 4%'!Q25) -> 0
A18: 16 | B18: =MAX(0,IF(Hilfe!$B$3=3,'Berechnung EB heute'!K26-'Berechnung EB heute'!P26,'Berechnung Ratierlich heute'!K26-'Berechnung Ratierlich heute'!P26)) -> 0 | C18: =IF(Hilfe!$B$3=3,'Berechnung EB heute'!Q26,'Berechnung Ratierlich heute'!Q26) -> 0 | D18: =MAX(0,IF(Hilfe!$B$3=3,'Berechnung EB 2%'!K26-'Berechnung EB 2%'!P26,'Berechnung Ratierlich 2%'!K26-'Berechnung Ratierlich 2%'!P26)) -> 0 | E18: =IF(Hilfe!$B$3=3,'Berechnung EB 2%'!Q26,'Berechnung Ratierlich 2%'!Q26) -> 0 | F18: =MAX(0,IF(Hilfe!$B$3=3,'Berechnung EB 4%'!K26-'Berechnung EB 4%'!P26,'Berechnung Ratierlich 4%'!K26-'Berechnung Ratierlich 4%'!P26)) -> 0 | G18: =IF(Hilfe!$B$3=3,'Berechnung EB 4%'!Q26,'Berechnung Ratierlich 4%'!Q26) -> 0
A19: 17 | B19: =MAX(0,IF(Hilfe!$B$3=3,'Berechnung EB heute'!K27-'Berechnung EB heute'!P27,'Berechnung Ratierlich heute'!K27-'Berechnung Ratierlich heute'!P27)) -> 0 | C19: =IF(Hilfe!$B$3=3,'Berechnung EB heute'!Q27,'Berechnung Ratierlich heute'!Q27) -> 0 | D19: =MAX(0,IF(Hilfe!$B$3=3,'Berechnung EB 2%'!K27-'Berechnung EB 2%'!P27,'Berechnung Ratierlich 2%'!K27-'Berechnung Ratierlich 2%'!P27)) -> 0 | E19: =IF(Hilfe!$B$3=3,'Berechnung EB 2%'!Q27,'Berechnung Ratierlich 2%'!Q27) -> 0 | F19: =MAX(0,IF(Hilfe!$B$3=3,'Berechnung EB 4%'!K27-'Berechnung EB 4%'!P27,'Berechnung Ratierlich 4%'!K27-'Berechnung Ratierlich 4%'!P27)) -> 0 | G19: =IF(Hilfe!$B$3=3,'Berechnung EB 4%'!Q27,'Berechnung Ratierlich 4%'!Q27) -> 0
A20: 18 | B20: =MAX(0,IF(Hilfe!$B$3=3,'Berechnung EB heute'!K28-'Berechnung EB heute'!P28,'Berechnung Ratierlich heute'!K28-'Berechnung Ratierlich heute'!P28)) -> 0 | C20: =IF(Hilfe!$B$3=3,'Berechnung EB heute'!Q28,'Berechnung Ratierlich heute'!Q28) -> 0 | D20: =MAX(0,IF(Hilfe!$B$3=3,'Berechnung EB 2%'!K28-'Berechnung EB 2%'!P28,'Berechnung Ratierlich 2%'!K28-'Berechnung Ratierlich 2%'!P28)) -> 0 | E20: =IF(Hilfe!$B$3=3,'Berechnung EB 2%'!Q28,'Berechnung Ratierlich 2%'!Q28) -> 0 | F20: =MAX(0,IF(Hilfe!$B$3=3,'Berechnung EB 4%'!K28-'Berechnung EB 4%'!P28,'Berechnung Ratierlich 4%'!K28-'Berechnung Ratierlich 4%'!P28)) -> 0 | G20: =IF(Hilfe!$B$3=3,'Berechnung EB 4%'!Q28,'Berechnung Ratierlich 4%'!Q28) -> 0
A21: 19 | B21: =MAX(0,IF(Hilfe!$B$3=3,'Berechnung EB heute'!K29-'Berechnung EB heute'!P29,'Berechnung Ratierlich heute'!K29-'Berechnung Ratierlich heute'!P29)) -> 0 | C21: =IF(Hilfe!$B$3=3,'Berechnung EB heute'!Q29,'Berechnung Ratierlich heute'!Q29) -> 0 | D21: =MAX(0,IF(Hilfe!$B$3=3,'Berechnung EB 2%'!K29-'Berechnung EB 2%'!P29,'Berechnung Ratierlich 2%'!K29-'Berechnung Ratierlich 2%'!P29)) -> 0 | E21: =IF(Hilfe!$B$3=3,'Berechnung EB 2%'!Q29,'Berechnung Ratierlich 2%'!Q29) -> 0 | F21: =MAX(0,IF(Hilfe!$B$3=3,'Berechnung EB 4%'!K29-'Berechnung EB 4%'!P29,'Berechnung Ratierlich 4%'!K29-'Berechnung Ratierlich 4%'!P29)) -> 0 | G21: =IF(Hilfe!$B$3=3,'Berechnung EB 4%'!Q29,'Berechnung Ratierlich 4%'!Q29) -> 0
A22: 20 | B22: =MAX(0,IF(Hilfe!$B$3=3,'Berechnung EB heute'!K30-'Berechnung EB heute'!P30,'Berechnung Ratierlich heute'!K30-'Berechnung Ratierlich heute'!P30)) -> 0 | C22: =IF(Hilfe!$B$3=3,'Berechnung EB heute'!Q30,'Berechnung Ratierlich heute'!Q30) -> 0 | D22: =MAX(0,IF(Hilfe!$B$3=3,'Berechnung EB 2%'!K30-'Berechnung EB 2%'!P30,'Berechnung Ratierlich 2%'!K30-'Berechnung Ratierlich 2%'!P30)) -> 0 | E22: =IF(Hilfe!$B$3=3,'Berechnung EB 2%'!Q30,'Berechnung Ratierlich 2%'!Q30) -> 0 | F22: =MAX(0,IF(Hilfe!$B$3=3,'Berechnung EB 4%'!K30-'Berechnung EB 4%'!P30,'Berechnung Ratierlich 4%'!K30-'Berechnung Ratierlich 4%'!P30)) -> 0 | G22: =IF(Hilfe!$B$3=3,'Berechnung EB 4%'!Q30,'Berechnung Ratierlich 4%'!Q30) -> 0
A23: 21 | B23: =MAX(0,IF(Hilfe!$B$3=3,'Berechnung EB heute'!K31-'Berechnung EB heute'!P31,'Berechnung Ratierlich heute'!K31-'Berechnung Ratierlich heute'!P31)) -> 0 | C23: =IF(Hilfe!$B$3=3,'Berechnung EB heute'!Q31,'Berechnung Ratierlich heute'!Q31) -> 0 | D23: =MAX(0,IF(Hilfe!$B$3=3,'Berechnung EB 2%'!K31-'Berechnung EB 2%'!P31,'Berechnung Ratierlich 2%'!K31-'Berechnung Ratierlich 2%'!P31)) -> 0 | E23: =IF(Hilfe!$B$3=3,'Berechnung EB 2%'!Q31,'Berechnung Ratierlich 2%'!Q31) -> 0 | F23: =MAX(0,IF(Hilfe!$B$3=3,'Berechnung EB 4%'!K31-'Berechnung EB 4%'!P31,'Berechnung Ratierlich 4%'!K31-'Berechnung Ratierlich 4%'!P31)) -> 0 | G23: =IF(Hilfe!$B$3=3,'Berechnung EB 4%'!Q31,'Berechnung Ratierlich 4%'!Q31) -> 0
A24: 22 | B24: =MAX(0,IF(Hilfe!$B$3=3,'Berechnung EB heute'!K32-'Berechnung EB heute'!P32,'Berechnung Ratierlich heute'!K32-'Berechnung Ratierlich heute'!P32)) -> 0 | C24: =IF(Hilfe!$B$3=3,'Berechnung EB heute'!Q32,'Berechnung Ratierlich heute'!Q32) -> 0 | D24: =MAX(0,IF(Hilfe!$B$3=3,'Berechnung EB 2%'!K32-'Berechnung EB 2%'!P32,'Berechnung Ratierlich 2%'!K32-'Berechnung Ratierlich 2%'!P32)) -> 0 | E24: =IF(Hilfe!$B$3=3,'Berechnung EB 2%'!Q32,'Berechnung Ratierlich 2%'!Q32) -> 0 | F24: =MAX(0,IF(Hilfe!$B$3=3,'Berechnung EB 4%'!K32-'Berechnung EB 4%'!P32,'Berechnung Ratierlich 4%'!K32-'Berechnung Ratierlich 4%'!P32)) -> 0 | G24: =IF(Hilfe!$B$3=3,'Berechnung EB 4%'!Q32,'Berechnung Ratierlich 4%'!Q32) -> 0
A25: 23 | B25: =MAX(0,IF(Hilfe!$B$3=3,'Berechnung EB heute'!K33-'Berechnung EB heute'!P33,'Berechnung Ratierlich heute'!K33-'Berechnung Ratierlich heute'!P33)) -> 0 | C25: =IF(Hilfe!$B$3=3,'Berechnung EB heute'!Q33,'Berechnung Ratierlich heute'!Q33) -> 0 | D25: =MAX(0,IF(Hilfe!$B$3=3,'Berechnung EB 2%'!K33-'Berechnung EB 2%'!P33,'Berechnung Ratierlich 2%'!K33-'Berechnung Ratierlich 2%'!P33)) -> 0 | E25: =IF(Hilfe!$B$3=3,'Berechnung EB 2%'!Q33,'Berechnung Ratierlich 2%'!Q33) -> 0 | F25: =MAX(0,IF(Hilfe!$B$3=3,'Berechnung EB 4%'!K33-'Berechnung EB 4%'!P33,'Berechnung Ratierlich 4%'!K33-'Berechnung Ratierlich 4%'!P33)) -> 0 | G25: =IF(Hilfe!$B$3=3,'Berechnung EB 4%'!Q33,'Berechnung Ratierlich 4%'!Q33) -> 0
A26: 24 | B26: =MAX(0,IF(Hilfe!$B$3=3,'Berechnung EB heute'!K34-'Berechnung EB heute'!P34,'Berechnung Ratierlich heute'!K34-'Berechnung Ratierlich heute'!P34)) -> 0 | C26: =IF(Hilfe!$B$3=3,'Berechnung EB heute'!Q34,'Berechnung Ratierlich heute'!Q34) -> 0 | D26: =MAX(0,IF(Hilfe!$B$3=3,'Berechnung EB 2%'!K34-'Berechnung EB 2%'!P34,'Berechnung Ratierlich 2%'!K34-'Berechnung Ratierlich 2%'!P34)) -> 0 | E26: =IF(Hilfe!$B$3=3,'Berechnung EB 2%'!Q34,'Berechnung Ratierlich 2%'!Q34) -> 0 | F26: =MAX(0,IF(Hilfe!$B$3=3,'Berechnung EB 4%'!K34-'Berechnung EB 4%'!P34,'Berechnung Ratierlich 4%'!K34-'Berechnung Ratierlich 4%'!P34)) -> 0 | G26: =IF(Hilfe!$B$3=3,'Berechnung EB 4%'!Q34,'Berechnung Ratierlich 4%'!Q34) -> 0
A27: 25 | B27: =MAX(0,IF(Hilfe!$B$3=3,'Berechnung EB heute'!K35-'Berechnung EB heute'!P35,'Berechnung Ratierlich heute'!K35-'Berechnung Ratierlich heute'!P35)) -> 0 | C27: =IF(Hilfe!$B$3=3,'Berechnung EB heute'!Q35,'Berechnung Ratierlich heute'!Q35) -> 0 | D27: =MAX(0,IF(Hilfe!$B$3=3,'Berechnung EB 2%'!K35-'Berechnung EB 2%'!P35,'Berechnung Ratierlich 2%'!K35-'Berechnung Ratierlich 2%'!P35)) -> 0 | E27: =IF(Hilfe!$B$3=3,'Berechnung EB 2%'!Q35,'Berechnung Ratierlich 2%'!Q35) -> 0 | F27: =MAX(0,IF(Hilfe!$B$3=3,'Berechnung EB 4%'!K35-'Berechnung EB 4%'!P35,'Berechnung Ratierlich 4%'!K35-'Berechnung Ratierlich 4%'!P35)) -> 0 | G27: =IF(Hilfe!$B$3=3,'Berechnung EB 4%'!Q35,'Berechnung Ratierlich 4%'!Q35) -> 0
A28: 26 | B28: =MAX(0,IF(Hilfe!$B$3=3,'Berechnung EB heute'!K36-'Berechnung EB heute'!P36,'Berechnung Ratierlich heute'!K36-'Berechnung Ratierlich heute'!P36)) -> 0 | C28: =IF(Hilfe!$B$3=3,'Berechnung EB heute'!Q36,'Berechnung Ratierlich heute'!Q36) -> 0 | D28: =MAX(0,IF(Hilfe!$B$3=3,'Berechnung EB 2%'!K36-'Berechnung EB 2%'!P36,'Berechnung Ratierlich 2%'!K36-'Berechnung Ratierlich 2%'!P36)) -> 0 | E28: =IF(Hilfe!$B$3=3,'Berechnung EB 2%'!Q36,'Berechnung Ratierlich 2%'!Q36) -> 0 | F28: =MAX(0,IF(Hilfe!$B$3=3,'Berechnung EB 4%'!K36-'Berechnung EB 4%'!P36,'Berechnung Ratierlich 4%'!K36-'Berechnung Ratierlich 4%'!P36)) -> 0 | G28: =IF(Hilfe!$B$3=3,'Berechnung EB 4%'!Q36,'Berechnung Ratierlich 4%'!Q36) -> 0
A29: 27 | B29: =MAX(0,IF(Hilfe!$B$3=3,'Berechnung EB heute'!K37-'Berechnung EB heute'!P37,'Berechnung Ratierlich heute'!K37-'Berechnung Ratierlich heute'!P37)) -> 0 | C29: =IF(Hilfe!$B$3=3,'Berechnung EB heute'!Q37,'Berechnung Ratierlich heute'!Q37) -> 0 | D29: =MAX(0,IF(Hilfe!$B$3=3,'Berechnung EB 2%'!K37-'Berechnung EB 2%'!P37,'Berechnung Ratierlich 2%'!K37-'Berechnung Ratierlich 2%'!P37)) -> 0 | E29: =IF(Hilfe!$B$3=3,'Berechnung EB 2%'!Q37,'Berechnung Ratierlich 2%'!Q37) -> 0 | F29: =MAX(0,IF(Hilfe!$B$3=3,'Berechnung EB 4%'!K37-'Berechnung EB 4%'!P37,'Berechnung Ratierlich 4%'!K37-'Berechnung Ratierlich 4%'!P37)) -> 0 | G29: =IF(Hilfe!$B$3=3,'Berechnung EB 4%'!Q37,'Berechnung Ratierlich 4%'!Q37) -> 0
A30: 28 | B30: =MAX(0,IF(Hilfe!$B$3=3,'Berechnung EB heute'!K38-'Berechnung EB heute'!P38,'Berechnung Ratierlich heute'!K38-'Berechnung Ratierlich heute'!P38)) -> 0 | C30: =IF(Hilfe!$B$3=3,'Berechnung EB heute'!Q38,'Berechnung Ratierlich heute'!Q38) -> 0 | D30: =MAX(0,IF(Hilfe!$B$3=3,'Berechnung EB 2%'!K38-'Berechnung EB 2%'!P38,'Berechnung Ratierlich 2%'!K38-'Berechnung Ratierlich 2%'!P38)) -> 0 | E30: =IF(Hilfe!$B$3=3,'Berechnung EB 2%'!Q38,'Berechnung Ratierlich 2%'!Q38) -> 0 | F30: =MAX(0,IF(Hilfe!$B$3=3,'Berechnung EB 4%'!K38-'Berechnung EB 4%'!P38,'Berechnung Ratierlich 4%'!K38-'Berechnung Ratierlich 4%'!P38)) -> 0 | G30: =IF(Hilfe!$B$3=3,'Berechnung EB 4%'!Q38,'Berechnung Ratierlich 4%'!Q38) -> 0
A31: 29 | B31: =MAX(0,IF(Hilfe!$B$3=3,'Berechnung EB heute'!K39-'Berechnung EB heute'!P39,'Berechnung Ratierlich heute'!K39-'Berechnung Ratierlich heute'!P39)) -> 0 | C31: =IF(Hilfe!$B$3=3,'Berechnung EB heute'!Q39,'Berechnung Ratierlich heute'!Q39) -> 0 | D31: =MAX(0,IF(Hilfe!$B$3=3,'Berechnung EB 2%'!K39-'Berechnung EB 2%'!P39,'Berechnung Ratierlich 2%'!K39-'Berechnung Ratierlich 2%'!P39)) -> 0 | E31: =IF(Hilfe!$B$3=3,'Berechnung EB 2%'!Q39,'Berechnung Ratierlich 2%'!Q39) -> 0 | F31: =MAX(0,IF(Hilfe!$B$3=3,'Berechnung EB 4%'!K39-'Berechnung EB 4%'!P39,'Berechnung Ratierlich 4%'!K39-'Berechnung Ratierlich 4%'!P39)) -> 0 | G31: =IF(Hilfe!$B$3=3,'Berechnung EB 4%'!Q39,'Berechnung Ratierlich 4%'!Q39) -> 0
A32: 30 | B32: =MAX(0,IF(Hilfe!$B$3=3,'Berechnung EB heute'!K40-'Berechnung EB heute'!P40,'Berechnung Ratierlich heute'!K40-'Berechnung Ratierlich heute'!P40)) -> 0 | C32: =IF(Hilfe!$B$3=3,'Berechnung EB heute'!Q40,'Berechnung Ratierlich heute'!Q40) -> 0 | D32: =MAX(0,IF(Hilfe!$B$3=3,'Berechnung EB 2%'!K40-'Berechnung EB 2%'!P40,'Berechnung Ratierlich 2%'!K40-'Berechnung Ratierlich 2%'!P40)) -> 0 | E32: =IF(Hilfe!$B$3=3,'Berechnung EB 2%'!Q40,'Berechnung Ratierlich 2%'!Q40) -> 0 | F32: =MAX(0,IF(Hilfe!$B$3=3,'Berechnung EB 4%'!K40-'Berechnung EB 4%'!P40,'Berechnung Ratierlich 4%'!K40-'Berechnung Ratierlich 4%'!P40)) -> 0 | G32: =IF(Hilfe!$B$3=3,'Berechnung EB 4%'!Q40,'Berechnung Ratierlich 4%'!Q40) -> 0
A33: 31 | B33: =MAX(0,IF(Hilfe!$B$3=3,'Berechnung EB heute'!K41-'Berechnung EB heute'!P41,'Berechnung Ratierlich heute'!K41-'Berechnung Ratierlich heute'!P41)) -> 0 | C33: =IF(Hilfe!$B$3=3,'Berechnung EB heute'!Q41,'Berechnung Ratierlich heute'!Q41) -> 0 | D33: =MAX(0,IF(Hilfe!$B$3=3,'Berechnung EB 2%'!K41-'Berechnung EB 2%'!P41,'Berechnung Ratierlich 2%'!K41-'Berechnung Ratierlich 2%'!P41)) -> 0 | E33: =IF(Hilfe!$B$3=3,'Berechnung EB 2%'!Q41,'Berechnung Ratierlich 2%'!Q41) -> 0 | F33: =MAX(0,IF(Hilfe!$B$3=3,'Berechnung EB 4%'!K41-'Berechnung EB 4%'!P41,'Berechnung Ratierlich 4%'!K41-'Berechnung Ratierlich 4%'!P41)) -> 0 | G33: =IF(Hilfe!$B$3=3,'Berechnung EB 4%'!Q41,'Berechnung Ratierlich 4%'!Q41) -> 0
A34: 32 | B34: =MAX(0,IF(Hilfe!$B$3=3,'Berechnung EB heute'!K42-'Berechnung EB heute'!P42,'Berechnung Ratierlich heute'!K42-'Berechnung Ratierlich heute'!P42)) -> 0 | C34: =IF(Hilfe!$B$3=3,'Berechnung EB heute'!Q42,'Berechnung Ratierlich heute'!Q42) -> 0 | D34: =MAX(0,IF(Hilfe!$B$3=3,'Berechnung EB 2%'!K42-'Berechnung EB 2%'!P42,'Berechnung Ratierlich 2%'!K42-'Berechnung Ratierlich 2%'!P42)) -> 0 | E34: =IF(Hilfe!$B$3=3,'Berechnung EB 2%'!Q42,'Berechnung Ratierlich 2%'!Q42) -> 0 | F34: =MAX(0,IF(Hilfe!$B$3=3,'Berechnung EB 4%'!K42-'Berechnung EB 4%'!P42,'Berechnung Ratierlich 4%'!K42-'Berechnung Ratierlich 4%'!P42)) -> 0 | G34: =IF(Hilfe!$B$3=3,'Berechnung EB 4%'!Q42,'Berechnung Ratierlich 4%'!Q42) -> 0
A35: 33 | B35: =MAX(0,IF(Hilfe!$B$3=3,'Berechnung EB heute'!K43-'Berechnung EB heute'!P43,'Berechnung Ratierlich heute'!K43-'Berechnung Ratierlich heute'!P43)) -> 0 | C35: =IF(Hilfe!$B$3=3,'Berechnung EB heute'!Q43,'Berechnung Ratierlich heute'!Q43) -> 0 | D35: =MAX(0,IF(Hilfe!$B$3=3,'Berechnung EB 2%'!K43-'Berechnung EB 2%'!P43,'Berechnung Ratierlich 2%'!K43-'Berechnung Ratierlich 2%'!P43)) -> 0 | E35: =IF(Hilfe!$B$3=3,'Berechnung EB 2%'!Q43,'Berechnung Ratierlich 2%'!Q43) -> 0 | F35: =MAX(0,IF(Hilfe!$B$3=3,'Berechnung EB 4%'!K43-'Berechnung EB 4%'!P43,'Berechnung Ratierlich 4%'!K43-'Berechnung Ratierlich 4%'!P43)) -> 0 | G35: =IF(Hilfe!$B$3=3,'Berechnung EB 4%'!Q43,'Berechnung Ratierlich 4%'!Q43) -> 0
A36: 34 | B36: =MAX(0,IF(Hilfe!$B$3=3,'Berechnung EB heute'!K44-'Berechnung EB heute'!P44,'Berechnung Ratierlich heute'!K44-'Berechnung Ratierlich heute'!P44)) -> 0 | C36: =IF(Hilfe!$B$3=3,'Berechnung EB heute'!Q44,'Berechnung Ratierlich heute'!Q44) -> 0 | D36: =MAX(0,IF(Hilfe!$B$3=3,'Berechnung EB 2%'!K44-'Berechnung EB 2%'!P44,'Berechnung Ratierlich 2%'!K44-'Berechnung Ratierlich 2%'!P44)) -> 0 | E36: =IF(Hilfe!$B$3=3,'Berechnung EB 2%'!Q44,'Berechnung Ratierlich 2%'!Q44) -> 0 | F36: =MAX(0,IF(Hilfe!$B$3=3,'Berechnung EB 4%'!K44-'Berechnung EB 4%'!P44,'Berechnung Ratierlich 4%'!K44-'Berechnung Ratierlich 4%'!P44)) -> 0 | G36: =IF(Hilfe!$B$3=3,'Berechnung EB 4%'!Q44,'Berechnung Ratierlich 4%'!Q44) -> 0
A37: 35 | B37: =MAX(0,IF(Hilfe!$B$3=3,'Berechnung EB heute'!K45-'Berechnung EB heute'!P45,'Berechnung Ratierlich heute'!K45-'Berechnung Ratierlich heute'!P45)) -> 0 | C37: =IF(Hilfe!$B$3=3,'Berechnung EB heute'!Q45,'Berechnung Ratierlich heute'!Q45) -> 0 | D37: =MAX(0,IF(Hilfe!$B$3=3,'Berechnung EB 2%'!K45-'Berechnung EB 2%'!P45,'Berechnung Ratierlich 2%'!K45-'Berechnung Ratierlich 2%'!P45)) -> 0 | E37: =IF(Hilfe!$B$3=3,'Berechnung EB 2%'!Q45,'Berechnung Ratierlich 2%'!Q45) -> 0 | F37: =MAX(0,IF(Hilfe!$B$3=3,'Berechnung EB 4%'!K45-'Berechnung EB 4%'!P45,'Berechnung Ratierlich 4%'!K45-'Berechnung Ratierlich 4%'!P45)) -> 0 | G37: =IF(Hilfe!$B$3=3,'Berechnung EB 4%'!Q45,'Berechnung Ratierlich 4%'!Q45) -> 0
A38: 36 | B38: =MAX(0,IF(Hilfe!$B$3=3,'Berechnung EB heute'!K46-'Berechnung EB heute'!P46,'Berechnung Ratierlich heute'!K46-'Berechnung Ratierlich heute'!P46)) -> 0 | C38: =IF(Hilfe!$B$3=3,'Berechnung EB heute'!Q46,'Berechnung Ratierlich heute'!Q46) -> 0 | D38: =MAX(0,IF(Hilfe!$B$3=3,'Berechnung EB 2%'!K46-'Berechnung EB 2%'!P46,'Berechnung Ratierlich 2%'!K46-'Berechnung Ratierlich 2%'!P46)) -> 0 | E38: =IF(Hilfe!$B$3=3,'Berechnung EB 2%'!Q46,'Berechnung Ratierlich 2%'!Q46) -> 0 | F38: =MAX(0,IF(Hilfe!$B$3=3,'Berechnung EB 4%'!K46-'Berechnung EB 4%'!P46,'Berechnung Ratierlich 4%'!K46-'Berechnung Ratierlich 4%'!P46)) -> 0 | G38: =IF(Hilfe!$B$3=3,'Berechnung EB 4%'!Q46,'Berechnung Ratierlich 4%'!Q46) -> 0
A39: 37 | B39: =MAX(0,IF(Hilfe!$B$3=3,'Berechnung EB heute'!K47-'Berechnung EB heute'!P47,'Berechnung Ratierlich heute'!K47-'Berechnung Ratierlich heute'!P47)) -> 0 | C39: =IF(Hilfe!$B$3=3,'Berechnung EB heute'!Q47,'Berechnung Ratierlich heute'!Q47) -> 0 | D39: =MAX(0,IF(Hilfe!$B$3=3,'Berechnung EB 2%'!K47-'Berechnung EB 2%'!P47,'Berechnung Ratierlich 2%'!K47-'Berechnung Ratierlich 2%'!P47)) -> 0 | E39: =IF(Hilfe!$B$3=3,'Berechnung EB 2%'!Q47,'Berechnung Ratierlich 2%'!Q47) -> 0 | F39: =MAX(0,IF(Hilfe!$B$3=3,'Berechnung EB 4%'!K47-'Berechnung EB 4%'!P47,'Berechnung Ratierlich 4%'!K47-'Berechnung Ratierlich 4%'!P47)) -> 0 | G39: =IF(Hilfe!$B$3=3,'Berechnung EB 4%'!Q47,'Berechnung Ratierlich 4%'!Q47) -> 0
A40: 38 | B40: =MAX(0,IF(Hilfe!$B$3=3,'Berechnung EB heute'!K48-'Berechnung EB heute'!P48,'Berechnung Ratierlich heute'!K48-'Berechnung Ratierlich heute'!P48)) -> 0 | C40: =IF(Hilfe!$B$3=3,'Berechnung EB heute'!Q48,'Berechnung Ratierlich heute'!Q48) -> 0 | D40: =MAX(0,IF(Hilfe!$B$3=3,'Berechnung EB 2%'!K48-'Berechnung EB 2%'!P48,'Berechnung Ratierlich 2%'!K48-'Berechnung Ratierlich 2%'!P48)) -> 0 | E40: =IF(Hilfe!$B$3=3,'Berechnung EB 2%'!Q48,'Berechnung Ratierlich 2%'!Q48) -> 0 | F40: =MAX(0,IF(Hilfe!$B$3=3,'Berechnung EB 4%'!K48-'Berechnung EB 4%'!P48,'Berechnung Ratierlich 4%'!K48-'Berechnung Ratierlich 4%'!P48)) -> 0 | G40: =IF(Hilfe!$B$3=3,'Berechnung EB 4%'!Q48,'Berechnung Ratierlich 4%'!Q48) -> 0
A41: 39 | B41: =MAX(0,IF(Hilfe!$B$3=3,'Berechnung EB heute'!K49-'Berechnung EB heute'!P49,'Berechnung Ratierlich heute'!K49-'Berechnung Ratierlich heute'!P49)) -> 0 | C41: =IF(Hilfe!$B$3=3,'Berechnung EB heute'!Q49,'Berechnung Ratierlich heute'!Q49) -> 0 | D41: =MAX(0,IF(Hilfe!$B$3=3,'Berechnung EB 2%'!K49-'Berechnung EB 2%'!P49,'Berechnung Ratierlich 2%'!K49-'Berechnung Ratierlich 2%'!P49)) -> 0 | E41: =IF(Hilfe!$B$3=3,'Berechnung EB 2%'!Q49,'Berechnung Ratierlich 2%'!Q49) -> 0 | F41: =MAX(0,IF(Hilfe!$B$3=3,'Berechnung EB 4%'!K49-'Berechnung EB 4%'!P49,'Berechnung Ratierlich 4%'!K49-'Berechnung Ratierlich 4%'!P49)) -> 0 | G41: =IF(Hilfe!$B$3=3,'Berechnung EB 4%'!Q49,'Berechnung Ratierlich 4%'!Q49) -> 0
A42: 40 | B42: =MAX(0,IF(Hilfe!$B$3=3,'Berechnung EB heute'!K50-'Berechnung EB heute'!P50,'Berechnung Ratierlich heute'!K50-'Berechnung Ratierlich heute'!P50)) -> 0 | C42: =IF(Hilfe!$B$3=3,'Berechnung EB heute'!Q50,'Berechnung Ratierlich heute'!Q50) -> 0 | D42: =MAX(0,IF(Hilfe!$B$3=3,'Berechnung EB 2%'!K50-'Berechnung EB 2%'!P50,'Berechnung Ratierlich 2%'!K50-'Berechnung Ratierlich 2%'!P50)) -> 0 | E42: =IF(Hilfe!$B$3=3,'Berechnung EB 2%'!Q50,'Berechnung Ratierlich 2%'!Q50) -> 0 | F42: =MAX(0,IF(Hilfe!$B$3=3,'Berechnung EB 4%'!K50-'Berechnung EB 4%'!P50,'Berechnung Ratierlich 4%'!K50-'Berechnung Ratierlich 4%'!P50)) -> 0 | G42: =IF(Hilfe!$B$3=3,'Berechnung EB 4%'!Q50,'Berechnung Ratierlich 4%'!Q50) -> 0
A43: 41 | B43: =MAX(0,IF(Hilfe!$B$3=3,'Berechnung EB heute'!K51-'Berechnung EB heute'!P51,'Berechnung Ratierlich heute'!K51-'Berechnung Ratierlich heute'!P51)) -> 0 | C43: =IF(Hilfe!$B$3=3,'Berechnung EB heute'!Q51,'Berechnung Ratierlich heute'!Q51) -> 0 | D43: =MAX(0,IF(Hilfe!$B$3=3,'Berechnung EB 2%'!K51-'Berechnung EB 2%'!P51,'Berechnung Ratierlich 2%'!K51-'Berechnung Ratierlich 2%'!P51)) -> 0 | E43: =IF(Hilfe!$B$3=3,'Berechnung EB 2%'!Q51,'Berechnung Ratierlich 2%'!Q51) -> 0 | F43: =MAX(0,IF(Hilfe!$B$3=3,'Berechnung EB 4%'!K51-'Berechnung EB 4%'!P51,'Berechnung Ratierlich 4%'!K51-'Berechnung Ratierlich 4%'!P51)) -> 0 | G43: =IF(Hilfe!$B$3=3,'Berechnung EB 4%'!Q51,'Berechnung Ratierlich 4%'!Q51) -> 0
A44: 42 | B44: =MAX(0,IF(Hilfe!$B$3=3,'Berechnung EB heute'!K52-'Berechnung EB heute'!P52,'Berechnung Ratierlich heute'!K52-'Berechnung Ratierlich heute'!P52)) -> 0 | C44: =IF(Hilfe!$B$3=3,'Berechnung EB heute'!Q52,'Berechnung Ratierlich heute'!Q52) -> 0 | D44: =MAX(0,IF(Hilfe!$B$3=3,'Berechnung EB 2%'!K52-'Berechnung EB 2%'!P52,'Berechnung Ratierlich 2%'!K52-'Berechnung Ratierlich 2%'!P52)) -> 0 | E44: =IF(Hilfe!$B$3=3,'Berechnung EB 2%'!Q52,'Berechnung Ratierlich 2%'!Q52) -> 0 | F44: =MAX(0,IF(Hilfe!$B$3=3,'Berechnung EB 4%'!K52-'Berechnung EB 4%'!P52,'Berechnung Ratierlich 4%'!K52-'Berechnung Ratierlich 4%'!P52)) -> 0 | G44: =IF(Hilfe!$B$3=3,'Berechnung EB 4%'!Q52,'Berechnung Ratierlich 4%'!Q52) -> 0
A45: 43 | B45: =MAX(0,IF(Hilfe!$B$3=3,'Berechnung EB heute'!K53-'Berechnung EB heute'!P53,'Berechnung Ratierlich heute'!K53-'Berechnung Ratierlich heute'!P53)) -> 0 | C45: =IF(Hilfe!$B$3=3,'Berechnung EB heute'!Q53,'Berechnung Ratierlich heute'!Q53) -> 0 | D45: =MAX(0,IF(Hilfe!$B$3=3,'Berechnung EB 2%'!K53-'Berechnung EB 2%'!P53,'Berechnung Ratierlich 2%'!K53-'Berechnung Ratierlich 2%'!P53)) -> 0 | E45: =IF(Hilfe!$B$3=3,'Berechnung EB 2%'!Q53,'Berechnung Ratierlich 2%'!Q53) -> 0 | F45: =MAX(0,IF(Hilfe!$B$3=3,'Berechnung EB 4%'!K53-'Berechnung EB 4%'!P53,'Berechnung Ratierlich 4%'!K53-'Berechnung Ratierlich 4%'!P53)) -> 0 | G45: =IF(Hilfe!$B$3=3,'Berechnung EB 4%'!Q53,'Berechnung Ratierlich 4%'!Q53) -> 0
A46: 44 | B46: =MAX(0,IF(Hilfe!$B$3=3,'Berechnung EB heute'!K54-'Berechnung EB heute'!P54,'Berechnung Ratierlich heute'!K54-'Berechnung Ratierlich heute'!P54)) -> 0 | C46: =IF(Hilfe!$B$3=3,'Berechnung EB heute'!Q54,'Berechnung Ratierlich heute'!Q54) -> 0 | D46: =MAX(0,IF(Hilfe!$B$3=3,'Berechnung EB 2%'!K54-'Berechnung EB 2%'!P54,'Berechnung Ratierlich 2%'!K54-'Berechnung Ratierlich 2%'!P54)) -> 0 | E46: =IF(Hilfe!$B$3=3,'Berechnung EB 2%'!Q54,'Berechnung Ratierlich 2%'!Q54) -> 0 | F46: =MAX(0,IF(Hilfe!$B$3=3,'Berechnung EB 4%'!K54-'Berechnung EB 4%'!P54,'Berechnung Ratierlich 4%'!K54-'Berechnung Ratierlich 4%'!P54)) -> 0 | G46: =IF(Hilfe!$B$3=3,'Berechnung EB 4%'!Q54,'Berechnung Ratierlich 4%'!Q54) -> 0
A47: 45 | B47: =MAX(0,IF(Hilfe!$B$3=3,'Berechnung EB heute'!K55-'Berechnung EB heute'!P55,'Berechnung Ratierlich heute'!K55-'Berechnung Ratierlich heute'!P55)) -> 0 | C47: =IF(Hilfe!$B$3=3,'Berechnung EB heute'!Q55,'Berechnung Ratierlich heute'!Q55) -> 0 | D47: =MAX(0,IF(Hilfe!$B$3=3,'Berechnung EB 2%'!K55-'Berechnung EB 2%'!P55,'Berechnung Ratierlich 2%'!K55-'Berechnung Ratierlich 2%'!P55)) -> 0 | E47: =IF(Hilfe!$B$3=3,'Berechnung EB 2%'!Q55,'Berechnung Ratierlich 2%'!Q55) -> 0 | F47: =MAX(0,IF(Hilfe!$B$3=3,'Berechnung EB 4%'!K55-'Berechnung EB 4%'!P55,'Berechnung Ratierlich 4%'!K55-'Berechnung Ratierlich 4%'!P55)) -> 0 | G47: =IF(Hilfe!$B$3=3,'Berechnung EB 4%'!Q55,'Berechnung Ratierlich 4%'!Q55) -> 0
A48: 46 | B48: =MAX(0,IF(Hilfe!$B$3=3,'Berechnung EB heute'!K56-'Berechnung EB heute'!P56,'Berechnung Ratierlich heute'!K56-'Berechnung Ratierlich heute'!P56)) -> 0 | C48: =IF(Hilfe!$B$3=3,'Berechnung EB heute'!Q56,'Berechnung Ratierlich heute'!Q56) -> 0 | D48: =MAX(0,IF(Hilfe!$B$3=3,'Berechnung EB 2%'!K56-'Berechnung EB 2%'!P56,'Berechnung Ratierlich 2%'!K56-'Berechnung Ratierlich 2%'!P56)) -> 0 | E48: =IF(Hilfe!$B$3=3,'Berechnung EB 2%'!Q56,'Berechnung Ratierlich 2%'!Q56) -> 0 | F48: =MAX(0,IF(Hilfe!$B$3=3,'Berechnung EB 4%'!K56-'Berechnung EB 4%'!P56,'Berechnung Ratierlich 4%'!K56-'Berechnung Ratierlich 4%'!P56)) -> 0 | G48: =IF(Hilfe!$B$3=3,'Berechnung EB 4%'!Q56,'Berechnung Ratierlich 4%'!Q56) -> 0
A49: 47 | B49: =MAX(0,IF(Hilfe!$B$3=3,'Berechnung EB heute'!K57-'Berechnung EB heute'!P57,'Berechnung Ratierlich heute'!K57-'Berechnung Ratierlich heute'!P57)) -> 0 | C49: =IF(Hilfe!$B$3=3,'Berechnung EB heute'!Q57,'Berechnung Ratierlich heute'!Q57) -> 0 | D49: =MAX(0,IF(Hilfe!$B$3=3,'Berechnung EB 2%'!K57-'Berechnung EB 2%'!P57,'Berechnung Ratierlich 2%'!K57-'Berechnung Ratierlich 2%'!P57)) -> 0 | E49: =IF(Hilfe!$B$3=3,'Berechnung EB 2%'!Q57,'Berechnung Ratierlich 2%'!Q57) -> 0 | F49: =MAX(0,IF(Hilfe!$B$3=3,'Berechnung EB 4%'!K57-'Berechnung EB 4%'!P57,'Berechnung Ratierlich 4%'!K57-'Berechnung Ratierlich 4%'!P57)) -> 0 | G49: =IF(Hilfe!$B$3=3,'Berechnung EB 4%'!Q57,'Berechnung Ratierlich 4%'!Q57) -> 0
A50: 48 | B50: =MAX(0,IF(Hilfe!$B$3=3,'Berechnung EB heute'!K58-'Berechnung EB heute'!P58,'Berechnung Ratierlich heute'!K58-'Berechnung Ratierlich heute'!P58)) -> 0 | C50: =IF(Hilfe!$B$3=3,'Berechnung EB heute'!Q58,'Berechnung Ratierlich heute'!Q58) -> 0 | D50: =MAX(0,IF(Hilfe!$B$3=3,'Berechnung EB 2%'!K58-'Berechnung EB 2%'!P58,'Berechnung Ratierlich 2%'!K58-'Berechnung Ratierlich 2%'!P58)) -> 0 | E50: =IF(Hilfe!$B$3=3,'Berechnung EB 2%'!Q58,'Berechnung Ratierlich 2%'!Q58) -> 0 | F50: =MAX(0,IF(Hilfe!$B$3=3,'Berechnung EB 4%'!K58-'Berechnung EB 4%'!P58,'Berechnung Ratierlich 4%'!K58-'Berechnung Ratierlich 4%'!P58)) -> 0 | G50: =IF(Hilfe!$B$3=3,'Berechnung EB 4%'!Q58,'Berechnung Ratierlich 4%'!Q58) -> 0
A51: 49 | B51: =MAX(0,IF(Hilfe!$B$3=3,'Berechnung EB heute'!K59-'Berechnung EB heute'!P59,'Berechnung Ratierlich heute'!K59-'Berechnung Ratierlich heute'!P59)) -> 0 | C51: =IF(Hilfe!$B$3=3,'Berechnung EB heute'!Q59,'Berechnung Ratierlich heute'!Q59) -> 0 | D51: =MAX(0,IF(Hilfe!$B$3=3,'Berechnung EB 2%'!K59-'Berechnung EB 2%'!P59,'Berechnung Ratierlich 2%'!K59-'Berechnung Ratierlich 2%'!P59)) -> 0 | E51: =IF(Hilfe!$B$3=3,'Berechnung EB 2%'!Q59,'Berechnung Ratierlich 2%'!Q59) -> 0 | F51: =MAX(0,IF(Hilfe!$B$3=3,'Berechnung EB 4%'!K59-'Berechnung EB 4%'!P59,'Berechnung Ratierlich 4%'!K59-'Berechnung Ratierlich 4%'!P59)) -> 0 | G51: =IF(Hilfe!$B$3=3,'Berechnung EB 4%'!Q59,'Berechnung Ratierlich 4%'!Q59) -> 0
A52: 50 | B52: =MAX(0,IF(Hilfe!$B$3=3,'Berechnung EB heute'!K60-'Berechnung EB heute'!P60,'Berechnung Ratierlich heute'!K60-'Berechnung Ratierlich heute'!P60)) -> 0 | C52: =IF(Hilfe!$B$3=3,'Berechnung EB heute'!Q60,'Berechnung Ratierlich heute'!Q60) -> 0 | D52: =MAX(0,IF(Hilfe!$B$3=3,'Berechnung EB 2%'!K60-'Berechnung EB 2%'!P60,'Berechnung Ratierlich 2%'!K60-'Berechnung Ratierlich 2%'!P60)) -> 0 | E52: =IF(Hilfe!$B$3=3,'Berechnung EB 2%'!Q60,'Berechnung Ratierlich 2%'!Q60) -> 0 | F52: =MAX(0,IF(Hilfe!$B$3=3,'Berechnung EB 4%'!K60-'Berechnung EB 4%'!P60,'Berechnung Ratierlich 4%'!K60-'Berechnung Ratierlich 4%'!P60)) -> 0 | G52: =IF(Hilfe!$B$3=3,'Berechnung EB 4%'!Q60,'Berechnung Ratierlich 4%'!Q60) -> 0
A53: 51 | B53: =MAX(0,IF(Hilfe!$B$3=3,'Berechnung EB heute'!K61-'Berechnung EB heute'!P61,'Berechnung Ratierlich heute'!K61-'Berechnung Ratierlich heute'!P61)) -> 0 | C53: =IF(Hilfe!$B$3=3,'Berechnung EB heute'!Q61,'Berechnung Ratierlich heute'!Q61) -> 0 | D53: =MAX(0,IF(Hilfe!$B$3=3,'Berechnung EB 2%'!K61-'Berechnung EB 2%'!P61,'Berechnung Ratierlich 2%'!K61-'Berechnung Ratierlich 2%'!P61)) -> 0 | E53: =IF(Hilfe!$B$3=3,'Berechnung EB 2%'!Q61,'Berechnung Ratierlich 2%'!Q61) -> 0 | F53: =MAX(0,IF(Hilfe!$B$3=3,'Berechnung EB 4%'!K61-'Berechnung EB 4%'!P61,'Berechnung Ratierlich 4%'!K61-'Berechnung Ratierlich 4%'!P61)) -> 0 | G53: =IF(Hilfe!$B$3=3,'Berechnung EB 4%'!Q61,'Berechnung Ratierlich 4%'!Q61) -> 0
A54: 52 | B54: =MAX(0,IF(Hilfe!$B$3=3,'Berechnung EB heute'!K62-'Berechnung EB heute'!P62,'Berechnung Ratierlich heute'!K62-'Berechnung Ratierlich heute'!P62)) -> 0 | C54: =IF(Hilfe!$B$3=3,'Berechnung EB heute'!Q62,'Berechnung Ratierlich heute'!Q62) -> 0 | D54: =MAX(0,IF(Hilfe!$B$3=3,'Berechnung EB 2%'!K62-'Berechnung EB 2%'!P62,'Berechnung Ratierlich 2%'!K62-'Berechnung Ratierlich 2%'!P62)) -> 0 | E54: =IF(Hilfe!$B$3=3,'Berechnung EB 2%'!Q62,'Berechnung Ratierlich 2%'!Q62) -> 0 | F54: =MAX(0,IF(Hilfe!$B$3=3,'Berechnung EB 4%'!K62-'Berechnung EB 4%'!P62,'Berechnung Ratierlich 4%'!K62-'Berechnung Ratierlich 4%'!P62)) -> 0 | G54: =IF(Hilfe!$B$3=3,'Berechnung EB 4%'!Q62,'Berechnung Ratierlich 4%'!Q62) -> 0
A55: 53 | B55: =MAX(0,IF(Hilfe!$B$3=3,'Berechnung EB heute'!K63-'Berechnung EB heute'!P63,'Berechnung Ratierlich heute'!K63-'Berechnung Ratierlich heute'!P63)) -> 0 | C55: =IF(Hilfe!$B$3=3,'Berechnung EB heute'!Q63,'Berechnung Ratierlich heute'!Q63) -> 0 | D55: =MAX(0,IF(Hilfe!$B$3=3,'Berechnung EB 2%'!K63-'Berechnung EB 2%'!P63,'Berechnung Ratierlich 2%'!K63-'Berechnung Ratierlich 2%'!P63)) -> 0 | E55: =IF(Hilfe!$B$3=3,'Berechnung EB 2%'!Q63,'Berechnung Ratierlich 2%'!Q63) -> 0 | F55: =MAX(0,IF(Hilfe!$B$3=3,'Berechnung EB 4%'!K63-'Berechnung EB 4%'!P63,'Berechnung Ratierlich 4%'!K63-'Berechnung Ratierlich 4%'!P63)) -> 0 | G55: =IF(Hilfe!$B$3=3,'Berechnung EB 4%'!Q63,'Berechnung Ratierlich 4%'!Q63) -> 0
A56: 54 | B56: =MAX(0,IF(Hilfe!$B$3=3,'Berechnung EB heute'!K64-'Berechnung EB heute'!P64,'Berechnung Ratierlich heute'!K64-'Berechnung Ratierlich heute'!P64)) -> 0 | C56: =IF(Hilfe!$B$3=3,'Berechnung EB heute'!Q64,'Berechnung Ratierlich heute'!Q64) -> 0 | D56: =MAX(0,IF(Hilfe!$B$3=3,'Berechnung EB 2%'!K64-'Berechnung EB 2%'!P64,'Berechnung Ratierlich 2%'!K64-'Berechnung Ratierlich 2%'!P64)) -> 0 | E56: =IF(Hilfe!$B$3=3,'Berechnung EB 2%'!Q64,'Berechnung Ratierlich 2%'!Q64) -> 0 | F56: =MAX(0,IF(Hilfe!$B$3=3,'Berechnung EB 4%'!K64-'Berechnung EB 4%'!P64,'Berechnung Ratierlich 4%'!K64-'Berechnung Ratierlich 4%'!P64)) -> 0 | G56: =IF(Hilfe!$B$3=3,'Berechnung EB 4%'!Q64,'Berechnung Ratierlich 4%'!Q64) -> 0
A57: 55 | B57: =MAX(0,IF(Hilfe!$B$3=3,'Berechnung EB heute'!K65-'Berechnung EB heute'!P65,'Berechnung Ratierlich heute'!K65-'Berechnung Ratierlich heute'!P65)) -> 0 | C57: =IF(Hilfe!$B$3=3,'Berechnung EB heute'!Q65,'Berechnung Ratierlich heute'!Q65) -> 0 | D57: =MAX(0,IF(Hilfe!$B$3=3,'Berechnung EB 2%'!K65-'Berechnung EB 2%'!P65,'Berechnung Ratierlich 2%'!K65-'Berechnung Ratierlich 2%'!P65)) -> 0 | E57: =IF(Hilfe!$B$3=3,'Berechnung EB 2%'!Q65,'Berechnung Ratierlich 2%'!Q65) -> 0 | F57: =MAX(0,IF(Hilfe!$B$3=3,'Berechnung EB 4%'!K65-'Berechnung EB 4%'!P65,'Berechnung Ratierlich 4%'!K65-'Berechnung Ratierlich 4%'!P65)) -> 0 | G57: =IF(Hilfe!$B$3=3,'Berechnung EB 4%'!Q65,'Berechnung Ratierlich 4%'!Q65) -> 0
A58: 56 | B58: =MAX(0,IF(Hilfe!$B$3=3,'Berechnung EB heute'!K66-'Berechnung EB heute'!P66,'Berechnung Ratierlich heute'!K66-'Berechnung Ratierlich heute'!P66)) -> 0 | C58: =IF(Hilfe!$B$3=3,'Berechnung EB heute'!Q66,'Berechnung Ratierlich heute'!Q66) -> 0 | D58: =MAX(0,IF(Hilfe!$B$3=3,'Berechnung EB 2%'!K66-'Berechnung EB 2%'!P66,'Berechnung Ratierlich 2%'!K66-'Berechnung Ratierlich 2%'!P66)) -> 0 | E58: =IF(Hilfe!$B$3=3,'Berechnung EB 2%'!Q66,'Berechnung Ratierlich 2%'!Q66) -> 0 | F58: =MAX(0,IF(Hilfe!$B$3=3,'Berechnung EB 4%'!K66-'Berechnung EB 4%'!P66,'Berechnung Ratierlich 4%'!K66-'Berechnung Ratierlich 4%'!P66)) -> 0 | G58: =IF(Hilfe!$B$3=3,'Berechnung EB 4%'!Q66,'Berechnung Ratierlich 4%'!Q66) -> 0
A59: 57 | B59: =MAX(0,IF(Hilfe!$B$3=3,'Berechnung EB heute'!K67-'Berechnung EB heute'!P67,'Berechnung Ratierlich heute'!K67-'Berechnung Ratierlich heute'!P67)) -> 0 | C59: =IF(Hilfe!$B$3=3,'Berechnung EB heute'!Q67,'Berechnung Ratierlich heute'!Q67) -> 0 | D59: =MAX(0,IF(Hilfe!$B$3=3,'Berechnung EB 2%'!K67-'Berechnung EB 2%'!P67,'Berechnung Ratierlich 2%'!K67-'Berechnung Ratierlich 2%'!P67)) -> 0 | E59: =IF(Hilfe!$B$3=3,'Berechnung EB 2%'!Q67,'Berechnung Ratierlich 2%'!Q67) -> 0 | F59: =MAX(0,IF(Hilfe!$B$3=3,'Berechnung EB 4%'!K67-'Berechnung EB 4%'!P67,'Berechnung Ratierlich 4%'!K67-'Berechnung Ratierlich 4%'!P67)) -> 0 | G59: =IF(Hilfe!$B$3=3,'Berechnung EB 4%'!Q67,'Berechnung Ratierlich 4%'!Q67) -> 0
A60: 58 | B60: =MAX(0,IF(Hilfe!$B$3=3,'Berechnung EB heute'!K68-'Berechnung EB heute'!P68,'Berechnung Ratierlich heute'!K68-'Berechnung Ratierlich heute'!P68)) -> 0 | C60: =IF(Hilfe!$B$3=3,'Berechnung EB heute'!Q68,'Berechnung Ratierlich heute'!Q68) -> 0 | D60: =MAX(0,IF(Hilfe!$B$3=3,'Berechnung EB 2%'!K68-'Berechnung EB 2%'!P68,'Berechnung Ratierlich 2%'!K68-'Berechnung Ratierlich 2%'!P68)) -> 0 | E60: =IF(Hilfe!$B$3=3,'Berechnung EB 2%'!Q68,'Berechnung Ratierlich 2%'!Q68) -> 0 | F60: =MAX(0,IF(Hilfe!$B$3=3,'Berechnung EB 4%'!K68-'Berechnung EB 4%'!P68,'Berechnung Ratierlich 4%'!K68-'Berechnung Ratierlich 4%'!P68)) -> 0 | G60: =IF(Hilfe!$B$3=3,'Berechnung EB 4%'!Q68,'Berechnung Ratierlich 4%'!Q68) -> 0
A61: 59 | B61: =MAX(0,IF(Hilfe!$B$3=3,'Berechnung EB heute'!K69-'Berechnung EB heute'!P69,'Berechnung Ratierlich heute'!K69-'Berechnung Ratierlich heute'!P69)) -> 0 | C61: =IF(Hilfe!$B$3=3,'Berechnung EB heute'!Q69,'Berechnung Ratierlich heute'!Q69) -> 0 | D61: =MAX(0,IF(Hilfe!$B$3=3,'Berechnung EB 2%'!K69-'Berechnung EB 2%'!P69,'Berechnung Ratierlich 2%'!K69-'Berechnung Ratierlich 2%'!P69)) -> 0 | E61: =IF(Hilfe!$B$3=3,'Berechnung EB 2%'!Q69,'Berechnung Ratierlich 2%'!Q69) -> 0 | F61: =MAX(0,IF(Hilfe!$B$3=3,'Berechnung EB 4%'!K69-'Berechnung EB 4%'!P69,'Berechnung Ratierlich 4%'!K69-'Berechnung Ratierlich 4%'!P69)) -> 0 | G61: =IF(Hilfe!$B$3=3,'Berechnung EB 4%'!Q69,'Berechnung Ratierlich 4%'!Q69) -> 0
A62: 60 | B62: =MAX(0,IF(Hilfe!$B$3=3,'Berechnung EB heute'!K70-'Berechnung EB heute'!P70,'Berechnung Ratierlich heute'!K70-'Berechnung Ratierlich heute'!P70)) -> 0 | C62: =IF(Hilfe!$B$3=3,'Berechnung EB heute'!Q70,'Berechnung Ratierlich heute'!Q70) -> 0 | D62: =MAX(0,IF(Hilfe!$B$3=3,'Berechnung EB 2%'!K70-'Berechnung EB 2%'!P70,'Berechnung Ratierlich 2%'!K70-'Berechnung Ratierlich 2%'!P70)) -> 0 | E62: =IF(Hilfe!$B$3=3,'Berechnung EB 2%'!Q70,'Berechnung Ratierlich 2%'!Q70) -> 0 | F62: =MAX(0,IF(Hilfe!$B$3=3,'Berechnung EB 4%'!K70-'Berechnung EB 4%'!P70,'Berechnung Ratierlich 4%'!K70-'Berechnung Ratierlich 4%'!P70)) -> 0 | G62: =IF(Hilfe!$B$3=3,'Berechnung EB 4%'!Q70,'Berechnung Ratierlich 4%'!Q70) -> 0

Sheet Wechsel
A4: =IF(Hilfe!B1=YEAR(TODAY()),"Fondswechseleingaben","Version ist ungültig!") -> Fondswechseleingaben
A6: Wechselanzahl | C6: =MIN(Hilfe!B18-1,C8) -> 3 | D6: Ablaufmanagement | E6: =C11/C6 -> 0.1666666667
A7: Jahresabstand | C7: =ROUNDUP(C8/(C6+1),0) -> 3
A8: Laufzeit | C8: =Eingabe!C9 -> 12
A10: Wechsel im Jahr | B10: Wechselanzahl | C10: Aktienfonds | D10: Mischfonds | E10: Rentenfonds / Vermögens-verwaltung
A11: 0 | B11: 0 | C11: =Eingabe!C18 -> 0.5 | D11: =Eingabe!E18 -> 0.5 | E11: =1-C11-D11 -> 0 | I11: =IF(A12=A11,0,1) -> 1
A12: =IF($C$7*B12>=$C$8,A11,$C$7*B12) -> 3 | B12: 1 | C12: =IF($C$6=0,0,MAX(C11-$E$6,0)) -> 0.3333333333 | D12: =IF($C$6=0,0,MAX(D11-$E$6,0)) -> 0.3333333333 | E12: =1-C12-D12 -> 0.3333333333 | F12: =IF(C12+D12+E12=1,IF(A12<A11,"ACHTUNG!, Wechsel im Jahr muss immer größer oder gleich dem Wechsel des Vorjahres sein!",""),"ACHTUNG: Es muss immer 100% investiert werden!") ->  | I12: =IF(A13=A12,0,1) -> 1
A13: =IF($C$7*B13>=$C$8,A12,$C$7*B13) -> 6 | B13: 2 | C13: 0.1666666667 | D13: 0.1666666667 | E13: 0.6666666667 | F13: =IF(C13+D13+E13=1,IF(A13<A12,"ACHTUNG!, Wechsel im Jahr muss immer größer oder gleich dem Wechsel des Vorjahres sein!",""),"ACHTUNG: Es muss immer 100% investiert werden!") ->  | I13: 1
A14: =IF($C$7*B14>=$C$8,A13,$C$7*B14) -> 9 | B14: 3 | C14: 5.551115123e-17 | D14: 5.551115123e-17 | E14: 1 | I14: 0
A15: =IF($C$7*B15>=$C$8,A14,$C$7*B15) -> 9 | B15: 4 | C15: 0 | D15: 0 | E15: 1 | I15: 0
A16: 9 | B16: 5 | C16: 0 | D16: 0 | E16: 1 | I16: 0
A17: 9 | B17: 6 | C17: 0 | D17: 0 | E17: 1 | I17: 0
A18: 9 | B18: 7 | C18: 0 | D18: 0 | E18: 1 | I18: 0
A19: 9 | B19: 8 | C19: 0 | D19: 0 | E19: 1 | I19: 0
A20: =IF($C$7*B20>=$C$8,A19,$C$7*B20) -> 9 | B20: 9 | C20: 0 | D20: 0 | E20: 1 | I20: 0
A21: 9 | B21: 10 | C21: 0 | D21: 0 | E21: 1 | I21: 0
A22: 9 | B22: 11 | C22: 0 | D22: 0 | E22: 1 | I22: 0
A23: 9 | B23: 12 | C23: 0 | D23: 0 | E23: 1 | I23: 0
A24: 9 | B24: 13 | C24: 0 | D24: 0 | E24: 1 | I24: 0
A25: 9 | B25: 14 | C25: 0 | D25: 0 | E25: 1 | I25: 0
A26: 9 | B26: 15 | C26: 0 | D26: 0 | E26: 1 | I26: 0
A27: 9 | B27: 16 | C27: 0 | D27: 0 | E27: 1 | I27: 0
A28: 9 | B28: 17 | C28: 0 | D28: 0 | E28: 1 | I28: 0
A29: 9 | B29: 18 | C29: 0 | D29: 0 | E29: 1 | I29: 0
A30: 9 | B30: 19 | C30: 0 | D30: 0 | E30: 1 | I30: 0
A31: 9 | B31: 20 | C31: 0 | D31: 0 | E31: 1 | I31: =IF(C6=0,0,SUM(I11:I30)) -> 3
A32: 0 | B32: 21 | C32: 0 | D32: 0 | E32: 0

Sheet Grafik (hidden)
A1: Basiszins
A2: ='Berechnung Ratierlich heute'!M1 -> 0 | B2: =Eingabe!C39 -> 163520.7111 | C2: =B7 -> 170957.884
A3: ='Berechnung Ratierlich 2%'!M1 -> 0.02 | B3: =Eingabe!C40 -> 158085.1986 | C3: =C2 -> 170957.884
A4: ='Berechnung Ratierlich 4%'!M1 -> 0.04 | B4: =Eingabe!C41 -> 152762.2276 | C4: =C3 -> 170957.884
C5: 170957.884
A6: Abgeltungsteuer | B6: =Eingabe!G39 -> 167011.5805 | C6: 170957.884
A7: Halbeinkünfteverfahren | B7: =Eingabe!G40 -> 170957.884 | C7: 170957.884
A8: =Eingabe!E41 -> Teilentnahmen (über 20 J.) | B8: =Eingabe!G41 -> 170957.968 | C8: 170957.884
A9: Steuerfrei Konzept | B9: =Eingabe!G42 -> 186376 | C9: 170957.884
A11: Minimale Achsenbeschriftung | B11: =ROUND((MIN(B2:B9)-MIN(B2:B9)/10)/100,0)*100 -> 137500

Sheet Hilfe (hidden)
A1: Jahr | B1: 2022 | D1: Rendite | F1: Tarifgruppe | G1: Einzel | I1: Beitrag p.a. | K1: 100 | M1: Zins=ZINS(Laufzeit*12;-Beitrag;0;Ablaufleistung)*12 | S1: Ablauf=ZW(Zins/12; Laufzeit*12;-Beitrag;) | AT1: Zins=ZINS(Laufzeit*12;-Beitrag;0;Ablaufleistung)*12
D2: 0.03 | E2: 4 | F2: 1 | G2: G
A3: Zahlweise | B3: 3 | D3: 0.04 | E3: =(E2+2)/100 -> 0.06 | F3: =IF(F2=1,G1,IF(F2=2,G2,IF(F2=3,G3,IF(F2=4,G4,IF(F2=5,G5,IF(F2=6,G6,G7)))))) -> Einzel | G3: N
A4: monatlich | B4: =IF(B3=1,12,IF(B3=2,1,0)) -> 0 | D4: 0.05 | G4: U
A5: jährlich | D5: 0.06 | G5: V | J5: Basiszins
A6: Einmalbeitrag | D6: 0.07 | G6: W | J6: 2018 | K6: 0.0087
D7: 0.08 | G7: M | J7: 2019 | K7: 0.0052
A8: Familienstand | D8: 0.09 | J8: 2020 | K8: 0.0007
A9: nicht verheiratet | B9: 2 | J9: 2021 | K9: 0 | L9: (Hinweis: eigentlich: -0,45%)
A10: verheiratet | D10: Art der Fondspolice | J10: 2022 | K10: 0 | L10: (Hinweis: eigentlich: -0,05%)
D11: Fondspolice für die mittelfristige Anlage | F11: 2
A12: Anlageart | D12: Fondspolice für die Altersversorgung
A13: individuell | B13: 1
A14: gemanagt | B14: =B13-1 -> 0 | D14: Basiszins | E14: 0
A16: Kosten Helvetia Management | B16: 0.0084 | C16: Mehrkosten Direktanlage bei Management: | G16: =(Eingabe!G11-Hilfe!B16)*B14 -> 0
A18: Wechsel | B18: 4 | C18: Ausgabe
A19: 0 | D19: Ratierlich | E19: EB | F19: Ausgabe
A20: 1 | C20: ="Basiszins "&'Berechnung Ratierlich heute'!M1*100&" %" -> Basiszins 0 % | D20: ='Berechnung Ratierlich heute'!Q6 -> 422.5275 | E20: ='Berechnung EB heute'!Q6 -> 163520.7111 | F20: =IF($B$3=3,E20,D20) -> 163520.7111
A21: 2 | C21: ="Basiszins "&'Berechnung Ratierlich 2%'!M1*100&" %" -> Basiszins 2 % | D21: ='Berechnung Ratierlich 2%'!Q6 -> 422.5275 | E21: ='Berechnung EB 2%'!Q6 -> 158085.1986 | F21: =IF($B$3=3,E21,D21) -> 158085.1986
A22: 3 | C22: ="Basiszins "&'Berechnung Ratierlich 4%'!M1*100&" %" -> Basiszins 4 % | D22: ='Berechnung Ratierlich 4%'!Q6 -> 422.5275 | E22: ='Berechnung EB 4%'!Q6 -> 152762.2276 | F22: 152762.2276
A23: 4
A24: 5 | C24: Ablaufleistung FLV
A25: 6 | C25: Ratierlich Select | E25: =IF(Eingabe!C31>0,Eingabe!C31,FV(C31/B4,Eingabe!C9*B4,-Eingabe!C10)) -> 
A26: 7
A27: 8 | C27: EB Select | E27: =IF(Eingabe!C31>0,Eingabe!C31,Eingabe!C10*(1+E31)^Eingabe!C9) -> 186376
A28: 9 | C28: Ablaufleistung | E28: =IF(B3=3,E27,IF(F11=1,E26,E25)) -> 186376
A29: 10 | C29: Beitragssumme | E29: =IF(B3=3,Eingabe!C10,Hilfe!B4*Eingabe!C10*Eingabe!C9) -> 100000
A30: 11 | C30: Rendite FLV
A31: 12 | C31: =VLOOKUP(F3,C33:D39,2) -> 0.03143645025 | E31: =VLOOKUP(F3,E33:F39,2) -> 0.0532525006
A32: 13 | C32: Rendite Ratierlich | E32: Rendite EB
A33: 14 | C33: =G1 -> Einzel | D33: ='FSX (Einzel)'!I53 -> 0.03143645025 | E33: Einzel | F33: ='FSX (EB, Einzel)'!I53 -> 0.0532525006
A34: 15 | C34: =G2 -> G | D34: ='FSX (G)'!I53 -> 0.03911306428 | E34: G | F34: ='FSX (EB, G)'!I53 -> 0.05520429059
A35: 16 | C35: N | D35: ='FSX (N) '!I53 -> 0.03989388958 | E35: N | F35: ='FSX (EB, N)'!I53 -> 0.05266675247
A36: 17 | C36: U | D36: ='FSX (U)'!I53 -> 0.04195760548 | E36: U | F36: ='FSX (EB, U)'!I53 -> 0.054763062
A37: 18 | C37: V | D37: ='FSX (V) '!I53 -> 0.04501360652 | E37: V | F37: ='FSX (EB, V)'!I53 -> 0.05691973611
A38: 19 | C38: W | D38: ='FSX (W)'!I53 -> 0.0470810208 | E38: W | F38: ='FSX (EB, W)'!I53 -> 0.0590237408
A39: 20 | C39: M | D39: ='FSX (M)'!I53 -> 0.04912175088 | E39: M | F39: ='FSX (EB, M)'!I53 -> 0.06114219708
A42: Steuerberechnung der Fondspolice
A43: Teilfreistellung | B43: 0.15 | C43: Freistellungsauftrag | E43: ='Berechnung Ratierlich heute'!P6 -> 1602
A44: Art | B44: zu versteuern | D44: Nach Teilfreistellung | F44: Steuer | G44: Ablauf
A45: Abgeltungsteuer | B45: =E28-E29 -> 86376 | D45: =B45*(1-B43) -> 73419.6 | F45: =D45*'Berechnung Ratierlich heute'!M2 -> 19364.4195 | G45: =E28-F45 -> 167011.5805
A46: Halbeinkünfteverfahren | B46: =B45 -> 86376 | D46: =D45 -> 73419.6 | F46: =steuer(B9,Eingabe!C8+Hilfe!D46/2)-steuer(B9,Eingabe!C8) -> 15418.116 | G46: =$E$28-F46 -> 170957.884
A47: HEV mit 20 Teilentnahmen | B47: =B46 -> 86376 | D47: =D46 -> 73419.6 | F47: =(steuer(B9,Eingabe!C8+Hilfe!D46/(20*2))-steuer(B9,Eingabe!C8))*20 -> 15418.032 | G47: =$E$28-F47 -> 170957.968
A48: Steuerfrei Konzept | B48: =B47 -> 86376 | D48: 0 | F48: 0 | G48: =$E$28-F48 -> 186376
A53: Laufzeit | B53: 1
A54: 12 | B54: =B53+11 -> 12
A55: 13 | C55: DAX Werte bis 2018
A56: 14 | C56: Laufzeit | D56: Min | E56: Mittelwert | F56: Max | G56: Anzahl Perioden
A57: 15 | C57: 12 | D57: 0.01066156645 | E57: 0.05743910694 | F57: 0.124648753 | G57: 602
A58: 16 | C58: 13 | D58: 0.01141734891 | E58: 0.05761069076 | F58: 0.1230823515 | G58: 590
A59: 17 | C59: 14 | D59: 0.01012269743 | E59: 0.0578556611 | F59: 0.1209840128 | G59: 578
A60: 18 | C60: 15 | D60: 0.009028353661 | E60: 0.05845068166 | F60: 0.1164145885 | G60: 566
A61: 19 | C61: 16 | D61: 0.01030249751 | E61: 0.05930448281 | F61: 0.1123285792 | G61: 554
A62: 20 | C62: 17 | D62: 0.0118188156 | E62: 0.06016231868 | F62: 0.1125809867 | G62: 542
A63: 21 | C63: 18 | D63: 0.01103349886 | E63: 0.06103098924 | F63: 0.1125549532 | G63: 530
A64: 22 | C64: 19 | D64: 0.01128200364 | E64: 0.06190858269 | F64: 0.1146716243 | G64: 518
A65: 23 | C65: 20 | D65: 0.01171671396 | E65: 0.06273160527 | F65: 0.1154900348 | G65: 506
A66: 24 | C66: 21 | D66: 0.01196419647 | E66: 0.06362113876 | F66: 0.1157265055 | G66: 494
A67: 25 | C67: 22 | D67: 0.01109280733 | E67: 0.06467557524 | F67: 0.1148931134 | G67: 482
A68: 26 | C68: 23 | D68: 0.01064474798 | E68: 0.0658703495 | F68: 0.112934786 | G68: 470
A69: 27 | C69: 24 | D69: 0.01404296289 | E69: 0.06714434679 | F69: 0.1108562459 | G69: 458
A70: 28 | C70: 25 | D70: 0.01863220402 | E70: 0.0683795815 | F70: 0.1089021746 | G70: 446
A71: 29 | C71: 26 | D71: 0.0266911873 | E71: 0.0695015431 | F71: 0.1067955856 | G71: 434
A72: 30 | C72: 27 | D72: 0.03926315805 | E72: 0.07032000141 | F72: 0.1050981208 | G72: 422
A73: 31 | C73: 28 | D73: 0.04709812639 | E73: 0.07086975979 | F73: 0.1036554417 | G73: 410
A74: 32 | C74: 29 | D74: 0.04834848027 | E74: 0.07130239 | F74: 0.1019561101 | G74: 398
A75: 33 | C75: 30 | D75: 0.05156658958 | E75: 0.07166459794 | F75: 0.09958851868 | G75: 386
A76: 34 | C76: 31 | D76: 0.05441426805 | E76: 0.07191128551 | F76: 0.09756280072 | G76: 374
A77: 35 | C77: 32 | D77: 0.05315271503 | E77: 0.07215698128 | F77: 0.09558940077 | G77: 362
A78: 36 | C78: 33 | D78: 0.05233088136 | E78: 0.07246536006 | F78: 0.09326252846 | G78: 350
A79: 37 | C79: 34 | D79: 0.05349495527 | E79: 0.07279094087 | F79: 0.09109330903 | G79: 338
A80: 38 | C80: 35 | D80: 0.05482742869 | E80: 0.07306670295 | F80: 0.08948433068 | G80: 326
A81: 39 | C81: 36 | D81: 0.05427398977 | E81: 0.07338133142 | F81: 0.08831392286 | G81: 314
A82: 40 | C82: 37 | D82: 0.05594827742 | E82: 0.07371213842 | F82: 0.08670591444 | G82: 302
A83: 41 | C83: 38 | D83: 0.06049676429 | E83: 0.07393571651 | F83: 0.08500098995 | G83: 290
A84: 42 | C84: 39 | D84: 0.06676598991 | E84: 0.07390524753 | F84: 0.08343976304 | G84: 278
A85: 43 | C85: 40 | D85: 0.0674803285 | E85: 0.07359318657 | F85: 0.08221025786 | G85: 266
A86: 44 | C86: 41 | D86: 0.06680188107 | E86: 0.07299002831 | F86: 0.08061831882 | G86: 254
A87: 45 | C87: 42 | D87: 0.06586122816 | E87: 0.07211261181 | F87: 0.07895309691 | G87: 242
A88: 46 | C88: 43 | D88: 0.06492318942 | E88: 0.07113435083 | F88: 0.07691167118 | G88: 230
A89: 47 | C89: 44 | D89: 0.0642564324 | E89: 0.0702567146 | F89: 0.07523788886 | G89: 218
A90: 48 | C90: 45 | D90: 0.06338421514 | E90: 0.06954872217 | F90: 0.07517566157 | G90: 206
A91: 49 | C91: 46 | D91: 0.06229670108 | E91: 0.06905635224 | F91: 0.07461991933 | G91: 194
A92: 50 | C92: 47 | D92: 0.06161038296 | E92: 0.06881439523 | F92: 0.07395353915 | G92: 182
A93: 51 | C93: 48 | D93: 0.06319017543 | E93: 0.06859379722 | F93: 0.07332265943 | G93: 170
A94: 52 | C94: 49 | D94: 0.06369050038 | E94: 0.06818335751 | F94: 0.07254075411 | G94: 158
A95: 53 | C95: 50 | D95: 0.06301522952 | E95: 0.06775267587 | F95: 0.07180926822 | G95: 146
A96: 54 | C96: 51 | D96: 0.06255564144 | E96: 0.06735706279 | F96: 0.07122756966 | G96: 134
A97: 55 | C97: 52 | D97: 0.06172380953 | E97: 0.06699477468 | F97: 0.07058201237 | G97: 122
A98: 56 | C98: 53 | D98: 0.06091987542 | E98: 0.06680831233 | F98: 0.07001894983 | G98: 110
A99: 57 | C99: 54 | D99: 0.06056254867 | E99: 0.06689082035 | F99: 0.06935720244 | G99: 98
A100: 58 | C100: 55 | D100: 0.0624224638 | E100: 0.06697088209 | F100: 0.06877868033 | G100: 86
A101: 59 | C101: 56 | D101: 0.06380301591 | E101: 0.0668743771 | F101: 0.06838120015 | G101: 74
A102: 60 | C102: 57 | D102: 0.06415946419 | E102: 0.06669976594 | F102: 0.06776790989 | G102: 62
C103: 58 | D103: 0.06530764056 | E103: 0.06644608485 | F103: 0.06710008218 | G103: 50
C104: 59 | D104: 0.06571007077 | E104: 0.06594865491 | F104: 0.06658817785 | G104: 38
C105: 60 | D105: 0.06496028096 | E105: 0.0653106031 | F105: 0.066028009 | G105: 26
C106: =B54 -> 12 | D106: =VLOOKUP(C106,C57:G105,2,FALSE) -> 0.01066156645 | E106: =VLOOKUP(C106,C57:G105,3,FALSE) -> 0.05743910694 | F106: =VLOOKUP(C106,C57:G105,4,FALSE) -> 0.124648753 | G106: =VLOOKUP(C106,C57:G105,5,FALSE) -> 602

Sheet FSX (Einzel) (hidden)
A1: Laufzeit | B1: FSX Einzeltarif Vertragsguthaben in EUR, Beitrag: 100€ monatlich, keine Dynamik, Alter: 0 Jahre | K1: Stand 13.02.2018
B2: 0.03 | C2: 0.04 | D2: 0.05 | E2: 0.06 | F2: 0.07 | G2: 0.08 | H2: 0.09 | J2: 0.03 | K2: 0.04 | L2: 0.05 | M2: 0.06 | N2: 0.07 | O2: 0.08 | P2: 0.09
A3: 12 | B3: 14576 | C3: 15474 | D3: 16436 | E3: 17465 | F3: 18566 | G3: 19747 | H3: 21011 | J3: =RATE($A$3*12,-100,0,B3)*12 -> 0.002034851512 | K3: =RATE($A3*12,-100,0,C3)*12 -> 0.01193532687 | L3: 0.02173999569 | M3: 0.03143645025 | N3: 0.04103072476 | O3: 0.05054875175 | P3: 0.05997120193
A4: 13 | B4: 16096 | C4: 17176 | D4: 18340 | E4: 19595 | F4: 20948 | G4: 22407 | H4: 23980 | J4: =RATE($A4*12,-100,0,B4)*12 -> 0.004822061141 | K4: =RATE($A4*12,-100,0,C4)*12 -> 0.01467649021 | L4: =RATE($A4*12,-100,0,D4)*12 -> 0.02443094853 | M4: =RATE($A4*12,-100,0,E4)*12 -> 0.03409065762 | N4: =RATE($A4*12,-100,0,F4)*12 -> 0.04365647346 | O4: =RATE($A4*12,-100,0,G4)*12 -> 0.05313245931 | P4: =RATE($A4*12,-100,0,H4)*12 -> 0.0625187049
A5: 14 | B5: 17512 | C5: 18785 | D5: 20166 | E5: 21665 | F5: 23293 | G5: 25060 | H5: 26980 | J5: 0.005925424838 | K5: 0.01576881827 | L5: 0.02551040677 | M5: 0.03515681576 | N5: 0.04471441403 | O5: 0.05417853693 | P5: 0.06356100562
A6: 15 | B6: 18967 | C6: 20454 | D6: 22079 | E6: 23854 | F6: 25795 | G6: 27918 | H6: 30238 | J6: 0.006957375601 | K6: 0.0167940103 | L6: 0.02653364111 | M6: 0.0361724645 | N6: 0.04572190925 | O6: 0.0551845519 | P6: 0.06455319285
A7: 16 | B7: 20544 | C7: 22271 | D7: 24168 | E7: 26255 | F7: 28555 | G7: 31086 | H7: 33872 | J7: 0.008409844668 | K7: 0.01821414471 | L7: 0.02790814824 | M7: 0.03750752093 | N7: 0.04702802262 | O7: 0.05645532171 | P7: 0.06579306797
A8: 17 | B8: 22162 | C8: 24150 | D8: 26349 | E8: 28788 | F8: 31489 | G8: 34484 | H8: 37806 | J8: 0.009665422347 | K8: 0.01943028204 | L8: 0.02908953399 | M8: 0.03866801266 | N8: 0.04814970259 | O8: 0.05754659808 | P8: 0.06686104129
A9: 18 | B9: 23646 | C9: 25904 | D9: 28422 | E9: 31228 | F9: 34360 | G9: 37857 | H9: 41765 | J9: 0.009957281396 | K9: 0.01971526006 | L9: 0.02937986104 | M9: 0.03894280956 | N9: 0.04841839872 | O9: 0.05780824243 | P9: 0.06711939002
A10: 19 | B10: 25339 | C10: 27906 | D10: 30787 | E10: 34020 | F10: 37657 | G10: 41741 | H10: 46336 | J10: 0.01097673573 | K10: 0.02070364117 | L10: 0.03033568317 | M10: 0.03986916285 | N10: 0.04932491884 | O10: 0.05868373409 | P10: 0.06796312435
A11: 20 | B11: 26881 | C11: 29762 | D11: 33019 | E11: 36703 | F11: 40870 | G11: 45588 | H11: 50934 | J11: 0.01118030866 | K11: 0.0208975177 | L11: 0.03052453936 | M11: 0.04006192967 | N11: 0.04950656138 | O11: 0.05886538024 | P11: 0.06814331466
A12: 21 | B12: 28651 | C12: 31892 | D12: 35582 | E12: 39782 | F12: 44567 | G12: 50022 | H12: 56278 | J12: 0.0120243513 | K12: 0.02171320664 | L12: 0.03131604258 | M12: 0.04082474751 | N12: 0.05024439785 | O12: 0.05957774277 | P12: 0.06887407918
A13: 22 | B13: 30471 | C13: 34104 | D13: 38264 | E13: 43033 | F13: 48505 | G13: 54811 | H13: 62065 | J13: 0.01279311841 | K13: 0.02246195437 | L13: 0.03203558372 | M13: 0.04151923573 | N13: 0.05091608836 | O13: 0.06026000502 | P13: 0.06952749579
A14: 23 | B14: 32336 | C14: 36389 | D14: 41062 | E14: 46457 | F14: 52702 | G14: 59944 | H14: 68324 | J14: 0.01347969156 | K14: 0.02312460207 | L14: 0.03267621529 | M14: 0.04213994312 | N14: 0.05153303875 | O14: 0.06086398428 | P14: 0.07010693299
A15: 24 | B15: 34256 | C15: 38761 | D15: 43992 | E15: 50071 | F15: 57183 | G15: 65462 | H15: 75114 | J15: 0.01411676672 | K15: 0.02373738555 | L15: 0.0332682584 | M15: 0.04270883173 | N15: 0.05211106942 | O15: 0.06141867177 | P15: 0.07064178036
A16: 25 | B16: 35954 | C16: 40905 | D16: 46695 | E16: 53493 | F16: 61484 | G16: 70849 | H16: 81849 | J16: 0.0141241131 | K16: 0.02373863246 | L16: 0.03326594198 | M16: 0.04273112796 | N16: 0.052132545 | O16: 0.06143412326 | P16: 0.07065254532
A17: 26 | B17: 37959 | C17: 43428 | D17: 49864 | E17: 57501 | F17: 66509 | G17: 77145 | H17: 89729 | J17: 0.01467428239 | K17: 0.02427015511 | L17: 0.03377435864 | M17: 0.04324912483 | N17: 0.05262415375 | O17: 0.0619034995 | P17: 0.07110080049
A18: 27 | B18: 40012 | C18: 46035 | D18: 53192 | E18: 61719 | F18: 71848 | G18: 83897 | H18: 98254 | J18: 0.01517107661 | K18: 0.02474954435 | L18: 0.03426146895 | M18: 0.04371441604 | N18: 0.05306815392 | O18: 0.0623292538 | P18: 0.07150703937
A19: 28 | B19: 42123 | C19: 48740 | D19: 56683 | E19: 66175 | F19: 77534 | G19: 91151 | H19: 107521 | J19: 0.01563560333 | K19: 0.02519851279 | L19: 0.03472331668 | M19: 0.04414955918 | N19: 0.05348081691 | O19: 0.06272495697 | P19: 0.07189918688
A20: 29 | B20: 43956 | C20: 51153 | D20: 59856 | E20: 70316 | F20: 82930 | G20: 98158 | H20: 116660 | J20: 0.01557849393 | K20: 0.02514604955 | L20: 0.0346774525 | M20: 0.04409643351 | N20: 0.05342476041 | O20: 0.06266293639 | P20: 0.07185781309
A21: 30 | B21: 46163 | C21: 54053 | D21: 63628 | E21: 75222 | F21: 89300 | G21: 106457 | H21: 127432 | J21: 0.01599485024 | K21: 0.02557124654 | L21: 0.03507800909 | M21: 0.04447741922 | N21: 0.05378454202 | O21: 0.06302102454 | P21: 0.07220176726
A22: 31 | B22: 48421 | C22: 57049 | D22: 67562 | E22: 80389 | F22: 96064 | G22: 115369 | H22: 139100 | J22: 0.01637308835 | K22: 0.02595736488 | L22: 0.03544279897 | M22: 0.04482669669 | N22: 0.05411176798 | O22: 0.06335431212 | P22: 0.07252124502
A23: 32 | B23: 50751 | C23: 60159 | D23: 71680 | E23: 85840 | F23: 103286 | G23: 124949 | H23: 151722 | J23: 0.01674036099 | K23: 0.02632276448 | L23: 0.03578722371 | M23: 0.04515329978 | N23: 0.05442930748 | O23: 0.06366888135 | P23: 0.07281357853
A24: 33 | B24: 53154 | C24: 63373 | D24: 75976 | E24: 91576 | F24: 110989 | G24: 135209 | H24: 165370 | J24: 0.01709515282 | K24: 0.02665691945 | L24: 0.03610301218 | M24: 0.04545144122 | N24: 0.05473339798 | O24: 0.06395311856 | P24: 0.07308028608
A25: 34 | B25: 55628 | C25: 66709 | D25: 80474 | E25: 97632 | F25: 119198 | G25: 146229 | H25: 180163 | J25: 0.01743353832 | K25: 0.02697458098 | L25: 0.03640335532 | M25: 0.04573417516 | N25: 0.05502182863 | O25: 0.06422042477 | P25: 0.07333289592
A26: 35 | B26: 57707 | C26: 69594 | D26: 84465 | E26: 103166 | F26: 126831 | G26: 156712 | H26: 194511 | J26: 0.01733592585 | K26: 0.02686627355 | L26: 0.03628618282 | M26: 0.0456227536 | N26: 0.05490906246 | O26: 0.06410450516 | P26: 0.07321379951
A27: 36 | B27: 60286 | C27: 73138 | D27: 89322 | E27: 109870 | F27: 136007 | G27: 169262 | H27: 211694 | J27: 0.01763922117 | K27: 0.02715412537 | L27: 0.0365553217 | M27: 0.04589434625 | N27: 0.0551618865 | O27: 0.06434140685 | P27: 0.07344446711
A28: 37 | B28: 62929 | C28: 76795 | D28: 94386 | E28: 116919 | F28: 145759 | G28: 182705 | H28: 230313 | J28: 0.01792084596 | K28: 0.02741632856 | L28: 0.03680298702 | M28: 0.04614155309 | N28: 0.05539637216 | O28: 0.0645582092 | P28: 0.07366323102
A29: 38 | B29: 65651 | C29: 80595 | D29: 99691 | E29: 124372 | F29: 156139 | G29: 197141 | H29: 250486 | J29: 0.01819261121 | K29: 0.02767053042 | L29: 0.03704233296 | M29: 0.04638087116 | N29: 0.05561838706 | O29: 0.06476429328 | P29: 0.07387057063
A30: 39 | B30: 67889 | C30: 83824 | D30: 104363 | E30: 131072 | F30: 165712 | G30: 210822 | H30: 269952 | J30: 0.01807302451 | K30: 0.02754275197 | L30: 0.03692039897 | M30: 0.04625297104 | N30: 0.05548633373 | O30: 0.06463877128 | P30: 0.0737472459
A31: 40 | B31: 70878 | C31: 88063 | D31: 110428 | E31: 139670 | F31: 177864 | G31: 228109 | H31: 294368 | J31: 0.01841662761 | K31: 0.02787505278 | L31: 0.0372618505 | M31: 0.04658286718 | N31: 0.05580124519 | O31: 0.06495987472 | P31: 0.07405686772
A32: 41 | B32: 74106 | C32: 92683 | D32: 117099 | E32: 149206 | F32: 191477 | G32: 247649 | H32: 322316 | J32: 0.01883002718 | K32: 0.02828567066 | L32: 0.03768888269 | M32: 0.04700537515 | N32: 0.05622053376 | O32: 0.06539296091 | P32: 0.0744986635
A33: 42 | B33: 77429 | C33: 97486 | D33: 124104 | E33: 159314 | F33: 206075 | G33: 268762 | H33: 352849 | J33: 0.01921623735 | K33: 0.02866994639 | L33: 0.03808860122 | M33: 0.04740098136 | N33: 0.05661891643 | O33: 0.06579895805 | P33: 0.07491723082
A34: 43 | B34: 80849 | C34: 102500 | D34: 131459 | E34: 170029 | F34: 221773 | G34: 291576 | H34: 386164 | J34: 0.01957729627 | K34: 0.02903806472 | L34: 0.03846320807 | M34: 0.04777219453 | N34: 0.05700451211 | O34: 0.06618038415 | P34: 0.07531071954
A35: 44 | B35: 84370 | C35: 107743 | D35: 139180 | E35: 181384 | F35: 238575 | G35: 316316 | H35: 422509 | J35: 0.01991598407 | K35: 0.02939398085 | L35: 0.03881449055 | M35: 0.04812044118 | N35: 0.05736657539 | O35: 0.06654822297 | P35: 0.07568083686
A36: 45 | B36: 87995 | C36: 113195 | D36: 147288 | E36: 193422 | F36: 256563 | G36: 343129 | H36: 462167 | J36: 0.02023420967 | K36: 0.02972822983 | L36: 0.039145104 | M36: 0.04844850711 | N36: 0.05770764891 | O36: 0.06690144755 | P36: 0.07603002452
A37: 46 | B37: 91727 | C37: 118866 | D37: 155801 | E37: 206225 | F37: 275821 | G37: 372117 | H37: 505439 | J37: =RATE($A37*12,-100,0,B37)*12 -> 0.02053364118 | K37: 0.03004312205 | L37: 0.03945642587 | M37: 0.04876446434 | N37: 0.05802946109 | O37: 0.06723486875 | P37: 0.0763598916
A38: 47 | B38: 95567 | C38: 124763 | D38: 164739 | E38: 219861 | F38: 296435 | G38: 403453 | H38: 552649 | J38: 0.02081497285 | K38: 0.03033970527 | L38: 0.03974996452 | M38: 0.04907159816 | N38: 0.05833315416 | O38: 0.06754979496 | P38: 0.07667167052
A39: 48 | B39: 99522 | C39: 130897 | D39: 174125 | E39: 234325 | F39: 318638 | G39: 437333 | H39: 604164 | J39: 0.0210810848 | K39: 0.03061995747 | L39: 0.04002745289 | M39: 0.04936222141 | N39: 0.05863293339 | O39: 0.06784805064 | P39: 0.07696716383
A40: 49 | B40: 103636 | C40: 137276 | D40: 183980 | E40: 249663 | F40: 342445 | G40: 473959 | H40: 660368 | J40: 0.0213468087 | K40: 0.03088475735 | L40: 0.04028986089 | M40: 0.04963705753 | N40: 0.05891914815 | O40: 0.06813061016 | P40: 0.07724722195
A41: 50 | B41: 107881 | C41: 143903 | D41: 194326 | E41: 265927 | F41: 367940 | G41: 513549 | H41: 721686 | J41: 0.02160062992 | K41: 0.03113376401 | L41: 0.04053809874 | M41: 0.04989721133 | N41: 0.05919019783 | O41: 0.0683983977 | P41: 0.07751292543
A42: 51 | B42: 112254 | C42: 150801 | D42: 205233 | E42: 283178 | F42: 395250 | G42: 556354 | H42: 788597 | J42: 0.02184117666 | K42: 0.03137102094 | L42: 0.04077983117 | M42: 0.05014428782 | N42: 0.05944771769 | O42: 0.06865303705 | P42: 0.07776577023
A43: 52 | B43: 116757 | C43: 157974 | D43: 216750 | E43: 301472 | F43: 424499 | G43: 602627 | H43: 861599 | J43: 0.02206889176 | K43: 0.03159593339 | L43: 0.04101763497 | M43: 0.05037884673 | N43: 0.05969232822 | O43: 0.0688950919 | P43: 0.07800628261
A44: 53 | B44: 121396 | C44: 165435 | D44: 228849 | E44: 321034 | F44: 455829 | G44: 652655 | H44: 941255 | J44: 0.02228527145 | K44: 0.03180975584 | L44: 0.04124361047 | M44: 0.05061544199 | N44: 0.05992518856 | O44: 0.06912567772 | P44: 0.07823554477
A45: 54 | B45: 126172 | C45: 173193 | D45: 241558 | E45: 341788 | F45: 489381 | G45: 706733 | H45: 1028160 | J45: 0.02249033467 | K45: 0.0320128166 | L45: 0.0414584151 | M45: 0.05084042692 | N45: 0.0601467264 | O45: 0.06934522522 | P45: 0.07845403762
A46: 55 | B46: 131091 | C46: 181260 | D46: 254897 | E46: 363806 | F46: 525292 | G46: 765188 | H46: 1122968 | J46: 0.02268534078 | K46: 0.03220589147 | L46: 0.0416616769 | M46: 0.05105455506 | N46: 0.06035674562 | O46: 0.06955446062 | P46: 0.07866236909
A47: 56 | B47: 136158 | C47: 189650 | D47: 268922 | E47: 387172 | F47: 563783 | G47: 828394 | H47: 1226430 | J47: 0.02287112766 | K47: 0.03238990826 | L47: 0.04185667687 | M47: 0.05125901903 | N47: 0.06055846892 | O47: 0.06975463651 | P47: 0.07886182492
A48: 57 | B48: 141377 | C48: 198376 | D48: 283656 | E48: 411966 | F48: 605009 | G48: 896724 | H48: 1339315 | J48: 0.02304820723 | K48: 0.03256546715 | L48: 0.04204276231 | M48: 0.05145427955 | N48: 0.06075114728 | O48: 0.0699459683 | P48: 0.07905258803
A49: 58 | B49: 146751 | C49: 207526 | D49: 299131 | E49: 438269 | F49: 649162 | G49: 970590 | H49: 1462477 | J49: 0.02321684293 | K49: 0.03274268585 | L49: 0.04222017848 | M49: 0.0516405739 | N49: 0.0609352718 | O49: 0.07012893501 | P49: 0.0792351397
A50: 59 | B50: 152285 | C50: 217073 | D50: 315532 | E50: 466179 | F50: 696451 | G50: 1050442 | H50: 1596854 | J50: 0.0233776604 | K50: 0.03291528739 | L50: 0.04240105765 | M50: 0.05181879408 | N50: 0.06111142073 | O50: 0.07030409167 | P50: 0.07941002226
A51: 60 | B51: 157983 | C51: 227004 | D51: 332780 | E51: 495786 | F51: 747093 | G51: 1136749 | H51: 1743445 | J51: 0.02353102757 | K51: 0.03307999054 | L51: 0.04257483782 | M51: 0.05198905198 | N51: 0.06127991435 | O51: 0.07047161056 | P51: 0.07957743254
I52: Rendite
I53: =SUM(J53:P53) -> 0.03143645025 | J53: =IF(Hilfe!$E$3='FSX (Einzel)'!J2,VLOOKUP(Hilfe!$B$54,$A$3:$P$51,10),0) -> 0 | K53: =IF(Hilfe!$E$3='FSX (Einzel)'!K2,VLOOKUP(Hilfe!$B$54,$A$3:$P$51,11),0) -> 0 | L53: =IF(Hilfe!$E$3='FSX (Einzel)'!L2,VLOOKUP(Hilfe!$B$54,$A$3:$P$51,12),0) -> 0 | M53: =IF(Hilfe!$E$3='FSX (Einzel)'!M2,VLOOKUP(Hilfe!$B$54,$A$3:$P$51,13),0) -> 0.03143645025 | N53: =IF(Hilfe!$E$3='FSX (Einzel)'!N2,VLOOKUP(Hilfe!$B$54,$A$3:$P$51,14),0) -> 0 | O53: =IF(Hilfe!$E$3='FSX (Einzel)'!O2,VLOOKUP(Hilfe!$B$54,$A$3:$P$51,15),0) -> 0 | P53: =IF(Hilfe!$E$3='FSX (Einzel)'!P2,VLOOKUP(Hilfe!$B$54,$A$3:$P$51,16),0) -> 0

Sheet FSX (G) (hidden)
A1: Laufzeit | B1: FSX Kollektivtarif G Vertragsguthaben in EUR, Beitrag: 100€ monatlich, keine Dynamik, Alter: 0 Jahre, offene Version | K1: Stand 13.02.2018
B2: 0.03 | C2: 0.04 | D2: 0.05 | E2: 0.06 | F2: 0.07 | G2: 0.08 | H2: 0.09 | J2: 0.03 | K2: 0.04 | L2: 0.05 | M2: 0.06 | N2: 0.07 | O2: 0.08 | P2: 0.09
A3: 12 | B3: 15293 | C3: 16239 | D3: 17254 | E3: 18339 | F3: 19502 | G3: 20748 | H3: 22084 | J3: =RATE($A$3*12,-100,0,B3)*12 -> 0.01000149517 | K3: =RATE($A3*12,-100,0,C3)*12 -> 0.01979395707 | L3: 0.02950915428 | M3: 0.03911306428 | N3: 0.04863445981 | O3: 0.05807028527 | P3: 0.06742970424
A4: 13 | B4: 16886 | C4: 18024 | D4: 19252 | E4: 20577 | F4: 22005 | G4: 23545 | H4: 25206 | J4: =RATE($A4*12,-100,0,B4)*12 -> 0.01211175227 | K4: 0.02186387074 | L4: 0.03153113208 | M4: 0.04111330814 | N4: 0.05060076657 | O4: 0.06000156408 | P4: 0.06931862726
A5: 14 | B5: 18377 | C5: 19719 | D5: 21177 | E5: 22762 | F5: 24482 | G5: 26348 | H5: 28375 | J5: 0.01271138251 | K5: 0.02245414404 | L5: 0.03211263968 | M5: 0.04169246609 | N5: 0.0511772915 | O5: 0.06056663324 | P5: 0.06987428932
A6: 15 | B6: 19909 | C6: 21479 | D6: 23195 | E6: 25071 | F6: 27123 | G6: 29366 | H6: 31824 | J6: 0.01330043149 | K6: 0.02304846939 | L6: 0.03270398345 | M6: 0.04226928718 | N6: 0.0517496449 | O6: 0.06113942599 | P6: 0.07046257894
A7: 16 | B7: 21567 | C7: 23389 | D7: 25395 | E7: 27603 | F7: 30034 | G7: 32713 | H7: 35662 | J7: 0.01434120113 | K7: 0.0240499549 | L7: 0.03367356294 | M7: 0.04320848997 | N7: 0.0526570062 | O7: 0.06202746135 | P7: 0.07130966538
A8: 17 | B8: 23267 | C8: 25367 | D8: 27695 | E8: 30274 | F8: 33131 | G8: 36303 | H8: 39822 | J8: 0.01522710338 | K8: 0.02490892811 | L8: 0.03450784775 | M8: 0.04401566507 | N8: 0.05343178229 | O8: 0.06277611388 | P8: 0.072040325
A9: 18 | B9: 25016 | C9: 27421 | D9: 30102 | E9: 33095 | F9: 36436 | G9: 40167 | H9: 44333 | J9: 0.01601444989 | K9: 0.02567416533 | L9: 0.03524092999 | M9: 0.04472618909 | N9: 0.0541269201 | O9: 0.06344564366 | P9: 0.0726805182
A10: 19 | B10: 26810 | C10: 29546 | D10: 32617 | E10: 36068 | F10: 39947 | G10: 44310 | H10: 49216 | J10: 0.01669844178 | K10: 0.02633385543 | L10: 0.03587831285 | M10: 0.04533962996 | N10: 0.05471739086 | O10: 0.06401566528 | P10: 0.07323044251
A11: 20 | B11: 28656 | C11: 31752 | D11: 35253 | E11: 39213 | F11: 43692 | G11: 48769 | H11: 54540 | J11: 0.01731691945 | K11: 0.02692940795 | L11: 0.03645777001 | M11: 0.04590012286 | N11: 0.0552531913 | O11: 0.0645342342 | P11: 0.07376433121
A12: 21 | B12: 30548 | C12: 34036 | D12: 38005 | E12: 42525 | F12: 47677 | G12: 53572 | H12: 60309 | J12: 0.01785663305 | K12: 0.02745398564 | L12: 0.03696240711 | M12: 0.04638475018 | N12: 0.05572502515 | O12: 0.06501332154 | P12: 0.07423259504
A13: 22 | B13: 32496 | C13: 36407 | D13: 40887 | E13: 46025 | F13: 51936 | G13: 58747 | H13: 66572 | J13: 0.01835430162 | K13: 0.02793335828 | L13: 0.03742256792 | M13: 0.04682753989 | N13: 0.05617063293 | O13: 0.06545848428 | P13: 0.07465899096
A14: 23 | B14: 34492 | C14: 38858 | D14: 43898 | E14: 49718 | F14: 56481 | G14: 64302 | H14: 73357 | J14: 0.01879164156 | K14: 0.02835207107 | L14: 0.03783130338 | M14: 0.0472250204 | N14: 0.0565822295 | O14: 0.06584973915 | P14: 0.07503518155
A15: 24 | B15: 36546 | C15: 41409 | D15: 47053 | E15: 53639 | F15: 61326 | G15: 70279 | H15: 80724 | J15: 0.01919706523 | K15: 0.02875149492 | L15: 0.03821070176 | M15: 0.04761574662 | N15: 0.05695742773 | O15: 0.06620915575 | P15: 0.07538242203
A16: 25 | B16: 38652 | C16: 44043 | D16: 50347 | E16: 57775 | F16: 66486 | G16: 76701 | H16: 88698 | J16: 0.01955904778 | K16: 0.02909767772 | L16: 0.03854720717 | M16: 0.04796561073 | N16: 0.05729597749 | O16: 0.06653273894 | P16: 0.07568617413
A17: 26 | B17: 40821 | C17: 46779 | D17: 53826 | E17: 62158 | F17: 71990 | G17: 83609 | H17: 97359 | J17: 0.0199007336 | K17: 0.02942319358 | L17: 0.03889641389 | M17: 0.04830131927 | N17: 0.05761019619 | O17: 0.06683109741 | P17: 0.07597164064
A18: 27 | B18: 43041 | C18: 49612 | D18: 57454 | E18: 66769 | F18: 77841 | G18: 91028 | H18: 106775 | J18: 0.02020151239 | K18: 0.02971775909 | L18: 0.03920138172 | M18: 0.04859177518 | N18: 0.05788716811 | O18: 0.06709941565 | P18: 0.07624471151
A19: 28 | B19: 45330 | C19: 52573 | D19: 61262 | E19: 71648 | F19: 84088 | G19: 99005 | H19: 117008 | J19: 0.02049174746 | K19: 0.03001847366 | L19: 0.03949335922 | M19: 0.04886727931 | N19: 0.05815088082 | O19: 0.06734691799 | P19: 0.07650370913
A20: 29 | B20: 47674 | C20: 55641 | D20: 65240 | E20: 76795 | F20: 90733 | G20: 107609 | H20: 128110 | J20: 0.02075007017 | K20: 0.03029279196 | L20: 0.03975574016 | M20: 0.04911720108 | N20: 0.05838690101 | O20: 0.06758920048 | P20: 0.07674164403
A21: 30 | B21: 50087 | C21: 58833 | D21: 69407 | E21: 82233 | F21: 97821 | G21: 116896 | H21: 140157 | J21: 0.02099622755 | K21: 0.03055689951 | L21: 0.04000166478 | M21: 0.04935020281 | N21: 0.05860953664 | O21: 0.06782825315 | P21: 0.07696165971
A22: 31 | B22: 52583 | C22: 62131 | D22: 73761 | E22: 87966 | F22: 105390 | G22: 126850 | H22: 153202 | J22: 0.02124418845 | K22: 0.03079019235 | L22: 0.04022453106 | M22: 0.04956050332 | N22: 0.05882379556 | O22: 0.0680357299 | P22: 0.07715707501
A23: 32 | B23: 55154 | C23: 65562 | D23: 78330 | E23: 94037 | F23: 113494 | G23: 137583 | H23: 167391 | J23: 0.02148108324 | K23: 0.03101626323 | L23: 0.04044019118 | M23: 0.04976537052 | N23: 0.05903888115 | O23: 0.06823829603 | P23: 0.07734866369
A24: 33 | B24: 57794 | C24: 69109 | D24: 83093 | E24: 100428 | F24: 122109 | G24: 149099 | H24: 182746 | J24: 0.02169972053 | K24: 0.03121819023 | L24: 0.0406295534 | M24: 0.04994623518 | N24: 0.05922954175 | O24: 0.06841812249 | P24: 0.07751682916
A25: 34 | B25: 60509 | C25: 72798 | D25: 88093 | E25: 107239 | F25: 131306 | G25: 161490 | H25: 199431 | J25: 0.0219056513 | K25: 0.03141433327 | L25: 0.04081528049 | M25: 0.05014246329 | N25: 0.05941236925 | O25: 0.06858772064 | P25: 0.07767943852
A26: 35 | B26: 63291 | C26: 76611 | D26: 93315 | E26: 114424 | F26: 141103 | G26: 174811 | H26: 217583 | J26: 0.02209178742 | K26: 0.03158958654 | L26: 0.04098356096 | M26: 0.05032143345 | N26: 0.05958106565 | O26: 0.06874508954 | P26: 0.07784052236
A27: 36 | B27: 66164 | C27: 80579 | D27: 98784 | E27: 122021 | F27: 151543 | G27: 189143 | H27: 237323 | J27: 0.02227711177 | K27: 0.03176221686 | L27: 0.04114336698 | M27: 0.0504913339 | N27: 0.05973818595 | O27: 0.0688938564 | P27: 0.07799796803
A28: 37 | B28: 69100 | C28: 84682 | D28: 104528 | E28: 130027 | F28: 162655 | G28: 204543 | H28: 258721 | J28: 0.02243951838 | K28: 0.03191767192 | L28: 0.04130208764 | M28: 0.05064417242 | N28: 0.05988153816 | O28: 0.06903084992 | P28: 0.07814124448
A29: 38 | B29: 72129 | C29: 88947 | D29: 110583 | E29: 138518 | F29: 174537 | G29: 221228 | H29: 281957 | J29: 0.02260029101 | K29: 0.03206908659 | L29: 0.04146760562 | M29: 0.05079783506 | N29: 0.06002498518 | O29: 0.06918095828 | P29: 0.07827735592
A30: 39 | B30: 75234 | C30: 93357 | D30: 116896 | E30: 147448 | F30: 187148 | G30: 239129 | H30: 307180 | J30: 0.02274710197 | K30: 0.03220569169 | L30: 0.04161368243 | M30: 0.05093132512 | N30: 0.06014861379 | O30: 0.06931407825 | P30: 0.07840571721
A31: 40 | B31: 78522 | C31: 98073 | D31: 123710 | E31: 157177 | F31: 201003 | G31: 258945 | H31: 335443 | J31: 0.02293986594 | K31: 0.03239528692 | L31: 0.04181723735 | M31: 0.05112920794 | N31: 0.06034131667 | O31: 0.06951655606 | P31: 0.0786183842
A32: 41 | B32: 82019 | C32: 103163 | D32: 131090 | E32: 167808 | F32: 216388 | G32: 281014 | H32: 367218 | J32: 0.02318030679 | K32: 0.03264897698 | L32: 0.04207760544 | M32: 0.05138916849 | N32: 0.06061974889 | O32: 0.0697938578 | P32: 0.07891158333
A33: 42 | B33: 85619 | C33: 108478 | D33: 138838 | E33: 179076 | F33: 232856 | G33: 304883 | H33: 401885 | J33: 0.02340490906 | K33: 0.03289427126 | L33: 0.04232094343 | M33: 0.05163242453 | N33: 0.06088031411 | O33: 0.07005638312 | P33: 0.07918654443
A34: 43 | B34: 89325 | C34: 114005 | D34: 146974 | E34: 191021 | F34: 250488 | G34: 330817 | H34: 439712 | J34: 0.02361507397 | K34: 0.03312378055 | L34: 0.04254917979 | M34: 0.05186078672 | N34: 0.06112523723 | O34: 0.07031683415 | P34: 0.07944520477
A35: 44 | B35: 93140 | C35: 119752 | D35: 155516 | E35: 203706 | F35: 269360 | G35: 358847 | H35: 480978 | J35: 0.02381201174 | K35: 0.03333874642 | L35: 0.04276327995 | M35: 0.05207922332 | N35: 0.0613550644 | O35: 0.07056128557 | P35: 0.07968834416
A36: 45 | B36: 97067 | C36: 125729 | D36: 164484 | E36: 217235 | F36: 289563 | G36: 389153 | H36: 526005 | J36: 0.0239967729 | K36: 0.03354077621 | L36: 0.04296438995 | M36: 0.05229709646 | N36: 0.06157150154 | O36: 0.07079194869 | P36: 0.0799178079
A37: 46 | B37: 101122 | C37: 131946 | D37: 173902 | E37: 231584 | F37: 311271 | G37: 421917 | H37: 575137 | J37: =RATE($A37*12,-100,0,B37)*12 -> 0.02417502207 | K37: 0.0337311477 | L37: 0.04315411893 | M37: 0.05250257635 | N37: 0.0617835734 | O37: 0.07100971455 | P37: 0.08013474199
A38: 47 | B38: 105336 | C38: 138410 | D38: 183789 | E38: 246800 | F38: 334597 | G38: 457335 | H38: 628739 | J38: 0.02435621841 | K38: 0.03391013922 | L38: 0.04333272682 | M38: 0.05269630144 | N38: 0.06199112699 | O38: 0.07121538274 | P38: 0.08033969588
A39: 48 | B39: 109678 | C39: 145133 | D39: 194172 | E39: 262939 | F39: 359583 | G39: 495629 | H39: 687230 | J39: 0.02452759361 | K39: 0.03407917495 | L39: 0.04350170089 | M39: 0.05287962 | N39: 0.06218760148 | O39: 0.07141030042 | P39: 0.08053410315
A40: 49 | B40: 114149 | C40: 152126 | D40: 205116 | E40: 280054 | F40: 386343 | G40: 537025 | H40: 751044 | J40: 0.02468901994 | K40: 0.03423915024 | L40: 0.04366778795 | M40: 0.05305299577 | N40: =RATE($A40*12,-100,0,F40)*12 -> 0.06237352048 | O40: 0.07159487097 | P40: 0.08071830372
A41: 50 | B41: 118753 | C41: 159396 | D41: 216671 | E41: 298202 | F41: 415003 | G41: 581773 | H41: 820666 | J41: =RATE($A41*12,-100,0,B41)*12 -> 0.02484132471 | K41: 0.03438997625 | L41: 0.04383356165 | M41: 0.05321698372 | N41: 0.06254968231 | O41: 0.07176981191 | P41: 0.08089307999
A42: 51 | B42: 123495 | C42: 166958 | D42: 228811 | E42: 317583 | F42: 445702 | G42: 630154 | H42: 896638 | J42: 0.02498548174 | K42: 0.03453310446 | L42: 0.04399086116 | M42: 0.05338445625 | N42: 0.0627170549 | O42: 0.07193623355 | P42: 0.08105950173
A43: 52 | B43: 128380 | C43: 174822 | D43: 241563 | E43: 338172 | F43: 478582 | G43: 682455 | H43: 979524 | J43: 0.02512230256 | K43: 0.03466878282 | L43: 0.04413997908 | M43: 0.05354562676 | N43: 0.06287608569 | O43: 0.07209442293 | P43: 0.08121774791
A44: 53 | B44: 133410 | C44: 183000 | D44: 254960 | E44: 360019 | F44: 513799 | G44: 738999 | H44: 1069966 | J44: 0.02525176382 | K44: 0.0347975354 | L44: 0.04428173948 | M44: 0.0536989212 | N44: 0.0630274132 | O44: 0.07224514086 | P44: 0.08136868536
A45: 54 | B45: 138591 | C45: 191505 | D45: 269032 | E45: 383198 | F45: 551516 | G45: 800124 | H45: 1168637 | J45: 0.02537477332 | K45: 0.03491991848 | L45: 0.04441638176 | M45: 0.05384468355 | N45: 0.06317142203 | O45: 0.07238869794 | P45: 0.0815124721
A46: 55 | B46: 143927 | C46: 200348 | D46: 283813 | E46: 407788 | F46: 591907 | G46: 866194 | H46: 1276281 | J46: 0.02549166368 | K46: 0.03503607727 | L46: 0.04454440049 | M46: 0.05398329401 | N46: 0.0633084685 | O46: 0.07252538297 | P46: 0.08164951066
A47: 56 | B47: 149422 | C47: 209650 | D47: 299343 | E47: 433885 | F47: 635177 | G47: 937635 | H47: 1393754 | J47: 0.02560272822 | K47: 0.03516051186 | L47: 0.04466662001 | M47: 0.05411582499 | N47: 0.06343961339 | O47: 0.07265631324 | P47: 0.08178091273
A48: 57 | B48: 155083 | C48: 219330 | D48: 315803 | E48: 461575 | F48: 681522 | G48: 1014868 | H48: 1521926 | J48: 0.02570877851 | K48: 0.03527926973 | L48: 0.04479494175 | M48: 0.0542423145 | N48: 0.06356489544 | O48: 0.0727814765 | P48: 0.0819065985
A49: 58 | B49: 160912 | C49: 229399 | D49: 333113 | E49: 490953 | F49: 731157 | G49: 1098357 | H49: 1661767 | J49: 0.02580960747 | K49: 0.03539221272 | L49: 0.04491823333 | M49: 0.0543630414 | N49: 0.06368457552 | O49: 0.07290112244 | P49: 0.08202686819
A50: 59 | B50: 166914 | C50: 239876 | D50: 351305 | E50: 522122 | F50: 784281 | G50: 1188610 | H50: 1814335 | J50: 0.02590556583 | K50: 0.03550009071 | L50: 0.045035943 | M50: 0.05447838002 | N50: 0.0637980184 | O50: 0.07301562387 | P50: 0.08214200844
A51: 60 | B51: 173096 | C51: 250775 | D51: 370423 | E51: 555189 | F51: 841207 | G51: 1286167 | H51: 1980780 | J51: 0.0259972612 | K51: 0.03560296543 | L51: 0.04514836321 | M51: 0.05458857979 | N51: 0.06390745831 | O51: 0.07312516601 | P51: 0.08225225013
I52: Rendite
I53: =SUM(J53:P53) -> 0.03911306428 | J53: =IF(Hilfe!$E$3='FSX (Einzel)'!J2,VLOOKUP(Hilfe!$B$54,$A$3:$P$51,10),0) -> 0 | K53: =IF(Hilfe!$E$3='FSX (Einzel)'!K2,VLOOKUP(Hilfe!$B$54,$A$3:$P$51,11),0) -> 0 | L53: =IF(Hilfe!$E$3='FSX (Einzel)'!L2,VLOOKUP(Hilfe!$B$54,$A$3:$P$51,12),0) -> 0 | M53: =IF(Hilfe!$E$3='FSX (Einzel)'!M2,VLOOKUP(Hilfe!$B$54,$A$3:$P$51,13),0) -> 0.03911306428 | N53: =IF(Hilfe!$E$3='FSX (Einzel)'!N2,VLOOKUP(Hilfe!$B$54,$A$3:$P$51,14),0) -> 0 | O53: =IF(Hilfe!$E$3='FSX (Einzel)'!O2,VLOOKUP(Hilfe!$B$54,$A$3:$P$51,15),0) -> 0 | P53: =IF(Hilfe!$E$3='FSX (Einzel)'!P2,VLOOKUP(Hilfe!$B$54,$A$3:$P$51,16),0) -> 0

Sheet FSX (N) (hidden)
A1: Laufzeit | B1: FSX Sondertarif N Vertragsguthaben in EUR, Beitrag: 100€ monatlich, keine Dynamik, Alter: 0 Jahre | K1: Stand 13.02.2018
B2: 0.03 | C2: 0.04 | D2: 0.05 | E2: 0.06 | F2: 0.07 | G2: 0.08 | H2: 0.09 | J2: 0.03 | K2: 0.04 | L2: 0.05 | M2: 0.06 | N2: 0.07 | O2: 0.08 | P2: 0.09
A3: 12 | B3: 15289 | C3: 16264 | D3: 17309 | E3: 18431 | F3: 19634 | G3: 20922 | H3: 22307 | J3: =RATE($A$3*12,-100,0,B3)*12 -> 0.009958420313 | K3: =RATE($A3*12,-100,0,C3)*12 -> 0.02004260869 | L3: 0.03001443747 | M3: 0.03989388958 | N3: 0.04966957997 | O3: 0.05933127496 | P3: 0.06892326938
A4: 13 | B4: 16735 | C4: 17898 | D4: 19154 | E4: 20510 | F4: 21975 | G4: 23556 | H4: 25265 | J4: =RATE($A4*12,-100,0,B4)*12 -> 0.01075341587 | K4: 0.02082400211 | L4: 0.03078909582 | M4: 0.04064783085 | N4: 0.05040950787 | O4: 0.06006592728 | P4: 0.06963550009
A5: 14 | B5: 18209 | C5: 19581 | D5: 21072 | E5: 22693 | F5: 24456 | G5: 26373 | H5: 28459 | J5: 0.01142657353 | K5: 0.021492488 | L5: 0.03144592257 | M5: 0.04129324822 | N5: 0.05104020883 | O5: 0.06068676526 | P5: 0.07024219735
A6: 15 | B6: 19712 | C6: 21313 | D6: 23065 | E6: 24984 | F6: 27087 | G6: 29388 | H6: 31909 | J6: 0.01200681438 | K6: 0.02206204168 | L6: 0.03200493544 | M6: 0.04184596043 | N6: 0.05159114204 | O6: 0.06122708318 | P6: 0.07076905683
A7: 16 | B7: 21244 | C7: 23096 | D7: 25139 | E7: 27390 | F7: 29872 | G7: 32613 | H7: 35635 | J7: 0.01250882402 | K7: 0.0225558535 | L7: 0.03250036533 | M7: 0.04233126162 | N7: 0.0520574424 | O7: 0.06169490807 | P7: 0.0712289779
A8: 17 | B8: 22807 | C8: 24932 | D8: 27293 | E8: 29914 | F8: 32828 | G8: 36065 | H8: 39660 | J8: 0.0129545513 | K8: 0.02299022715 | L8: 0.03292521909 | M8: 0.04275081135 | N8: 0.05248180698 | O8: 0.06211034183 | P8: 0.07163598879
A9: 18 | B9: 24399 | C9: 26824 | D9: 29534 | E9: 32567 | F9: 35960 | G9: 39758 | H9: 44008 | J9: 0.01334134419 | K9: 0.02338078702 | L9: 0.03330667101 | M9: 0.04313276449 | N9: 0.0528541163 | O9: 0.06247675645 | P9: 0.07199847275
A10: 19 | B10: 26023 | C10: 28772 | D10: 31865 | E10: 35351 | F10: 39280 | G10: 43707 | H10: 48701 | J10: 0.01368951792 | K10: 0.02372788224 | L10: 0.0336493731 | M10: 0.04346942355 | N10: 0.05318675375 | O10: 0.06279845985 | P10: 0.07231612818
A11: 20 | B11: 27679 | C11: 30778 | D11: 34290 | E11: 38275 | F11: 42800 | G11: 47937 | H11: 53791 | J11: 0.01400231394 | K11: 0.02403937374 | L11: 0.03395988588 | M11: 0.04377407628 | N11: 0.05348705378 | O11: 0.06309562906 | P11: 0.07263402265
A12: 21 | B12: 29367 | C12: 32841 | D12: 36811 | E12: 41346 | F12: 46529 | G12: 52473 | H12: 59297 | J12: 0.01428288996 | K12: 0.02431310588 | L12: 0.03423829 | M12: 0.04405089447 | N12: 0.05375407972 | O12: 0.06337804558 | P12: 0.07292820736
A13: 22 | B13: 31087 | C13: 34969 | D13: 39431 | E13: 44570 | F13: 50487 | G13: 57345 | H13: 65252 | J13: 0.0145342213 | K13: 0.02457059467 | L13: 0.03448760559 | M13: 0.0443009749 | N13: 0.05400447283 | O13: 0.06365593278 | P13: 0.07319967335
A14: 23 | B14: 32842 | C14: 37159 | D14: 42158 | E14: 47952 | F14: 54707 | G14: 62562 | H14: 71685 | J14: 0.01476661132 | K14: 0.02480198502 | L14: 0.03471961646 | M14: 0.04452384487 | N14: 0.05426451744 | O14: 0.06390887017 | P14: 0.07344331362
A15: 24 | B15: 34632 | C15: 39415 | D15: 44993 | E15: 51517 | F15: 59183 | G15: 68151 | H15: 78642 | J15: 0.01498043861 | K15: 0.02501521358 | L15: 0.03493038161 | M15: 0.04474746175 | N15: 0.05450161706 | O15: 0.06414250649 | P15: 0.07366942697
A16: 25 | B16: 36457 | C16: 41738 | D16: 47943 | E16: 55279 | F16: 63934 | G16: 74128 | H16: 86162 | J16: 0.01517637868 | K16: 0.02521057828 | L16: 0.03512663738 | M16: 0.04497439704 | N16: 0.05472218399 | O16: 0.0643497098 | P16: 0.07387695137
A17: 26 | B17: 38318 | C17: 44129 | D17: 51017 | E17: 59232 | F17: 68971 | G17: 80535 | H17: 94284 | J17: 0.01535717041 | K17: 0.02538864803 | L17: 0.03531546257 | M17: 0.04518321903 | N17: 0.0549223645 | O17: 0.06454587084 | P17: 0.07406383702
A18: 27 | B18: 40215 | C18: 46595 | D18: 54233 | E18: 63383 | F18: 74312 | G18: 87396 | H18: 103076 | J18: 0.01552326794 | K18: 0.02555876148 | L18: 0.03551197541 | M18: 0.04537331487 | N18: 0.05510539698 | O18: 0.06472689392 | P18: 0.07424380871
A19: 28 | B19: 42150 | C19: 49134 | D19: 57580 | E19: 67745 | F19: 79984 | G19: 94745 | H19: 112628 | J19: 0.01567844212 | K19: 0.02571551624 | L19: 0.03569421672 | M19: 0.04554971972 | N19: 0.05527956142 | O19: 0.06489547511 | P19: 0.07443344916
A20: 29 | B20: 44124 | C20: 51764 | D20: 61065 | E20: 72328 | F20: 85997 | G20: 102624 | H20: 122949 | J20: 0.01582406769 | K20: 0.02587927318 | L20: 0.03586526935 | M20: 0.04571324313 | N20: 0.05543848869 | O20: 0.06505658022 | P20: 0.0746049917
A21: 30 | B21: 46136 | C21: 54483 | D21: 64691 | E21: 77148 | F21: 92381 | G21: 111108 | H21: 134117 | J21: 0.01595857844 | K21: 0.02604187108 | L21: 0.03602371002 | M21: 0.04586862468 | N21: 0.05558946044 | O21: 0.06522744304 | P21: 0.07476675389
A22: 31 | B22: 48186 | C22: 57285 | D22: 68466 | E22: 82214 | F22: 99153 | G22: 120188 | H22: 146199 | J22: 0.01608227028 | K22: 0.02619348215 | L22: 0.03617269084 | M22: 0.04601423763 | N22: 0.05572988531 | O22: 0.06538205638 | P22: 0.07491858572
A23: 32 | B23: 50282 | C23: 60171 | D23: 72388 | E23: 87531 | F23: 106375 | G23: 129918 | H23: 159268 | J23: 0.0162047188 | K23: 0.02633376161 | L23: 0.03630706941 | M23: 0.04614654882 | N23: 0.05587851039 | O23: 0.06552689237 | P23: 0.07506076367
A24: 33 | B24: 52441 | C24: 63151 | D24: 76478 | E24: 93120 | F24: 114047 | G24: 140356 | H24: 173379 | J24: 0.01634246478 | K24: 0.02647020396 | L24: 0.03643884189 | M24: 0.04627165871 | N24: 0.05602047701 | O24: 0.06566653049 | P24: 0.07518754958
A25: 34 | B25: 54645 | C25: 66217 | D25: 80731 | E25: 98994 | F25: 122201 | G25: 151534 | H25: 188662 | J25: 0.0164726753 | K25: 0.0265941264 | L25: 0.03656027636 | M25: 0.04638965647 | N25: 0.05615756727 | O25: 0.0657953224 | P25: 0.07531164206
A26: 35 | B26: 56890 | C26: 69378 | D26: 85161 | E26: 105211 | F26: 130847 | G26: 163511 | H26: 205218 | J26: 0.0165914001 | K26: 0.02671166565 | L26: 0.03667666454 | M26: 0.0465199546 | N26: 0.05628300018 | O26: 0.06591612117 | P26: 0.07543344037
A27: 36 | B27: 59183 | C27: 72636 | D27: 89771 | E27: 111755 | F27: 140033 | G27: 176339 | H27: 223191 | J27: 0.016705278 | K27: 0.02682265542 | L27: 0.03678600323 | M27: 0.04664562412 | N27: 0.05640363687 | O27: 0.06602841987 | P27: 0.07555935565
A28: 37 | B28: 61525 | C28: 75997 | D28: 94563 | E28: 118638 | F28: 149782 | G28: 190089 | H28: 242649 | J28: 0.01681453377 | K28: 0.02692947293 | L28: 0.03688639503 | M28: 0.04676490474 | N28: 0.05651668213 | O28: 0.06613524464 | P28: 0.0756794225
A29: 38 | B29: 63911 | C29: 79458 | D29: 99559 | E29: 125875 | F29: 160123 | G29: 204853 | H29: 263716 | J29: 0.01691488935 | K29: 0.02702872535 | L29: 0.03698520813 | M29: 0.04687739576 | N29: 0.05662143472 | O29: 0.06624175379 | P29: 0.07579413437
A30: 39 | B30: 66345 | C30: 83022 | D30: 104798 | E30: 133478 | F30: 171111 | G30: 220761 | H30: 286462 | J30: 0.01700949089 | K30: 0.02712115441 | L30: 0.03709433724 | M30: 0.04698177738 | N30: 0.05672300303 | O30: 0.06635672811 | P30: 0.07589581503
A31: 40 | B31: 68832 | C31: 86701 | D31: 110261 | E31: 141485 | F31: 182767 | G31: 237793 | H31: 311181 | J31: 0.01710145288 | K31: 0.02721179232 | L31: 0.0372004899 | M31: 0.04708418017 | N31: 0.05681742345 | O31: 0.06646175363 | P31: 0.07600413536
A32: 41 | B32: 71538 | C32: 90705 | D32: 116227 | E32: 150254 | F32: 195602 | G32: 256668 | H32: 338834 | J32: 0.01729190879 | K32: 0.02739481902 | L32: 0.03739500012 | M32: 0.04726881738 | N32: 0.05699246257 | O32: 0.06664508491 | P32: 0.07619652094
A33: 42 | B33: 74326 | C33: 94867 | D33: 122486 | E33: 159537 | F33: 209387 | G33: 277029 | H33: 368930 | J33: 0.01748251737 | K33: 0.02757785714 | L33: 0.03758789297 | M33: 0.04745205204 | N33: 0.05717892874 | O33: 0.06682735941 | P33: 0.07638550035
A34: 43 | B34: 77182 | C34: 99172 | D34: 129026 | E34: 169329 | F34: 224106 | G34: 298922 | H34: 401608 | J34: 0.01766377642 | K34: 0.02775188769 | L34: 0.03777106979 | M34: 0.04762598119 | N34: 0.05736122554 | O34: 0.0670000642 | P34: 0.07656455616
A35: 44 | B35: 80107 | C35: 103662 | D35: 135858 | E35: 179654 | F35: 239782 | G35: 322602 | H35: 437077 | J35: 0.01783601238 | K35: 0.02793115098 | L35: 0.03794478708 | M35: 0.04779051068 | N35: 0.057533631 | O35: 0.0671777353 | P35: 0.0767335145
A36: 45 | B36: 83103 | C36: 108322 | D36: 142995 | E36: 190543 | F36: 256480 | G36: 348090 | H36: 475587 | J36: 0.01800002649 | K36: 0.02810656119 | L36: 0.03810972105 | M36: 0.04794669844 | N36: 0.05769724007 | O36: 0.0673477024 | P36: 0.07689390942
A37: 46 | B37: 86172 | C37: 113144 | D37: 150452 | E37: 202047 | F37: 274269 | G37: 375509 | H37: 517399 | J37: =RATE($A37*12,-100,0,B37)*12 -> 0.01815650478 | K37: 0.02827346004 | L37: 0.0382668087 | M37: 0.04809839065 | N37: 0.05785294499 | O37: 0.06750917843 | P37: 0.0770463532
A38: 47 | B38: 89314 | C38: 118133 | D38: 158242 | E38: 214268 | F38: 293214 | G38: 404999 | H38: 562785 | J38: 0.01830519932 | K38: 0.02843224412 | L38: 0.03841628898 | M38: 0.04825561812 | N38: 0.05800061839 | O38: 0.06766229185 | P38: 0.07719082352
A39: 48 | B39: 92535 | C39: 123297 | D39: 166382 | E39: 227167 | F39: 313490 | G39: 436727 | H39: 612066 | J39: 0.01844834162 | K39: 0.02858408651 | L39: 0.03855909294 | M39: 0.04840573763 | N39: 0.05815028897 | O39: 0.06780834099 | P39: 0.07732861036
A40: 49 | B40: 95833 | C40: 128639 | D40: 174886 | E40: 240777 | F40: 335161 | G40: 470852 | H40: 665560 | J40: 0.0185847386 | K40: 0.02872860037 | L40: 0.03869532437 | M40: 0.0485486148 | N40: =RATE($A40*12,-100,0,F40)*12 -> 0.05829859428 | O40: 0.06794712744 | P40: 0.07745947177
A41: 50 | B41: 99211 | C41: 134167 | D41: 183768 | E41: 255136 | F41: 358253 | G41: 507555 | H41: 723632 | J41: =RATE($A41*12,-100,0,B41)*12 -> 0.01871524946 | K41: 0.02886673683 | L41: 0.03882502501 | M41: 0.04868459982 | N41: 0.05843968822 | O41: 0.0680791519 | P41: 0.07758407491
A42: 51 | B42: 102709 | C42: 139888 | D42: 193050 | E42: 270291 | F42: 382867 | G42: 547044 | H42: 786688 | J42: 0.01885283047 | K42: 0.02899901258 | L42: 0.03894944239 | M42: 0.04881476899 | N42: 0.05857462185 | O42: 0.06820551842 | P42: 0.07770330494
A43: 52 | B43: 106307 | C43: 145807 | D43: 202770 | E43: 286280 | F43: 409096 | G43: 589516 | H43: 855135 | J43: 0.0189888481 | K43: 0.02912540814 | L43: 0.03907176484 | M43: 0.04893886646 | N43: 0.05870328451 | O43: 0.06832591889 | P43: 0.07781686438
A44: 53 | B44: 109994 | C44: 151932 | D44: 213008 | E44: 303181 | F44: 437051 | G44: 635207 | H44: 929453 | J44: 0.01911907528 | K44: 0.02924652144 | L44: 0.03919988834 | M44: 0.04906017645 | N44: 0.05882638496 | O44: 0.06844117395 | P44: 0.0779256405
A45: 54 | B45: 113772 | C45: 158270 | D45: 223708 | E45: 321138 | F45: 466840 | G45: 684350 | H45: 1010126 | J45: 0.01924380752 | K45: 0.02936263218 | L45: 0.03932236541 | M45: 0.04918632066 | N45: 0.05894395006 | O45: 0.06855118972 | P45: 0.07802944248
A46: 55 | B46: 117643 | C46: 164827 | D46: 234890 | E46: 340103 | F46: 498581 | G46: 737205 | H46: 1097697 | J46: 0.01936331035 | K46: 0.02947378427 | L46: 0.03943944557 | M46: 0.04930764875 | N46: 0.05905621205 | O46: 0.06865627568 | P46: 0.07812858498
A47: 56 | B47: 121610 | C47: 171613 | D47: 246581 | E47: 360129 | F47: 532417 | G47: 794073 | H47: 1192788 | J47: 0.01947807356 | K47: 0.02958067809 | L47: 0.03955203501 | M47: 0.0494241554 | N47: 0.05916419927 | O47: 0.06875735682 | P47: 0.07822398546
A48: 57 | B48: 125676 | C48: 178635 | D48: 258801 | E48: 381272 | F48: 568476 | G48: 855245 | H48: 1296023 | J48: 0.01958851211 | K48: 0.0296833878 | L48: 0.03966005126 | M48: 0.0495358852 | N48: 0.05926769791 | O48: 0.06885426616 | P48: 0.07831545132
A49: 58 | B49: 129842 | C49: 185900 | D49: 271572 | E49: 403591 | F49: 606902 | G49: 921042 | H49: 1408094 | J49: 0.01969452844 | K49: 0.02978196765 | L49: 0.03976357146 | M49: 0.04964291153 | N49: 0.05936688956 | O49: 0.06894712794 | P49: 0.07840312485
A50: 59 | B50: 134110 | C50: 193416 | D50: 284920 | E50: 427153 | F50: 647850 | G50: 991812 | H50: 1529752 | J50: 0.01979627649 | K50: 0.0298765953 | L50: 0.03986295917 | M50: 0.04974560039 | N50: 0.05946201239 | O50: 0.06903614349 | P50: 0.07848715509
A51: 60 | B51: 138483 | C51: 201201 | D51: 298869 | E51: 452025 | F51: 691481 | G51: 1067928 | H51: 1661807 | J51: 0.01989410151 | K51: 0.02996870136 | L51: 0.0399582754 | M51: 0.04984408264 | N51: 0.05955315432 | O51: 0.0691214806 | P51: 0.07856763085
I52: Rendite
I53: =SUM(J53:P53) -> 0.03989388958 | J53: =IF(Hilfe!$E$3='FSX (Einzel)'!J2,VLOOKUP(Hilfe!$B$54,$A$3:$P$51,10),0) -> 0 | K53: =IF(Hilfe!$E$3='FSX (Einzel)'!K2,VLOOKUP(Hilfe!$B$54,$A$3:$P$51,11),0) -> 0 | L53: =IF(Hilfe!$E$3='FSX (Einzel)'!L2,VLOOKUP(Hilfe!$B$54,$A$3:$P$51,12),0) -> 0 | M53: =IF(Hilfe!$E$3='FSX (Einzel)'!M2,VLOOKUP(Hilfe!$B$54,$A$3:$P$51,13),0) -> 0.03989388958 | N53: =IF(Hilfe!$E$3='FSX (Einzel)'!N2,VLOOKUP(Hilfe!$B$54,$A$3:$P$51,14),0) -> 0 | O53: =IF(Hilfe!$E$3='FSX (Einzel)'!O2,VLOOKUP(Hilfe!$B$54,$A$3:$P$51,15),0) -> 0 | P53: =IF(Hilfe!$E$3='FSX (Einzel)'!P2,VLOOKUP(Hilfe!$B$54,$A$3:$P$51,16),0) -> 0

Sheet FSX (U) (hidden)
A1: Laufzeit | B1: FSX Sondertarif U Vertragsguthaben in EUR, Beitrag: 100€ monatlich, keine Dynamik, Alter: 0 Jahre, offene Version | K1: Stand 13.02.2018
B2: 0.03 | C2: 0.04 | D2: 0.05 | E2: 0.06 | F2: 0.07 | G2: 0.08 | H2: 0.09 | J2: 0.03 | K2: 0.04 | L2: 0.05 | M2: 0.06 | N2: 0.07 | O2: 0.08 | P2: 0.09
A3: 12 | B3: 15481 | C3: 16473 | D3: 17536 | E3: 18677 | F3: 19900 | G3: 21211 | H3: 22617 | J3: =RATE($A$3*12,-100,0,B3)*12 -> 0.01200952057 | K3: =RATE($A3*12,-100,0,C3)*12 -> 0.02210212312 | L3: 0.0320782583 | M3: 0.04195760548 | N3: 0.05172907642 | O3: 0.06139695766 | P3: 0.07096903626
A4: 13 | B4: 16965 | C4: 18149 | D4: 19428 | E4: 20809 | F4: 22300 | G4: 23911 | H4: 25651 | J4: =RATE($A4*12,-100,0,B4)*12 -> 0.01281609158 | K4: 0.02288623208 | L4: 0.03285169749 | M4: 0.04271037712 | N4: 0.05246420098 | O4: 0.06212324075 | P4: 0.07168632491
A5: 14 | B5: 18480 | C5: 19877 | D5: 21399 | E5: 23052 | F5: 24850 | G5: 26806 | H5: 28934 | J5: 0.01349153081 | K5: 0.02354455379 | L5: 0.03350846842 | M5: 0.04335376581 | N5: 0.05309821863 | O5: 0.06274533509 | P5: 0.07229784951
A6: 15 | B6: 20028 | C6: 21661 | D6: 23450 | E6: 25410 | F6: 27556 | G6: 29908 | H6: 32487 | J6: 0.01407379314 | K6: 0.02411874479 | L6: 0.03406080555 | M6: 0.04390131811 | N6: 0.05363578026 | O6: 0.06327571985 | P6: 0.07282700847
A7: 16 | B7: 21609 | C7: 23502 | D7: 25589 | E7: 27891 | F7: 30433 | G7: 33235 | H7: 36331 | J7: 0.01457684034 | K7: 0.02461976141 | L7: 0.034552667 | M7: 0.04438118278 | N7: 0.0541167507 | O7: 0.06374335963 | P7: 0.0732855423
A8: 17 | B8: 23222 | C8: 25400 | D8: 27817 | E8: 30503 | F8: 33488 | G8: 36803 | H8: 40489 | J8: 0.01500737634 | K8: 0.02505276037 | L8: 0.03498240293 | M8: 0.04481050438 | N8: 0.05453737582 | O8: 0.06415758413 | P8: 0.07368439135
A9: 18 | B9: 24873 | C9: 27360 | D9: 30140 | E9: 33250 | F9: 36732 | G9: 40629 | H9: 44992 | J9: 0.01540258854 | K9: 0.02544277744 | L9: 0.03536868783 | M9: 0.04518794963 | N9: 0.0549081362 | O9: 0.06452575351 | P9: 0.07404521958
A10: 19 | B10: 26559 | C10: 29380 | D10: 32559 | E10: 36141 | F10: 40176 | G10: 44731 | H10: 49865 | J10: 0.01575136372 | K10: 0.0257823493 | L10: 0.03570871186 | M10: 0.04552744943 | N10: 0.05523569288 | O10: 0.0648536607 | P10: 0.07436648316
A11: 20 | B11: 28282 | C11: 31466 | D11: 35081 | E11: 39180 | F11: 43838 | G11: 49130 | H11: 55166 | J11: 0.01606559196 | K11: 0.02609263073 | L11: 0.03601795305 | M11: 0.04582639784 | N11: 0.05553807475 | O11: 0.06514926312 | P11: 0.07469493171
A12: 21 | B12: 30041 | C12: 33620 | D12: 37707 | E12: 42381 | F12: 47727 | G12: 53867 | H12: 60906 | J12: 0.01634468133 | K12: 0.02637671134 | L12: 0.0362926465 | M12: 0.04610400239 | N12: 0.05580955319 | O12: 0.06544542734 | P12: 0.07498997418
A13: 22 | B13: 31839 | C13: 35842 | D13: 40446 | E13: 45748 | F13: 51870 | G13: 58953 | H13: 67122 | J13: 0.01660018009 | K13: 0.02663252825 | L13: 0.03654755398 | M13: 0.04635416606 | N13: 0.05607356567 | O13: 0.06571900491 | P13: 0.07525699839
A14: 23 | B14: 33676 | C14: 38135 | D14: 43300 | E14: 49291 | F14: 56285 | G14: 64408 | H14: 73856 | J14: 0.01683281627 | K14: 0.02686582513 | L14: 0.0367794551 | M14: 0.04658279327 | N14: 0.05633050208 | O14: 0.06596595195 | P14: 0.075502026
A15: 24 | B15: 35554 | C15: 40500 | D15: 46275 | E15: 53041 | F15: 60979 | G15: 70267 | H15: 81145 | J15: 0.01704805676 | K15: 0.02707705226 | L15: 0.03699313772 | M15: 0.04682163841 | N15: 0.05656683589 | O15: 0.06619771043 | P15: 0.07572252924
A16: 25 | B16: 37472 | C16: 42940 | D16: 49373 | E16: 56990 | F16: 65967 | G16: 76554 | H16: 89042 | J16: 0.01724391022 | K16: 0.02727039031 | L16: 0.03718618516 | M16: 0.04704207378 | N16: 0.05678223023 | O16: 0.06641035954 | P16: 0.07592694645
A17: 26 | B17: 39431 | C17: 45461 | D17: 52621 | E17: 61149 | F17: 71270 | G17: 83298 | H17: 97597 | J17: 0.01742311741 | K17: 0.02745350439 | L17: 0.03738916134 | M17: 0.04724654103 | N17: 0.05698154278 | O17: 0.06660442194 | P17: 0.07611638219
A18: 27 | B18: 41434 | C18: 48062 | D18: 56014 | E18: 65531 | F18: 76910 | G18: 90536 | H18: 106899 | J18: 0.01759122451 | K18: 0.02762190834 | L18: 0.03758423827 | M18: 0.04743836828 | N18: 0.05716806753 | O18: 0.0667845762 | P18: 0.07631039555
A19: 28 | B19: 43481 | C19: 50754 | D19: 59556 | E19: 70143 | F19: 82905 | G19: 98298 | H19: 116996 | J19: 0.01774767589 | K19: 0.02778788927 | L19: 0.03776890377 | M19: 0.04761439401 | N19: 0.05734051701 | O19: 0.06694867592 | P19: 0.07649815952
A20: 29 | B20: 45573 | C20: 53547 | D20: 63246 | E20: 75002 | F20: 89276 | G20: 106670 | H20: 127929 | J20: 0.01789367858 | K20: 0.02795848113 | L20: 0.0379368116 | M20: 0.04778016311 | N20: 0.05749954346 | O20: 0.0671226916 | P20: 0.07666838854
A21: 30 | B21: 47709 | C21: 56437 | D21: 67098 | E21: 80116 | F21: 96046 | G21: 115670 | H21: 139779 | J21: 0.01802767341 | K21: 0.02812352218 | L21: 0.0380966098 | M21: 0.04793289938 | N21: 0.05764628291 | O21: 0.06728997353 | P21: 0.0768274857
A22: 31 | B22: 49894 | C22: 59418 | D22: 71109 | E22: 85500 | F22: 103267 | G22: 125338 | H22: 152624 | J22: 0.01815587297 | K22: 0.02827403209 | L22: 0.03824100914 | M22: 0.04807502145 | N22: 0.05779530048 | O22: 0.06744777375 | P22: 0.07697676045
A23: 32 | B23: 52147 | C23: 62501 | D23: 75298 | E23: 91173 | F23: 110976 | G23: 135710 | H23: 166536 | J23: 0.01829816119 | K23: 0.02841884132 | L23: 0.03838058745 | M23: 0.04821018831 | N23: 0.05794817025 | O23: 0.06759204627 | P23: 0.0771138267
A24: 33 | B24: 54456 | C24: 65679 | D24: 79667 | E24: 97144 | F24: 119177 | G24: 146849 | H24: 181627 | J24: 0.01843707795 | K24: 0.02854968727 | L24: 0.03851161603 | M24: 0.04833554748 | N24: 0.05809175789 | O24: 0.06772799052 | P24: 0.07724573362
A25: 34 | B25: 56813 | C25: 68960 | D25: 84217 | E25: 103457 | F25: 127893 | G25: 158808 | H25: 197981 | J25: 0.01856361973 | K25: 0.02867201334 | L25: 0.03863093318 | M25: 0.04846493431 | N25: 0.05822386473 | O25: 0.06785521515 | P25: 0.07736910441
A26: 35 | B26: 59224 | C26: 72354 | D26: 88969 | E26: 110130 | F26: 137176 | G26: 171655 | H26: 215785 | J26: 0.01868357935 | K26: 0.02879114454 | L26: 0.03874704319 | M26: 0.04859626472 | N26: 0.05835199011 | O26: 0.06797637025 | P26: 0.07750016103
A27: 36 | B27: 61692 | C27: 75856 | D27: 93916 | E27: 117162 | F27: 147039 | G27: 185434 | H27: 235081 | J27: 0.01879887638 | K27: 0.02890142035 | L27: 0.03885212565 | M27: 0.04872045802 | N27: 0.05846923013 | O27: 0.068086964 | P27: 0.07762207413
A28: 37 | B28: 64214 | C28: 79477 | D28: 99085 | E28: 124573 | F28: 157528 | G28: 200246 | H28: 256039 | J28: 0.01890642698 | K28: 0.02900813213 | L28: 0.03895592025 | M28: 0.04883827908 | N28: 0.05857932105 | O28: 0.06819477478 | P28: 0.07774245339
A29: 38 | B29: 66792 | C29: 83210 | D29: 104513 | E29: 132384 | F29: 168700 | G29: 216241 | H29: 278753 | J29: 0.01900753609 | K29: 0.0291054105 | L29: 0.03906919046 | M29: 0.04895034735 | N29: 0.05868690543 | O29: 0.06831246671 | P29: 0.07785430975
A30: 39 | B30: 69428 | C30: 87072 | D30: 110188 | E30: 140609 | F30: 180573 | G30: 233419 | H30: 303383 | J30: 0.01910325339 | K30: 0.02920103698 | L30: 0.03918062499 | M30: 0.0490548966 | N30: 0.05878624051 | O30: 0.06842282637 | P30: 0.07795999829
A31: 40 | B31: 72123 | C31: 91058 | D31: 116106 | E31: 149280 | F31: 193206 | G31: 251897 | H31: 330249 | J31: 0.01919380477 | K31: 0.02929048558 | L31: 0.03928474727 | M31: 0.04915521057 | N31: 0.05888104311 | O31: 0.06853067979 | P31: 0.07807664577
A32: 41 | B32: 75058 | C32: 95400 | D32: 122576 | E32: 158790 | F32: 207183 | G32: 272372 | H32: 360250 | J32: 0.01938335024 | K32: 0.0294723048 | L32: 0.03947725487 | M32: 0.04933821426 | N32: 0.05906442918 | O32: 0.06871221831 | P32: 0.07826696115
A33: 42 | B33: 78086 | C33: 99922 | D33: 129377 | E33: 168876 | F33: 222201 | G33: 294500 | H33: 392965 | J33: 0.01957218663 | K33: 0.02965420429 | L33: 0.03966829283 | M33: 0.04951968236 | N33: 0.05925474661 | O33: 0.06889254947 | P33: 0.078453928
A34: 43 | B34: 81195 | C34: 104656 | D34: 136497 | E34: 179536 | F34: 238231 | G34: 318460 | H34: 428557 | J34: 0.01975223997 | K34: 0.02984458803 | L34: 0.03984954194 | M34: 0.04969186377 | N34: 0.05943500862 | O34: 0.06907566626 | P34: 0.07863101749
A35: 44 | B35: 84385 | C35: 109568 | D35: 143949 | E35: 190800 | F35: 255336 | G35: 344319 | H35: 467267 | J35: 0.0199230702 | K35: 0.03002664046 | L35: 0.04002121725 | M35: 0.04985493993 | N35: 0.05960528167 | O35: 0.06925248442 | P35: 0.0787981537
A36: 45 | B36: 87659 | C36: 114661 | D36: 151751 | E36: 202720 | F36: 273594 | G36: 372192 | H36: 509378 | J36: 0.02008574527 | K36: 0.03019968831 | L36: 0.04018460362 | M36: 0.05001249296 | N36: 0.05976702564 | O36: 0.06942022457 | P36: 0.07895669998
A37: 46 | B37: 91020 | C37: 119943 | D37: 159918 | E37: 215410 | F37: 293084 | G37: 402238 | H37: 555192 | J37: =RATE($A37*12,-100,0,B37)*12 -> 0.02024114984 | K37: 0.03036475593 | L37: 0.04033995553 | M37: 0.05017606856 | N37: 0.05992096525 | O37: 0.06957969042 | P37: 0.07910743381
A38: 47 | B38: 94468 | C38: 125418 | D38: 168467 | E38: 228826 | F38: 313973 | G38: 434618 | H38: 605023 | J38: 0.02038884555 | K38: 0.03052152796 | L38: 0.04048781106 | M38: 0.05033139642 | N38: 0.06007568992 | O38: 0.06973087795 | P38: 0.07925033819
A39: 48 | B39: 98009 | C39: 131096 | D39: 177418 | E39: 243013 | F39: 336349 | G39: 469524 | H39: 659238 | J39: 0.02053075175 | K39: 0.03067135181 | L39: 0.04062906165 | M39: 0.05047949257 | N39: 0.06022941072 | O39: 0.0698750358 | P39: 0.07938660424
A40: 49 | B40: 101664 | C40: 136983 | D40: 186788 | E40: 258012 | F40: 360241 | G40: 507144 | H40: 718207 | J40: 0.02067357623 | K40: 0.03081429324 | L40: 0.04076379869 | M40: 0.05062044033 | N40: =RATE($A40*12,-100,0,F40)*12 -> 0.06037557722 | O40: 0.07001211545 | P40: 0.07951606318
A41: 50 | B41: 105445 | C41: 143086 | D41: 196595 | E41: 273869 | F41: 385751 | G41: 547687 | H41: 782348 | J41: =RATE($A41*12,-100,0,B41)*12 -> 0.02081956009 | K41: 0.0309506423 | L41: 0.04089219179 | M41: 0.05075467006 | N41: 0.06051465568 | O41: 0.07014250302 | P41: 0.07963923239
A42: 51 | B42: 109329 | C42: 149414 | D42: 206923 | E42: 290639 | F42: 412997 | G42: 591394 | H42: 852135 | J42: 0.02095962365 | K42: 0.03108105336 | L42: 0.04102380133 | M42: 0.05088320599 | N42: 0.06064768232 | O42: 0.07026727593 | P42: 0.07975715544
A43: 52 | B43: 113316 | C43: 155976 | D43: 217782 | E43: 308432 | F43: 442088 | G43: 638495 | H43: 928041 | J43: 0.02109329854 | K43: 0.03120602934 | L43: 0.04115551386 | M43: 0.05101153365 | N43: 0.0607744675 | O43: 0.07038607974 | P43: 0.07986948488
A44: 53 | B44: 117411 | C44: 162779 | D44: 229157 | E44: 327346 | F44: 473157 | G44: 689270 | H44: 1010622 | J44: 0.02122161545 | K44: 0.03132558447 | L44: 0.04128172105 | M44: 0.05114222543 | N44: 0.06089586369 | O44: 0.07049991679 | P44: 0.07997706843
A45: 54 | B45: 121615 | C45: 169833 | D45: 241068 | E45: 347353 | F45: 506329 | G45: 743988 | H45: 1100441 | J45: 0.02134438514 | K45: 0.03144024792 | L45: 0.04140222376 | M45: 0.05126711084 | N45: 0.06101171015 | O45: 0.07060848937 | P45: 0.08007965946
A46: 55 | B46: 125932 | C46: 177145 | D46: 253541 | E46: 368514 | F46: 541747 | G46: 802959 | H46: 1198136 | J46: 0.02146221484 | K46: 0.03154993584 | L46: 0.04151746187 | M46: 0.05138639874 | N46: 0.06112239307 | O46: 0.07071225593 | P46: 0.08017765994
A47: 56 | B47: 130365 | C47: 184728 | D47: 266608 | E47: 390904 | F47: 579577 | G47: 866534 | H47: 1304435 | J47: 0.02157537905 | K47: 0.03165549171 | L47: 0.04162830094 | M47: 0.05150098451 | N47: 0.06122881805 | O47: 0.07081206966 | P47: 0.0802720171
A48: 57 | B48: 134917 | C48: 192590 | D48: 280294 | E48: 414591 | F48: 619974 | G48: 935058 | H48: 1420069 | J48: 0.02168411534 | K48: 0.03175684215 | L48: 0.0417346684 | M48: 0.05161092129 | N48: 0.06133085128 | O48: 0.07090777558 | P48: 0.08036248421
A49: 58 | B49: 139590 | C49: 200749 | D49: 294626 | E49: 439646 | F49: 663108 | G49: 1008911 | H49: 1545852 | J49: 0.02178842462 | K49: 0.03185525548 | L49: 0.04183661635 | M49: 0.05171624428 | N49: 0.061428599 | O49: 0.07099949296 | P49: 0.08044920501
A50: 59 | B50: 144388 | C50: 209304 | D50: 309726 | E50: 466148 | F50: 709166 | G50: 1088507 | H50: 1682671 | J50: 0.02188871482 | K50: 0.03196184213 | L50: 0.04194171912 | M50: 0.05181722444 | N50: 0.06152236447 | O50: 0.0710874482 | P50: 0.08053235238
A51: 60 | B51: 149314 | C51: 218177 | D51: 325609 | E51: 494180 | F51: 758341 | G51: 1174285 | H51: 1831481 | J51: 0.02198514256 | K51: 0.03206414701 | L51: 0.04204745024 | M51: 0.05191408616 | N51: 0.06161222268 | O51: 0.07117172075 | P51: 0.08061198521
I52: Rendite
I53: =SUM(J53:P53) -> 0.04195760548 | J53: =IF(Hilfe!$E$3='FSX (Einzel)'!J2,VLOOKUP(Hilfe!$B$54,$A$3:$P$51,10),0) -> 0 | K53: =IF(Hilfe!$E$3='FSX (Einzel)'!K2,VLOOKUP(Hilfe!$B$54,$A$3:$P$51,11),0) -> 0 | L53: =IF(Hilfe!$E$3='FSX (Einzel)'!L2,VLOOKUP(Hilfe!$B$54,$A$3:$P$51,12),0) -> 0 | M53: =IF(Hilfe!$E$3='FSX (Einzel)'!M2,VLOOKUP(Hilfe!$B$54,$A$3:$P$51,13),0) -> 0.04195760548 | N53: =IF(Hilfe!$E$3='FSX (Einzel)'!N2,VLOOKUP(Hilfe!$B$54,$A$3:$P$51,14),0) -> 0 | O53: =IF(Hilfe!$E$3='FSX (Einzel)'!O2,VLOOKUP(Hilfe!$B$54,$A$3:$P$51,15),0) -> 0 | P53: =IF(Hilfe!$E$3='FSX (Einzel)'!P2,VLOOKUP(Hilfe!$B$54,$A$3:$P$51,16),0) -> 0

Sheet FSX (V) (hidden)
A1: Laufzeit | B1: FSX Sondertarif V Vertragsguthaben in EUR, Beitrag: 100€ monatlich, keine Dynamik, Alter: 0 Jahre, offene Version | K1: Stand 13.02.2018
B2: 0.03 | C2: 0.04 | D2: 0.05 | E2: 0.06 | F2: 0.07 | G2: 0.08 | H2: 0.09 | J2: 0.03 | K2: 0.04 | L2: 0.05 | M2: 0.06 | N2: 0.07 | O2: 0.08 | P2: 0.09
A3: 12 | B3: 15781 | C3: 16795 | D3: 17882 | E3: 19049 | F3: 20302 | G3: 21644 | H3: 23084 | J3: =RATE($A$3*12,-100,0,B3)*12 -> 0.01514864787 | K3: =RATE($A3*12,-100,0,C3)*12 -> 0.02520980815 | L3: 0.03515894837 | M3: 0.04501360652 | N3: 0.05477663764 | O3: 0.06442702522 | P3: 0.07398622885
A4: 13 | B4: 17311 | C4: 18525 | D4: 19835 | E4: 21251 | F4: 22779 | G4: 24432 | H4: 26216 | J4: =RATE($A4*12,-100,0,B4)*12 -> 0.01585122727 | K4: 0.02590747148 | L4: 0.03584776734 | M4: 0.04569157615 | N4: 0.05542499527 | O4: 0.06507481005 | P4: 0.07462062052
A5: 14 | B5: 18878 | C5: 20314 | D5: 21874 | E5: 23571 | F5: 25417 | G5: 27427 | H5: 29612 | J5: 0.0164536435 | K5: 0.02650314963 | L5: 0.03643396586 | M5: 0.0462620865 | N5: 0.05598939982 | O5: 0.0656269747 | P5: 0.0751614655
A6: 15 | B6: 20483 | C6: 22163 | D6: 24002 | E6: 26015 | F6: 28224 | G6: 30641 | H6: 33293 | J6: 0.01697650823 | K6: 0.02701184898 | L6: 0.0369347066 | M6: 0.04674699568 | N6: 0.05647440146 | O6: 0.06609020122 | P6: 0.07562340622
A7: 16 | B7: 22126 | C7: 24073 | D7: 26222 | E7: 28594 | F7: 31211 | G7: 34098 | H7: 37283 | J7: 0.01742955472 | K7: 0.02744622813 | L7: 0.03736335219 | M7: 0.04718108627 | N7: 0.05689605398 | O7: 0.06650897214 | P7: 0.07602244235
A8: 17 | B8: 23807 | C8: 26050 | D8: 28542 | E8: 31312 | F8: 34390 | G8: 37809 | H8: 41613 | J8: 0.01782156339 | K8: 0.02783798238 | L8: 0.03774926531 | M8: 0.04755994614 | N8: 0.05726719567 | O8: 0.06686899594 | P8: 0.07638228953
A9: 18 | B9: 25527 | C9: 28094 | D9: 30965 | E9: 34177 | F9: 37774 | G9: 41799 | H9: 46309 | J9: 0.01816442099 | K9: 0.02818417353 | L9: 0.03809335294 | M9: 0.04789480408 | N9: 0.05759791035 | O9: 0.0671956945 | P9: 0.07670202703
A10: 19 | B10: 27290 | C10: 30208 | D10: 33494 | E10: 37198 | F10: 41372 | G10: 46085 | H10: 51408 | J10: 0.01847806075 | K10: 0.0284946066 | L10: 0.03839753644 | M10: 0.0481954041 | N10: 0.05788513312 | O10: 0.06748549261 | P10: 0.07699795888
A11: 20 | B11: 29095 | C11: 32393 | D11: 36135 | E11: 40382 | F11: 45206 | G11: 50694 | H11: 56959 | J11: 0.0187591035 | K11: 0.02877053955 | L11: 0.03867164867 | M11: 0.0484634248 | N11: 0.05815248167 | O11: 0.06775239891 | P11: 0.07729241379
A12: 21 | B12: 30941 | C12: 34650 | D12: 38889 | E12: 43738 | F12: 49288 | G12: 55668 | H12: 62984 | J12: 0.01900655041 | K12: 0.029013869 | L12: 0.03891127052 | M12: 0.04870418584 | N12: 0.05839574472 | O12: 0.06802343099 | P12: 0.07755929848
A13: 22 | B13: 32833 | C13: 36987 | D13: 41769 | E13: 47279 | F13: 53652 | G13: 61020 | H13: 69523 | J13: 0.01923645633 | K13: 0.02924243598 | L13: 0.03913787333 | M13: 0.04892768043 | N13: 0.0586432945 | O13: 0.06827445342 | P13: 0.07780164356
A14: 23 | B14: 34768 | C14: 39404 | D14: 44777 | E14: 51019 | F14: 58307 | G14: 66770 | H14: 76613 | J14: 0.01944076557 | K14: 0.02945153549 | L14: 0.03934556436 | M14: 0.04914099139 | N14: 0.05887802922 | O14: 0.0684981477 | P14: 0.07801642639
A15: 24 | B15: 36752 | C15: 41904 | D15: 47918 | E15: 54983 | F15: 63266 | G15: 72956 | H15: 84310 | J15: 0.01963396781 | K15: 0.0296439895 | L15: 0.0395355196 | M15: 0.0493618334 | N15: 0.05909339619 | O15: 0.06870623202 | P15: 0.07821524
A16: 25 | B16: 38783 | C16: 44486 | D16: 51207 | E16: 59166 | F16: 68541 | G16: 79608 | H16: 92664 | J16: 0.01981048561 | K16: 0.02981547677 | L16: 0.03972221055 | M16: 0.04956530381 | N16: 0.0592841478 | O16: 0.06889764458 | P16: 0.07839831196
A17: 26 | B17: 40863 | C17: 47159 | D17: 54659 | E17: 63573 | F17: 74165 | G17: 86756 | H17: 101742 | J17: 0.01997391458 | K17: 0.02997821191 | L17: 0.0399143105 | M17: 0.04974615853 | N17: 0.05946474998 | O17: 0.06907066401 | P17: 0.07857365182
A18: 27 | B18: 42990 | C18: 49924 | D18: 58264 | E18: 68229 | F18: 80157 | G18: 94437 | H18: 111632 | J18: 0.02012059087 | K18: 0.03012975128 | L18: 0.0400893463 | M18: 0.04991935359 | N18: 0.05963268885 | O18: 0.06922771839 | P18: 0.07875393053
A19: 28 | B19: 45171 | C19: 52807 | D19: 62033 | E19: 73143 | F19: 86537 | G19: 102718 | H19: 122381 | J19: 0.02026141755 | K19: 0.03029843138 | L19: 0.04025355201 | M19: 0.05008094704 | N19: 0.05978649397 | O19: 0.069385478 | P19: 0.07892505945
A20: 29 | B20: 47402 | C20: 55791 | D20: 65973 | E20: 78324 | F20: 93333 | G20: 111660 | H20: 134044 | J20: 0.02038937283 | K20: 0.03045580283 | L20: 0.04040742663 | M20: 0.0502282029 | N20: 0.05992949257 | O20: 0.06954910333 | P20: 0.07907990473
A21: 30 | B21: 49689 | C21: 58877 | D21: 70087 | E21: 83791 | F21: 100566 | G21: 121286 | H21: 146713 | J21: 0.02051198693 | K21: 0.0306004314 | L21: 0.04054806609 | M21: 0.05036575449 | N21: 0.06005955082 | O21: 0.06970359658 | P21: 0.07922535829
A22: 31 | B22: 52051 | C22: 62072 | D22: 74390 | E22: 89563 | F22: 108335 | G22: 131638 | H22: 160469 | J22: 0.02064926957 | K22: 0.03073692806 | L22: 0.04068232426 | M22: 0.05049635196 | N22: 0.06021112727 | O22: 0.06984575039 | P22: 0.07936043647
A23: 32 | B23: 54474 | C23: 65382 | D23: 78884 | E23: 95645 | F23: 116616 | G23: 142780 | H23: 175413 | J23: 0.02078079296 | K23: 0.03086769895 | L23: 0.04080611097 | M23: 0.05061413502 | N23: 0.0603527563 | O23: 0.06997995634 | P23: 0.0794881659
A24: 33 | B24: 56957 | C24: 68804 | D24: 83581 | E24: 102085 | F24: 125432 | G24: 154746 | H24: 191633 | J24: 0.02090434601 | K24: 0.03098757346 | L24: 0.04092266311 | M24: 0.05073550007 | N24: 0.06048135602 | O24: 0.0700991149 | P24: 0.07960568372
A25: 34 | B25: 59504 | C25: 72348 | D25: 88493 | E25: 108916 | F25: 134837 | G25: 167642 | H25: 209300 | J25: 0.02102285451 | K25: 0.03110209656 | L25: 0.04103411407 | M25: 0.05086416045 | N25: 0.06060495643 | O25: 0.07021693885 | P25: 0.07972664096
A26: 35 | B26: 62111 | C26: 76010 | D26: 93624 | E26: 116129 | F26: 144857 | G26: 181517 | H26: 228537 | J26: 0.02113190117 | K26: 0.03120620934 | L26: 0.04113780722 | M26: 0.05098548089 | N26: 0.0607196968 | O26: 0.07032752472 | P26: 0.07984847677
A27: 36 | B27: 64779 | C27: 79805 | D27: 98987 | E27: 123746 | F27: 155525 | G27: 196426 | H27: 249427 | J27: 0.02123217992 | K27: 0.031307648 | L27: 0.0412359687 | M27: 0.05110026165 | N27: 0.06082451487 | O27: 0.07042749932 | P27: 0.07996130535
A28: 37 | B28: 67517 | C28: 83731 | D28: 104625 | E28: 131774 | F28: 166912 | G28: 212549 | H28: 272142 | J28: 0.02133000566 | K28: 0.03140263031 | L28: 0.04134257019 | M28: 0.05120401389 | N28: 0.06092757259 | O28: 0.07053710364 | P28: 0.080070233
A29: 38 | B29: 70322 | C29: 87795 | D29: 110536 | E29: 140264 | F29: 179040 | G29: 229949 | H29: 296822 | J29: 0.02142212645 | K29: 0.03149298382 | L29: 0.04144964034 | M29: 0.05130636195 | N29: 0.06102282673 | O29: 0.07064817573 | P29: 0.08017287528
A30: 39 | B30: 73196 | C30: 92000 | D30: 116718 | E30: 149217 | F30: 191969 | G30: 248646 | H30: 323782 | J30: 0.02150924085 | K30: 0.03157815916 | L30: 0.04155127633 | M30: 0.05140029293 | N30: 0.06111339545 | O30: 0.07074789245 | P30: 0.08028568424
A31: 40 | B31: 76141 | C31: 96349 | D31: 123183 | E31: 158685 | F31: 205786 | G31: 268796 | H31: 353077 | J31: 0.0215919143 | K31: 0.03165775902 | L31: 0.04164772396 | M31: 0.05149311618 | N31: 0.06120566321 | O31: 0.07084547052 | P31: 0.08039109511
A32: 41 | B32: 79346 | C32: 101099 | D32: 130250 | E32: 169072 | F32: 221108 | G32: 291171 | H32: 385853 | J32: 0.02177136893 | K32: 0.0318332777 | L32: 0.04183002355 | M32: 0.05166646328 | N32: 0.0613885101 | O32: 0.07101879067 | P32: 0.08057173208
A33: 42 | B33: 82659 | C33: 106099 | D33: 137692 | E33: 180109 | F33: 237544 | G33: 315480 | H33: 421664 | J33: 0.02195067452 | K33: 0.03202512964 | L33: 0.04201111445 | M33: 0.05183864747 | N33: 0.06156916818 | O33: 0.07119974844 | P33: 0.08074953267
A34: 43 | B34: 86066 | C34: 111294 | D34: 145499 | E34: 191797 | F34: 255123 | G34: 341802 | H34: 460703 | J34: 0.02212096878 | K34: 0.0322071434 | L34: 0.04218298998 | M34: 0.05200191237 | N34: 0.06174031759 | O34: 0.07137791064 | P34: 0.08091800789
A35: 44 | B35: 89570 | C35: 116690 | D35: 153686 | E35: 204196 | F35: 273919 | G35: 370224 | H35: 503246 | J35: 0.0222830445 | K35: 0.03237952014 | L35: 0.04234563789 | M35: 0.05216047577 | N35: 0.0619019969 | O35: 0.07154608589 | P35: 0.08107691598
A36: 45 | B36: 93174 | C36: 122296 | D36: 162274 | E36: 217410 | F36: 294022 | G36: 400921 | H36: 549620 | J36: 0.02243756594 | K36: 0.03254333936 | L36: 0.04250028086 | M36: 0.05232356989 | N36: 0.06205555423 | O36: 0.07170562573 | P36: 0.08122769697
A37: 46 | B37: 96880 | C37: 128121 | D37: 171284 | E37: 231411 | F37: 315628 | G37: 434077 | H37: 600174 | J37: =RATE($A37*12,-100,0,B37)*12 -> 0.02258470691 | K37: 0.03269942707 | L37: 0.04264773389 | M37: 0.05247867895 | N37: 0.06221180601 | O37: 0.07185727317 | P37: 0.0813711181
A38: 47 | B38: 100699 | C38: 134172 | D38: 180732 | E38: 246242 | F38: 338795 | G38: 469881 | H38: 655271 | J38: 0.02272789911 | K38: 0.03284789992 | L38: 0.042787608 | M38: 0.05262585494 | N38: 0.06236493461 | O38: 0.07200107284 | P38: 0.08150707739
A39: 48 | B39: 104671 | C39: 140460 | D39: 190645 | E39: 261959 | F39: 363589 | G39: 508555 | H39: 715334 | J39: 0.02287960739 | K39: 0.03298981146 | L39: 0.04292139649 | M39: 0.05276644989 | N39: 0.06251103125 | O39: 0.07213817682 | P39: 0.08163668728
A40: 49 | B40: 108758 | C40: 146992 | D40: 201051 | E40: 278607 | F40: 390115 | G40: 550317 | H40: 780796 | J40: 0.02302444029 | K40: 0.03312506294 | L40: 0.0430502498 | M40: 0.05290002529 | N40: =RATE($A40*12,-100,0,F40)*12 -> 0.06264986179 | O40: 0.07226840812 | P40: 0.08175985203
A41: 50 | B41: 112962 | C41: 153777 | D41: 212061 | E41: 296243 | F41: 418495 | G41: 595417 | H41: 852144 | J41: =RATE($A41*12,-100,0,B41)*12 -> 0.02316244382 | K41: 0.03325399755 | L41: 0.04318668829 | M41: 0.05302725026 | N41: 0.06278199807 | O41: 0.07239240526 | P41: 0.08187707542
A42: 51 | B42: 117288 | C42: 160828 | D42: 223618 | E42: 315050 | F42: 448866 | G42: 644133 | H42: 929924 | J42: 0.02329453772 | K42: 0.03337764693 | L42: 0.04331729867 | M42: 0.05315963595 | N42: 0.06290833748 | O42: 0.07251104057 | P42: 0.08198922034
A43: 52 | B43: 121739 | C43: 168152 | D43: 235745 | E43: 335021 | F43: 481359 | G43: 696739 | H43: 1014695 | J43: 0.02342093901 | K43: 0.03349569649 | L43: 0.04344191744 | M43: 0.05328917899 | N43: 0.06302875297 | O43: 0.07262404466 | P43: 0.08209607379
A44: 53 | B44: 126320 | C44: 175762 | D44: 248473 | E44: 356192 | F44: 516130 | G44: 753559 | H44: 1107105 | J44: 0.02354234231 | K44: 0.03360891123 | L44: 0.04356125415 | M44: 0.05341312919 | N44: 0.06314401976 | O44: 0.07273223784 | P44: 0.08219842133
A45: 54 | B45: 131032 | C45: 183667 | D45: 261828 | E45: 378631 | F45: 553330 | G45: 814917 | H45: 1207817 | J45: 0.02365837096 | K45: 0.03371722763 | L45: 0.04367522456 | M45: 0.05353153764 | N45: 0.06325404507 | O45: 0.0728354954 | P45: 0.08229602344
A46: 55 | B46: 135879 | C46: 191879 | D46: 275843 | E46: 402412 | F46: 593128 | G46: 881175 | H46: 1317580 | J46: 0.02376941727 | K46: 0.03382102655 | L46: 0.04378437089 | M46: 0.05364462717 | N46: 0.06335913552 | O46: 0.07293412433 | P46: 0.08238925142
A47: 56 | B47: 140868 | C47: 200412 | D47: 290553 | E47: 427626 | F47: 635721 | G47: 952749 | H47: 1437247 | J47: 0.02387643889 | K47: 0.03392085885 | L47: 0.04388919243 | M47: 0.05375335953 | N47: 0.06346019098 | O47: 0.07302902252 | P47: 0.08247901109
A48: 57 | B48: 146000 | C48: 209382 | D48: 306042 | E48: 454352 | F48: 681296 | G48: 1030048 | H48: 1567684 | J48: 0.02397901727 | K48: 0.03403028416 | L48: 0.04399406394 | M48: 0.05385756738 | N48: 0.06355709846 | O48: 0.07311998814 | P48: 0.08256507644
A49: 58 | B49: 151280 | C49: 218704 | D49: 322405 | E49: 482679 | F49: 730056 | G49: 1113526 | H49: 1709853 | J49: 0.02407758144 | K49: 0.03413512698 | L49: 0.04410288793 | M49: 0.05395743086 | N49: 0.06364991316 | O49: 0.07320717116 | P49: 0.08264756872
A50: 59 | B50: 156712 | C50: 228393 | D50: 339585 | E50: 512703 | F50: 782225 | G50: 1203674 | H50: 1864806 | J50: 0.02417230684 | K50: 0.03423579085 | L50: 0.04420730944 | M50: 0.0540532079 | N50: 0.06373891972 | O50: 0.07329074115 | P50: 0.08272666291
A51: 60 | B51: 162300 | C51: 238462 | D51: 357619 | E51: 544522 | F51: 838037 | G51: 1301019 | H51: 2033676 | J51: 0.02426334259 | K51: 0.03433235559 | L51: 0.04430732336 | M51: 0.05414497884 | N51: 0.06382422414 | O51: 0.07337081368 | P51: 0.08280239029
I52: Rendite
I53: =SUM(J53:P53) -> 0.04501360652 | J53: =IF(Hilfe!$E$3='FSX (Einzel)'!J2,VLOOKUP(Hilfe!$B$54,$A$3:$P$51,10),0) -> 0 | K53: =IF(Hilfe!$E$3='FSX (Einzel)'!K2,VLOOKUP(Hilfe!$B$54,$A$3:$P$51,11),0) -> 0 | L53: =IF(Hilfe!$E$3='FSX (Einzel)'!L2,VLOOKUP(Hilfe!$B$54,$A$3:$P$51,12),0) -> 0 | M53: =IF(Hilfe!$E$3='FSX (Einzel)'!M2,VLOOKUP(Hilfe!$B$54,$A$3:$P$51,13),0) -> 0.04501360652 | N53: =IF(Hilfe!$E$3='FSX (Einzel)'!N2,VLOOKUP(Hilfe!$B$54,$A$3:$P$51,14),0) -> 0 | O53: =IF(Hilfe!$E$3='FSX (Einzel)'!O2,VLOOKUP(Hilfe!$B$54,$A$3:$P$51,15),0) -> 0 | P53: =IF(Hilfe!$E$3='FSX (Einzel)'!P2,VLOOKUP(Hilfe!$B$54,$A$3:$P$51,16),0) -> 0

Sheet FSX (W) (hidden)
A1: Laufzeit | B1: FSX Sondertarif W Vertragsguthaben in EUR, Beitrag: 100€ monatlich, keine Dynamik, Alter: 0 Jahre, offene Version | K1: Stand 13.02.2018
B2: 0.03 | C2: 0.04 | D2: 0.05 | E2: 0.06 | F2: 0.07 | G2: 0.08 | H2: 0.09 | J2: 0.03 | K2: 0.04 | L2: 0.05 | M2: 0.06 | N2: 0.07 | O2: 0.08 | P2: 0.09
A3: 12 | B3: 15981 | C3: 17013 | D3: 18119 | E3: 19306 | F3: 20577 | G3: 21943 | H3: 23409 | J3: =RATE($A$3*12,-100,0,B3)*12 -> 0.01719846762 | K3: =RATE($A3*12,-100,0,C3)*12 -> 0.02727040141 | L3: 0.03722544915 | M3: 0.0470810208 | N3: 0.05681806483 | O3: 0.06647564243 | P3: 0.07604183364
A4: 13 | B4: 17552 | C4: 18788 | D4: 20122 | E4: 21561 | F4: 23119 | G4: 24801 | H4: 26619 | J4: =RATE($A4*12,-100,0,B4)*12 -> 0.01791898555 | K4: 0.0279741388 | L4: 0.0379137101 | M4: 0.04773611247 | N4: 0.05747972418 | O4: 0.06711845859 | P4: 0.07666649746
A5: 14 | B5: 19161 | C5: 20623 | D5: 22214 | E5: 23945 | F5: 25829 | G5: 27878 | H5: 30108 | J5: 0.01851089185 | K5: 0.02854618773 | L5: 0.03847882294 | M5: 0.04830834785 | N5: 0.05804026853 | O5: 0.0676697552 | P5: 0.07720608833
A6: 15 | B6: 20814 | C6: 22527 | D6: 24405 | E6: 26463 | F6: 28719 | G6: 31190 | H6: 33899 | J6: 0.01903603974 | K6: 0.02905755123 | L6: 0.03898043243 | M6: 0.04880124468 | N6: 0.05852462718 | O6: 0.06814456705 | P6: 0.0776722378
A7: 16 | B7: 22508 | C7: 24500 | D7: 26698 | E7: 29123 | F7: 31799 | G7: 34756 | H7: 38018 | J7: 0.01948240832 | K7: 0.02950438458 | L7: 0.03942099199 | M7: 0.04923185982 | N7: 0.05894041151 | O7: 0.06856076383 | P7: 0.07807828707
A8: 17 | B8: 24246 | C8: 26544 | D8: 29096 | E8: 31933 | F8: 35086 | G8: 38595 | H8: 42493 | J8: 0.01987525529 | K8: 0.02989604876 | L8: 0.03980447774 | M8: 0.04961112776 | N8: 0.05931404425 | O8: 0.06892708428 | P8: 0.07843402112
A9: 18 | B9: 26029 | C9: 28661 | D9: 31606 | E9: 34900 | F9: 38591 | G9: 42724 | H9: 47357 | J9: 0.02022304995 | K9: 0.03024010992 | L9: 0.04014810151 | M9: 0.04994351118 | N9: 0.05964406164 | O9: 0.06924327202 | P9: 0.07875233079
A10: 19 | B10: 27859 | C10: 30853 | D10: 34228 | E10: 38035 | F10: 42330 | G10: 47171 | H10: 52650 | J10: 0.02053606933 | K10: 0.03054275646 | L10: 0.04044326732 | M10: 0.05024242374 | N10: 0.05994080299 | O10: 0.06952991546 | P10: 0.07904863612
A11: 20 | B11: 29736 | C11: 33127 | D11: 36976 | E11: 41348 | F11: 46318 | G11: 51971 | H11: 58425 | J11: 0.02081531849 | K11: 0.03082289105 | L11: 0.04072063372 | M11: 0.05051357798 | N11: 0.06020777341 | O11: 0.06980737313 | P11: 0.07934514528
A12: 21 | B12: 31663 | C12: 35482 | D12: 39851 | E12: 44849 | F12: 50572 | G12: 57159 | H12: 64704 | J12: 0.021070992 | K12: 0.03107269205 | L12: 0.04097037218 | M12: 0.05076034804 | N12: 0.06044978273 | O12: 0.070083414 | P12: 0.07961143386
A13: 22 | B13: 33637 | C13: 37924 | D13: 42859 | E13: 48546 | F13: 55133 | G13: 62747 | H13: 71529 | J13: 0.02129496336 | K13: 0.0313034947 | L13: 0.04119659935 | M13: 0.05098152214 | N13: 0.0607018775 | O13: 0.0703318363 | P13: 0.07984975126
A14: 23 | B14: 35663 | C14: 40452 | D14: 46005 | E14: 52468 | F14: 60001 | G14: 68764 | H14: 78953 | J14: 0.02150116587 | K14: 0.03150912637 | L14: 0.04140053778 | M14: 0.05120605513 | N14: 0.0609319605 | O14: 0.0705545993 | P14: 0.08006889603
A15: 24 | B15: 37744 | C15: 43071 | D15: 49299 | E15: 56621 | F15: 65201 | G15: 75246 | H15: 87027 | J15: 0.02169492467 | K15: 0.03169674839 | L15: 0.04159062352 | M15: 0.0514210999 | N15: 0.06114721787 | O15: 0.07075804369 | P15: 0.08026974547
A16: 25 | B16: 39879 | C16: 45787 | D16: 52763 | E16: 61016 | F16: 70750 | G16: 82234 | H16: 95807 | J16: 0.02187255356 | K16: 0.03187282968 | L16: 0.04178769443 | M16: 0.05162373691 | N16: 0.06134362007 | O16: 0.07094836327 | P16: 0.08045379283
A17: 26 | B17: 42067 | C17: 48603 | D17: 56397 | E17: 65663 | F17: 76669 | G17: 89760 | H17: 105371 | J17: 0.02203194076 | K17: 0.03203744656 | L17: 0.04197813519 | M17: 0.05181078004 | N17: 0.06152151363 | O17: 0.07112155369 | P17: 0.08063200667
A18: 27 | B18: 44314 | C18: 51531 | D18: 60205 | E18: 70573 | F18: 82990 | G18: 97871 | H18: 115808 | J18: 0.02218276464 | K18: 0.03220213521 | L18: 0.04215713722 | M18: 0.05198092994 | N18: 0.06168850739 | O18: 0.07128301506 | P18: 0.08081303632
A19: 28 | B19: 46620 | C19: 54582 | D19: 64190 | E19: 75767 | F19: 89733 | G19: 106646 | H19: 127164 | J19: 0.02232336863 | K19: 0.03237305971 | L19: 0.04232058475 | M19: 0.05214099372 | N19: 0.06184083892 | O19: 0.07145104696 | P19: 0.08098032677
A20: 29 | B20: 48987 | C20: 57741 | D20: 68364 | E20: 81259 | F20: 96930 | G20: 116115 | H20: 139526 | J20: 0.02245531682 | K20: 0.03252676084 | L20: 0.04247354099 | M20: 0.05229006711 | N20: 0.06198241683 | O20: 0.07161175743 | P20: 0.08113753447
A21: 30 | B21: 51429 | C21: 61021 | D21: 72733 | E21: 87058 | F21: 104641 | G21: 126332 | H21: 152972 | J21: 0.02259386471 | K21: 0.03267418425 | L21: 0.04261467436 | M21: 0.05242421027 | N21: 0.06212889628 | O21: 0.07176495216 | P21: 0.08128183524
A22: 31 | B22: 53944 | C22: 64422 | D22: 77308 | E22: 93194 | F22: 112903 | G22: 137332 | H22: 167601 | J22: 0.02273222759 | K22: 0.03281152499 | L22: 0.04274657069 | M22: 0.05255246367 | N22: 0.06227833891 | O22: 0.07190242987 | P22: 0.08141579824
A23: 32 | B23: 56529 | C23: 67948 | D23: 82100 | E23: 99681 | F23: 121724 | G23: 149206 | H23: 183515 | J23: 0.02286447473 | K23: 0.03293939714 | L23: 0.04287088628 | M23: 0.05267227739 | N23: 0.0624167388 | O23: 0.07203593359 | P23: 0.08153992665
A24: 33 | B24: 59182 | C24: 71604 | D24: 87117 | E24: 106593 | F24: 131143 | G24: 161999 | H24: 200834 | J24: 0.02298731178 | K24: 0.03305901877 | L24: 0.0429869125 | M24: 0.0528086103 | N24: 0.06254564287 | O24: 0.07215849749 | P24: 0.08165676505
A25: 34 | B25: 61909 | C25: 75394 | D25: 92374 | E25: 113904 | F25: 141201 | G25: 175792 | H25: 219787 | J25: 0.02310524088 | K25: 0.03317062094 | L25: 0.04309772627 | M25: 0.05293596636 | N25: 0.06266610089 | O25: 0.07227376793 | P25: 0.08178694223
A26: 35 | B26: 64703 | C26: 79326 | D26: 97871 | E26: 121633 | F26: 151939 | G26: 190666 | H26: 240421 | J26: 0.02321138442 | K26: 0.03327684223 | L26: 0.04319817627 | M26: 0.05305369578 | N26: 0.06277821553 | O26: 0.07238294736 | P26: 0.08190901501
A27: 36 | B27: 67578 | C27: 83406 | D27: 103665 | E27: 129813 | F27: 163416 | G27: 206719 | H27: 262889 | J27: 0.02331611302 | K27: 0.03337840889 | L27: 0.04330933845 | M27: 0.05316580598 | N27: 0.06288609672 | O27: 0.07248902904 | P27: 0.08202425258
A28: 37 | B28: 70526 | C28: 87633 | D28: 109755 | E28: 138470 | F28: 175675 | G28: 224108 | H28: 287334 | J28: 0.02341220022 | K28: 0.03347218697 | L28: 0.04342223261 | M28: 0.05327253922 | N28: 0.06298805941 | O28: 0.07260294283 | P28: 0.08213052463
A29: 38 | B29: 73556 | C29: 92019 | D29: 116137 | E29: 147628 | F29: 188757 | G29: 242871 | H29: 314009 | J29: 0.02350504135 | K29: 0.03356216469 | L29: 0.04352914318 | M29: 0.05337318727 | N29: 0.06308201738 | O29: 0.0727113534 | P29: 0.08223799313
A30: 39 | B30: 76666 | C30: 96566 | D30: 122823 | E30: 157321 | F30: 202740 | G30: 263084 | H30: 343155 | J30: 0.02359223937 | K30: 0.03364677705 | L30: 0.04362985004 | M30: 0.05346947231 | N30: 0.06317302547 | O30: 0.07281008195 | P30: 0.08234968321
A31: 40 | B31: 79856 | C31: 101298 | D31: 129819 | E31: 167552 | F31: 217778 | G31: 284921 | H31: 374918 | J31: 0.02367312972 | K31: 0.03373383961 | L31: 0.04372228739 | M31: 0.05355525543 | N31: 0.06327648319 | O31: 0.07290790166 | P31: 0.08245664007
A32: 41 | B32: 83331 | C32: 106493 | D32: 137484 | E32: 178815 | F32: 234389 | G32: 309241 | H32: 410475 | J32: 0.02385124175 | K32: 0.03392445204 | L32: 0.04390314864 | M32: 0.05372700041 | N32: 0.06345608327 | O32: 0.07308514317 | P32: 0.08263551729
A33: 42 | B33: 86930 | C33: 111926 | D33: 145569 | E33: 190805 | F33: 252249 | G33: 335731 | H33: 449399 | J33: 0.02402930662 | K33: 0.03411416168 | L33: 0.04408225421 | M33: 0.0538974627 | N33: 0.06363463999 | O33: 0.07327109186 | P33: 0.08281150421
A34: 43 | B34: 90639 | C34: 117581 | D34: 154068 | E34: 203554 | F34: 271391 | G34: 364400 | H34: 491916 | J34: 0.02419860989 | K34: 0.03429374957 | L34: 0.04425236236 | M34: 0.05406356865 | N34: 0.06380402111 | O34: 0.07344714596 | P34: 0.0829782295
A35: 44 | B35: 94460 | C35: 123463 | D35: 162999 | E35: 217162 | F35: 291899 | G35: 395418 | H35: 538342 | J35: 0.024359206 | K35: 0.03446276468 | L35: 0.044413415 | M35: 0.05423328685 | N35: 0.06396398471 | O35: 0.07361329916 | P35: 0.08313547478
A36: 45 | B36: 98398 | C36: 129591 | D36: 172386 | E36: 231608 | F36: 313967 | G36: 428986 | H36: 589051 | J36: 0.02451235267 | K36: 0.03462479425 | L36: 0.04456648851 | M36: 0.05439432723 | N36: 0.06412491879 | O36: 0.07377093516 | P36: 0.08328473266
A37: 46 | B37: 102486 | C37: 135971 | D37: 182254 | E37: 246946 | F37: 337696 | G37: 465316 | H37: 644440 | J37: =RATE($A37*12,-100,0,B37)*12 -> 0.02466911264 | K37: 0.03477913096 | L37: 0.04471244577 | M37: 0.0545476132 | N37: 0.06428440592 | O37: 0.07392080709 | P37: 0.08342664515
A38: 47 | B38: 106721 | C38: 142611 | D38: 192623 | E38: 263225 | F38: 363132 | G38: 504625 | H38: 704926 | J38: 0.0248256602 | K38: 0.03492572673 | L38: 0.04485096717 | M38: 0.05469294674 | N38: 0.06443553215 | O38: 0.07406285414 | P38: 0.08356111403
A39: 48 | B39: 111089 | C39: 149525 | D39: 203549 | E39: 280511 | F39: 390408 | G39: 547170 | H39: 770997 | J39: 0.02497550277 | K39: 0.0350658782 | L39: 0.04498729533 | M39: 0.05483178905 | N39: 0.06457966672 | O39: 0.07419830177 | P39: 0.0836893623
A40: 49 | B40: 115592 | C40: 156723 | D40: 215113 | E40: 298858 | F40: 419649 | G40: 593206 | H40: 843151 | J40: 0.02511840407 | K40: 0.03519971291 | L40: 0.04512853462 | M40: 0.0549637227 | N40: =RATE($A40*12,-100,0,F40)*12 -> 0.06471670699 | O40: 0.07432704281 | P40: 0.08381122182
A41: 50 | B41: 120233 | C41: 164214 | D41: 227272 | E41: 318480 | F41: 450995 | G41: 643020 | H41: 921949 | J41: =RATE($A41*12,-100,0,B41)*12 -> 0.02525449527 | K41: 0.03532712088 | L41: 0.0452630999 | M41: 0.05510257672 | N41: 0.0648470452 | O41: 0.07444956577 | P41: 0.08392716916
A42: 51 | B42: 125019 | C42: 172014 | D42: 240060 | E42: 339337 | F42: 484609 | G42: 696934 | H42: 1008025 | J42: 0.02538495528 | K42: 0.03544926013 | L42: 0.04539184176 | M42: 0.05523645164 | N42: 0.0649717751 | O42: 0.07456673814 | P42: 0.0840381681
A43: 52 | B43: 129952 | C43: 180132 | D43: 253506 | E43: 361486 | F43: 520642 | G43: 755271 | H43: 1102023 | J43: 0.02550949547 | K43: 0.03556581221 | L43: 0.0455147128 | M43: 0.05536400436 | N43: 0.06509056562 | O43: 0.07467839225 | P43: 0.08414386806
A44: 53 | B44: 135039 | C44: 188585 | D44: 267646 | E44: 385014 | F44: 559279 | G44: 818408 | H44: 1204697 | J44: 0.02562906672 | K44: 0.03567776066 | L44: 0.04563230882 | M44: 0.05548613238 | N44: 0.06520431337 | O44: 0.07478532344 | P44: 0.08424512979
A45: 54 | B45: 140283 | C45: 197383 | D45: 282513 | E45: 409999 | F45: 600698 | G45: 886724 | H45: 1316821 | J45: 0.02574355835 | K45: 0.03578480487 | L45: 0.04574467443 | M45: 0.05560265717 | N45: 0.06531288861 | O45: 0.07488736912 | P45: 0.08434172629
A46: 55 | B46: 145688 | C46: 206608 | D46: 298145 | E46: 436533 | F46: 645098 | G46: 960642 | H46: 1439265 | J46: 0.02585310361 | K46: 0.03589641758 | L46: 0.04585218993 | M46: 0.05571404184 | N46: 0.06541657252 | O46: 0.07498480099 | P46: 0.08443396987
A47: 56 | B47: 151262 | C47: 216254 | D47: 314717 | E47: 464721 | F47: 692711 | G47: 1040651 | H47: 1573025 | J47: 0.02595859104 | K47: 0.03600846651 | L47: 0.04596629869 | M47: 0.05582108127 | N47: 0.0655162772 | O47: 0.07507857529 | P47: 0.0845228049
A48: 57 | B48: 157008 | C48: 226300 | D48: 332179 | E48: 494660 | F48: 743760 | G48: 1127234 | H48: 1719116 | J48: 0.02605981879 | K48: 0.03611590041 | L48: 0.04607785821 | M48: 0.05592370748 | N48: 0.06561190851 | O48: 0.07516849107 | P48: 0.08460799566
A49: 58 | B49: 162931 | C49: 236762 | D49: 350548 | E49: 526455 | F49: 798488 | G49: 1220925 | H49: 1878667 | J49: 0.02615697765 | K49: 0.03621892099 | L49: 0.04618470438 | M49: 0.05602200439 | N49: 0.06570355609 | O49: 0.07525465884 | P49: 0.0846896631
A50: 59 | B50: 169037 | C50: 247657 | D50: 369871 | E50: 560223 | F50: 857156 | G50: 1322304 | H50: 2052911 | J50: 0.02625038705 | K50: 0.03631775903 | L50: 0.04628710875 | M50: 0.05611630876 | N50: 0.06579134571 | O50: 0.07533724242 | P50: 0.0847679418
A51: 60 | B51: 175331 | C51: 259002 | D51: 390198 | E51: 596081 | F51: 920050 | G51: 1431996 | H51: 2243193 | J51: 0.02634015203 | K51: 0.03641256359 | L51: 0.04638535757 | M51: 0.05620664085 | N51: 0.06587556378 | O51: 0.07541636795 | P51: 0.08484296014
I52: Rendite
I53: =SUM(J53:P53) -> 0.0470810208 | J53: =IF(Hilfe!$E$3='FSX (Einzel)'!J2,VLOOKUP(Hilfe!$B$54,$A$3:$P$51,10),0) -> 0 | K53: =IF(Hilfe!$E$3='FSX (Einzel)'!K2,VLOOKUP(Hilfe!$B$54,$A$3:$P$51,11),0) -> 0 | L53: =IF(Hilfe!$E$3='FSX (Einzel)'!L2,VLOOKUP(Hilfe!$B$54,$A$3:$P$51,12),0) -> 0 | M53: =IF(Hilfe!$E$3='FSX (Einzel)'!M2,VLOOKUP(Hilfe!$B$54,$A$3:$P$51,13),0) -> 0.0470810208 | N53: =IF(Hilfe!$E$3='FSX (Einzel)'!N2,VLOOKUP(Hilfe!$B$54,$A$3:$P$51,14),0) -> 0 | O53: =IF(Hilfe!$E$3='FSX (Einzel)'!O2,VLOOKUP(Hilfe!$B$54,$A$3:$P$51,15),0) -> 0 | P53: =IF(Hilfe!$E$3='FSX (Einzel)'!P2,VLOOKUP(Hilfe!$B$54,$A$3:$P$51,16),0) -> 0

Sheet FSX (M) (hidden)
A1: Laufzeit | B1: FSX Sondertarif M Vertragsguthaben in EUR, Beitrag: 100€ monatlich, keine Dynamik, Alter: 0 Jahre | K1: Stand 13.02.2018
B2: 0.03 | C2: 0.04 | D2: 0.05 | E2: 0.06 | F2: 0.07 | G2: 0.08 | H2: 0.09 | J2: 0.03 | K2: 0.04 | L2: 0.05 | M2: 0.06 | N2: 0.07 | O2: 0.08 | P2: 0.09
A3: 12 | B3: 16186 | C3: 17233 | D3: 18358 | E3: 19564 | F3: 20860 | G3: 22248 | H3: 23738 | J3: =RATE($A$3*12,-100,0,B3)*12 -> 0.01926516805 | K3: =RATE($A3*12,-100,0,C3)*12 -> 0.02931568124 | L3: 0.03927473005 | M3: 0.04912175088 | N3: 0.05888346716 | O3: 0.06852991977 | P3: 0.07808720679
A4: 13 | B4: 17796 | C4: 19053 | D4: 20411 | E4: 21879 | F4: 23463 | G4: 25179 | H4: 27031 | J4: =RATE($A4*12,-100,0,B4)*12 -> 0.01997523318 | K4: 0.030019233 | L4: 0.03995649103 | M4: 0.04979526701 | N4: 0.05952058226 | O4: 0.0691733121 | P4: 0.07871916894
A5: 14 | B5: 19451 | C5: 20941 | D5: 22563 | E5: 24328 | F5: 26248 | G5: 28340 | H5: 30616 | J5: 0.02057853019 | K5: 0.03060813206 | L5: 0.04053690913 | M5: 0.05036266897 | N5: 0.06008468773 | O5: 0.06972059924 | P5: 0.079258025
A6: 15 | B6: 21152 | C6: 22902 | D6: 24818 | E6: 26921 | F6: 29223 | G6: 31748 | H6: 34519 | J6: 0.02109580874 | K6: 0.03112130296 | L6: 0.04103305224 | M6: 0.05085685298 | N6: 0.06056767117 | O6: 0.07018770323 | P6: 0.07972291841
A7: 16 | B7: 22898 | C7: 24936 | D7: 27184 | E7: 29663 | F7: 32403 | G7: 35427 | H7: 38766 | J7: 0.02153229931 | K7: 0.03155920261 | L7: 0.04147466915 | M7: 0.0512779362 | N7: 0.06099244957 | O7: 0.07060488251 | P7: 0.08012182183
A8: 17 | B8: 24696 | C8: 27047 | D8: 29661 | E8: 32568 | F8: 35801 | G8: 39395 | H8: 43393 | J8: 0.02193118842 | K8: 0.0319420928 | L8: 0.04185043937 | M8: 0.05165795663 | N8: 0.06136552249 | O8: 0.07097024763 | P8: 0.08048027666
A9: 18 | B9: 26544 | C9: 29241 | D9: 32261 | E9: 35643 | F9: 39432 | G9: 43675 | H9: 48430 | J9: 0.02228250758 | K9: 0.03229040943 | L9: 0.04219447307 | M9: 0.0519948979 | N9: 0.06169575584 | O9: 0.07129331961 | P9: 0.08079613846
A10: 19 | B10: 28443 | C10: 31518 | D10: 34986 | E10: 38898 | F10: 43310 | G10: 48294 | H10: 53933 | J10: 0.02259287174 | K10: 0.03259838055 | L10: 0.04249915381 | M10: 0.05229569738 | N10: 0.06198591436 | O10: 0.07158531995 | P10: 0.08110749623
A11: 20 | B11: 30394 | C11: 33883 | D11: 37844 | E11: 42344 | F11: 47458 | G11: 53292 | H11: 59940 | J11: 0.02286771896 | K11: 0.03287753072 | L11: 0.042775418 | M11: 0.0525667128 | N11: 0.0622536553 | O11: 0.07187051957 | P11: 0.08140345048
A12: 21 | B12: 32402 | C12: 36339 | D12: 40840 | E12: 45992 | F12: 51899 | G12: 58692 | H12: 66481 | J12: 0.02312250346 | K12: 0.03313070378 | L12: 0.04302391231 | M12: 0.05281169368 | N12: 0.06250750507 | O12: 0.072135728 | P12: 0.08166521849
A13: 22 | B13: 34467 | C13: 38886 | D13: 43981 | E13: 49852 | F13: 56666 | G13: 64528 | H13: 73606 | J13: 0.02335505851 | K13: 0.03335397015 | L13: 0.04324916609 | M13: 0.05303129269 | N13: 0.06276388778 | O13: 0.07238437294 | P13: 0.08190064047
A14: 23 | B14: 36589 | C14: 41533 | D14: 47273 | E14: 53965 | F14: 61761 | G14: 70824 | H14: 81374 | J14: 0.02356459462 | K14: 0.03356260938 | L14: 0.04345261965 | M14: 0.05326801313 | N14: 0.06299366259 | O14: 0.07260645435 | P14: 0.0821190746
A15: 24 | B15: 38770 | C15: 44283 | D15: 50731 | E15: 58321 | F15: 67210 | G15: 77625 | H15: 89835 | J15: 0.02375515549 | K15: 0.03375627434 | L15: 0.04364815867 | M15: 0.05348342789 | N15: 0.06320408034 | O15: 0.07281326609 | P15: 0.08231627194
A16: 25 | B16: 41011 | C16: 47136 | D16: 54377 | E16: 62939 | F16: 73036 | G16: 84967 | H16: 99059 | J16: 0.02392803651 | K16: 0.0339304365 | L16: 0.04385270947 | M16: 0.05368510399 | N16: 0.06339599219 | O16: 0.07300277829 | P16: 0.08250011858
A17: 26 | B17: 43318 | C17: 50101 | D17: 58206 | E17: 67832 | F17: 79271 | G17: 92889 | H17: 109154 | J17: 0.0240925731 | K17: 0.03409471663 | L17: 0.04404528844 | M17: 0.05387156259 | N17: 0.0635762417 | O17: 0.07317438952 | P17: 0.08269264551
A18: 27 | B18: 45690 | C18: 53201 | D18: 62223 | E18: 73008 | F18: 85936 | G18: 101444 | H18: 120170 | J18: 0.02424480834 | K18: 0.03427240952 | L18: 0.04422254697 | M18: 0.05403746405 | N18: 0.06374040789 | O18: 0.0733344583 | P18: 0.08287494704
A19: 28 | B19: 48129 | C19: 56427 | D19: 66433 | E19: 78498 | F19: 93068 | G19: 110737 | H19: 132169 | J19: 0.02438628349 | K19: 0.0344427485 | L19: 0.04438239169 | M19: 0.05419652546 | N19: 0.06389489909 | O19: 0.07351081697 | P19: 0.08303863589
A20: 29 | B20: 50641 | C20: 59777 | D20: 70856 | E20: 84316 | F20: 100700 | G20: 120771 | H20: 145247 | J20: 0.02452311563 | K20: 0.03459881189 | L20: 0.04453579473 | M20: 0.05434552353 | N20: 0.06404056364 | O20: 0.07367224114 | P20: 0.08318914654
A21: 30 | B21: 53245 | C21: 63260 | D21: 75494 | E21: 90476 | F21: 108905 | G21: 131610 | H21: 159522 | J21: 0.02467410118 | K21: 0.03474609479 | L21: 0.04467647351 | M21: 0.05448202342 | N21: 0.06419599646 | O21: 0.07382234305 | P21: 0.08333436024
A22: 31 | B22: 55923 | C22: 66880 | D22: 80364 | E22: 97006 | F22: 117687 | G22: 143316 | H22: 175085 | J22: 0.02481376547 | K22: 0.03488420516 | L22: 0.04481020535 | M22: 0.05461163209 | N22: 0.06434167448 | O22: 0.07396134227 | P22: 0.08346917406
A23: 32 | B23: 58681 | C23: 70635 | D23: 85474 | E23: 103945 | F23: 127082 | G23: 155969 | H23: 192040 | J23: 0.02494699082 | K23: 0.03500839173 | L23: 0.04493524298 | M23: 0.05474270454 | N23: 0.06447670752 | O23: 0.07409353372 | P23: 0.08359174414
A24: 33 | B24: 61515 | C24: 74541 | D24: 90825 | E24: 111323 | F24: 137141 | G24: 169624 | H24: 210593 | J24: 0.02506857526 | K24: 0.03512794858 | L24: 0.04504651368 | M24: 0.0548759788 | N24: 0.06460492234 | O24: 0.07421359076 | P24: 0.08372034961
A25: 34 | B25: 64431 | C25: 78600 | D25: 96452 | E25: 119147 | F25: 147911 | G25: 184376 | H25: 230881 | J25: 0.02518299731 | K25: 0.03524043555 | L25: 0.045157447 | M25: 0.05500225351 | N25: 0.06472674952 | O25: 0.07432662654 | P25: 0.08385042187
A26: 35 | B26: 67432 | C26: 82820 | D26: 102370 | E26: 127441 | F26: 159431 | G26: 200324 | H26: 252970 | J26: 0.02529132659 | K26: 0.03534760251 | L26: 0.04526781654 | M26: 0.05512098125 | N26: 0.06483955854 | O26: 0.07443543438 | P26: 0.08396543176
A27: 36 | B27: 70520 | C27: 87202 | D27: 108619 | E27: 136232 | F27: 171756 | G27: 217631 | H27: 277105 | J27: 0.02539369365 | K27: 0.0354469209 | L27: 0.04538730527 | M27: 0.0552324002 | N27: 0.06494493209 | O27: 0.07455221742 | P27: 0.08407939298
A28: 37 | B28: 73700 | C28: 91755 | D28: 115173 | E28: 145558 | F28: 184944 | G28: 236365 | H28: 303453 | J28: 0.02549214749 | K28: 0.0355405336 | L28: 0.04549727344 | M28: 0.05533946549 | N28: 0.06504392686 | O28: 0.07466704573 | P28: 0.08418896276
A29: 38 | B29: 76970 | C29: 96489 | D29: 122058 | E29: 155426 | F29: 199062 | G29: 256614 | H29: 332311 | J29: 0.02558404921 | K29: 0.03563040095 | L29: 0.0456025019 | M29: 0.05543577164 | N29: 0.06513835003 | O29: 0.0747752589 | P29: 0.08430454315
A30: 39 | B30: 80333 | C30: 101423 | D30: 129286 | E30: 165903 | F30: 214258 | G30: 278467 | H30: 363811 | J30: 0.02567025319 | K30: 0.03572159658 | L30: 0.04570177302 | M30: 0.05553086741 | N30: 0.06524281888 | O30: 0.07487302258 | P30: 0.08441401503
A31: 40 | B31: 83793 | C31: 106585 | D31: 136879 | E31: 177008 | F31: 230549 | G31: 302090 | H31: 398226 | J31: 0.02575195034 | K31: 0.03582102621 | L31: 0.04579695897 | M31: 0.05562055163 | N31: 0.06534494864 | O31: 0.07496609934 | P31: 0.08452047049
A32: 41 | B32: 87561 | C32: 112219 | D32: 145184 | E32: 189223 | F32: 248576 | G32: 328575 | H32: 436798 | J32: 0.02592882802 | K32: 0.03600962768 | L32: 0.04597398727 | M32: 0.05579068345 | N32: 0.06552399342 | O32: 0.07515306991 | P32: 0.08469755133
A33: 42 | B33: 91470 | C33: 118121 | D33: 153969 | E33: 202261 | F33: 267986 | G33: 357365 | H33: 479104 | J33: 0.0261053216 | K33: 0.03619696601 | L33: 0.04615147801 | M33: 0.05596121724 | N33: 0.0657006169 | O33: 0.0753368747 | P33: 0.08487172925
A34: 43 | B34: 95508 | C34: 124278 | D34: 163222 | E34: 216223 | F34: 288830 | G34: 388587 | H34: 525407 | J34: 0.02627373537 | K34: 0.03637476954 | L34: 0.0463199651 | M34: 0.05613856004 | N34: 0.06586806336 | O34: 0.07551103039 | P34: 0.0850367082
A35: 44 | B35: 99676 | C35: 130699 | D35: 172965 | E35: 231071 | F35: 311271 | G35: 422434 | H35: 576069 | J35: 0.02643333714 | K35: 0.03654315899 | L35: 0.04647949574 | M35: 0.05630609875 | N35: 0.06603286876 | O35: 0.07567531529 | P35: 0.08519233266
A36: 45 | B36: 104027 | C36: 137397 | D36: 183225 | E36: 246865 | F36: 335472 | G36: 459137 | H36: 631515 | J36: 0.02660230729 | K36: 0.03670326628 | L36: 0.04663092784 | M36: 0.05646508239 | N36: 0.0661984811 | O36: 0.07583119129 | P36: 0.08534003231
A37: 46 | B37: 108526 | C37: 144385 | D37: 194032 | E37: 263668 | F37: 361472 | G37: 498940 | H37: 692199 | J37: =RATE($A37*12,-100,0,B37)*12 -> 0.02676457368 | K37: 0.03685591343 | L37: 0.04677526818 | M37: 0.05661644204 | N37: 0.06635576257 | O37: 0.07597942982 | P37: 0.08548045604
A38: 47 | B38: 113173 | C38: 151672 | D38: 205454 | E38: 281539 | F38: 389401 | G38: 542094 | H38: 758602 | J38: 0.02691892342 | K38: 0.03700080119 | L38: 0.04691900974 | M38: 0.05676008673 | N38: 0.06650501004 | O38: 0.07611997122 | P38: 0.08561358657
A39: 48 | B39: 117976 | C39: 159276 | D39: 217552 | E39: 300551 | F39: 419408 | G39: 588892 | H39: 831280 | J39: 0.02706682012 | K39: 0.0371395493 | L39: 0.04706545535 | M39: 0.05689707178 | N39: 0.06664719877 | O39: 0.07625389112 | P39: 0.08574051468
A40: 49 | B40: 122937 | C40: 167206 | D40: 230297 | E40: 320933 | F40: 451641 | G40: 639632 | H40: 910808 | J40: 0.02720775546 | K40: 0.03727160537 | L40: 0.04720469637 | M40: 0.05704195591 | N40: =RATE($A40*12,-100,0,F40)*12 -> 0.06678237819 | O40: 0.07638120495 | P40: 0.08586111123
A41: 50 | B41: 128060 | C41: 175477 | D41: 243725 | E41: 342621 | F41: 486264 | G41: 694645 | H41: 997834 | J41: =RATE($A41*12,-100,0,B41)*12 -> 0.02734188523 | K41: 0.03739760297 | L41: 0.04733739697 | M41: 0.0571797584 | N41: 0.06691096755 | O41: 0.07650232972 | P41: 0.08597588498
A42: 51 | B42: 133354 | C42: 184105 | D42: 257875 | E42: 365707 | F42: 523466 | G42: 754307 | H42: 1093087 | J42: 0.02747056489 | K42: 0.03751815173 | L42: 0.04746425355 | M42: 0.05731159068 | N42: 0.06703401674 | O42: 0.07661824243 | P42: 0.08608574244
A43: 52 | B43: 138822 | C43: 193105 | D43: 272784 | E43: 390273 | F43: 563428 | G43: 818993 | H43: 1197318 | J43: 0.02759349475 | K43: 0.03763351844 | L43: 0.04758543532 | M43: 0.05743724664 | N43: 0.06715133725 | O43: 0.07672869503 | P43: 0.08619041654
A44: 53 | B44: 144472 | C44: 202518 | D44: 288494 | E44: 416420 | F44: 606361 | G44: 889140 | H44: 1311396 | J44: 0.02771152141 | K44: 0.0377475736 | L44: 0.04770141849 | M44: 0.05755751747 | N44: 0.06726356403 | O44: 0.07683443757 | P44: 0.08629067387
A45: 54 | B45: 150307 | C45: 212417 | D45: 305082 | E45: 444242 | F45: 652479 | G45: 965193 | H45: 1436223 | J45: 0.02782431136 | K45: 0.03786735002 | L45: 0.04781549794 | M45: 0.05767227348 | N45: 0.06737074142 | O45: 0.07693534563 | P45: 0.08638630622
A46: 55 | B46: 156335 | C46: 222746 | D46: 322682 | E46: 473829 | F46: 702014 | G46: 1047649 | H46: 1572812 | J46: 0.02793255563 | K46: 0.03798188078 | L46: 0.04793448016 | M46: 0.05778095255 | N46: 0.06747304097 | O46: 0.07703172769 | P46: 0.08647762334
A47: 56 | B47: 162562 | C47: 233527 | D47: 341239 | E47: 505342 | F47: 755241 | G47: 1137077 | H47: 1722322 | J47: 0.02803644542 | K47: 0.03809187096 | L47: 0.04804871535 | M47: 0.05788638394 | N47: 0.06757146178 | O47: 0.07712447861 | P47: 0.08656556769
A48: 57 | B48: 168996 | C48: 244779 | D48: 360802 | E48: 538879 | F48: 812422 | G48: 1234046 | H48: 1885942 | J48: 0.0281364654 | K48: 0.03819748739 | L48: 0.04815825405 | M48: 0.05798744404 | N48: 0.06766582263 | O48: 0.07721340271 | P48: 0.08664990899
A49: 58 | B49: 175641 | C49: 256520 | D49: 381422 | E49: 574569 | F49: 873847 | G49: 1339186 | H49: 2064993 | J49: 0.02823236817 | K49: 0.03829871376 | L49: 0.04826313815 | M49: 0.05808434497 | N49: 0.06775626072 | O49: 0.07729862462 | P49: 0.08673074434
A50: 59 | B50: 182504 | C50: 268772 | D50: 403159 | E50: 612547 | F50: 939828 | G50: 1453183 | H50: 2260922 | J50: 0.02832440425 | K50: 0.038395876 | L50: 0.04836381663 | M50: 0.05817720546 | N50: 0.06784293523 | O50: 0.07738032599 | P50: 0.08680820546
A51: 60 | B51: 189593 | C51: 281556 | D51: 426070 | E51: 652959 | F51: 1010700 | G51: 1576772 | H51: 2475312 | J51: 0.02841291101 | K51: 0.03848909371 | L51: 0.04846033156 | M51: 0.05826623936 | N51: 0.06792600532 | O51: 0.0774585656 | P51: 0.08688243025
I52: Rendite
I53: =SUM(J53:P53) -> 0.04912175088 | J53: =IF(Hilfe!$E$3='FSX (Einzel)'!J2,VLOOKUP(Hilfe!$B$54,$A$3:$P$51,10),0) -> 0 | K53: =IF(Hilfe!$E$3='FSX (Einzel)'!K2,VLOOKUP(Hilfe!$B$54,$A$3:$P$51,11),0) -> 0 | L53: =IF(Hilfe!$E$3='FSX (Einzel)'!L2,VLOOKUP(Hilfe!$B$54,$A$3:$P$51,12),0) -> 0 | M53: =IF(Hilfe!$E$3='FSX (Einzel)'!M2,VLOOKUP(Hilfe!$B$54,$A$3:$P$51,13),0) -> 0.04912175088 | N53: =IF(Hilfe!$E$3='FSX (Einzel)'!N2,VLOOKUP(Hilfe!$B$54,$A$3:$P$51,14),0) -> 0 | O53: =IF(Hilfe!$E$3='FSX (Einzel)'!O2,VLOOKUP(Hilfe!$B$54,$A$3:$P$51,15),0) -> 0 | P53: =IF(Hilfe!$E$3='FSX (Einzel)'!P2,VLOOKUP(Hilfe!$B$54,$A$3:$P$51,16),0) -> 0

Sheet FSX (EB, Einzel) (hidden)
A1: Laufzeit | B1: FSX Einzeltarif Vertragsguthaben in EUR, Beitrag: 100000€ Einmalbeitrag, Alter: 0 Jahre | K1: Stand 13.02.2018
B2: 0.03 | C2: 0.04 | D2: 0.05 | E2: 0.06 | F2: 0.07 | G2: 0.08 | H2: 0.09 | J2: 0.03 | K2: 0.04 | L2: 0.05 | M2: 0.06 | N2: 0.07 | O2: 0.08 | P2: 0.09
A3: 12 | B3: 131901 | C3: 148195 | D3: 166288 | E3: 186376 | F3: 208717 | G3: 233586 | H3: 261081 | J3: =(B3/100000)^(1/$A3)-1 -> 0.02334170594 | K3: =(C3/100000)^(1/$A3)-1 -> 0.03332307878 | L3: 0.04329007487 | M3: 0.0532525006 | N3: 0.06323635678 | O3: 0.07325742282 | P3: 0.08325642174
A4: 13 | B4: 135821 | C4: 154086 | D4: 174565 | E4: 197521 | F4: 223402 | G4: 252361 | H4: 284683 | J4: =(B4/100000)^(1/$A4)-1 -> 0.02383088149 | K4: =(C4/100000)^(1/$A4)-1 -> 0.03381617218 | L4: =(D4/100000)^(1/$A4)-1 -> 0.04378749665 | M4: =(E4/100000)^(1/$A4)-1 -> 0.05375459821 | N4: =(F4/100000)^(1/$A4)-1 -> 0.0637825219 | O4: =(G4/100000)^(1/$A4)-1 -> 0.07380343195 | P4: =(H4/100000)^(1/$A4)-1 -> 0.08380434359
A5: 14 | B5: 139859 | C5: 160213 | D5: 183257 | E5: 209414 | F5: 239122 | G5: 272649 | H5: 310473 | J5: 0.02425114585 | K5: 0.03423985146 | L5: 0.04421527268 | M5: 0.05421448569 | N5: 0.06425145466 | O5: 0.07427276331 | P5: 0.0842877715
A6: 15 | B6: 144018 | C6: 166584 | D6: 192382 | E6: 222052 | F6: 255951 | G6: 294570 | H6: 338716 | J6: 0.02461596462 | K6: 0.0346073334 | L6: 0.04458622791 | M6: 0.05462237048 | N6: 0.06465881776 | O6: 0.07468016745 | P6: 0.08473182167
A7: 16 | B7: 148301 | C7: 173210 | D7: 201981 | E7: 235455 | F7: 273966 | G7: 318376 | H7: 369532 | J7: 0.02493542734 | K7: 0.03492960413 | L7: 0.04491727068 | M7: 0.05498004457 | N7: 0.06501577799 | O7: 0.07506264093 | P7: 0.08512121228
A8: 17 | B8: 152713 | C8: 180101 | D8: 212148 | E8: 249670 | F8: 293253 | G8: 344152 | H8: 403155 | J8: 0.02521803121 | K8: 0.03521453295 | L8: 0.04523526866 | M8: 0.05529648561 | N8: 0.06533170179 | O8: 0.07540870335 | P8: 0.085465446
A9: 18 | B9: 157257 | C9: 187268 | D9: 222830 | E9: 264745 | F9: 313991 | G9: 372018 | H9: 439840 | J9: 0.02546956875 | K9: 0.03546843652 | L9: 0.04551885663 | M9: 0.05557824612 | N9: 0.06563017837 | O9: 0.07571691432 | P9: 0.08577189465
A10: 19 | B10: 161938 | C10: 194721 | D10: 234050 | E10: 280732 | F10: 336268 | G10: 402143 | H10: 479866 | J10: 0.02569527853 | K10: 0.03569588845 | L10: 0.04577269227 | M10: 0.05583076295 | N10: 0.06590939867 | O10: 0.07599313558 | P10: 0.08604649915
A11: 20 | B11: 166758 | C11: 202498 | D11: 245838 | E11: 297686 | F11: 360129 | G11: 434711 | H11: 523539 | J11: 0.02589835607 | K11: 0.03590764198 | L11: 0.04600184533 | M11: 0.05605836399 | N11: 0.06616127666 | O11: 0.07624223603 | P11: 0.08629417804
A12: 21 | B12: 171724 | C12: 210665 | D12: 258221 | E12: 315799 | F12: 385685 | G12: 469919 | H12: 571190 | J12: 0.02608284889 | K12: 0.03611786342 | L12: 0.04620946718 | M12: 0.05628585556 | N12: 0.06638946304 | O12: 0.07646792894 | P12: 0.08651861464
A13: 22 | B13: 176838 | C13: 219164 | D13: 271230 | E13: 335044 | F13: 413057 | G13: 507981 | H13: 623181 | J13: 0.02625062853 | K13: 0.03630957279 | L13: 0.0463986466 | M13: 0.05649699392 | N13: 0.06659723605 | O13: 0.07667338072 | P13: 0.08672292153
A14: 23 | B14: 182106 | C14: 228007 | D14: 284896 | E14: 355464 | F14: 442375 | G14: 549130 | H14: 679908 | J14: 0.02640426001 | K14: 0.03648486395 | L14: 0.04657166353 | M14: 0.05669009324 | N14: 0.06678733513 | O14: 0.0768613505 | P14: 0.08690975069
A15: 24 | B15: 187531 | C15: 237208 | D15: 299252 | E15: 377130 | F15: 473777 | G15: 593616 | H15: 741803 | J15: 0.02654512421 | K15: 0.0366457913 | L15: 0.0467304966 | M15: 0.05686730217 | N15: 0.0669619099 | O15: 0.07703396658 | P15: 0.08708129832
A16: 25 | B16: 193120 | C16: 246782 | D16: 314478 | E16: 400120 | F16: 507410 | G16: 641708 | H16: 809336 | J16: 0.02667524403 | K16: 0.03679415265 | L16: 0.04689616948 | M16: 0.05703072295 | N16: 0.06712270614 | O16: 0.07719293948 | P16: 0.08723933022
A17: 26 | B17: 198876 | C17: 256744 | D17: 330495 | E17: 424514 | F17: 543434 | G17: 693699 | H17: 883020 | J17: 0.02679545478 | K17: 0.03693136616 | L17: 0.04705110755 | M17: 0.05718183672 | N17: 0.06727141356 | O17: 0.0773398724 | P17: 0.08738536183
A18: 27 | B18: 204882 | C18: 267110 | D18: 347329 | E18: 450397 | F18: 582018 | G18: 749907 | H18: 963416 | J18: 0.02692133794 | K18: 0.03705869905 | L18: 0.04719472562 | M18: 0.05732193073 | N18: 0.06740929023 | O18: 0.07747618959 | P18: 0.0875207452
A19: 28 | B19: 211097 | C19: 277896 | D19: 365023 | E19: 477860 | F19: 623344 | G19: 810671 | H19: 1051136 | J19: 0.02704304288 | K19: 0.03717714725 | L19: 0.047328364 | M19: 0.05745218404 | N19: 0.06753748882 | O19: 0.07760286421 | P19: 0.08764662918
A20: 29 | B20: 217501 | C20: 289119 | D20: 383620 | E20: 507001 | F20: 667608 | G20: 876363 | H20: 1146846 | J20: 0.02715644402 | K20: 0.03728761907 | L20: 0.0474529532 | M20: 0.05757371629 | N20: 0.06765706184 | O20: 0.07772100141 | P20: 0.0877639429
A21: 30 | B21: 224101 | C21: 300796 | D21: 403166 | E21: 537921 | F21: 715017 | G21: 947380 | H21: 1251274 | J21: 0.0272625597 | K21: 0.0373908232 | L21: 0.04756938232 | M21: 0.0576872845 | N21: 0.06776876446 | O21: 0.07783133923 | P21: 0.08787354085
A22: 31 | B22: 230902 | C22: 313104 | D22: 423710 | E22: 570729 | F22: 765796 | G22: 1024156 | H22: 1365215 | J22: 0.02736194321 | K22: 0.03750441946 | L22: 0.04767847932 | M22: 0.05779367492 | N22: 0.06787342101 | O22: 0.07793470664 | P22: 0.08797618418
A23: 32 | B23: 237911 | C23: 325916 | D23: 445303 | E23: 605540 | F23: 820183 | G23: 1107157 | H23: 1489535 | J23: 0.02745534042 | K23: 0.03761096505 | L23: 0.04778092588 | M23: 0.05789353637 | N23: 0.06797161837 | O23: 0.07803171529 | P23: 0.08807250177
A24: 33 | B24: 245134 | C24: 339255 | D24: 467999 | E24: 642477 | F24: 878436 | G24: 1196888 | H24: 1625179 | J24: 0.02754324278 | K24: 0.03771131745 | L24: 0.04787734794 | M24: 0.05798749096 | N24: 0.06806399874 | O24: 0.0781229433 | P24: 0.08816305259
A25: 34 | B25: 252576 | C25: 353140 | D25: 491852 | E25: 681669 | F25: 940829 | G25: 1293893 | H25: 1773179 | J25: 0.02762594647 | K25: 0.03780578125 | L25: 0.0479681213 | M25: 0.05807601318 | N25: 0.06815103961 | O25: 0.07820885203 | P25: 0.08824834921
A26: 35 | B26: 260247 | C26: 367596 | D26: 516924 | E26: 723254 | F26: 1007656 | G26: 1398765 | H26: 1934660 | J26: 0.0277042766 | K26: 0.03789507409 | L26: 0.0480539036 | M26: 0.05815957712 | N26: 0.06823318559 | O26: 0.07828996741 | P26: 0.08832882768
A27: 36 | B27: 268151 | C27: 382645 | D27: 543275 | E27: 767378 | F27: 1079232 | G27: 1512139 | H27: 2110850 | J27: 0.02777826306 | K27: 0.03797950632 | L27: 0.04813497826 | M27: 0.0582385859 | N27: 0.06831083651 | O27: 0.0783666209 | P27: 0.08840488564
A28: 37 | B28: 276296 | C28: 398311 | D28: 570972 | E28: 814196 | F28: 1155896 | G28: 1634705 | H28: 2303090 | J28: 0.02784835031 | K28: 0.03805944504 | L28: 0.04821181108 | M28: 0.05831340314 | N28: 0.06838439022 | O28: 0.07843918421 | P28: 0.08847689256
A29: 38 | B29: 284690 | C29: 414620 | D29: 600083 | E29: 863874 | F29: 1238007 | G29: 1767210 | H29: 2512841 | J29: 0.02791490503 | K29: 0.0381352884 | L29: 0.04828469556 | M29: 0.05838440414 | N29: 0.06845410278 | O29: 0.07850800433 | P29: 0.08854515118
A30: 39 | B30: 293339 | C30: 431598 | D30: 630679 | E30: 916584 | F30: 1325955 | G30: 1910457 | H30: 2741698 | J30: 0.02797804944 | K30: 0.03820732283 | L30: 0.04835388014 | M30: 0.05845179532 | N30: 0.06852032943 | O30: 0.07857332076 | P30: 0.08860994582
A31: 40 | B31: 302278 | C31: 449273 | D31: 662838 | E31: 972513 | F31: 1420153 | G31: 2065320 | H31: 2991402 | J31: 0.02804035638 | K31: 0.03827586296 | L31: 0.04841972929 | M31: 0.05851589861 | N31: 0.06858328946 | O31: 0.07863543567 | P31: 0.08867153932
A32: 41 | B32: 311620 | C32: 467674 | D32: 696637 | E32: 1031856 | F32: 1521045 | G32: 2232738 | H32: 3263851 | J32: 0.02811013886 | K32: 0.03834118113 | L32: 0.04848237665 | M32: 0.05857691031 | N32: 0.06864321635 | O32: 0.07869454389 | P32: 0.08873015474
A33: 42 | B33: 321252 | C33: 486829 | D33: 732163 | E33: 1094824 | F33: 1629108 | G33: 2413730 | H33: 3561118 | J33: 0.02817670049 | K33: 0.03840341025 | L33: 0.04854216512 | M33: 0.05863510916 | N33: 0.06870034462 | O33: 0.07875087066 | P33: 0.08878601146
A34: 43 | B34: 331182 | C34: 506771 | D34: 769501 | E34: 1161635 | F34: 1744850 | G34: 2609398 | H34: 3885463 | J34: 0.02824019049 | K34: 0.03846286518 | L34: 0.04859918544 | M34: 0.05869061338 | N34: 0.06875484196 | O34: 0.07880462149 | P34: 0.08883929461
A35: 44 | B35: 341421 | C35: 527530 | D35: 808746 | E35: 1232527 | F35: 1868818 | G35: 2820930 | H35: 4239352 | J35: 0.02830093928 | K35: 0.03851962593 | L35: 0.04865370168 | M35: 0.05874367348 | N35: 0.06880690329 | O35: 0.07885595121 | P35: 0.08889017461
A36: 45 | B36: 351977 | C36: 549142 | D36: 849994 | E36: 1307746 | F36: 2001597 | G36: 3049613 | H36: 4625477 | J36: 0.02835902041 | K36: 0.03857397797 | L36: 0.04870583827 | M36: 0.05879438898 | N36: 0.06885669265 | O36: 0.07890502599 | P36: 0.08893881483
A37: 46 | B37: 362860 | C37: 571640 | D37: 893348 | E37: 1387558 | F37: 2143812 | G37: 3296837 | H37: 5046774 | J37: 0.02841461823 | K37: 0.03862599298 | L37: 0.04875576796 | M37: 0.05884294344 | N37: 0.06890434207 | O37: 0.0789519867 | P37: 0.08898535775
A38: 47 | B38: 374081 | C38: 595061 | D38: 938914 | E38: 1472244 | F38: 2296134 | G38: 3564106 | H38: 5506447 | J38: 0.02846794085 | K38: 0.03867584424 | L38: 0.04880359246 | M38: 0.05888948063 | N38: 0.06894999076 | O38: 0.07899697167 | P38: 0.08902993667
A39: 48 | B39: 385650 | C39: 619443 | D39: 986807 | E39: 1562100 | F39: 2459281 | G39: 3853045 | H39: 6007992 | J39: 0.02851910009 | K39: 0.03872366967 | L39: 0.0488494898 | M39: 0.05893410059 | N39: 0.06899375941 | O39: 0.07904010125 | P39: 0.08907267426
A40: 49 | B40: 397577 | C40: 644825 | D40: 1037143 | E40: 1657442 | F40: 2634023 | G40: 4165412 | H40: 6555222 | J40: 0.02856818477 | K40: 0.0387695771 | L40: 0.04889351626 | M40: 0.0589769244 | N40: 0.06903576755 | O40: 0.07908149303 | P40: 0.08911367805
A41: 50 | B41: 409874 | C41: 671249 | D41: 1090050 | E41: 1758606 | F41: 2821183 | G41: 4503104 | H41: 7152299 | J41: 0.02861536517 | K41: 0.03881371079 | L41: 0.04893584909 | M41: 0.05901807118 | N41: 0.06907611105 | O41: 0.07912123712 | P41: 0.08915305313
A42: 51 | B42: 422552 | C42: 698757 | D42: 1145657 | E42: 1865946 | F42: 3021645 | G42: 4868177 | H42: 7803764 | J42: 0.02866072868 | K42: 0.03885614999 | L42: 0.04897654307 | M42: 0.05905762069 | N42: 0.06911489735 | O42: 0.07915944201 | P42: 0.08919089564
A43: 52 | B43: 435624 | C43: 727394 | D43: 1204102 | E43: 1979841 | F43: 3236354 | G43: 5262849 | H43: 8514571 | J43: 0.02870443339 | K43: 0.0388970056 | L43: 0.04901569526 | M43: 0.05909568431 | N43: 0.06915221206 | O43: 0.07919618671 | P43: 0.08922729254
A44: 53 | B44: 449100 | C44: 757205 | D44: 1265531 | E44: 2100689 | F44: 3466321 | G44: 5689522 | H44: 9290125 | J44: 0.02874647362 | K44: 0.03893633074 | L44: 0.04905340993 | M44: 0.05913232229 | N44: 0.06918812819 | O44: 0.0792315611 | P44: 0.08926232385
A45: 54 | B45: 462995 | C45: 788239 | D45: 1330095 | E45: 2228916 | F45: 3712632 | G45: 6150788 | H45: 10136325 | J45: 0.0287870457 | K45: 0.03897423125 | L45: 0.04908974526 | M45: 0.05916762677 | N45: 0.06922273196 | O45: 0.07926563129 | P45: 0.08929606726
A46: 55 | B46: 477319 | C46: 820547 | D46: 1397954 | E46: 2364972 | F46: 3976448 | G46: 6649454 | H46: 11059604 | J46: 0.02882610841 | K46: 0.03901080261 | L46: 0.04912477575 | M46: 0.05920166457 | N46: 0.06925609094 | O46: 0.0792984749 | P46: 0.08932858832
A47: 56 | B47: 492088 | C47: 854180 | D47: 1469277 | E47: 2509335 | F47: 4259012 | G47: 7188552 | H47: 12066985 | J47: 0.02886384645 | K47: 0.03904608586 | L47: 0.04915858124 | M47: 0.05923450256 | N47: 0.06928826621 | O47: 0.07933015556 | P47: 0.08935995536
A48: 57 | B48: 507315 | C48: 889193 | D48: 1544241 | E48: 2662513 | F48: 4561658 | G48: 7771359 | H48: 13166129 | J48: 0.02890029809 | K48: 0.03908016164 | L48: 0.04919122701 | M48: 0.05926620863 | N48: 0.06931932649 | O48: 0.07936073076 | P48: 0.0893902287
A49: 58 | B49: 523014 | C49: 925642 | D49: 1623031 | E49: 2825043 | F49: 4885813 | G49: 8401420 | H49: 14365393 | J49: 0.02893552185 | K49: 0.03911307913 | L49: 0.04922276208 | M49: 0.05929683209 | N49: 0.06934932764 | O49: 0.07939025981 | P49: 0.08941946206
A50: 59 | B50: 539198 | C50: 963586 | D50: 1705843 | E50: 2997496 | F50: 5233005 | G50: 9082565 | H50: 15673898 | J50: 0.02896952653 | K50: 0.03914489849 | L50: 0.04925324982 | M50: 0.05932642756 | N50: 0.06937832054 | O50: 0.07941879259 | P50: 0.08944770941
A51: 60 | B51: 555885 | C51: 1003086 | D51: 1792881 | E51: 3180478 | F51: 5604871 | G51: 9818938 | H51: 17101594 | J51: 0.02900246688 | K51: 0.03917566843 | L51: 0.04928272876 | M51: 0.05935504682 | N51: 0.06940635443 | O51: 0.07944638265 | P51: 0.08947501886
I52: Rendite
I53: =SUM(J53:P53) -> 0.0532525006 | J53: =IF(Hilfe!$E$3='FSX (Einzel)'!J2,VLOOKUP(Hilfe!$B$54,$A$3:$P$51,10),0) -> 0 | K53: =IF(Hilfe!$E$3='FSX (Einzel)'!K2,VLOOKUP(Hilfe!$B$54,$A$3:$P$51,11),0) -> 0 | L53: =IF(Hilfe!$E$3='FSX (Einzel)'!L2,VLOOKUP(Hilfe!$B$54,$A$3:$P$51,12),0) -> 0 | M53: =IF(Hilfe!$E$3='FSX (Einzel)'!M2,VLOOKUP(Hilfe!$B$54,$A$3:$P$51,13),0) -> 0.0532525006 | N53: =IF(Hilfe!$E$3='FSX (Einzel)'!N2,VLOOKUP(Hilfe!$B$54,$A$3:$P$51,14),0) -> 0 | O53: =IF(Hilfe!$E$3='FSX (Einzel)'!O2,VLOOKUP(Hilfe!$B$54,$A$3:$P$51,15),0) -> 0 | P53: =IF(Hilfe!$E$3='FSX (Einzel)'!P2,VLOOKUP(Hilfe!$B$54,$A$3:$P$51,16),0) -> 0

Sheet FSX (EB, G) (hidden)
A1: Laufzeit | B1: FSX Kollektivtarif G Vertragsguthaben in EUR, Beitrag: 100000€ Einmalbeitrag, Alter: 0 Jahre | K1: Stand 13.02.2018
B2: 0.03 | C2: 0.04 | D2: 0.05 | E2: 0.06 | F2: 0.07 | G2: 0.08 | H2: 0.09 | J2: 0.03 | K2: 0.04 | L2: 0.05 | M2: 0.06 | N2: 0.07 | O2: 0.08 | P2: 0.09
A3: 12 | B3: 134903 | C3: 151543 | D3: 170037 | E3: 190563 | F3: 213425 | G3: 238827 | H3: 266943 | J3: =(B3/100000)^(1/$A3)-1 -> 0.02526264416 | K3: =(C3/100000)^(1/$A3)-1 -> 0.03524861154 | L3: 0.04523020833 | M3: 0.05520429059 | N3: 0.06521459311 | O3: 0.07524381216 | P3: 0.0852627033
A4: 13 | B4: 138921 | C4: 157575 | D4: 178510 | E4: 201984 | F4: 228449 | G4: 258032 | H4: 291083 | J4: =(B4/100000)^(1/$A4)-1 -> 0.02560976272 | K4: 0.03559830749 | L4: 0.04558334717 | M4: 0.05556728234 | N4: 0.06561217531 | O4: 0.07564062799 | P4: 0.08565941567
A5: 14 | B5: 143059 | C5: 163848 | D5: 187405 | E5: 214180 | F5: 244533 | G5: 278784 | H5: 317501 | J5: 0.02590755366 | K5: 0.03589854868 | L5: 0.0458860479 | M5: 0.05591039489 | N5: 0.06595382209 | O5: 0.07598160348 | P5: 0.08602278148
A6: 15 | B6: 147321 | C6: 170373 | D6: 196746 | E6: 227114 | F6: 261751 | G6: 301207 | H6: 346392 | J6: 0.02616605391 | K6: 0.03615975023 | L6: 0.04614944126 | M6: 0.05620834322 | N6: 0.06625043978 | O6: 0.07627768858 | P6: 0.08635355583
A7: 16 | B7: 151711 | C7: 177158 | D7: 206613 | E7: 240832 | F7: 280183 | G7: 325599 | H7: 377914 | J7: 0.02639272928 | K7: 0.03638841107 | L7: 0.04639908863 | M7: 0.05646992186 | N7: 0.06651044057 | O7: 0.07657103599 | P7: 0.08664343691
A8: 17 | B8: 156232 | C8: 184214 | D8: 217022 | E8: 255379 | F8: 299915 | G8: 351968 | H8: 412308 | J8: 0.02659284925 | K8: 0.03659047455 | L8: 0.04663279546 | M8: 0.05670088106 | N8: 0.06674033546 | O8: 0.07683024697 | P8: 0.08689981637
A9: 18 | B9: 160889 | C9: 191553 | D9: 227957 | E9: 270807 | F9: 321187 | G9: 380475 | H9: 449834 | J9: 0.02677121806 | K9: 0.03677071125 | L9: 0.04684098759 | M9: 0.0569067227 | N9: 0.06697248481 | O9: 0.07706109869 | P9: 0.08712800138
A10: 19 | B10: 165686 | C10: 199185 | D10: 239444 | E10: 287168 | F10: 343983 | G10: 411293 | H10: 490779 | J10: 0.0269312234 | K10: 0.03693217147 | L10: 0.0470275352 | M10: 0.05709111696 | N10: 0.06718272971 | O10: 0.07726798553 | P10: 0.0873326262
A11: 20 | B11: 170627 | C11: 207208 | D11: 251512 | E11: 304558 | F11: 368399 | G11: 444610 | H11: 535453 | J11: 0.02707554287 | K11: 0.03709926373 | L11: 0.04719590566 | M11: 0.05726413615 | N11: 0.06737228562 | O11: 0.07745455457 | P11: 0.08751703321
A12: 21 | B12: 175715 | C12: 215574 | D12: 264189 | E12: 323124 | F12: 394551 | G12: 480628 | H12: 584197 | J12: 0.02720603826 | K12: 0.03725501177 | L12: 0.04734840984 | M12: 0.05743985986 | N12: 0.06754419719 | O12: 0.07762361138 | P12: 0.08768421247
A13: 22 | B13: 180956 | C13: 224278 | D13: 277507 | E13: 342823 | F13: 422561 | G13: 519567 | H13: 637380 | J13: 0.0273250148 | K13: 0.03739666822 | L13: 0.04748741913 | M13: 0.0575998034 | N13: 0.06770067851 | O13: 0.07777762133 | P13: 0.08783634608
A14: 23 | B14: 186355 | C14: 233336 | D14: 291498 | E14: 363726 | F14: 452561 | G14: 561663 | H14: 695408 | J14: 0.02743405989 | K14: 0.03752652006 | L14: 0.04761461115 | M14: 0.0577462476 | N14: 0.06784372785 | O14: 0.07791844876 | P14: 0.08797550248
A15: 24 | B15: 191915 | C15: 242760 | D15: 306246 | E15: 385904 | F15: 484694 | G15: 607172 | H15: 758723 | J15: 0.0275340092 | K15: 0.03764559567 | L15: 0.04773857639 | M15: 0.05788056054 | N15: 0.06797516062 | O15: 0.07804772888 | P15: 0.08810331996
A16: 25 | B16: 197643 | C16: 252567 | D16: 321850 | E16: 409437 | F16: 519111 | G16: 656371 | H16: 827804 | J16: 0.02762641092 | K16: 0.03775554888 | L16: 0.04786694452 | M16: 0.05800442344 | N16: 0.06809629666 | O16: 0.07816685194 | P16: 0.08822099587
A17: 26 | B17: 203601 | C17: 262771 | D17: 338250 | E17: 434407 | F17: 555974 | G17: 709559 | H17: 903178 | J17: 0.02772317582 | K17: 0.03785717868 | L17: 0.04798556381 | M17: 0.05811895141 | N17: 0.06820828403 | O17: 0.07827696464 | P17: 0.08832978132
A18: 27 | B18: 209784 | C18: 273388 | D18: 355487 | E18: 460902 | F18: 595457 | G18: 767059 | H18: 985418 | J18: 0.02782101924 | K18: 0.03795139419 | L18: 0.04809555382 | M18: 0.05822519184 | N18: 0.06831213884 | O18: 0.07837903466 | P18: 0.08843063996
A19: 28 | B19: 216156 | C19: 284436 | D19: 373605 | E19: 489014 | F19: 637746 | G19: 829222 | H19: 1075149 | J19: 0.02791209163 | K19: 0.03803915237 | L19: 0.04819795963 | M19: 0.05832393348 | N19: 0.06840870886 | O19: 0.07847398127 | P19: 0.08852439442
A20: 29 | B20: 222722 | C20: 295931 | D20: 392648 | E20: 518843 | F20: 683040 | G20: 896425 | H20: 1173054 | J20: 0.02799696305 | K20: 0.03812092959 | L20: 0.04829345792 | M20: 0.05841603911 | N20: 0.06849871631 | O20: 0.07856248141 | P20: 0.08861179275
A21: 30 | B21: 229489 | C21: 307982 | D21: 412662 | E21: 550494 | F21: 731554 | G21: 969077 | H21: 1279878 | J21: 0.02807641412 | K21: 0.0382075381 | L21: 0.04838262801 | M21: 0.05850217074 | N21: 0.06858288246 | O21: 0.07864518596 | P21: 0.08869347278
A22: 31 | B22: 236462 | C22: 320592 | D22: 433699 | E22: 584077 | F22: 783515 | G22: 1047620 | H22: 1396431 | J22: 0.02815080057 | K22: 0.03829569711 | L22: 0.04846627425 | M22: 0.05858282158 | N22: 0.06866167805 | O22: 0.0787226541 | P22: 0.08876991603
A23: 32 | B23: 243647 | C23: 333719 | D23: 455809 | E23: 619710 | F23: 839169 | G23: 1132530 | H23: 1523602 | J23: 0.02822055939 | K23: 0.03837842073 | L23: 0.0485447389 | M23: 0.0586585047 | N23: 0.06873564578 | O23: 0.07879531964 | P23: 0.08884167618
A24: 33 | B24: 251052 | C24: 347385 | D24: 479048 | E24: 657520 | F24: 898779 | G24: 1224326 | H24: 1662357 | J24: 0.02828630331 | K24: 0.03845627271 | L24: 0.04861857491 | M24: 0.05872975835 | N24: 0.06880523727 | O24: 0.0788636928 | P24: 0.08890914547
A25: 34 | B25: 258683 | C25: 361611 | D25: 503473 | E25: 697638 | F25: 962625 | G25: 1323564 | H25: 1813751 | J25: 0.02834829425 | K25: 0.03852958164 | L25: 0.04868814473 | M25: 0.05879687502 | N25: 0.06887079251 | O25: 0.07892808571 | P25: 0.08897269448
A26: 35 | B26: 266547 | C26: 376422 | D26: 529145 | E26: 740205 | F26: 1031008 | G26: 1430848 | H26: 1978935 | J26: 0.02840686174 | K26: 0.03859889711 | L26: 0.04875383701 | M26: 0.05886021085 | N26: 0.06893265317 | O26: 0.07898885087 | P26: 0.08903265107
A27: 36 | B27: 274651 | C27: 391840 | D27: 556128 | E27: 785372 | F27: 1104252 | G27: 1546831 | H27: 2159167 | J27: 0.02846227562 | K27: 0.03866439288 | L27: 0.0488159877 | M27: 0.05892013401 | N27: 0.0689911666 | O27: 0.07904629935 | P27: 0.08908933826
A28: 37 | B28: 283002 | C28: 407891 | D28: 584488 | E28: 833297 | F28: 1182701 | G28: 1672218 | H28: 2355815 | J28: 0.02851475671 | K28: 0.03872645461 | L28: 0.04887483274 | M28: 0.05897688744 | N28: 0.06904656068 | O28: 0.07910068968 | P28: 0.08914298056
A29: 38 | B29: 291607 | C29: 424601 | D29: 614296 | E29: 884148 | F29: 1266725 | G29: 1807772 | H29: 2570377 | J29: 0.02856448559 | K29: 0.03878534996 | L29: 0.0489306632 | M29: 0.05903070453 | N29: 0.06909908134 | O29: 0.07915226793 | P29: 0.08919384789
A30: 39 | B30: 300475 | C30: 441997 | D30: 645626 | E30: 938103 | F30: 1356721 | G30: 1954316 | H30: 2804482 | J30: 0.02861178545 | K30: 0.03884131516 | L30: 0.04898370985 | M30: 0.05908178965 | N30: 0.06914896326 | O30: 0.07920122704 | P30: 0.08924212084
A31: 40 | B31: 309769 | C31: 460106 | D31: 678555 | E31: 995354 | F31: 1453113 | G31: 2112741 | H31: 3059913 | J31: 0.02866970282 | K31: 0.0388945008 | L31: 0.04903415008 | M31: 0.05913041334 | N31: 0.06919639235 | O31: 0.07924776141 | P31: 0.08928801921
A32: 41 | B32: 319351 | C32: 478958 | D32: 713164 | E32: 1056099 | F32: 1556355 | G32: 2284012 | H32: 3338610 | J32: 0.02872483939 | K32: 0.03894515056 | L32: 0.04908215056 | M32: 0.05917666866 | N32: 0.06924153597 | O32: 0.07929206696 | P32: 0.08933169201
A33: 42 | B33: 329230 | C33: 498584 | D33: 749541 | E33: 1120554 | F33: 1666935 | G33: 2469169 | H33: 3642694 | J33: 0.02877739799 | K33: 0.03899346881 | L33: 0.04912796077 | M33: 0.05922078671 | N33: 0.06928457406 | O33: 0.07933428297 | P33: 0.08937331003
A34: 43 | B34: 339415 | C34: 519015 | D34: 787774 | E34: 1188944 | F34: 1785373 | G34: 2669339 | H34: 3974477 | J34: 0.02882754249 | K34: 0.03903957886 | L34: 0.04917165718 | M34: 0.05926288003 | N34: 0.069325629 | O34: 0.0793745648 | P34: 0.08941301115
A35: 44 | B35: 349916 | C35: 540285 | D35: 827959 | E35: 1261511 | F35: 1912229 | G35: 2885739 | H35: 4336483 | J35: 0.02887547137 | K35: 0.0390836726 | L35: 0.04921342064 | M35: 0.05930311884 | N35: 0.06936485511 | O35: 0.07941303972 | P35: 0.08945092968
A36: 45 | B36: 360743 | C36: 562427 | D36: 870195 | E36: 1338507 | F36: 2048100 | G36: 3119684 | H36: 4731463 | J36: 0.0289213428 | K36: 0.03912582167 | L36: 0.04925335978 | M36: 0.05934156866 | N36: 0.06940235668 | O36: 0.07944981914 | P36: 0.08948717198
A37: 46 | B37: 371906 | C37: 585478 | D37: 914587 | E37: 1420205 | F37: 2193628 | G37: 3372597 | H37: 5162422 | J37: 0.02896528152 | K37: 0.03916620053 | L37: 0.0492916 | M37: 0.05937838972 | N37: 0.06943825927 | O37: 0.07948501615 | P37: 0.08952185354
A38: 47 | B38: 383415 | C38: 609474 | D38: 961245 | E38: 1506892 | F38: 2349497 | G38: 3646017 | H38: 5632637 | J38: 0.02900738464 | K38: 0.03920487197 | L38: 0.04932824664 | M38: 0.05941368142 | N38: 0.06947263998 | O38: 0.07951873744 | P38: 0.08955507133
A39: 48 | B39: 395280 | C39: 634455 | D39: 1010285 | E39: 1598871 | F39: 2516445 | G39: 3941605 | H39: 6145683 | J39: 0.02904772655 | K39: 0.03924198519 | L39: 0.04936340485 | M39: 0.05944751432 | N39: 0.06950562171 | O39: 0.07955106352 | P39: 0.08958691283
A40: 49 | B40: 407514 | C40: 660461 | D40: 1061828 | E40: 1696466 | F40: 2695257 | G40: 4261159 | H40: 6705463 | J40: 0.02908651768 | K40: 0.03927761964 | L40: 0.04939715169 | M40: 0.05947998903 | N40: 0.06953726786 | O40: 0.07958208267 | P40: 0.08961746701
A41: 50 | B41: 420126 | C41: 687534 | D41: 1116002 | E41: 1800020 | F41: 2886777 | G41: 4606622 | H41: 7316234 | J41: 0.02912372694 | K41: 0.0393118609 | L41: 0.04942957535 | M41: 0.05951118695 | N41: 0.0695676645 | O41: 0.07961187175 | P41: 0.08964680994
A42: 51 | B42: 433130 | C42: 715717 | D42: 1172941 | E42: 1909896 | F42: 3091908 | G42: 4980096 | H42: 7982639 | J42: 0.02915955637 | K42: 0.03934476751 | L42: 0.04946074715 | M42: 0.05954117273 | N42: 0.06959688311 | O42: 0.079640508 | P42: 0.08967500711
A43: 52 | B43: 446537 | C43: 745057 | D43: 1232787 | E43: 2026482 | F43: 3311617 | G43: 5383850 | H43: 8709747 | J43: 0.02919403073 | K43: 0.03937645611 | L43: 0.0494907527 | M43: 0.05957003616 | N43: 0.0696249888 | O43: 0.07966804834 | P43: 0.08970212761
A44: 53 | B44: 460360 | C44: 775601 | D44: 1295687 | E44: 2150185 | F44: 3546941 | G44: 5820341 | H44: 9503088 | J44: 0.02922724757 | K44: 0.03940698119 | L44: 0.04951963484 | M44: 0.05959781327 | N44: 0.0696520495 | O44: 0.07969456141 | P44: 0.08972823294
A45: 54 | B45: 474611 | C45: 807398 | D45: 1361798 | E45: 2281442 | F45: 3798989 | G45: 6292222 | H45: 10368694 | J45: 0.02925923899 | K45: 0.03943639641 | L45: 0.04954747197 | M45: 0.0596245861 | N45: 0.0696781182 | O45: 0.07972009906 | P45: 0.08975337645
A46: 55 | B46: 489304 | C46: 840499 | D46: 1431283 | E46: 2420713 | F46: 4068950 | G46: 6802363 | H46: 11313147 | J46: 0.02929010028 | K46: 0.03946475247 | L46: 0.04957430766 | M46: 0.0596503978 | N46: 0.06970325055 | O46: 0.07974471587 | P46: 0.08977760919
A47: 56 | B47: 504452 | C47: 874958 | D47: 1504316 | E47: 2568487 | F47: 4358096 | G47: 7353866 | H47: 12343631 | J47: 0.02931986514 | K47: 0.03949211679 | L47: 0.04960021755 | M47: 0.05967529693 | N47: 0.06972749125 | O47: 0.0797684603 | P47: 0.08980098271
A48: 57 | B48: 520069 | C48: 910831 | D48: 1581075 | E48: 2725284 | F48: 4667792 | G48: 7950084 | H48: 13467982 | J48: 0.02934858798 | K48: 0.03951854648 | L48: 0.04962521195 | M48: 0.05969933688 | N48: 0.06975089329 | O48: 0.07979137633 | P48: 0.08982354084
A49: 58 | B49: 536171 | C49: 948175 | D49: 1661753 | E49: 2891654 | F49: 4999497 | G49: 8594644 | H49: 14694750 | J49: 0.02937637157 | K49: 0.03954406957 | L49: 0.04964937015 | M49: 0.05972255534 | N49: 0.0697734937 | O49: 0.07981350989 | P49: 0.08984532491
A50: 59 | B50: 552771 | C50: 987051 | D50: 1746549 | E50: 3068182 | F50: 5354775 | G50: 9291463 | H50: 16033263 | J50: 0.02940319706 | K50: 0.03956874411 | L50: 0.04967272238 | M50: 0.05974499679 | N50: 0.06979533255 | O50: 0.07983489504 | P50: 0.08986637265
A51: 60 | B51: 569886 | C51: 1027522 | D51: 1835673 | E51: 3255488 | F51: 5735303 | G51: 10044781 | H51: 17493702 | J51: 0.02942916092 | K51: 0.03959261443 | L51: 0.04969530647 | M51: 0.05976669836 | N51: 0.06981645309 | O51: 0.07985557444 | P51: 0.08988672308
I52: Rendite
I53: =SUM(J53:P53) -> 0.05520429059 | J53: =IF(Hilfe!$E$3='FSX (Einzel)'!J2,VLOOKUP(Hilfe!$B$54,$A$3:$P$51,10),0) -> 0 | K53: =IF(Hilfe!$E$3='FSX (Einzel)'!K2,VLOOKUP(Hilfe!$B$54,$A$3:$P$51,11),0) -> 0 | L53: =IF(Hilfe!$E$3='FSX (Einzel)'!L2,VLOOKUP(Hilfe!$B$54,$A$3:$P$51,12),0) -> 0 | M53: =IF(Hilfe!$E$3='FSX (Einzel)'!M2,VLOOKUP(Hilfe!$B$54,$A$3:$P$51,13),0) -> 0.05520429059 | N53: =IF(Hilfe!$E$3='FSX (Einzel)'!N2,VLOOKUP(Hilfe!$B$54,$A$3:$P$51,14),0) -> 0 | O53: =IF(Hilfe!$E$3='FSX (Einzel)'!O2,VLOOKUP(Hilfe!$B$54,$A$3:$P$51,15),0) -> 0 | P53: =IF(Hilfe!$E$3='FSX (Einzel)'!P2,VLOOKUP(Hilfe!$B$54,$A$3:$P$51,16),0) -> 0

Sheet FSX (EB, N) (hidden)
A1: Laufzeit | B1: FSX Sondertarif N Vertragsguthaben in EUR, Beitrag: 100000€ Einmalbeitrag, Alter: 0 Jahre | K1: Stand 13.02.2018
B2: 0.03 | C2: 0.04 | D2: 0.05 | E2: 0.06 | F2: 0.07 | G2: 0.08 | H2: 0.09 | J2: 0.03 | K2: 0.04 | L2: 0.05 | M2: 0.06 | N2: 0.07 | O2: 0.08 | P2: 0.09
A3: 12 | B3: 131073 | C3: 147234 | D3: 165195 | E3: 185136 | F3: 207310 | G3: 232001 | H3: 259331 | J3: =(B3/100000)^(1/$A3)-1 -> 0.02280482939 | K3: =(C3/100000)^(1/$A3)-1 -> 0.03276301311 | L3: 0.04271688966 | M3: 0.05266675247 | N3: 0.06263721389 | O3: 0.07264864398 | P3: 0.08264947482
A4: 13 | B4: 134295 | C4: 152323 | D4: 172553 | E4: 195228 | F4: 220788 | G4: 249398 | H4: 281363 | J4: =(B4/100000)^(1/$A4)-1 -> 0.02294140394 | K4: 0.03290144128 | L4: 0.04285711569 | M4: 0.05280852445 | N4: 0.06281983574 | O4: 0.07282831727 | P4: 0.08282680719
A5: 14 | B5: 137597 | C5: 157589 | D5: 180239 | E5: 205923 | F5: 235145 | G5: 268103 | H5: 305296 | J5: 0.02305890599 | K5: 0.03302062554 | L5: 0.04297743402 | M5: 0.05294937165 | N5: 0.06297727999 | O5: 0.07298333475 | P5: 0.08298623512
A6: 15 | B6: 140981 | C6: 163037 | D6: 188270 | E6: 217261 | F6: 250438 | G6: 288213 | H6: 331406 | J6: 0.02316114467 | K6: 0.03312390758 | L6: 0.04308269764 | M6: 0.05308990986 | N6: 0.06311443517 | O6: 0.07311822603 | P6: 0.08315520528
A7: 16 | B7: 144449 | C7: 168676 | D7: 196660 | E7: 229225 | F7: 266727 | G7: 309899 | H7: 359753 | J7: 0.02325095519 | K7: 0.03321530524 | L7: 0.04317519615 | M7: 0.0532133948 | N7: 0.06323480859 | O7: 0.07325089898 | P7: 0.08330382482
A8: 17 | B8: 148003 | C8: 174511 | D8: 205486 | E8: 241850 | F8: 284079 | G8: 333317 | H8: 390527 | J8: 0.02333048715 | K8: 0.03329629221 | L8: 0.04327537158 | M8: 0.05332292097 | N8: 0.06334180903 | O8: 0.07338697596 | P8: 0.0834353558
A9: 18 | B9: 151646 | C9: 180549 | D9: 214754 | E9: 255172 | F9: 302574 | G9: 358507 | H9: 423936 | J9: 0.02340177152 | K9: 0.03336865168 | L9: 0.04337681313 | M9: 0.05342066653 | N9: 0.06343969463 | O9: 0.07350834409 | P9: 0.08355264485
A10: 19 | B10: 155379 | C10: 186796 | D10: 224441 | E10: 269229 | F10: 322424 | G10: 385603 | H10: 460207 | J10: 0.02346567085 | K10: 0.03343342427 | L10: 0.04346782649 | M10: 0.05350837267 | N10: 0.06355348454 | O10: 0.07361728506 | P10: 0.08365808303
A11: 20 | B11: 159205 | C11: 193262 | D11: 234567 | E11: 284064 | F11: 343578 | G11: 414750 | H11: 499584 | J11: 0.02352353932 | K11: 0.03349248609 | L11: 0.04355020006 | M11: 0.05358798639 | N11: 0.06365617905 | O11: 0.07371574023 | P11: 0.08375328289
A12: 21 | B12: 163125 | C12: 199952 | D12: 245151 | E12: 299717 | F12: 366122 | G12: 446104 | H12: 542334 | J12: 0.02357583654 | K12: 0.03354596957 | L12: 0.04362496725 | M12: 0.05366011761 | N12: 0.06374939246 | O12: 0.07380526591 | P12: 0.08383978108
A13: 22 | B13: 167143 | C13: 206970 | D13: 256215 | E13: 316381 | F13: 390148 | G13: 479830 | H13: 588745 | J13: 0.02362379389 | K13: 0.03361648512 | L13: 0.04369339289 | M13: 0.05374817654 | N13: 0.06383448195 | O13: 0.07388683441 | P13: 0.08391865872
A14: 23 | B14: 171262 | C14: 214244 | D14: 267780 | E14: 333987 | F14: 415754 | G14: 516109 | H14: 639131 | J14: 0.02366811082 | K14: 0.03368290359 | L14: 0.04375615482 | M14: 0.05383071055 | N14: 0.06391255029 | O14: 0.07396161161 | P14: 0.08399092676
A15: 24 | B15: 175482 | C15: 221776 | D15: 279869 | E15: 352574 | F15: 443042 | G15: 555134 | H15: 693833 | J15: 0.02370861315 | K15: 0.0337442481 | L15: 0.04381399767 | M15: 0.0539065293 | N15: 0.06398426203 | O15: 0.0740304051 | P15: 0.08405742819
A16: 25 | B16: 179807 | C16: 229574 | D16: 292505 | E16: 372199 | F16: 472124 | G16: 597112 | H16: 753220 | J16: 0.02374610823 | K16: 0.03380090508 | L16: 0.04386739278 | M16: 0.05397669499 | N16: 0.06405050732 | O16: 0.07409385505 | P16: 0.08411879506
A17: 26 | B17: 184241 | C17: 237647 | D17: 305777 | E17: 392917 | F17: 503118 | G17: 642268 | H17: 817693 | J17: 0.02378123416 | K17: 0.03385334208 | L17: 0.04392528304 | M17: 0.05404153266 | N17: 0.06411190534 | O17: 0.07415266664 | P17: 0.08417559287
A18: 27 | B18: 188784 | C18: 246005 | D18: 319746 | E18: 414792 | F18: 536149 | G18: 690842 | H18: 887689 | J18: 0.02381369066 | K18: 0.03390207031 | L18: 0.04399035384 | M18: 0.0541019248 | N18: 0.06416892801 | O18: 0.07420730452 | P18: 0.08422838226
A19: 28 | B19: 193440 | C19: 254659 | D19: 334355 | E19: 437886 | F19: 571351 | G19: 743092 | H19: 963679 | J19: 0.02384401483 | K19: 0.03394761737 | L19: 0.04405098617 | M19: 0.05415810483 | N19: 0.06422204197 | O19: 0.07425816627 | P19: 0.08427749232
A20: 29 | B20: 198212 | C20: 263619 | D20: 349634 | E20: 462268 | F20: 608866 | G20: 799297 | H20: 1046178 | J20: 0.02387245663 | K20: 0.03399023718 | L20: 0.04410770001 | M20: 0.05421058734 | N20: 0.06427160004 | O20: 0.07430567126 | P20: 0.0843233579
A21: 30 | B21: 203163 | C21: 272895 | D21: 365612 | E21: 488010 | F21: 648848 | G21: 859756 | H21: 1135743 | J21: 0.02390929905 | K21: 0.0340301118 | L21: 0.04416071153 | M21: 0.0542597449 | N21: 0.06431806185 | O21: 0.07435012949 | P21: 0.08436627554
A22: 31 | B22: 208281 | C22: 282499 | D22: 382323 | E22: 515188 | F22: 691458 | G22: 924791 | H22: 1232979 | J22: 0.02395063839 | K22: 0.03406760467 | L22: 0.04421055366 | M22: 0.05430589964 | N22: 0.06436165352 | O22: 0.0743918286 | P22: 0.08440651648
A23: 32 | B23: 213529 | C23: 292443 | D23: 399799 | E23: 543881 | F23: 736868 | G23: 994749 | H23: 1338543 | J23: 0.0239895558 | K23: 0.03410297715 | L23: 0.04425738007 | M23: 0.05434925738 | N23: 0.06440260319 | O23: 0.07443104184 | P23: 0.08444432458
A24: 33 | B24: 218910 | C24: 302775 | D24: 418075 | E24: 574174 | F24: 785262 | G24: 1070001 | H24: 1453148 | J24: 0.02402622473 | K24: 0.03414013713 | L24: 0.0443014591 | M24: 0.05439009837 | N24: 0.06444114631 | O24: 0.07446793648 | P24: 0.08447990861
A25: 34 | B25: 224427 | C25: 313591 | D25: 437188 | E25: 606157 | F25: 836838 | G25: 1150949 | H25: 1577568 | J25: 0.02406079115 | K25: 0.03418665434 | L25: 0.04434305582 | M25: 0.05442867884 | N25: 0.06447756231 | O25: 0.07450275107 | P25: 0.08451345331
A26: 35 | B26: 230085 | C26: 324795 | D26: 457177 | E26: 639923 | F26: 891803 | G26: 1238023 | H26: 1712646 | J26: 0.02409363265 | K26: 0.03423066282 | L26: 0.04438242182 | M26: 0.05446512488 | N26: 0.06451194932 | O26: 0.07453562938 | P26: 0.08454517319
A27: 36 | B27: 235886 | C27: 336401 | D27: 478082 | E27: 675572 | F27: 950382 | G27: 1331689 | H27: 1859292 | J27: 0.02412469362 | K27: 0.03427237354 | L27: 0.04441972767 | M27: 0.05449963678 | N27: 0.06454454524 | O27: 0.07456678281 | P27: 0.08457516499
A28: 37 | B28: 241834 | C28: 348423 | D28: 499944 | E28: 713209 | F28: 1012810 | G28: 1432443 | H28: 2018498 | J28: 0.02415416151 | K28: 0.03431193379 | L28: 0.04445507989 | M28: 0.05453236636 | N28: 0.06457541361 | O28: 0.07459628237 | P28: 0.08460358542
A29: 38 | B29: 247933 | C29: 360875 | D29: 522807 | E29: 752945 | F29: 1079342 | G29: 1540823 | H29: 2191340 | J29: 0.02418218987 | K29: 0.03434944112 | L29: 0.04448863999 | M29: 0.05456345513 | N29: 0.06460474315 | O29: 0.07462428647 | P29: 0.08463055806
A30: 39 | B30: 254186 | C30: 373774 | D30: 546718 | E30: 794897 | F30: 1150246 | G30: 1657406 | H30: 2378985 | J30: 0.02420880067 | K30: 0.03438516734 | L30: 0.04452060004 | M30: 0.05459302301 | N30: 0.06463260448 | O30: 0.07465090279 | P30: 0.08465617977
A31: 40 | B31: 260599 | C31: 387135 | D31: 571724 | E31: 839189 | F31: 1225811 | G31: 1782813 | H31: 2582701 | J31: 0.02423430717 | K31: 0.03441917134 | L31: 0.04455102744 | M31: 0.05462119342 | N31: 0.06465914253 | O31: 0.07467623414 | P31: 0.08468055153
A32: 41 | B32: 267174 | C32: 400975 | D32: 597875 | E32: 885950 | F32: 1306342 | G32: 1917712 | H32: 2803865 | J32: 0.024258589 | K32: 0.03445160543 | L32: 0.04458002535 | M32: 0.0546480203 | N32: 0.06468442212 | O32: 0.07470037311 | P32: 0.08470376793
A33: 42 | B33: 273915 | C33: 415311 | D33: 625224 | E33: 935319 | F33: 1392167 | G33: 2062821 | H33: 3043972 | J33: 0.02428172494 | K33: 0.03448256849 | L33: 0.04460771626 | M33: 0.05467363476 | N33: 0.0647085609 | O33: 0.07472339638 | P33: 0.08472591405
A34: 43 | B34: 280828 | C34: 430161 | D34: 653826 | E34: 987441 | F34: 1483632 | G34: 2218913 | H34: 3304643 | J34: 0.0243039481 | K34: 0.03451217321 | L34: 0.04463419258 | M34: 0.05469810672 | N34: 0.06473160094 | O34: 0.07474538219 | P34: 0.08474705043
A35: 44 | B35: 287915 | C35: 445543 | D35: 683737 | E35: 1042470 | F35: 1581109 | G35: 2386818 | H35: 3587639 | J35: 0.02432512367 | K35: 0.0345404868 | L35: 0.04465948516 | M35: 0.05472152265 | N35: 0.06475363662 | O35: 0.0747663859 | P35: 0.08476724294
A36: 45 | B36: 295183 | C36: 461476 | D36: 715019 | E36: 1100567 | F36: 1684993 | G36: 2567432 | H36: 3894874 | J36: 0.02434552446 | K36: 0.03456759053 | L36: 0.04468373998 | M36: 0.05474392591 | N36: 0.06477472995 | O36: 0.07478649036 | P36: 0.08478656552
A37: 46 | B37: 302685 | C37: 477979 | D37: 747733 | E37: 1161904 | F37: 1795704 | G37: 2761716 | H37: 4228422 | J37: 0.02436875648 | K37: 0.03459352697 | L37: 0.0447069651 | M37: 0.05476539989 | N37: 0.06479492569 | O37: 0.07480574369 | P37: 0.08480506106
A38: 47 | B38: 310481 | C38: 495075 | D38: 781946 | E38: 1226661 | F38: 1913692 | G38: 2970705 | H38: 4590538 | J38: 0.02439825592 | K38: 0.03461848619 | L38: 0.04472926632 | M38: 0.05478598895 | N38: 0.06481429589 | O38: 0.07482420149 | P38: 0.08482278856
A39: 48 | B39: 318480 | C39: 512783 | D39: 817725 | E39: 1295029 | F39: 2039435 | G39: 3195511 | H39: 4983668 | J39: 0.02442667479 | K39: 0.034642428 | L39: 0.04475065375 | M39: 0.05480575214 | N39: 0.0648328867 | O39: 0.07484190487 | P39: 0.08483979086
A40: 49 | B40: 326685 | C40: 531125 | D40: 855144 | E40: 1367210 | F40: 2173442 | G40: 3437332 | H40: 5410468 | J40: 0.02445392931 | K40: 0.03466541754 | L40: 0.04477124051 | M40: 0.0548247485 | N40: 0.06485073702 | O40: 0.07485890486 | P40: 0.08485611033
A41: 50 | B41: 335102 | C41: 550124 | D41: 894275 | E41: 1443416 | F41: 2316257 | G41: 3697455 | H41: 5873822 | J41: 0.02448013191 | K41: 0.03468752242 | L41: 0.04479099744 | M41: 0.05484301234 | N41: 0.06486789826 | O41: 0.07487523756 | P41: 0.08487178819
A42: 51 | B42: 343737 | C42: 569805 | D42: 935200 | E42: 1523871 | F42: 2468459 | G42: 3977267 | H42: 6376862 | J42: 0.02450537403 | K42: 0.03470884571 | L42: 0.04481005405 | M42: 0.05486057933 | N42: 0.06488441003 | O42: 0.07489095105 | P42: 0.08488686557
A43: 52 | B43: 352595 | C43: 590190 | D43: 977998 | E43: 1608813 | F43: 2630664 | G43: 4278256 | H43: 6922986 | J43: 0.02452967332 | K43: 0.03472934595 | L43: 0.04482838083 | M43: 0.05487750239 | N43: 0.06490030065 | O43: 0.07490606855 | P43: 0.08490137274
A44: 53 | B44: 361682 | C44: 611306 | D44: 1022757 | E44: 1698491 | F44: 2803530 | G44: 4602027 | H44: 7515883 | J44: 0.02455309533 | K44: 0.03474912786 | L44: 0.04484606289 | M44: 0.05489380179 | N44: 0.06491560862 | O44: 0.0749206332 | P44: 0.08491533844
A45: 54 | B45: 371004 | C45: 633178 | D45: 1069565 | E45: 1793170 | F45: 2987758 | G45: 4950302 | H45: 8159561 | J45: 0.02457569188 | K45: 0.03476819276 | L45: 0.0448631005 | M45: 0.05490952165 | N45: 0.06493036728 | O45: 0.07493466493 | P45: 0.08492879748
A46: 55 | B46: 380566 | C46: 655834 | D46: 1118517 | E46: 1893129 | F46: 3184094 | G46: 5324937 | H46: 8858368 | J46: 0.02459745422 | K46: 0.03478660599 | L46: 0.04487954876 | M46: 0.05492469348 | N46: 0.06494460071 | O46: 0.07494819771 | P46: 0.0849417737
A47: 56 | B47: 390376 | C47: 679302 | D47: 1169711 | E47: 1998661 | F47: 3393335 | G47: 5727927 | H47: 9617025 | J47: 0.02461851268 | K47: 0.03480439828 | L47: 0.04489543468 | M47: 0.05493933173 | N47: 0.06495834322 | O47: 0.07496125712 | P47: 0.08495429121
A48: 57 | B48: 400439 | C48: 703610 | D48: 1223249 | E48: 2110079 | F48: 3616327 | G48: 6161418 | H48: 10440660 | J48: 0.02463883821 | K48: 0.0348215726 | L48: 0.04491077654 | M48: 0.05495348414 | N48: 0.06497160805 | O48: 0.07497386705 | P48: 0.08496637758
A49: 58 | B49: 410761 | C49: 728789 | D49: 1279239 | E49: 2227709 | F49: 3853976 | G49: 6627718 | H49: 11334836 | J49: 0.02465844599 | K49: 0.03483818357 | L49: 0.04492561142 | M49: 0.05496715571 | N49: 0.06498443063 | O49: 0.07498604869 | P49: 0.08497805072
A50: 59 | B50: 421351 | C50: 754869 | D50: 1337793 | E50: 2351898 | F50: 4107244 | G50: 7129310 | H50: 12305596 | J50: 0.02467746913 | K50: 0.03485423073 | L50: 0.04493996018 | M50: 0.0549803755 | N50: 0.06499682642 | O50: 0.07499782295 | P50: 0.08498933356
A51: 60 | B51: 432213 | C51: 781884 | D51: 1399029 | E51: 2483012 | F51: 4377158 | G51: 7668867 | H51: 13359499 | J51: 0.02469581798 | K51: 0.03486978109 | L51: 0.04495385369 | M51: 0.05499316743 | N51: 0.06500881821 | O51: 0.0750092143 | P51: 0.08500024486
I52: Rendite
I53: =SUM(J53:P53) -> 0.05266675247 | J53: =IF(Hilfe!$E$3='FSX (Einzel)'!J2,VLOOKUP(Hilfe!$B$54,$A$3:$P$51,10),0) -> 0 | K53: =IF(Hilfe!$E$3='FSX (Einzel)'!K2,VLOOKUP(Hilfe!$B$54,$A$3:$P$51,11),0) -> 0 | L53: =IF(Hilfe!$E$3='FSX (Einzel)'!L2,VLOOKUP(Hilfe!$B$54,$A$3:$P$51,12),0) -> 0 | M53: =IF(Hilfe!$E$3='FSX (Einzel)'!M2,VLOOKUP(Hilfe!$B$54,$A$3:$P$51,13),0) -> 0.05266675247 | N53: =IF(Hilfe!$E$3='FSX (Einzel)'!N2,VLOOKUP(Hilfe!$B$54,$A$3:$P$51,14),0) -> 0 | O53: =IF(Hilfe!$E$3='FSX (Einzel)'!O2,VLOOKUP(Hilfe!$B$54,$A$3:$P$51,15),0) -> 0 | P53: =IF(Hilfe!$E$3='FSX (Einzel)'!P2,VLOOKUP(Hilfe!$B$54,$A$3:$P$51,16),0) -> 0

Sheet FSX (EB, U) (hidden)
A1: Laufzeit | B1: FSX Sondertarif U Vertragsguthaben in EUR, Beitrag: 100000€ Einmalbeitrag, Alter: 0 Jahre | K1: Stand 13.02.2018
B2: 0.03 | C2: 0.04 | D2: 0.05 | E2: 0.06 | F2: 0.07 | G2: 0.08 | H2: 0.09 | J2: 0.03 | K2: 0.04 | L2: 0.05 | M2: 0.06 | N2: 0.07 | O2: 0.08 | P2: 0.09
A3: 12 | B3: 134247 | C3: 150799 | D3: 169188 | E3: 189609 | F3: 212363 | G3: 237636 | H3: 265617 | J3: =(B3/100000)^(1/$A3)-1 -> 0.02484624869 | K3: =(C3/100000)^(1/$A3)-1 -> 0.0348241096 | L3: 0.04479430431 | M3: 0.054763062 | N3: 0.06477187469 | O3: 0.07479594551 | P3: 0.08481243704
A4: 13 | B4: 137823 | C4: 156324 | D4: 177078 | E4: 200346 | F4: 226624 | G4: 255968 | H4: 288762 | J4: =(B4/100000)^(1/$A4)-1 -> 0.02498392368 | K4: 0.03496354023 | L4: 0.04493574389 | M4: 0.05490632955 | N4: 0.06495491716 | O4: 0.07497632133 | P4: 0.08499105317
A5: 14 | B5: 141496 | C5: 162053 | D5: 185338 | E5: 211799 | F5: 241844 | G5: 275717 | H5: 314005 | J5: 0.02510284823 | K5: 0.03508378532 | L5: 0.0450578202 | M5: 0.0550675816 | N5: 0.06511225052 | O5: 0.07513173621 | P5: 0.0851642276
A6: 15 | B6: 145267 | C6: 167993 | D6: 193984 | E6: 223909 | F6: 258090 | G6: 296993 | H6: 341544 | J6: 0.02520598103 | K6: 0.03518843719 | L6: 0.04516388377 | M6: 0.05520806858 | N6: 0.0652496786 | O6: 0.0752672395 | P6: 0.08533325635
A7: 16 | B7: 149140 | C7: 174153 | D7: 203061 | E7: 236713 | F7: 275429 | G7: 320047 | H7: 371501 | J7: 0.02529687496 | K7: 0.0352808601 | L7: 0.0452655992 | M7: 0.05533145261 | N7: 0.06537034555 | O7: 0.07541443114 | P7: 0.08548168265
A8: 17 | B8: 153117 | C8: 180539 | D8: 212644 | E8: 250252 | F8: 293935 | G8: 344922 | H8: 404089 | J8: 0.02537737406 | K8: 0.0353624584 | L8: 0.04537886074 | M8: 0.05544103167 | N8: 0.06547728222 | O8: 0.07555008993 | P8: 0.08561321008
A9: 18 | B9: 157201 | C9: 187161 | D9: 222682 | E9: 264567 | F9: 313792 | G9: 371734 | H9: 439538 | J9: 0.02544927785 | K9: 0.03543555879 | L9: 0.04548026584 | M9: 0.05553880511 | N9: 0.06559264653 | O9: 0.07567127528 | P9: 0.08573046425
A10: 19 | B10: 161395 | C10: 194026 | D10: 233194 | E10: 279703 | F10: 335048 | G10: 400632 | H10: 478101 | J10: 0.02551397487 | K10: 0.03550100005 | L10: 0.04557104036 | M10: 0.05562672105 | N10: 0.06570551218 | O10: 0.07577997151 | P10: 0.08583588994
A11: 20 | B11: 165701 | C11: 201154 | D11: 244205 | E11: 295707 | F11: 357747 | G11: 431780 | H11: 520050 | J11: 0.02557223891 | K11: 0.03556278224 | L11: 0.04565333658 | M11: 0.05570621983 | N11: 0.06580756876 | O11: 0.07587824557 | P11: 0.0859310599
A12: 21 | B12: 170123 | C12: 208640 | D12: 255737 | E12: 312733 | F12: 381986 | G12: 465352 | H12: 565683 | J12: 0.02562527735 | K12: 0.0356414123 | L12: 0.04572801102 | M12: 0.05579524206 | N12: 0.06590020332 | O12: 0.07596742464 | P12: 0.08601748024
A13: 22 | B13: 174665 | C13: 216406 | D13: 267815 | E13: 330796 | F13: 407870 | G13: 501537 | H13: 615324 | J13: 0.02567402813 | K13: 0.03571320533 | L13: 0.04579615511 | M13: 0.05588440356 | N13: 0.0659847439 | O13: 0.07604876538 | P13: 0.08609635711
A14: 23 | B14: 179328 | C14: 224463 | D14: 280466 | E14: 349905 | F14: 435511 | G14: 540540 | H14: 669324 | J14: 0.02571847613 | K14: 0.03577914783 | L14: 0.04585879543 | M14: 0.05596617372 | N14: 0.06606226439 | O14: 0.07612341183 | P14: 0.08616857761
A15: 24 | B15: 184117 | C15: 232821 | D15: 293716 | E15: 370120 | F15: 465027 | G15: 582578 | H15: 728067 | J15: 0.02575957298 | K15: 0.0358397898 | L15: 0.04591642588 | M15: 0.05604138917 | N15: 0.06613350108 | O15: 0.07619198513 | P15: 0.08623503468
A16: 25 | B16: 189035 | C16: 241491 | D16: 307671 | E16: 391506 | F16: 496547 | G16: 627888 | H16: 791969 | J16: 0.02579762416 | K16: 0.03589571831 | L16: 0.04598019745 | M16: 0.05611092903 | N16: 0.06619935262 | O16: 0.07625526079 | P16: 0.08629636751
A17: 26 | B17: 194086 | C17: 250486 | D17: 322371 | E17: 414129 | F17: 530205 | G17: 676726 | H17: 861483 | J17: 0.02583308174 | K17: 0.0359476875 | L17: 0.04604929848 | M17: 0.05617525027 | N17: 0.06626026159 | O17: 0.07631391801 | P17: 0.08635314848
A18: 27 | B18: 199272 | C18: 259818 | D18: 337776 | E18: 438062 | F18: 566148 | G18: 729366 | H18: 937101 | J18: 0.0258659211 | K18: 0.03599609837 | L18: 0.04611358997 | M18: 0.05623505516 | N18: 0.06631690758 | O18: 0.07636841415 | P18: 0.08640583358
A19: 28 | B19: 204684 | C19: 269498 | D19: 353918 | E19: 463380 | F19: 604530 | G19: 786103 | H19: 1019361 | J19: 0.02591206939 | K19: 0.03604109878 | L19: 0.04617338229 | M19: 0.05629074467 | N19: 0.06636966112 | O19: 0.07641913413 | P19: 0.08645492955
A20: 29 | B20: 210260 | C20: 279541 | D20: 370834 | E20: 490163 | F20: 645517 | G20: 847257 | H20: 1108845 | J20: 0.02595790014 | K20: 0.03608329829 | L20: 0.04622930593 | M20: 0.05634272504 | N20: 0.06641894361 | O20: 0.07646650985 | P20: 0.08650074651
A21: 30 | B21: 215990 | C21: 289959 | D21: 388560 | E21: 518497 | F21: 689285 | G21: 913171 | H21: 1206188 | J21: 0.02600100965 | K21: 0.0361227744 | L21: 0.04628163655 | M21: 0.05639144364 | N21: 0.06646505046 | O21: 0.07651083097 | P21: 0.08654362186
A22: 31 | B22: 221877 | C22: 300767 | D22: 407135 | E22: 548471 | F22: 736023 | G22: 984215 | H22: 1312079 | J22: 0.02604146577 | K22: 0.03615989834 | L22: 0.04633073353 | M22: 0.05643715445 | N22: 0.06650829656 | O22: 0.07655236816 | P22: 0.08658379877
A23: 32 | B23: 227926 | C23: 312136 | D23: 426600 | E23: 580180 | F23: 785933 | G23: 1060791 | H23: 1427270 | J23: 0.02607961213 | K23: 0.03621111303 | L23: 0.04637691945 | M23: 0.05648013653 | N23: 0.06654896265 | O23: 0.07659146396 | P23: 0.08662155759
A24: 33 | B24: 234140 | C24: 323935 | D24: 446998 | E24: 613724 | F24: 839230 | G24: 1143326 | H24: 1552578 | J24: 0.02611545943 | K24: 0.03625925049 | L24: 0.04642047722 | M24: 0.05652060878 | N24: 0.06658726506 | O24: 0.07662822216 | P24: 0.08665711546
A25: 34 | B25: 240525 | C25: 336182 | D25: 468372 | E25: 649210 | F25: 896144 | G25: 1232287 | H25: 1688890 | J25: 0.02614939825 | K25: 0.03630473861 | L25: 0.04646151805 | M25: 0.05655882627 | N25: 0.06662341138 | O25: 0.07666293109 | P25: 0.08669063027
A26: 35 | B26: 247085 | C26: 348893 | D26: 490770 | E26: 686749 | F26: 956920 | G26: 1328172 | H26: 1837173 | J26: 0.02618150328 | K26: 0.03634771225 | L26: 0.04650033484 | M26: 0.05659491268 | N26: 0.06665756553 | O26: 0.07669570488 | P26: 0.08672228478
A27: 36 | B27: 253824 | C27: 362086 | D27: 514241 | E27: 726462 | F27: 1021820 | G27: 1431521 | H27: 1998479 | J27: 0.02621183513 | K27: 0.03638841131 | L27: 0.04653710422 | M27: 0.05662913272 | N27: 0.06668988716 | O27: 0.07672672421 | P27: 0.08675224029
A28: 37 | B28: 260749 | C28: 375779 | D28: 538837 | E28: 768473 | F28: 1091124 | G28: 1542916 | H28: 2173950 | J28: 0.02624076232 | K28: 0.03642699548 | L28: 0.04657201864 | M28: 0.0566615596 | N28: 0.06672052514 | O28: 0.07675614512 | P28: 0.08678060623
A29: 38 | B29: 267863 | C29: 389992 | D29: 564610 | E29: 812915 | F29: 1165132 | G29: 1662981 | H29: 2364833 | J29: 0.02626817456 | K29: 0.03646370214 | L29: 0.04660512485 | M29: 0.05669233276 | N29: 0.06674963621 | O29: 0.07678404737 | P29: 0.08680754338
A30: 39 | B30: 275173 | C30: 404743 | D30: 591618 | E30: 859930 | F30: 1244162 | G30: 1792392 | H30: 2572478 | J30: 0.0262943643 | K30: 0.03649855552 | L30: 0.04663663666 | M30: 0.05672161842 | N30: 0.06677730432 | O30: 0.07681056421 | P30: 0.08683311685
A31: 40 | B31: 282683 | C31: 420054 | D31: 619920 | E31: 909667 | F31: 1328555 | G31: 1931877 | H31: 2798360 | J31: 0.02631929143 | K31: 0.03653179442 | L31: 0.04666666147 | M31: 0.0567495243 | N31: 0.06680363901 | O31: 0.07683580328 | P31: 0.08685745741
A32: 41 | B32: 290398 | C32: 435946 | D32: 649577 | E32: 962282 | F32: 1418675 | G32: 2082219 | H32: 3044078 | J32: 0.02634300641 | K32: 0.03656351735 | L32: 0.04669526491 | M32: 0.05677610416 | N32: 0.06682873592 | O32: 0.07685983941 | P32: 0.08688062806
A33: 42 | B33: 298325 | C33: 452439 | D33: 680655 | E33: 1017942 | F33: 1514910 | G33: 2244264 | H33: 3311376 | J33: 0.02636571072 | K33: 0.03659371716 | L33: 0.04672258785 | M33: 0.05680146235 | N33: 0.06685266984 | O33: 0.07688276717 | P33: 0.08690272728
A34: 43 | B34: 306585 | C34: 469558 | D34: 713221 | E34: 1076823 | F34: 1617676 | G34: 2418923 | H34: 3602148 | J34: 0.02639644054 | K34: 0.03662261716 | L34: 0.0467486789 | M34: 0.05682567663 | N34: 0.06687553637 | O34: 0.07690466145 | P34: 0.08692381856
A35: 44 | B35: 315113 | C35: 487327 | D35: 747347 | E35: 1139113 | F35: 1727416 | G35: 2607178 | H35: 3918457 | J35: 0.02642868382 | K35: 0.03665031382 | L35: 0.04677364434 | M35: 0.05684885691 | N35: 0.06689740224 | O35: 0.07692559126 | P35: 0.08694397867
A36: 45 | B36: 323880 | C36: 505768 | D36: 783108 | E36: 1205008 | F36: 1844602 | G36: 2810086 | H36: 4262544 | J36: 0.02645962067 | K36: 0.03667676135 | L36: 0.04679756459 | M36: 0.05687104186 | N36: 0.06691831538 | O36: 0.0769456072 | P36: 0.08696325741
A37: 46 | B37: 332891 | C37: 524909 | D37: 820581 | E37: 1274717 | F37: 1969741 | G37: 3028789 | H37: 4636849 | J37: 0.02648921911 | K37: 0.03670215287 | L37: 0.04682046794 | M37: 0.05689230108 | N37: 0.06693835767 | O37: 0.07696477909 | P37: 0.08698171396
A38: 47 | B38: 342153 | C38: 544775 | D38: 859849 | E38: 1348461 | F38: 2103372 | G38: 3264516 | H38: 5044026 | J38: 0.02651757772 | K38: 0.03672648882 | L38: 0.04684244521 | M38: 0.05691269566 | N38: 0.06695757432 | O38: 0.0769831552 | P38: 0.0869994006
A39: 48 | B39: 351674 | C39: 565395 | D39: 900998 | E39: 1426473 | F39: 2246070 | G39: 3518592 | H39: 5486962 | J39: 0.02654483476 | K39: 0.03674989306 | L39: 0.04686355254 | M39: 0.05693226887 | N39: 0.06697600264 | O39: 0.07700078285 | P39: 0.08701636479
A40: 49 | B40: 361461 | C40: 586796 | D40: 944117 | E40: 1508999 | F40: 2398453 | G40: 3792446 | H40: 5968797 | J40: 0.02657104149 | K40: 0.03677236138 | L40: 0.04688381617 | M40: 0.05695105497 | N40: 0.06699371551 | O40: 0.07701771077 | P40: 0.08703264806
A41: 50 | B41: 371521 | C41: 609008 | D41: 989302 | E41: 1596303 | F41: 2561176 | G41: 4087616 | H41: 6492948 | J41: 0.0265962354 | K41: 0.0367939635 | L41: 0.04690332163 | M41: 0.05696913773 | N41: 0.06701073418 | O41: 0.07703397125 | P41: 0.08704829324
A42: 51 | B42: 381862 | C42: 632063 | D42: 1036651 | E42: 1688659 | F42: 2734941 | G42: 4405763 | H42: 7063130 | J42: 0.02662049542 | K42: 0.03681478994 | L42: 0.04692209155 | M42: 0.05698652364 | N42: 0.06702710148 | O42: 0.07704961162 | P42: 0.08706333289
A43: 52 | B43: 392492 | C43: 655991 | D43: 1086268 | E43: 1786361 | F43: 2920498 | G43: 4748675 | H43: 7683387 | J43: 0.02664388156 | K43: 0.0368348223 | L43: 0.04694017377 | M43: 0.05700327111 | N43: 0.06704285901 | O43: 0.07706466377 | P43: 0.08707780555
A44: 53 | B44: 403418 | C44: 680826 | D44: 1138261 | E44: 1889717 | F44: 3118647 | G44: 5118279 | H44: 8358115 | J44: 0.02666639002 | K44: 0.03685413236 | L44: 0.04695759463 | M44: 0.05701939933 | N44: 0.06705803861 | O44: 0.07707915712 | P44: 0.08709173816
A45: 54 | B45: 414649 | C45: 706603 | D45: 1192744 | E45: 1999056 | F45: 3330242 | G45: 5516654 | H45: 9092099 | J45: 0.02668810415 | K45: 0.03687277588 | L45: 0.04697439352 | M45: 0.05703495968 | N45: 0.06707266837 | O45: 0.0770931268 | P45: 0.08710516324
A46: 55 | B46: 426193 | C46: 733357 | D46: 1249836 | E46: 2114722 | F46: 3556196 | G46: 5946038 | H46: 9890542 | J46: 0.02670904371 | K46: 0.03689076871 | L46: 0.04699059954 | M46: 0.0570499603 | N46: 0.06708678069 | O46: 0.07710659516 | P46: 0.08711810585
A47: 56 | B47: 438059 | C47: 761124 | D47: 1309663 | E47: 2237083 | F47: 3797483 | G47: 6408846 | H47: 10759105 | J47: 0.02672926137 | K47: 0.03690811965 | L47: 0.04700625882 | M47: 0.05706444673 | N47: 0.06710040031 | O47: 0.07711959246 | P47: 0.08713059168
A48: 57 | B48: 450256 | C48: 789944 | D48: 1372355 | E48: 2366526 | F48: 4055144 | G48: 6907679 | H48: 11703947 | J48: 0.02674879518 | K48: 0.03692490034 | L48: 0.04702138506 | M48: 0.05707844079 | N48: 0.06711355486 | O48: 0.07713214067 | P48: 0.08714264596
A49: 58 | B49: 462793 | C49: 819857 | D49: 1438049 | E49: 2503461 | F49: 4330290 | G49: 7445342 | H49: 12731766 | J49: 0.02676767088 | K49: 0.03694114034 | L49: 0.04703600257 | M49: 0.05709196788 | N49: 0.06712626692 | O49: 0.07714426454 | P49: 0.08715428907
A50: 59 | B50: 475680 | C50: 850902 | D50: 1506889 | E50: 2648321 | F50: 4624106 | G50: 8024856 | H50: 13849849 | J50: 0.02678594064 | K50: 0.03695681515 | L50: 0.04705013959 | M50: 0.05710504667 | N50: 0.06713855227 | O50: 0.07715598144 | P50: 0.08716554138
A51: 60 | B51: 488926 | C51: 883125 | D51: 1579027 | E51: 2801565 | F51: 4937861 | G51: 8649481 | H51: 15066123 | J51: 0.02680360685 | K51: 0.03697201542 | L51: 0.04706383429 | M51: 0.0571177012 | N51: 0.06715043974 | O51: 0.07716731636 | P51: 0.08717642206
I52: Rendite
I53: =SUM(J53:P53) -> 0.054763062 | J53: =IF(Hilfe!$E$3='FSX (Einzel)'!J2,VLOOKUP(Hilfe!$B$54,$A$3:$P$51,10),0) -> 0 | K53: =IF(Hilfe!$E$3='FSX (Einzel)'!K2,VLOOKUP(Hilfe!$B$54,$A$3:$P$51,11),0) -> 0 | L53: =IF(Hilfe!$E$3='FSX (Einzel)'!L2,VLOOKUP(Hilfe!$B$54,$A$3:$P$51,12),0) -> 0 | M53: =IF(Hilfe!$E$3='FSX (Einzel)'!M2,VLOOKUP(Hilfe!$B$54,$A$3:$P$51,13),0) -> 0.054763062 | N53: =IF(Hilfe!$E$3='FSX (Einzel)'!N2,VLOOKUP(Hilfe!$B$54,$A$3:$P$51,14),0) -> 0 | O53: =IF(Hilfe!$E$3='FSX (Einzel)'!O2,VLOOKUP(Hilfe!$B$54,$A$3:$P$51,15),0) -> 0 | P53: =IF(Hilfe!$E$3='FSX (Einzel)'!P2,VLOOKUP(Hilfe!$B$54,$A$3:$P$51,16),0) -> 0

Sheet FSX (EB, V) (hidden)
A1: Laufzeit | B1: FSX Sondertarif V Vertragsguthaben in EUR, Beitrag: 100000€ Einmalbeitrag, Alter: 0 Jahre | K1: Stand 13.02.2018
B2: 0.03 | C2: 0.04 | D2: 0.05 | E2: 0.06 | F2: 0.07 | G2: 0.08 | H2: 0.09 | J2: 0.03 | K2: 0.04 | L2: 0.05 | M2: 0.06 | N2: 0.07 | O2: 0.08 | P2: 0.09
A3: 12 | B3: 137600 | C3: 154553 | D3: 173392 | E3: 194314 | F3: 217662 | G3: 243548 | H3: 272218 | J3: =(B3/100000)^(1/$A3)-1 -> 0.02695528951 | K3: =(C3/100000)^(1/$A3)-1 -> 0.03694674646 | L3: 0.0469334791 | M3: 0.05691973611 | N3: 0.06696101494 | O3: 0.07699919981 | P3: 0.08703385444
A4: 13 | B4: 141557 | C4: 160545 | D4: 181850 | E4: 205780 | F4: 232752 | G4: 262870 | H4: 296539 | J4: =(B4/100000)^(1/$A4)-1 -> 0.02709379107 | K4: 0.0370868732 | L4: 0.04707537632 | M4: 0.05708019368 | N4: 0.06714287946 | O4: 0.07717873479 | P4: 0.08721137119
A5: 14 | B5: 145629 | C5: 166770 | D5: 190722 | E5: 217988 | F5: 248890 | G5: 283727 | H5: 323170 | J5: 0.02721312993 | K5: 0.03720730385 | L5: 0.04719757542 | M5: 0.05724041428 | N5: 0.06729935327 | O5: 0.07733320978 | P5: 0.08739650125
A6: 15 | B6: 149818 | C6: 173238 | D6: 200028 | E6: 230922 | F6: 266149 | G6: 306280 | H6: 352224 | J6: 0.02731650675 | K6: 0.03731233936 | L6: 0.04730389693 | M6: 0.05737982732 | N6: 0.06743553381 | O6: 0.07747675393 | P6: 0.08756343146
A7: 16 | B7: 154129 | C7: 179957 | D7: 209895 | E7: 244625 | F7: 284607 | G7: 330752 | H7: 383894 | J7: 0.02740759658 | K7: 0.03740430655 | L7: 0.04743029477 | M7: 0.0575022557 | N7: 0.06755522036 | O7: 0.0776280938 | P7: 0.08771021661
A8: 17 | B8: 158564 | C8: 186939 | D8: 220249 | E8: 259142 | F8: 304372 | G8: 357182 | H8: 418414 | J8: 0.02748795812 | K8: 0.03748624598 | L8: 0.0475419132 | M8: 0.05761049866 | N8: 0.06766638771 | O8: 0.07776212037 | P8: 0.08784011822
A9: 18 | B9: 163128 | C9: 194192 | D9: 231116 | E9: 274523 | F9: 325648 | G9: 385725 | H9: 456040 | J9: 0.02755988043 | K9: 0.03755911948 | L9: 0.04764170446 | M9: 0.05770726007 | N9: 0.06779042721 | O9: 0.0778814259 | P9: 0.08795585633
A10: 19 | B10: 167824 | C10: 201744 | D10: 242520 | E10: 290819 | F10: 348412 | G10: 416553 | H10: 497053 | J10: 0.02762444021 | K10: 0.03762908895 | L10: 0.04773118735 | M10: 0.05779424231 | N10: 0.06790154794 | O10: 0.07798874013 | P10: 0.08805982183
A11: 20 | B11: 172656 | C11: 209679 | D11: 254488 | E11: 308147 | F11: 372771 | G11: 449846 | H11: 541757 | J11: 0.02768279011 | K11: 0.03771416944 | L11: 0.04781199412 | M11: 0.05788363101 | N11: 0.06800209827 | O11: 0.0780854708 | P11: 0.08815365858
A12: 21 | B12: 177627 | C12: 217927 | D12: 267049 | E12: 326606 | F12: 398834 | G12: 485803 | H12: 590484 | J12: 0.02773555176 | K12: 0.03779135721 | L12: 0.04788555828 | M12: 0.05797971497 | N12: 0.06809320247 | O12: 0.07817331956 | P12: 0.08823877674
A13: 22 | B13: 182743 | C13: 226500 | D13: 280230 | E13: 346171 | F13: 426721 | G13: 524636 | H13: 643596 | J13: 0.02778399941 | K13: 0.03786164828 | L13: 0.04795244183 | M13: 0.05806710583 | N13: 0.06817623095 | O13: 0.07825336507 | P13: 0.08831634482
A14: 23 | B14: 188007 | C14: 235412 | D14: 294064 | E14: 366911 | F14: 456561 | G14: 566576 | H14: 701489 | J14: 0.02782839055 | K14: 0.03792616632 | L14: 0.04801388696 | M14: 0.05814727726 | N14: 0.06825236098 | O14: 0.07832669171 | P14: 0.08838742623
A15: 24 | B15: 193424 | C15: 244676 | D15: 308673 | E15: 388895 | F15: 488490 | G15: 611871 | H15: 764592 | J15: 0.02786938701 | K15: 0.03798554883 | L15: 0.04808324143 | M15: 0.05822093328 | N15: 0.06832236399 | O15: 0.07839407878 | P15: 0.08845272981
A16: 25 | B16: 198997 | C16: 254306 | D16: 324076 | E16: 412198 | F16: 522653 | G16: 660790 | H16: 833374 | J16: 0.02790708893 | K16: 0.03804041892 | L16: 0.04815587949 | M16: 0.0582888859 | N16: 0.06838685968 | O16: 0.07845626692 | P16: 0.0885129442
A17: 26 | B17: 204809 | C17: 264316 | D17: 340250 | E17: 436900 | F17: 559208 | G17: 713622 | H17: 908346 | J17: 0.02795703479 | K17: 0.03809121897 | L17: 0.04822321642 | M17: 0.05835186306 | N17: 0.06844660185 | O17: 0.0785137869 | P17: 0.08856864186
A18: 27 | B18: 210818 | C18: 274721 | D18: 357232 | E18: 463083 | F18: 598322 | G18: 770681 | H18: 990067 | J18: 0.02800820523 | K18: 0.03813839628 | L18: 0.04828565484 | M18: 0.05841023535 | N18: 0.06850207363 | O18: 0.07856720098 | P18: 0.08862039419
A19: 28 | B19: 217004 | C19: 285537 | D19: 375063 | E19: 490838 | F19: 640174 | G19: 832305 | H19: 1079142 | J19: 0.02805584114 | K19: 0.0381823874 | L19: 0.04834377869 | M19: 0.05846466271 | N19: 0.06855371434 | O19: 0.07861692893 | P19: 0.08866851776
A20: 29 | B20: 223372 | C20: 296780 | D20: 393786 | E20: 520258 | F20: 684956 | G20: 898859 | H20: 1176234 | J20: 0.0281002708 | K20: 0.03822348684 | L20: 0.04839807843 | M20: 0.058515444 | N20: 0.06860193015 | O20: 0.07866333359 | P20: 0.08871342146
A21: 30 | B21: 229929 | C21: 308569 | D21: 413445 | E21: 551443 | F21: 732872 | G21: 970737 | H21: 1282064 | J21: 0.02814205778 | K21: 0.03827343666 | L21: 0.04844887527 | M21: 0.0585629454 | N21: 0.06864700018 | O21: 0.0787067246 | P21: 0.08875540372
A22: 31 | B22: 236678 | C22: 320882 | D22: 434087 | E22: 584499 | F22: 784143 | G22: 1048365 | H22: 1397419 | J22: 0.02818108334 | K22: 0.03832598121 | L22: 0.04849651887 | M22: 0.05860748502 | N22: 0.06868929798 | O22: 0.07874739134 | P22: 0.08879475669
A23: 32 | B23: 243627 | C23: 333687 | D23: 455761 | E23: 619539 | F23: 839002 | G23: 1132204 | H23: 1523156 | J23: 0.0282179217 | K23: 0.03837530905 | L23: 0.04854128812 | M23: 0.05864937468 | N23: 0.06872899872 | O23: 0.07878561415 | P23: 0.08883171434
A24: 33 | B24: 250780 | C24: 347005 | D24: 478519 | E24: 656680 | F24: 897702 | G24: 1222749 | H24: 1660209 | J24: 0.02825252534 | K24: 0.03842183159 | L24: 0.04858346636 | M24: 0.05868874638 | N24: 0.06876640436 | O24: 0.07882155628 | P24: 0.08886648163
A25: 34 | B25: 258145 | C25: 360855 | D25: 502415 | E25: 696051 | F25: 960510 | G25: 1320538 | H25: 1809597 | J25: 0.02828532705 | K25: 0.03846565805 | L25: 0.04862326333 | M25: 0.05872595637 | N25: 0.06880164715 | O25: 0.07885545507 | P25: 0.0888992583
A26: 35 | B26: 265726 | C26: 375259 | D26: 527505 | E26: 737783 | F26: 1027716 | G26: 1426151 | H26: 1972430 | J26: 0.02831622238 | K26: 0.03850707715 | L26: 0.04866082708 | M26: 0.05876106288 | N26: 0.06883498466 | O26: 0.07888749022 | P26: 0.08893020791
A27: 36 | B27: 273531 | C27: 390239 | D27: 553850 | E27: 782020 | F27: 1099625 | G27: 1540212 | H27: 2149917 | J27: 0.02834554493 | K27: 0.03854627399 | L27: 0.04869641226 | M27: 0.05879433074 | N27: 0.06886648881 | O27: 0.07891777303 | P27: 0.08895946417
A28: 37 | B28: 281566 | C28: 405818 | D28: 581512 | E28: 828910 | F28: 1176568 | G28: 1663398 | H28: 2343379 | J28: 0.02837335715 | K28: 0.03858342344 | L28: 0.04873013648 | M28: 0.05882582124 | N28: 0.06889635344 | O28: 0.0789464654 | P28: 0.08898719025
A29: 38 | B29: 289838 | C29: 422021 | D29: 610557 | E29: 878615 | F29: 1258897 | G29: 1796439 | H29: 2554252 | J29: 0.02839979694 | K29: 0.0386187523 | L29: 0.04876215108 | M29: 0.05885576529 | N29: 0.06892469487 | O29: 0.07897368938 | P29: 0.08901348203
A30: 39 | B30: 298354 | C30: 438871 | D30: 641055 | E30: 931301 | F30: 1346989 | G30: 1940123 | H30: 2784103 | J30: 0.02842496814 | K30: 0.03865227457 | L30: 0.04879262039 | M30: 0.05888418837 | N30: 0.06895162677 | O30: 0.07899954907 | P30: 0.08903844846
A31: 40 | B31: 307235 | C31: 456395 | D31: 673077 | E31: 987148 | F31: 1441247 | G31: 2095301 | H31: 3034641 | J31: 0.02845848895 | K31: 0.0386841918 | L31: 0.04882159007 | M31: 0.0589112364 | N31: 0.0689772445 | O31: 0.07902413913 | P31: 0.08906219636
A32: 41 | B32: 316422 | C32: 474621 | D32: 706700 | E32: 1046346 | F32: 1542103 | G32: 2262894 | H32: 3307728 | J32: 0.02849367713 | K32: 0.03871467424 | L32: 0.04884919933 | M32: 0.05893701608 | N32: 0.06900164909 | O32: 0.07904756865 | P32: 0.08908481356
A33: 42 | B33: 325884 | C33: 493575 | D33: 742004 | E33: 1109095 | F33: 1650019 | G33: 2443894 | H33: 3605392 | J33: 0.02852721249 | K33: 0.03874371348 | L33: 0.04887554135 | M33: 0.05896159083 | N33: 0.06902492708 | O33: 0.07906990446 | P33: 0.08910636808
A34: 43 | B34: 335630 | C34: 513287 | D34: 779073 | E34: 1175610 | F34: 1765489 | G34: 2639374 | H34: 3929845 | J34: 0.0285592644 | K34: 0.03877145326 | L34: 0.04890070101 | M34: 0.0589850852 | N34: 0.06904715192 | O34: 0.0790912258 | P34: 0.08912693384
A35: 44 | B35: 345668 | C35: 533787 | D35: 817995 | E35: 1246115 | F35: 1889042 | G35: 2850493 | H35: 4283499 | J35: 0.02858989637 | K35: 0.03879796635 | L35: 0.04892474992 | M35: 0.05900753032 | N35: 0.06906839645 | O35: 0.07911160524 | P35: 0.08914658328
A36: 45 | B36: 356007 | C36: 555107 | D36: 858864 | E36: 1320850 | F36: 2021243 | G36: 3078500 | H36: 4668982 | J36: 0.02861921812 | K36: 0.038823354 | L36: 0.04894779784 | M36: 0.05902900673 | N36: 0.06908871452 | O36: 0.0791310867 | P36: 0.08916537541
A37: 46 | B37: 366655 | C37: 577280 | D37: 901775 | E37: 1400069 | F37: 2162698 | G37: 3324748 | H37: 5089158 | J37: 0.02864725105 | K37: 0.03884769544 | L37: 0.04896984634 | M37: 0.05904957962 | N37: 0.06910817283 | O37: 0.07914974289 | P37: 0.08918336198
A38: 47 | B38: 377623 | C38: 600339 | D38: 946832 | E38: 1484041 | F38: 2314055 | G38: 3590695 | H38: 5547150 | J38: 0.02867418011 | K38: 0.03887101373 | L38: 0.04899100557 | M38: 0.05906930445 | N38: 0.06912682695 | O38: 0.0791676165 | P38: 0.08920059628
A39: 48 | B39: 388920 | C39: 624321 | D39: 994141 | E39: 1573051 | F39: 2476006 | G39: 3877918 | H39: 6046360 | J39: 0.02870003775 | K39: 0.03889342769 | L39: 0.04901129975 | M39: 0.05908823031 | N39: 0.06914471527 | O39: 0.07918476227 | P39: 0.08921711881
A40: 49 | B40: 400555 | C40: 649261 | D40: 1043815 | E40: 1667402 | F40: 2649293 | G40: 4188118 | H40: 6590499 | J40: 0.02872484258 | K40: 0.03891492663 | L40: 0.04903079015 | M40: 0.05910641443 | N40: 0.06916188798 | O40: 0.07920121777 | P40: 0.0892329777
A41: 50 | B41: 412539 | C41: 675199 | D41: 1095973 | E41: 1767413 | F41: 2834711 | G41: 4523134 | H41: 7183611 | J41: 0.02874870193 | K41: 0.03893561871 | L41: 0.04904953863 | M41: 0.05912388181 | N41: 0.06917839855 | O41: 0.07921702805 | P41: 0.08924821306
A42: 51 | B42: 424883 | C42: 702174 | D42: 1150738 | E42: 1873424 | F42: 3033107 | G42: 4884951 | H42: 7830101 | J42: 0.0287716953 | K42: 0.03895552223 | L42: 0.04906756536 | M42: 0.05914067918 | N42: 0.0691942689 | O42: 0.07923222891 | P42: 0.08926285355
A43: 52 | B43: 437596 | C43: 730227 | D43: 1208242 | E43: 1985796 | F43: 3245390 | G43: 5275713 | H43: 8534776 | J43: 0.02879378864 | K43: 0.03897466926 | L43: 0.04908493964 | M43: 0.05915685502 | N43: 0.06920953949 | O43: 0.07924685452 | P43: 0.08927694107
A44: 53 | B44: 450690 | C44: 759403 | D44: 1268620 | E44: 2104909 | F44: 3472533 | G44: 5697736 | H44: 9302872 | J44: 0.02881507508 | K44: 0.03899315184 | L44: 0.04910166549 | M44: 0.05917242719 | N44: 0.06922424916 | O44: 0.07926093829 | P44: 0.08929050449
A45: 54 | B45: 464177 | C45: 789744 | D45: 1332016 | E45: 2231169 | F45: 3715576 | G45: 6153519 | H45: 10140095 | J45: 0.02883562255 | K45: 0.03901093268 | L45: 0.04911778384 | M45: 0.05918744309 | N45: 0.06923842697 | O45: 0.07927450349 | P45: 0.08930356852
A46: 55 | B46: 478068 | C46: 821299 | D46: 1398582 | E46: 2365004 | F46: 3975631 | G46: 6645765 | H46: 11052668 | J46: 0.02885543882 | K46: 0.0390281078 | L46: 0.04913334289 | M46: 0.05920192515 | N46: 0.06925209619 | O46: 0.0792875851 | P46: 0.08931616323
A47: 56 | B47: 492374 | C47: 854116 | D47: 1468476 | E47: 2506869 | F47: 4253889 | G47: 7177390 | H47: 12047371 | J47: 0.02887452148 | K47: 0.03904469561 | L47: 0.04914836483 | M47: 0.05921590533 | N47: 0.06926528468 | O47: 0.07930020547 | P47: 0.0893283109
A48: 57 | B48: 507110 | C48: 888244 | D48: 1541864 | E48: 2657245 | F48: 4551625 | G48: 7751545 | H48: 13131598 | J48: 0.02889300249 | K48: 0.03906069584 | L48: 0.04916287248 | M48: 0.05922940364 | N48: 0.06927802076 | O48: 0.07931239023 | P48: 0.08934003839
A49: 58 | B49: 522287 | C49: 923738 | D49: 1618920 | E49: 2816642 | F49: 4870201 | G49: 8371631 | H49: 14313404 | J49: 0.02891084566 | K49: 0.03907619003 | L49: 0.0491768844 | M49: 0.0592424406 | N49: 0.06929032164 | O49: 0.07932415828 | P49: 0.08935136403
A50: 59 | B50: 537918 | C50: 960650 | D50: 1699828 | E50: 2985603 | F50: 5211077 | G50: 9041324 | H50: 15601572 | J50: 0.02892807702 | K50: 0.03909115314 | L50: 0.0491904326 | M50: 0.05925505045 | N50: 0.06930221376 | O50: 0.07933553386 | P50: 0.08936230925
A51: 60 | B51: 554018 | C51: 999038 | D51: 1784781 | E51: 3164701 | F51: 5575814 | G51: 9764591 | H51: 17005675 | J51: 0.02894477128 | K51: 0.03910563536 | L51: 0.04920354405 | M51: 0.059267249 | N51: 0.0693137171 | O51: 0.07934653325 | P51: 0.08937289328
I52: Rendite
I53: =SUM(J53:P53) -> 0.05691973611 | J53: =IF(Hilfe!$E$3='FSX (Einzel)'!J2,VLOOKUP(Hilfe!$B$54,$A$3:$P$51,10),0) -> 0 | K53: =IF(Hilfe!$E$3='FSX (Einzel)'!K2,VLOOKUP(Hilfe!$B$54,$A$3:$P$51,11),0) -> 0 | L53: =IF(Hilfe!$E$3='FSX (Einzel)'!L2,VLOOKUP(Hilfe!$B$54,$A$3:$P$51,12),0) -> 0 | M53: =IF(Hilfe!$E$3='FSX (Einzel)'!M2,VLOOKUP(Hilfe!$B$54,$A$3:$P$51,13),0) -> 0.05691973611 | N53: =IF(Hilfe!$E$3='FSX (Einzel)'!N2,VLOOKUP(Hilfe!$B$54,$A$3:$P$51,14),0) -> 0 | O53: =IF(Hilfe!$E$3='FSX (Einzel)'!O2,VLOOKUP(Hilfe!$B$54,$A$3:$P$51,15),0) -> 0 | P53: =IF(Hilfe!$E$3='FSX (Einzel)'!P2,VLOOKUP(Hilfe!$B$54,$A$3:$P$51,16),0) -> 0

Sheet FSX (EB, W) (hidden)
A1: Laufzeit | B1: FSX Sondertarif W Vertragsguthaben in EUR, Beitrag: 100000€ Einmalbeitrag, Alter: 0 Jahre | K1: Stand 13.02.2018
B2: 0.03 | C2: 0.04 | D2: 0.05 | E2: 0.06 | F2: 0.07 | G2: 0.08 | H2: 0.09 | J2: 0.03 | K2: 0.04 | L2: 0.05 | M2: 0.06 | N2: 0.07 | O2: 0.08 | P2: 0.09
A3: 12 | B3: 140924 | C3: 158285 | D3: 177587 | E3: 199007 | F3: 222946 | G3: 249459 | H3: 278813 | J3: =(B3/100000)^(1/$A3)-1 -> 0.02900009173 | K3: =(C3/100000)^(1/$A3)-1 -> 0.03901060428 | L3: 0.04902119794 | M3: 0.0590237408 | N3: 0.06909584185 | O3: 0.07915360224 | P3: 0.08920447829
A4: 13 | B4: 145267 | C4: 164752 | D4: 186623 | E4: 211216 | F4: 238880 | G4: 269790 | H4: 304345 | J4: =(B4/100000)^(1/$A4)-1 -> 0.02913981921 | K4: 0.03915249398 | L4: 0.04916422741 | M4: 0.05920247201 | N4: 0.06927829949 | O4: 0.07933394166 | P4: 0.08938656047
A5: 14 | B5: 149745 | C5: 171484 | D5: 196121 | E5: 224195 | F5: 255955 | G5: 291780 | H5: 332369 | J5: 0.0292601689 | K5: 0.03927446673 | L5: 0.04928769157 | M5: 0.05936277645 | N5: 0.06943537117 | O5: 0.07948907506 | P5: 0.089578708
A6: 15 | B6: 154362 | C6: 178492 | D6: 206163 | E6: 237974 | F6: 274253 | G6: 315657 | H6: 362977 | J6: 0.02936491067 | K6: 0.03938054555 | L6: 0.04941527574 | M6: 0.05950245501 | N6: 0.0695721658 | O6: 0.07964512553 | P6: 0.08974597544
A7: 16 | B7: 159123 | C7: 185787 | D7: 216766 | E7: 252601 | F7: 293861 | G7: 341561 | H7: 396406 | J7: 0.02945723432 | K7: 0.03947358516 | L7: 0.04954109399 | M7: 0.05962498885 | N7: 0.06969230589 | O7: 0.07979613162 | P7: 0.08989275014
A8: 17 | B8: 164031 | C8: 193382 | D8: 227916 | E8: 268128 | F8: 314977 | G8: 369594 | H8: 432917 | J8: 0.02953876087 | K8: 0.03955627149 | L8: 0.04965257933 | M8: 0.05973334093 | N8: 0.06981952575 | O8: 0.07992994334 | P8: 0.09002276211
A9: 18 | B9: 169091 | C9: 201297 | D9: 239640 | E9: 284612 | F9: 337670 | G9: 399930 | H9: 472794 | J9: 0.02961144316 | K9: 0.03963250622 | L9: 0.04975180095 | M9: 0.05983019671 | N9: 0.06994312677 | O9: 0.08004923744 | P9: 0.09013874508
A10: 19 | B10: 174308 | C10: 209633 | D10: 251970 | E10: 302124 | F10: 361999 | G10: 432758 | H10: 516346 | J10: 0.02967676196 | K10: 0.03972605886 | L10: 0.0498412259 | M10: 0.05991955958 | N10: 0.07005389232 | O10: 0.08015625392 | P10: 0.09024273381
A11: 20 | B11: 179686 | C11: 218315 | D11: 264935 | E11: 320862 | F11: 388084 | G11: 468284 | H11: 563912 | J11: 0.02973556354 | K11: 0.03981045257 | L11: 0.04992183269 | M11: 0.0600245274 | N11: 0.07015401916 | O11: 0.08025296242 | P11: 0.0903365404
A12: 21 | B12: 185232 | C12: 227359 | D12: 278569 | E12: 340764 | F12: 416050 | G12: 506728 | H12: 615864 | J12: 0.02978931594 | K12: 0.03988734458 | L12: 0.04999510756 | M12: 0.06011978167 | N12: 0.07024478496 | O12: 0.0803406302 | P12: 0.09042177418
A13: 22 | B13: 190950 | C13: 236777 | D13: 292906 | E13: 361902 | F13: 446034 | G13: 548331 | H13: 672604 | J13: 0.02983838594 | K13: 0.03995711954 | L13: 0.050061949 | M13: 0.06020658966 | N13: 0.07032760291 | O13: 0.08042059599 | P13: 0.09049939596
A14: 23 | B14: 196845 | C14: 246588 | D14: 308059 | E14: 384354 | F14: 478181 | G14: 593352 | H14: 734575 | J14: 0.02988330221 | K14: 0.04002135817 | L14: 0.05013456207 | M14: 0.06028618932 | N14: 0.0704034298 | O14: 0.08049379882 | P14: 0.09057049891
A15: 24 | B15: 202965 | C15: 256806 | D15: 324079 | E15: 408200 | F15: 512647 | G15: 642072 | H15: 802259 | J15: 0.02993357189 | K15: 0.04008032726 | L15: 0.05021234841 | M15: 0.06035928027 | N15: 0.07047312258 | O15: 0.08056108301 | P15: 0.09063586443
A16: 25 | B16: 209338 | C16: 267449 | D16: 340934 | E16: 433527 | F16: 549600 | G16: 694795 | H16: 876181 | J16: 0.02999216908 | K16: 0.04013482931 | L16: 0.05028415248 | M16: 0.06042668026 | N16: 0.07053746082 | O16: 0.08062315065 | P16: 0.09069608247
A17: 26 | B17: 215911 | C17: 278534 | D17: 358667 | E17: 460428 | F17: 589218 | G17: 751850 | H17: 956919 | J17: 0.03004624176 | K17: 0.04018527276 | L17: 0.05035059403 | M17: 0.06048912728 | N17: 0.0705969461 | O17: 0.08068059693 | P17: 0.09075187541
A18: 27 | B18: 222692 | C18: 290080 | D18: 377324 | E18: 489000 | F18: 631695 | G18: 813592 | H18: 1045098 | J18: 0.03009658818 | K18: 0.04023218881 | L18: 0.05041228822 | M18: 0.06054709266 | N18: 0.07065222452 | O18: 0.08073387784 | P18: 0.0908035839
A19: 28 | B19: 229688 | C19: 302131 | D19: 396953 | E19: 519348 | F19: 677236 | G19: 880408 | H19: 1141407 | J19: 0.03014366623 | K19: 0.04027900048 | L19: 0.0504697214 | M19: 0.06060113607 | N19: 0.07070365942 | O19: 0.08078351931 | P19: 0.09085175148
A20: 29 | B20: 236903 | C20: 314815 | D20: 417605 | E20: 551580 | F20: 726063 | G20: 952713 | H20: 1246593 | J20: 0.03018738199 | K20: 0.04033767098 | L20: 0.05052335852 | M20: 0.06065149211 | N20: 0.07075169157 | O20: 0.08082980797 | P20: 0.09089665426
A21: 30 | B21: 244347 | C21: 328033 | D21: 439332 | E21: 585815 | F21: 778412 | G21: 1030959 | H21: 1361476 | J21: 0.03022851687 | K21: 0.04039259201 | L21: 0.05057346636 | M21: 0.06069865037 | N21: 0.07079660132 | O21: 0.08087311139 | P21: 0.09093866181
A22: 31 | B22: 252025 | C22: 341808 | D22: 462192 | E22: 622177 | F22: 834538 | G22: 1115634 | H22: 1486948 | J22: 0.03026701172 | K22: 0.04044417087 | L22: 0.05062053392 | M22: 0.06074288527 | N22: 0.07083872496 | O22: 0.08091370644 | P22: 0.09097799995
A23: 32 | B23: 259946 | C23: 356161 | D23: 486243 | E23: 660797 | F23: 894712 | G23: 1207266 | H23: 1623987 | J23: 0.03030331719 | K23: 0.04049248731 | L23: 0.05066476386 | M23: 0.06078440642 | N23: 0.07087825985 | O23: 0.08095183424 | P23: 0.09101495739
A24: 33 | B24: 268116 | C24: 371119 | D24: 511547 | E24: 701817 | F24: 959228 | G24: 1306427 | H24: 1773659 | J24: 0.03033742903 | K24: 0.04053807271 | L24: 0.05070640592 | M24: 0.06082353927 | N24: 0.0709155076 | O24: 0.08098772408 | P24: 0.09104973788
A25: 34 | B25: 276544 | C25: 386706 | D25: 538169 | E25: 745384 | F25: 1028398 | G25: 1413735 | H25: 1937127 | J25: 0.03036966904 | K25: 0.04058104144 | L25: 0.05074566797 | M25: 0.06086039745 | N25: 0.07095062283 | O25: 0.08102155399 | P25: 0.09108250222
A26: 35 | B26: 285238 | C26: 402950 | D26: 566179 | E26: 791659 | F26: 1102558 | G26: 1529859 | H26: 2115665 | J26: 0.03040017842 | K26: 0.04062172954 | L26: 0.05078282219 | M26: 0.06089528357 | N26: 0.07098379211 | O26: 0.08105348964 | P26: 0.09111345547
A27: 36 | B27: 294206 | C27: 419876 | D27: 595647 | E27: 840808 | F27: 1182068 | G27: 1655525 | H27: 2310660 | J27: 0.03042905961 | K27: 0.04066013478 | L27: 0.05081792172 | M27: 0.06092827298 | N27: 0.07101517401 | O27: 0.08108371709 | P27: 0.09114271348
A28: 37 | B28: 303507 | C28: 437515 | D28: 626651 | E28: 893010 | F28: 1267314 | G28: 1791515 | H28: 2523630 | J28: 0.03046106451 | K28: 0.04069659521 | L28: 0.05085122815 | M28: 0.06095953328 | N28: 0.07104491083 | O28: 0.08111233615 | P28: 0.09117042399
A29: 38 | B29: 313208 | C29: 455896 | D29: 659270 | E29: 948454 | F29: 1358710 | G29: 1938678 | H29: 2756232 | J29: 0.0305005616 | K29: 0.04073119704 | L29: 0.05088283343 | M29: 0.06098917893 | N29: 0.07107313312 | O29: 0.08113948421 | P29: 0.09119670672
A30: 39 | B30: 323220 | C30: 475051 | D30: 693589 | E30: 1007343 | F30: 1456699 | G30: 2097933 | H30: 3010276 | J30: 0.03053811037 | K30: 0.04076412505 | L30: 0.05091289986 | M30: 0.06101737711 | N30: 0.07109994112 | O30: 0.08116528533 | P30: 0.09122167161
A31: 40 | B31: 333552 | C31: 495012 | D31: 729696 | E31: 1069891 | F31: 1561757 | G31: 2270272 | H31: 3287738 | J31: 0.03057377962 | K31: 0.04079546967 | L31: 0.05094151735 | M31: 0.06104423088 | N31: 0.07112544565 | O31: 0.0811898185 | P31: 0.09124541012
A32: 41 | B32: 344216 | C32: 515812 | D32: 767683 | E32: 1136323 | F32: 1674394 | G32: 2456771 | H32: 3590777 | J32: 0.03060783631 | K32: 0.04082529924 | L32: 0.05096875074 | M32: 0.06106978139 | N32: 0.07114974023 | O32: 0.08121318615 | P32: 0.09126801247
A33: 42 | B33: 355222 | C33: 537487 | D33: 807650 | E33: 1206883 | F33: 1795157 | G33: 2658593 | H33: 3921750 | J33: 0.03064034559 | K33: 0.0408537553 | L33: 0.0509947638 | M33: 0.06109418034 | N33: 0.07117291249 | O33: 0.08123546499 | P33: 0.09128955314
A34: 43 | B34: 366580 | C34: 560075 | D34: 849699 | E34: 1281826 | F34: 1924631 | G34: 2876996 | H34: 4283233 | J34: 0.03067134984 | K34: 0.0408809833 | L34: 0.05101960333 | M34: 0.06111747531 | N34: 0.07119502247 | O34: 0.08125672084 | P34: 0.09131011126
A35: 44 | B35: 378302 | C35: 583613 | D35: 893939 | E35: 1361424 | F35: 2063446 | G35: 3113344 | H35: 4678038 | J35: 0.03070099738 | K35: 0.0409070041 | L35: 0.05104336207 | M35: 0.06113973518 | N35: 0.07121616103 | O35: 0.08127703638 | P35: 0.0913297496
A36: 45 | B36: 390400 | C36: 608141 | D36: 940483 | E36: 1445966 | F36: 2212276 | G36: 3369111 | H36: 5109237 | J36: 0.03072939669 | K36: 0.0409318987 | L36: 0.05106608083 | M36: 0.06116102533 | N36: 0.07123639166 | O36: 0.08129646922 | P36: 0.09134852985
A37: 46 | B37: 402886 | C37: 633701 | D37: 989453 | E37: 1535761 | F37: 2371842 | G37: 3645891 | H37: 5580184 | J37: 0.03075662366 | K37: 0.04095575222 | L37: 0.05108787303 | M37: 0.06118143668 | N37: 0.07125575632 | O37: 0.08131506563 | P37: 0.09136650304
A38: 47 | B38: 415771 | C38: 660337 | D38: 1040973 | E38: 1631133 | F38: 2542918 | G38: 3945412 | H38: 6094544 | J38: 0.03078267506 | K38: 0.04097864891 | L38: 0.05110874223 | M38: 0.06120098949 | N38: 0.07127430534 | O38: 0.08133288795 | P38: 0.09138372378
A39: 48 | B39: 429070 | C39: 688093 | D39: 1095177 | E39: 1732429 | F39: 2726337 | G39: 4269543 | H39: 6656318 | J39: 0.03080773746 | K39: 0.0410006054 | L39: 0.05112877019 | M39: 0.06121974482 | N39: 0.07129211163 | O39: 0.0813499861 | P39: 0.09140023499
A40: 49 | B40: 442794 | C40: 717017 | D40: 1152205 | E40: 1840019 | F40: 2922987 | G40: 4620303 | H40: 7269877 | J40: 0.03083175911 | K40: 0.04102170555 | L40: 0.05114801027 | M40: 0.06123777441 | N40: 0.0713091997 | O40: 0.0813663884 | P40: 0.09141608051
A41: 50 | B41: 456959 | C41: 747157 | D41: 1212205 | E41: 1954291 | F41: 3133824 | G41: 4999883 | H41: 7939996 | J41: 0.03085491209 | K41: 0.04104196708 | L41: 0.0511665234 | M41: 0.06125508613 | N41: 0.07132562286 | O41: 0.08138215071 | P41: 0.09143130346
A42: 51 | B42: 471577 | C42: 778566 | D42: 1275330 | E42: 2075662 | F42: 3359871 | G42: 5410650 | H42: 8671886 | J42: 0.03087715163 | K42: 0.04106148836 | L42: 0.05118431983 | M42: 0.06127174214 | N42: 0.07134141589 | O42: 0.08139730563 | P42: 0.09144593238
A43: 52 | B43: 486663 | C43: 811296 | D43: 1341743 | E43: 2204572 | F43: 3602224 | G43: 5855165 | H43: 9471244 | J43: 0.0308985515 | K43: 0.04108027465 | L43: 0.05120144405 | M43: 0.06128776952 | N43: 0.07135660698 | O43: 0.0814118825 | P43: 0.09146000795
A44: 53 | B44: 502233 | C44: 845403 | D44: 1411617 | E44: 2341490 | F44: 3862061 | G44: 6336203 | H44: 10344287 | J44: 0.03091919811 | K44: 0.04109837719 | L44: 0.05121795793 | M44: 0.06130320928 | N44: 0.07137123906 | O44: 0.08142592114 | P44: 0.09147355592
A45: 54 | B45: 518301 | C45: 880945 | D45: 1485130 | E45: 2486914 | F45: 4140643 | G45: 6856763 | H45: 11297809 | J45: 0.03093907537 | K45: 0.04111583444 | L45: 0.05123386264 | M45: 0.0613180973 | N45: 0.0713853406 | O45: 0.08143944513 | P45: 0.09148660834
A46: 55 | B46: 534884 | C46: 917982 | D46: 1562473 | E46: 2641370 | F46: 4439322 | G46: 7420092 | H46: 12339228 | J46: 0.03095826293 | K46: 0.04113267287 | L46: 0.05124920944 | M46: 0.06133244476 | N46: 0.07139893853 | O46: 0.08145248183 | P46: 0.09149919057
A47: 56 | B47: 551998 | C47: 956577 | D47: 1643845 | E47: 2805421 | F47: 4759547 | G47: 8029706 | H47: 13476646 | J47: 0.03097677984 | K47: 0.04114892723 | L47: 0.05126402103 | M47: 0.06134629434 | N47: 0.07141205597 | O47: 0.0814650621 | P47: 0.09151132675
A48: 57 | B48: 569661 | C48: 996795 | D48: 1729457 | E48: 2979663 | F48: 5102874 | G48: 8689405 | H48: 14718914 | J48: 0.03099469261 | K48: 0.0411646177 | L48: 0.05127833688 | M48: 0.06135967109 | N48: 0.07142472423 | O48: 0.08147720288 | P48: 0.09152304232
A49: 58 | B49: 587889 | C49: 1038706 | D49: 1819528 | E49: 3164729 | F49: 5470968 | G49: 9403307 | H49: 16075695 | J49: 0.03101198236 | K49: 0.04117980344 | L49: 0.05129216224 | M49: 0.06137259828 | N49: 0.07143696024 | O49: 0.0814889329 | P49: 0.09153435589
A50: 59 | B50: 606700 | C50: 1082379 | D50: 1914291 | E50: 3361290 | F50: 5865616 | G50: 10175863 | H50: 17557546 | J50: 0.03102867883 | K50: 0.04119447169 | L50: 0.05130552896 | M50: 0.06138509065 | N50: 0.07144878678 | O50: 0.08150026796 | P50: 0.09154528891
A51: 60 | B51: 626114 | C51: 1127890 | D51: 2013991 | E51: 3570061 | F51: 6288735 | G51: 11011893 | H51: 19175997 | J51: 0.03104484905 | K51: 0.04120867801 | L51: 0.05131846454 | M51: 0.06139717475 | N51: 0.07146022799 | O51: 0.08151122925 | P51: 0.091555861
I52: Rendite
I53: =SUM(J53:P53) -> 0.0590237408 | J53: =IF(Hilfe!$E$3='FSX (Einzel)'!J2,VLOOKUP(Hilfe!$B$54,$A$3:$P$51,10),0) -> 0 | K53: =IF(Hilfe!$E$3='FSX (Einzel)'!K2,VLOOKUP(Hilfe!$B$54,$A$3:$P$51,11),0) -> 0 | L53: =IF(Hilfe!$E$3='FSX (Einzel)'!L2,VLOOKUP(Hilfe!$B$54,$A$3:$P$51,12),0) -> 0 | M53: =IF(Hilfe!$E$3='FSX (Einzel)'!M2,VLOOKUP(Hilfe!$B$54,$A$3:$P$51,13),0) -> 0.0590237408 | N53: =IF(Hilfe!$E$3='FSX (Einzel)'!N2,VLOOKUP(Hilfe!$B$54,$A$3:$P$51,14),0) -> 0 | O53: =IF(Hilfe!$E$3='FSX (Einzel)'!O2,VLOOKUP(Hilfe!$B$54,$A$3:$P$51,15),0) -> 0 | P53: =IF(Hilfe!$E$3='FSX (Einzel)'!P2,VLOOKUP(Hilfe!$B$54,$A$3:$P$51,16),0) -> 0

Sheet FSX (EB, M) (hidden)
A1: Laufzeit | B1: FSX Sondertarif M Vertragsguthaben in EUR, Beitrag: 100000€ Einmalbeitrag, Alter: 0 Jahre | K1: Stand 13.02.2018
B2: 0.03 | C2: 0.04 | D2: 0.05 | E2: 0.06 | F2: 0.07 | G2: 0.08 | H2: 0.09 | J2: 0.03 | K2: 0.04 | L2: 0.05 | M2: 0.06 | N2: 0.07 | O2: 0.08 | P2: 0.09
A3: 12 | B3: 144333 | C3: 162114 | D3: 181875 | E3: 203837 | F3: 228366 | G3: 255513 | H3: 285566 | J3: =(B3/100000)^(1/$A3)-1 -> 0.03105176467 | K3: =(C3/100000)^(1/$A3)-1 -> 0.04108225352 | L3: 0.0511089899 | M3: 0.06114219708 | N3: 0.07123795992 | O3: 0.0813121513 | P3: 0.09137887075
A4: 13 | B4: 149080 | C4: 169076 | D4: 191513 | E4: 216794 | F4: 245178 | G4: 276891 | H4: 312393 | J4: =(B4/100000)^(1/$A4)-1 -> 0.03119299138 | K4: 0.04122543027 | L4: 0.05125375099 | M4: 0.0613284085 | N4: 0.07142090349 | O4: 0.08149310984 | P4: 0.09157591759
A5: 14 | B5: 153984 | C5: 176337 | D5: 201671 | E5: 230578 | F5: 263230 | G5: 300060 | H5: 341843 | J5: 0.03131447677 | K5: 0.04134817576 | L5: 0.05138129569 | M5: 0.06148915636 | N5: 0.07157841261 | O5: 0.08164885082 | P5: 0.09176829429
A6: 15 | B6: 159051 | C6: 183912 | D6: 212467 | E6: 245239 | F6: 282613 | G6: 325333 | H6: 374071 | J6: 0.03142050306 | K6: 0.041455388 | L6: 0.05152458813 | M6: 0.0616286635 | N6: 0.0717154107 | O6: 0.08182050249 | P6: 0.0919353754
A7: 16 | B7: 164285 | C7: 191813 | D7: 223842 | E7: 260834 | F7: 303438 | G7: 352737 | H7: 409341 | J7: 0.03151338909 | K7: 0.0415494103 | L7: 0.05165029646 | M7: 0.06175120511 | N7: 0.07183855006 | O7: 0.08197116941 | P7: 0.09208219837
A8: 17 | B8: 169692 | C8: 200055 | D8: 235828 | E8: 277424 | F8: 325950 | G8: 382452 | H8: 447939 | J8: 0.03159562649 | K8: 0.04163285814 | L8: 0.05176175495 | M8: 0.06186008434 | N8: 0.07197671543 | O8: 0.08210457093 | P8: 0.0922121231
A9: 18 | B9: 175278 | C9: 208757 | D9: 248457 | E9: 295069 | F9: 350133 | G9: 414673 | H9: 490179 | J9: 0.031669073 | K9: 0.04173639173 | L9: 0.05186111879 | M9: 0.06195683828 | N9: 0.07209968686 | O9: 0.08222356575 | P9: 0.09232793149
A10: 19 | B10: 181048 | C10: 217838 | D10: 261765 | E10: 313944 | F10: 376113 | G10: 449611 | H10: 536405 | J10: 0.03173482796 | K10: 0.04182915661 | L10: 0.05195060127 | M10: 0.06206259872 | N10: 0.07221014692 | O10: 0.08233035372 | P10: 0.09243186319
A11: 20 | B11: 187010 | C11: 227315 | D11: 275786 | E11: 334084 | F11: 404023 | G11: 487494 | H11: 586994 | J11: 0.03179457836 | K11: 0.04191287515 | L11: 0.05203117808 | M11: 0.06216694975 | N11: 0.07230987251 | O11: 0.08242661866 | P11: 0.0925257534
A12: 21 | B12: 193169 | C12: 237206 | D12: 290560 | E12: 355517 | F12: 434006 | G12: 528573 | H12: 642356 | J12: 0.03184881124 | K12: 0.04198898294 | L12: 0.05210442915 | M12: 0.06226151191 | N12: 0.07240033183 | O12: 0.08251412093 | P12: 0.09261086178
A13: 22 | B13: 199531 | C13: 247529 | D13: 306178 | E13: 378328 | F13: 466217 | G13: 573115 | H13: 702943 | J13: 0.03189815373 | K13: 0.04205848662 | L13: 0.05217923452 | M13: 0.06234786467 | N13: 0.07248288035 | O13: 0.08259379919 | P13: 0.09268849067
A14: 23 | B14: 206199 | C14: 258302 | D14: 322744 | E14: 402604 | F14: 500820 | G14: 621414 | H14: 769247 | J14: 0.03196420339 | K14: 0.04212208245 | L14: 0.05226292418 | M14: 0.06242687299 | N14: 0.0725583837 | O14: 0.08266682045 | P14: 0.09275952449
A15: 24 | B15: 213099 | C15: 269546 | D15: 340209 | E15: 428439 | F15: 537994 | G15: 673785 | H15: 841808 | J15: 0.03202660234 | K15: 0.0421807261 | L15: 0.05233999142 | M15: 0.06249943605 | N15: 0.07262782718 | O15: 0.08273386968 | P15: 0.09282480401
A16: 25 | B16: 220231 | C16: 281280 | D16: 358621 | E16: 455935 | F16: 577930 | G16: 730573 | H16: 921216 | J16: 0.03208422013 | K16: 0.04223476175 | L16: 0.05241112098 | M16: 0.06256649435 | N16: 0.07269192056 | O16: 0.08279575555 | P16: 0.092884984
A17: 26 | B17: 227603 | C17: 293526 | D17: 378030 | E17: 485197 | F17: 620832 | G17: 792150 | H17: 1008119 | J17: 0.03213763645 | K17: 0.04228480584 | L17: 0.05247684204 | M17: 0.06262851473 | N17: 0.07275118666 | O17: 0.08285303077 | P17: 0.092940722
A18: 27 | B18: 235223 | C18: 306371 | D18: 398492 | E18: 516340 | F18: 666922 | G18: 858920 | H18: 1103222 | J18: 0.03218729838 | K18: 0.04233944355 | L18: 0.05253794913 | M18: 0.06268616978 | N18: 0.07280625726 | O18: 0.08290620277 | P18: 0.09299240708
A19: 28 | B19: 243099 | C19: 319873 | D19: 420063 | E19: 549483 | F19: 716435 | G19: 931320 | H19: 1207300 | J19: 0.03223354975 | K19: 0.04240122649 | L19: 0.05259482287 | M19: 0.06273978167 | N19: 0.0728574674 | O19: 0.0829556615 | P19: 0.09304050799
A20: 29 | B20: 251240 | C20: 333971 | D20: 442803 | E20: 584756 | F20: 769627 | G20: 1009826 | H20: 1321200 | J20: 0.03227679556 | K20: 0.04245885481 | L20: 0.05264788589 | M20: 0.06278986196 | N20: 0.07290529713 | O20: 0.08300183211 | P20: 0.09308538702
A21: 30 | B21: 259655 | C21: 348691 | D21: 466777 | E21: 622294 | F21: 826771 | G21: 1094951 | H21: 1445848 | J21: 0.03231734162 | K21: 0.04251270873 | L21: 0.05269763751 | M21: 0.06283664657 | N21: 0.07295005862 | O21: 0.08304496947 | P21: 0.09312733528
A22: 31 | B22: 268352 | C22: 364062 | D22: 492049 | E22: 662245 | F22: 888159 | G22: 1187256 | H22: 1582258 | J22: 0.03235529175 | K22: 0.0425632945 | L22: 0.05274418236 | M22: 0.06288058421 | N22: 0.07299197752 | O22: 0.0830854502 | P22: 0.0931666264
A23: 32 | B23: 277342 | C23: 380112 | D23: 518692 | E23: 704762 | F23: 954108 | G23: 1287344 | H23: 1731542 | J23: 0.03239106888 | K23: 0.04261084221 | L23: 0.05278799358 | M23: 0.06292183223 | N23: 0.07303138067 | O23: 0.08312344526 | P23: 0.09320354716
A24: 33 | B24: 286633 | C24: 396870 | D24: 546779 | E24: 750011 | F24: 1024956 | G24: 1395872 | H24: 1894913 | J24: 0.03242466006 | K24: 0.04265554377 | L24: 0.05282923061 | M24: 0.06296068288 | N24: 0.0730684621 | O24: 0.08315919491 | P24: 0.09323827071
A25: 34 | B25: 296237 | C25: 414369 | D25: 576388 | E25: 798167 | F25: 1101067 | G25: 1513552 | H25: 2073702 | J25: 0.03245645568 | K25: 0.04269777965 | L25: 0.05286810242 | M25: 0.06299732013 | N25: 0.07310342447 | O25: 0.08319289905 | P25: 0.09327101389
A26: 35 | B26: 306253 | C26: 432640 | D26: 607602 | E26: 849417 | F26: 1182832 | G26: 1641156 | H26: 2269362 | J26: 0.03249512563 | K26: 0.04273763288 | L26: 0.05290483464 | M26: 0.06303193811 | N26: 0.07313644609 | O26: 0.08322473294 | P26: 0.09330191286
A27: 36 | B27: 316675 | C27: 451719 | D27: 640508 | E27: 903960 | F27: 1270672 | G27: 1779520 | H27: 2483486 | J27: 0.03253774931 | K27: 0.04277542521 | L27: 0.05293960142 | M27: 0.06306470763 | N27: 0.07316770798 | O27: 0.08325483308 | P27: 0.0933311314
A28: 37 | B28: 327452 | C28: 471640 | D28: 675198 | E28: 962007 | F28: 1365036 | G28: 1929553 | H28: 2717816 | J28: 0.03257809893 | K28: 0.0428112139 | L28: 0.05297257024 | M28: 0.06309575662 | N28: 0.07319729759 | O28: 0.08328336292 | P28: 0.0933587983
A29: 38 | B29: 338597 | C29: 492441 | D29: 711769 | E29: 1023783 | F29: 1466411 | G29: 2092237 | H29: 2974260 | J29: 0.03261642586 | K29: 0.04284520234 | L29: 0.05300388987 | M29: 0.06312521499 | N29: 0.07322539301 | O29: 0.08331041338 | P29: 0.09338504577
A30: 39 | B30: 350122 | C30: 514160 | D30: 750322 | E30: 1089528 | F30: 1575317 | G30: 2268640 | H30: 3254904 | J30: 0.0326528396 | K30: 0.04287748011 | L30: 0.0530336471 | M30: 0.06315321368 | N30: 0.07325208921 | O30: 0.08333611186 | P30: 0.09340997195
A31: 40 | B31: 362041 | C31: 536839 | D31: 790964 | E31: 1159497 | F31: 1692312 | G31: 2459918 | H31: 3562031 | J31: 0.03268755633 | K31: 0.04290824635 | L31: 0.05306194304 | M31: 0.06317985911 | N31: 0.07327746507 | O31: 0.08336054707 | P31: 0.09343366854
A32: 41 | B32: 374366 | C32: 560519 | D32: 833810 | E32: 1233961 | F32: 1818000 | G32: 2667327 | H32: 3898141 | J32: 0.03272059736 | K32: 0.04293754239 | L32: 0.05308893894 | M32: 0.06320523947 | N32: 0.07330166215 | O32: 0.08338382645 | P32: 0.09345623045
A33: 42 | B33: 387111 | C33: 585245 | D33: 878978 | E33: 1313209 | F33: 1953024 | G33: 2892225 | H33: 4265969 | J33: 0.03275209258 | K33: 0.04296550668 | L33: 0.05311468021 | M33: 0.06322944749 | N33: 0.07332472258 | O33: 0.08340600868 | P33: 0.09347773653
A34: 43 | B34: 400291 | C34: 611063 | D34: 926594 | E34: 1397548 | F34: 2098078 | G34: 3136089 | H34: 4668509 | J34: 0.03278219019 | K34: 0.0429922214 | L34: 0.0531392571 | M34: 0.0632525566 | N34: 0.07334673092 | O34: 0.08342718796 | P34: 0.09349826345
A35: 44 | B35: 413921 | C35: 638021 | D35: 976791 | E35: 1487306 | F35: 2253908 | G35: 3400517 | H35: 5109035 | J35: 0.03281099196 | K35: 0.04301776119 | L35: 0.05316275527 | M35: 0.06327465551 | N35: 0.0733677677 | O35: 0.08344742011 | P35: 0.09351786754
A36: 45 | B36: 428016 | C36: 666170 | D36: 1029709 | E36: 1582831 | F36: 2421314 | G36: 3687244 | H36: 5591132 | J36: 0.03283856243 | K36: 0.04304222581 | L36: 0.05318524693 | M36: 0.06329580644 | N36: 0.07338789037 | O36: 0.08346677315 | P36: 0.09353661131
A37: 46 | B37: 442592 | C37: 695561 | D37: 1085495 | E37: 1684492 | F37: 2601156 | G37: 3998149 | H37: 6118723 | J37: 0.03286498719 | K37: 0.04306563015 | L37: 0.05320678537 | M37: 0.06331604815 | N37: 0.07340715773 | O37: 0.0834852943 | P37: 0.09355455026
A38: 47 | B38: 457665 | C38: 726250 | D38: 1144306 | E38: 1792685 | F38: 2794358 | G38: 4335272 | H38: 6696102 | J38: 0.03289031777 | K38: 0.0430880784 | L38: 0.05322746079 | M38: 0.06333546152 | N38: 0.07342562446 | O38: 0.08350304239 | P38: 0.09357173795
A39: 48 | B39: 473252 | C39: 758295 | D39: 1206303 | E39: 1907828 | F39: 3001912 | G39: 4700824 | H39: 7327967 | J39: 0.032914624 | K39: 0.04310964803 | L39: 0.05324726931 | M39: 0.06335407662 | N39: 0.07344333572 | O39: 0.08352006502 | P39: 0.093588219
A40: 49 | B40: 489370 | C40: 791755 | D40: 1271662 | E40: 2030369 | F40: 3224885 | G40: 5097201 | H40: 8019459 | J40: 0.03293794485 | K40: 0.0431303659 | L40: 0.05326632179 | M40: 0.06337195831 | N40: 0.07346034269 | O40: 0.0835363996 | P40: 0.09360403386
A41: 50 | B41: 506039 | C41: 826692 | D41: 1340563 | E41: 2160783 | F41: 3464422 | G41: 5527004 | H41: 8776206 | J41: 0.0329604172 | K41: 0.04315026975 | L41: 0.05328462456 | M41: 0.06338914582 | N41: 0.07347668349 | O41: 0.08355209355 | P41: 0.09361922494
A42: 51 | B42: 523276 | C42: 863172 | D42: 1413198 | E42: 2299575 | F42: 3721752 | G42: 5993051 | H42: 9604365 | J42: 0.03298201718 | K42: 0.04316942586 | L42: 0.05330222181 | M42: 0.06340567127 | N42: 0.07349238792 | O42: 0.08356718084 | P42: 0.09363382595
A43: 52 | B43: 541100 | C43: 901262 | D43: 1489771 | E43: 2447283 | F43: 3998199 | G43: 6498399 | H43: 10510675 | J43: 0.03300278178 | K43: 0.04318785047 | L43: 0.05331917593 | M43: 0.06342157035 | N43: 0.07350750439 | O43: 0.0835816979 | P43: 0.09364787057
A44: 53 | B44: 559533 | C44: 941035 | D44: 1570494 | E44: 2604482 | F44: 4295183 | G44: 7046360 | H44: 11502512 | J44: 0.03302282846 | K44: 0.04320562545 | L44: 0.05333550259 | M44: 0.06343689519 | N44: 0.07352206416 | O44: 0.08359566989 | P44: 0.09366139186
A45: 54 | B45: 578594 | C45: 982564 | D45: 1655592 | E45: 2771779 | F45: 4614228 | G45: 7640530 | H45: 12587946 | J45: 0.03304213519 | K45: 0.04322275818 | L45: 0.05335123702 | M45: 0.06345165596 | N45: 0.07353609001 | O45: 0.08360913397 | P45: 0.09367441665
A46: 55 | B46: 598306 | C46: 1025927 | D46: 1745303 | E46: 2949825 | F46: 4956973 | G46: 8284805 | H46: 13775809 | J46: 0.03306079262 | K46: 0.04323929176 | L46: 0.05336642061 | M46: 0.06346589852 | N46: 0.07354961161 | O46: 0.08362211531 | P46: 0.09368697095
A47: 56 | B47: 618689 | C47: 1071204 | D47: 1839876 | E47: 3139308 | F47: 5325180 | G47: 8983409 | H47: 15075768 | J47: 0.03307876721 | K47: 0.04325524002 | L47: 0.05338107093 | M47: 0.06347963359 | N47: 0.07356266087 | O47: 0.08363463659 | P47: 0.09369908113
A48: 57 | B48: 639768 | C48: 1118480 | D48: 1939575 | E48: 3340966 | F48: 5720740 | G48: 9740924 | H48: 16498402 | J48: 0.0330961566 | K48: 0.04327064202 | L48: 0.05339522035 | M48: 0.06349290643 | N48: 0.07357526018 | O48: 0.08364672304 | P48: 0.09371077107
A49: 58 | B49: 661565 | C49: 1167844 | D49: 2044678 | E49: 3555578 | F49: 6145684 | G49: 10562319 | H49: 18055285 | J49: 0.03311294204 | K49: 0.04328553691 | L49: 0.05340889555 | M49: 0.0635057228 | N49: 0.07358742933 | O49: 0.08365839899 | P49: 0.09372205936
A50: 59 | B50: 684105 | C50: 1219388 | D50: 2155478 | E50: 3783978 | F50: 6602196 | G50: 11452979 | H50: 19759088 | J50: 0.03312916828 | K50: 0.04329994631 | L50: 0.05342212066 | M50: 0.06351811474 | N50: 0.07359919329 | O50: 0.08366968179 | P50: 0.09373296855
A51: 60 | B51: 707414 | C51: 1273207 | D51: 2272283 | E51: 4027052 | F51: 7092620 | G51: 12418746 | H51: 21623674 | J51: 0.03314487934 | K51: 0.04331387629 | L51: 0.05343491134 | M51: 0.06353010365 | N51: 0.07361056903 | O51: 0.08368059258 | P51: 0.09374351599
I52: Rendite
I53: =SUM(J53:P53) -> 0.06114219708 | J53: =IF(Hilfe!$E$3='FSX (Einzel)'!J2,VLOOKUP(Hilfe!$B$54,$A$3:$P$51,10),0) -> 0 | K53: =IF(Hilfe!$E$3='FSX (Einzel)'!K2,VLOOKUP(Hilfe!$B$54,$A$3:$P$51,11),0) -> 0 | L53: =IF(Hilfe!$E$3='FSX (Einzel)'!L2,VLOOKUP(Hilfe!$B$54,$A$3:$P$51,12),0) -> 0 | M53: =IF(Hilfe!$E$3='FSX (Einzel)'!M2,VLOOKUP(Hilfe!$B$54,$A$3:$P$51,13),0) -> 0.06114219708 | N53: =IF(Hilfe!$E$3='FSX (Einzel)'!N2,VLOOKUP(Hilfe!$B$54,$A$3:$P$51,14),0) -> 0 | O53: =IF(Hilfe!$E$3='FSX (Einzel)'!O2,VLOOKUP(Hilfe!$B$54,$A$3:$P$51,15),0) -> 0 | P53: =IF(Hilfe!$E$3='FSX (Einzel)'!P2,VLOOKUP(Hilfe!$B$54,$A$3:$P$51,16),0) -> 0

Sheet Berechnung Ratierlich heute (hidden)
A1: Rendite | B1: =Hilfe!E3-Hilfe!G16 -> 0.06 | F1: Ausgabeaufschlag | L1: Basiszins | M1: =Hilfe!E14 -> 0
A2: Beitrag p.a. | B2: =Eingabe!C10*Hilfe!B4 -> 0 | G2: Aktienfonds | H2: Mischfonds | I2: Rentenfonds / VVW | L2: Abgeltungssteuer | M2: =25%*1.055 -> 0.26375
A3: Laufzeit | B3: =Eingabe!C9 -> 12 | F3: Ausgabeaufschlag | G3: =Eingabe!C21 -> 0.01 | H3: =Eingabe!E21 -> 0.01 | I3: =Eingabe!G21 -> 0.01
F4: Wechselgebühr | G4: =Eingabe!C22 -> 0.01 | H4: =Eingabe!E22 -> 0.01 | I4: =Eingabe!G22 -> 0.01 | J4: Ausgabe
F5: Freistellung | G5: 0.3 | H5: 0.15 | I5: 0 | J5: Jahr | K5: Jahresabschluss | L5: Beitragssumme | M5: zu versteuern % | N5: zu versteuern | O5: kumulierte Vorabpauschale | P5: Freistellungsauftrag | Q5: Auszahlung
J6: =B3 -> 12 | K6: =MAX(VLOOKUP(J6,A11:AD70,20),0) -> 0 | L6: =MAX(VLOOKUP(J6,A11:AD60,13),0) -> 0 | M6: =VLOOKUP(J6,A11:AD60,14) -> 1 | N6: =(K6-L6)*M6 -> 0 | O6: =VLOOKUP(J6,A11:AD60,12) -> 0 | P6: =VLOOKUP(J6,A11:AD60,16) -> 1602 | Q6: =K6-(N6-P6-O6)*M2 -> 422.5275
A9: Jahr | B9: Ausgabeaufschlag | C9: Beitrag | D9: Vermögen Jahresanfang | E9: Rendite | F9: Gesamtvermögen | G9: Wechsel | H9: Anteil Aktienfonds | I9: Anteil Mischfonds | J9: Rentenfonds / VVW | K9: Vorabpauschale | L9: kumulierte Vorabpauschale | M9: Beitragssumme | N9: zu versteuern | O9: Wechselbesteuerunganteil | P9: Freistellungsauftrag | Q9: Steuer | R9: Wechselkosten | S9: Depotkosten | T9: Jahresabschluss
A10: 0 | H10: =Eingabe!C18 -> 0.5 | I10: =Eingabe!E18 -> 0.5 | J10: =Eingabe!G18 -> 0
A11: 1 | B11: =$G$3*H10+$H$3*I10+$I$3*J10 -> 0.01 | C11: =IF($B$3>=A11,$B$2,0)/(1+B11) -> 0 | D11: =C11 -> 0 | E11: =C11*$B$1 -> 0 | F11: =C11+E11 -> 0 | G11: =VLOOKUP(A11,Wechsel!$A$11:$E$31,1) -> 0 | H11: =IF(G11>0,VLOOKUP(A11,Wechsel!$A$11:$E$31,3),H10) -> 0.5 | I11: =IF(G11>0,VLOOKUP(A11,Wechsel!$A$11:$E$31,4),I10) -> 0.5 | J11: =IF(G11>0,VLOOKUP(A11,Wechsel!$A$11:$E$31,5),J10) -> 0 | K11: =D11*$M$1*0.7*0.7*$M$2*H11+D11*$M$1*0.85*0.7*$M$2*I11+D11*$M$1*0.7*$M$2*J11 -> 0 | L11: =K11+L10 -> 0 | M11: =C11 -> 0 | N11: =1-(H11*$G$5+I11*$H$5+J11*$I$5) -> 0.775 | O11: =IF(G11>0,(F11-M11)*N11,0) -> 0 | P11: =MAX(Eingabe!C28,0) -> 1602 | Q11: =MAX(0,K11+O11*$M$2-P11-IF(G11>0,-(L10+K11),0)) -> 0 | R11: =MAX(IF(G11>0,(H11*$G$4+I11*$H$4+J11*$I$4)*F11,0),0) -> 0 | S11: =Eingabe!$C$25+Eingabe!$E$25*'Berechnung Ratierlich heute'!F11 -> 39 | T11: =F11-Q11-R11-S11 -> -39
A12: 2 | B12: =$G$3*H11+$H$3*I11+$I$3*J11 -> 0.01 | C12: 0 | D12: =MAX(IF(A12>$B$3,0,T11),0) -> 0 | E12: =(C12+D12)*$B$1 -> 0 | F12: =IF(A12>$B$3,0,C12+E12+D12) -> 0 | G12: =IF(VLOOKUP(A12,Wechsel!$A$11:$E$31,1)=A12,VLOOKUP(A12,Wechsel!$A$11:$E$31,1),0) -> 0 | H12: =IF(G12>0,VLOOKUP(A12,Wechsel!$A$11:$E$31,3),H11) -> 0.5 | I12: =IF(G12>0,VLOOKUP(A12,Wechsel!$A$11:$E$31,4),I11) -> 0.5 | J12: =IF(G12>0,VLOOKUP(A12,Wechsel!$A$11:$E$31,5),J11) -> 0 | K12: =D12*$M$1*0.7*0.7*$M$2*H12+D12*$M$1*0.85*0.7*$M$2*I12+D12*$M$1*0.7*$M$2*J12 -> 0 | L12: =IF(G11>0,K12,K12+L11) -> 0 | M12: =IF(A12>$B$3,0,IF(G11>0,T11,C12+M11)) -> 0 | N12: =1-(H12*$G$5+I12*$H$5+J12*$I$5) -> 0.775 | O12: =IF(G12>0,(F12-M12)*N11,0) -> 0 | P12: =MAX(P11-Eingabe!$E$28,0) -> 1602 | Q12: =MAX(0,K12+O12*$M$2-P12-IF(G12>0,-(L11+K12),0)) -> 0 | R12: =MAX(IF(G12>0,(H12*$G$4+I12*$H$4+J12*$I$4)*(F12-Q12),0),0) -> 0 | S12: =Eingabe!$C$25+Eingabe!$E$25*'Berechnung Ratierlich heute'!F12 -> 39 | T12: =F12-Q12-R12-S12 -> -39
A13: 3 | B13: 0.01 | C13: 0 | D13: 0 | E13: 0 | F13: 0 | G13: =IF(VLOOKUP(A13,Wechsel!$A$11:$E$31,1)=A13,VLOOKUP(A13,Wechsel!$A$11:$E$31,1),0) -> 3 | H13: =IF(G13>0,VLOOKUP(A13,Wechsel!$A$11:$E$31,3),H12) -> 0.3333333333 | I13: =IF(G13>0,VLOOKUP(A13,Wechsel!$A$11:$E$31,4),I12) -> 0.3333333333 | J13: =IF(G13>0,VLOOKUP(A13,Wechsel!$A$11:$E$31,5),J12) -> 0.3333333333 | K13: =D13*$M$1*0.7*0.7*$M$2*H13+D13*$M$1*0.85*0.7*$M$2*I13+D13*$M$1*0.7*$M$2*J13 -> 0 | L13: =IF(G12>0,K13,K13+L12) -> 0 | M13: 0 | N13: 0.85 | O13: =IF(G13>0,(F13-M13)*N12,0) -> 0 | P13: =MAX(P12-Eingabe!$E$28,0) -> 1602 | Q13: =MAX(0,K13+O13*$M$2-P13-IF(G13>0,-(L12+K13),0)) -> 0 | R13: 0 | S13: =Eingabe!$C$25+Eingabe!$E$25*'Berechnung Ratierlich heute'!F13 -> 39 | T13: -39
A14: 4 | B14: 0.01 | C14: 0 | D14: 0 | E14: 0 | F14: 0 | G14: =IF(VLOOKUP(A14,Wechsel!$A$11:$E$31,1)=A14,VLOOKUP(A14,Wechsel!$A$11:$E$31,1),0) -> 0 | H14: =IF(G14>0,VLOOKUP(A14,Wechsel!$A$11:$E$31,3),H13) -> 0.3333333333 | I14: =IF(G14>0,VLOOKUP(A14,Wechsel!$A$11:$E$31,4),I13) -> 0.3333333333 | J14: =IF(G14>0,VLOOKUP(A14,Wechsel!$A$11:$E$31,5),J13) -> 0.3333333333 | K14: 0 | L14: 0 | M14: -39 | N14: 0.85 | O14: 0 | P14: =MAX(P13-Eingabe!$E$28,0) -> 1602 | Q14: 0 | R14: 0 | S14: =Eingabe!$C$25+Eingabe!$E$25*'Berechnung Ratierlich heute'!F14 -> 39 | T14: -39
A15: 5 | B15: 0.01 | C15: 0 | D15: 0 | E15: 0 | F15: 0 | G15: =IF(VLOOKUP(A15,Wechsel!$A$11:$E$31,1)=A15,VLOOKUP(A15,Wechsel!$A$11:$E$31,1),0) -> 0 | H15: =IF(G15>0,VLOOKUP(A15,Wechsel!$A$11:$E$31,3),H14) -> 0.3333333333 | I15: =IF(G15>0,VLOOKUP(A15,Wechsel!$A$11:$E$31,4),I14) -> 0.3333333333 | J15: =IF(G15>0,VLOOKUP(A15,Wechsel!$A$11:$E$31,5),J14) -> 0.3333333333 | K15: 0 | L15: 0 | M15: -39 | N15: 0.85 | O15: 0 | P15: =MAX(P14-Eingabe!$E$28,0) -> 1602 | Q15: 0 | R15: 0 | S15: =Eingabe!$C$25+Eingabe!$E$25*'Berechnung Ratierlich heute'!F15 -> 39 | T15: -39
A16: 6 | B16: 0.01 | C16: 0 | D16: 0 | E16: 0 | F16: 0 | G16: =IF(VLOOKUP(A16,Wechsel!$A$11:$E$31,1)=A16,VLOOKUP(A16,Wechsel!$A$11:$E$31,1),0) -> 6 | H16: =IF(G16>0,VLOOKUP(A16,Wechsel!$A$11:$E$31,3),H15) -> 0.1666666667 | I16: =IF(G16>0,VLOOKUP(A16,Wechsel!$A$11:$E$31,4),I15) -> 0.1666666667 | J16: =IF(G16>0,VLOOKUP(A16,Wechsel!$A$11:$E$31,5),J15) -> 0.6666666667 | K16: 0 | L16: 0 | M16: -39 | N16: 0.925 | O16: 33.15 | P16: =MAX(P15-Eingabe!$E$28,0) -> 1602 | Q16: 0 | R16: 0 | S16: =Eingabe!$C$25+Eingabe!$E$25*'Berechnung Ratierlich heute'!F16 -> 39 | T16: -39
A17: 7 | B17: 0.01 | C17: 0 | D17: 0 | E17: 0 | F17: 0 | G17: =IF(VLOOKUP(A17,Wechsel!$A$11:$E$31,1)=A17,VLOOKUP(A17,Wechsel!$A$11:$E$31,1),0) -> 0 | H17: =IF(G17>0,VLOOKUP(A17,Wechsel!$A$11:$E$31,3),H16) -> 0.1666666667 | I17: =IF(G17>0,VLOOKUP(A17,Wechsel!$A$11:$E$31,4),I16) -> 0.1666666667 | J17: =IF(G17>0,VLOOKUP(A17,Wechsel!$A$11:$E$31,5),J16) -> 0.6666666667 | K17: 0 | L17: 0 | M17: -39 | N17: 0.925 | O17: 0 | P17: =MAX(P16-Eingabe!$E$28,0) -> 1602 | Q17: 0 | R17: 0 | S17: =Eingabe!$C$25+Eingabe!$E$25*'Berechnung Ratierlich heute'!F17 -> 39 | T17: -39
A18: 8 | B18: 0.01 | C18: 0 | D18: 0 | E18: 0 | F18: 0 | G18: =IF(VLOOKUP(A18,Wechsel!$A$11:$E$31,1)=A18,VLOOKUP(A18,Wechsel!$A$11:$E$31,1),0) -> 0 | H18: =IF(G18>0,VLOOKUP(A18,Wechsel!$A$11:$E$31,3),H17) -> 0.1666666667 | I18: =IF(G18>0,VLOOKUP(A18,Wechsel!$A$11:$E$31,4),I17) -> 0.1666666667 | J18: =IF(G18>0,VLOOKUP(A18,Wechsel!$A$11:$E$31,5),J17) -> 0.6666666667 | K18: 0 | L18: 0 | M18: -39 | N18: 0.925 | O18: 0 | P18: =MAX(P17-Eingabe!$E$28,0) -> 1602 | Q18: 0 | R18: 0 | S18: =Eingabe!$C$25+Eingabe!$E$25*'Berechnung Ratierlich heute'!F18 -> 39 | T18: -39
A19: 9 | B19: 0.01 | C19: 0 | D19: 0 | E19: 0 | F19: 0 | G19: =IF(VLOOKUP(A19,Wechsel!$A$11:$E$31,1)=A19,VLOOKUP(A19,Wechsel!$A$11:$E$31,1),0) -> 9 | H19: =IF(G19>0,VLOOKUP(A19,Wechsel!$A$11:$E$31,3),H18) -> 0 | I19: =IF(G19>0,VLOOKUP(A19,Wechsel!$A$11:$E$31,4),I18) -> 0 | J19: =IF(G19>0,VLOOKUP(A19,Wechsel!$A$11:$E$31,5),J18) -> 1 | K19: 0 | L19: 0 | M19: -39 | N19: 1 | O19: 36.075 | P19: =MAX(P18-Eingabe!$E$28,0) -> 1602 | Q19: 0 | R19: =MAX(IF(G19>0,(H19*$G$4+I19*$H$4+J19*$I$4)*(F19-Q19),0),0) -> 0 | S19: =Eingabe!$C$25+Eingabe!$E$25*'Berechnung Ratierlich heute'!F19 -> 39 | T19: =F19-Q19-R19-S19 -> -39
A20: 10 | B20: 0.01 | C20: 0 | D20: 0 | E20: 0 | F20: 0 | G20: =IF(VLOOKUP(A20,Wechsel!$A$11:$E$31,1)=A20,VLOOKUP(A20,Wechsel!$A$11:$E$31,1),0) -> 0 | H20: =IF(G20>0,VLOOKUP(A20,Wechsel!$A$11:$E$31,3),H19) -> 0 | I20: =IF(G20>0,VLOOKUP(A20,Wechsel!$A$11:$E$31,4),I19) -> 0 | J20: =IF(G20>0,VLOOKUP(A20,Wechsel!$A$11:$E$31,5),J19) -> 1 | K20: 0 | L20: 0 | M20: -39 | N20: 1 | O20: 0 | P20: =MAX(P19-Eingabe!$E$28,0) -> 1602 | Q20: 0 | R20: =MAX(IF(G20>0,(H20*$G$4+I20*$H$4+J20*$I$4)*(F20-Q20),0),0) -> 0 | S20: =Eingabe!$C$25+Eingabe!$E$25*'Berechnung Ratierlich heute'!F20 -> 39 | T20: -39
A21: 11 | B21: 0.01 | C21: 0 | D21: 0 | E21: 0 | F21: 0 | G21: =IF(VLOOKUP(A21,Wechsel!$A$11:$E$31,1)=A21,VLOOKUP(A21,Wechsel!$A$11:$E$31,1),0) -> 0 | H21: =IF(G21>0,VLOOKUP(A21,Wechsel!$A$11:$E$31,3),H20) -> 0 | I21: =IF(G21>0,VLOOKUP(A21,Wechsel!$A$11:$E$31,4),I20) -> 0 | J21: =IF(G21>0,VLOOKUP(A21,Wechsel!$A$11:$E$31,5),J20) -> 1 | K21: 0 | L21: 0 | M21: -39 | N21: 1 | O21: 0 | P21: =MAX(P20-Eingabe!$E$28,0) -> 1602 | Q21: 0 | R21: 0 | S21: =Eingabe!$C$25+Eingabe!$E$25*'Berechnung Ratierlich heute'!F21 -> 39 | T21: -39
A22: 12 | B22: 0.01 | C22: 0 | D22: 0 | E22: 0 | F22: 0 | G22: =IF(VLOOKUP(A22,Wechsel!$A$11:$E$31,1)=A22,VLOOKUP(A22,Wechsel!$A$11:$E$31,1),0) -> 0 | H22: =IF(G22>0,VLOOKUP(A22,Wechsel!$A$11:$E$31,3),H21) -> 0 | I22: =IF(G22>0,VLOOKUP(A22,Wechsel!$A$11:$E$31,4),I21) -> 0 | J22: =IF(G22>0,VLOOKUP(A22,Wechsel!$A$11:$E$31,5),J21) -> 1 | K22: 0 | L22: 0 | M22: -39 | N22: 1 | O22: 0 | P22: =MAX(P21-Eingabe!$E$28,0) -> 1602 | Q22: 0 | R22: 0 | S22: =Eingabe!$C$25+Eingabe!$E$25*'Berechnung Ratierlich heute'!F22 -> 39 | T22: -39
A23: 13 | B23: 0.01 | C23: 0 | D23: 0 | E23: 0 | F23: 0 | G23: =IF(VLOOKUP(A23,Wechsel!$A$11:$E$31,1)=A23,VLOOKUP(A23,Wechsel!$A$11:$E$31,1),0) -> 0 | H23: =IF(G23>0,VLOOKUP(A23,Wechsel!$A$11:$E$31,3),H22) -> 0 | I23: =IF(G23>0,VLOOKUP(A23,Wechsel!$A$11:$E$31,4),I22) -> 0 | J23: =IF(G23>0,VLOOKUP(A23,Wechsel!$A$11:$E$31,5),J22) -> 1 | K23: 0 | L23: 0 | M23: 0 | N23: 1 | O23: 0 | P23: =MAX(P22-Eingabe!$E$28,0) -> 1602 | Q23: 0 | R23: 0 | S23: =Eingabe!$C$25+Eingabe!$E$25*'Berechnung Ratierlich heute'!F23 -> 39 | T23: -39
A24: 14 | B24: 0.01 | C24: 0 | D24: 0 | E24: 0 | F24: 0 | G24: =IF(VLOOKUP(A24,Wechsel!$A$11:$E$31,1)=A24,VLOOKUP(A24,Wechsel!$A$11:$E$31,1),0) -> 0 | H24: =IF(G24>0,VLOOKUP(A24,Wechsel!$A$11:$E$31,3),H23) -> 0 | I24: =IF(G24>0,VLOOKUP(A24,Wechsel!$A$11:$E$31,4),I23) -> 0 | J24: =IF(G24>0,VLOOKUP(A24,Wechsel!$A$11:$E$31,5),J23) -> 1 | K24: 0 | L24: 0 | M24: 0 | N24: 1 | O24: 0 | P24: =MAX(P23-Eingabe!$E$28,0) -> 1602 | Q24: 0 | R24: 0 | S24: =Eingabe!$C$25+Eingabe!$E$25*'Berechnung Ratierlich heute'!F24 -> 39 | T24: -39
A25: 15 | B25: 0.01 | C25: 0 | D25: 0 | E25: 0 | F25: 0 | G25: =IF(VLOOKUP(A25,Wechsel!$A$11:$E$31,1)=A25,VLOOKUP(A25,Wechsel!$A$11:$E$31,1),0) -> 0 | H25: =IF(G25>0,VLOOKUP(A25,Wechsel!$A$11:$E$31,3),H24) -> 0 | I25: =IF(G25>0,VLOOKUP(A25,Wechsel!$A$11:$E$31,4),I24) -> 0 | J25: =IF(G25>0,VLOOKUP(A25,Wechsel!$A$11:$E$31,5),J24) -> 1 | K25: 0 | L25: 0 | M25: 0 | N25: 1 | O25: 0 | P25: =MAX(P24-Eingabe!$E$28,0) -> 1602 | Q25: 0 | R25: 0 | S25: =Eingabe!$C$25+Eingabe!$E$25*'Berechnung Ratierlich heute'!F25 -> 39 | T25: -39
A26: 16 | B26: 0.01 | C26: 0 | D26: 0 | E26: 0 | F26: 0 | G26: =IF(VLOOKUP(A26,Wechsel!$A$11:$E$31,1)=A26,VLOOKUP(A26,Wechsel!$A$11:$E$31,1),0) -> 0 | H26: =IF(G26>0,VLOOKUP(A26,Wechsel!$A$11:$E$31,3),H25) -> 0 | I26: =IF(G26>0,VLOOKUP(A26,Wechsel!$A$11:$E$31,4),I25) -> 0 | J26: =IF(G26>0,VLOOKUP(A26,Wechsel!$A$11:$E$31,5),J25) -> 1 | K26: 0 | L26: 0 | M26: 0 | N26: 1 | O26: 0 | P26: =MAX(P25-Eingabe!$E$28,0) -> 1602 | Q26: 0 | R26: 0 | S26: =Eingabe!$C$25+Eingabe!$E$25*'Berechnung Ratierlich heute'!F26 -> 39 | T26: -39
A27: 17 | B27: 0.01 | C27: 0 | D27: 0 | E27: 0 | F27: 0 | G27: =IF(VLOOKUP(A27,Wechsel!$A$11:$E$31,1)=A27,VLOOKUP(A27,Wechsel!$A$11:$E$31,1),0) -> 0 | H27: =IF(G27>0,VLOOKUP(A27,Wechsel!$A$11:$E$31,3),H26) -> 0 | I27: =IF(G27>0,VLOOKUP(A27,Wechsel!$A$11:$E$31,4),I26) -> 0 | J27: =IF(G27>0,VLOOKUP(A27,Wechsel!$A$11:$E$31,5),J26) -> 1 | K27: 0 | L27: 0 | M27: 0 | N27: 1 | O27: 0 | P27: =MAX(P26-Eingabe!$E$28,0) -> 1602 | Q27: 0 | R27: 0 | S27: =Eingabe!$C$25+Eingabe!$E$25*'Berechnung Ratierlich heute'!F27 -> 39 | T27: -39
A28: 18 | B28: 0.01 | C28: 0 | D28: 0 | E28: 0 | F28: 0 | G28: =IF(VLOOKUP(A28,Wechsel!$A$11:$E$31,1)=A28,VLOOKUP(A28,Wechsel!$A$11:$E$31,1),0) -> 0 | H28: =IF(G28>0,VLOOKUP(A28,Wechsel!$A$11:$E$31,3),H27) -> 0 | I28: =IF(G28>0,VLOOKUP(A28,Wechsel!$A$11:$E$31,4),I27) -> 0 | J28: =IF(G28>0,VLOOKUP(A28,Wechsel!$A$11:$E$31,5),J27) -> 1 | K28: 0 | L28: 0 | M28: 0 | N28: 1 | O28: 0 | P28: =MAX(P27-Eingabe!$E$28,0) -> 1602 | Q28: 0 | R28: 0 | S28: =Eingabe!$C$25+Eingabe!$E$25*'Berechnung Ratierlich heute'!F28 -> 39 | T28: -39
A29: 19 | B29: 0.01 | C29: 0 | D29: 0 | E29: 0 | F29: 0 | G29: =IF(VLOOKUP(A29,Wechsel!$A$11:$E$31,1)=A29,VLOOKUP(A29,Wechsel!$A$11:$E$31,1),0) -> 0 | H29: =IF(G29>0,VLOOKUP(A29,Wechsel!$A$11:$E$31,3),H28) -> 0 | I29: =IF(G29>0,VLOOKUP(A29,Wechsel!$A$11:$E$31,4),I28) -> 0 | J29: =IF(G29>0,VLOOKUP(A29,Wechsel!$A$11:$E$31,5),J28) -> 1 | K29: 0 | L29: 0 | M29: 0 | N29: 1 | O29: 0 | P29: =MAX(P28-Eingabe!$E$28,0) -> 1602 | Q29: 0 | R29: 0 | S29: =Eingabe!$C$25+Eingabe!$E$25*'Berechnung Ratierlich heute'!F29 -> 39 | T29: -39
A30: 20 | B30: 0.01 | C30: 0 | D30: 0 | E30: 0 | F30: 0 | G30: =IF(VLOOKUP(A30,Wechsel!$A$11:$E$31,1)=A30,VLOOKUP(A30,Wechsel!$A$11:$E$31,1),0) -> 0 | H30: =IF(G30>0,VLOOKUP(A30,Wechsel!$A$11:$E$31,3),H29) -> 0 | I30: =IF(G30>0,VLOOKUP(A30,Wechsel!$A$11:$E$31,4),I29) -> 0 | J30: =IF(G30>0,VLOOKUP(A30,Wechsel!$A$11:$E$31,5),J29) -> 1 | K30: 0 | L30: 0 | M30: 0 | N30: 1 | O30: 0 | P30: =MAX(P29-Eingabe!$E$28,0) -> 1602 | Q30: 0 | R30: 0 | S30: =Eingabe!$C$25+Eingabe!$E$25*'Berechnung Ratierlich heute'!F30 -> 39 | T30: -39
A31: 21 | B31: 0.01 | C31: 0 | D31: 0 | E31: 0 | F31: 0 | G31: =IF(VLOOKUP(A31,Wechsel!$A$11:$E$31,1)=A31,VLOOKUP(A31,Wechsel!$A$11:$E$31,1),0) -> 0 | H31: =IF(G31>0,VLOOKUP(A31,Wechsel!$A$11:$E$31,3),H30) -> 0 | I31: =IF(G31>0,VLOOKUP(A31,Wechsel!$A$11:$E$31,4),I30) -> 0 | J31: =IF(G31>0,VLOOKUP(A31,Wechsel!$A$11:$E$31,5),J30) -> 1 | K31: 0 | L31: 0 | M31: 0 | N31: 1 | O31: 0 | P31: =MAX(P30-Eingabe!$E$28,0) -> 1602 | Q31: 0 | R31: 0 | S31: =Eingabe!$C$25+Eingabe!$E$25*'Berechnung Ratierlich heute'!F31 -> 39 | T31: -39
A32: 22 | B32: 0.01 | C32: 0 | D32: 0 | E32: 0 | F32: 0 | G32: =IF(VLOOKUP(A32,Wechsel!$A$11:$E$31,1)=A32,VLOOKUP(A32,Wechsel!$A$11:$E$31,1),0) -> 0 | H32: =IF(G32>0,VLOOKUP(A32,Wechsel!$A$11:$E$31,3),H31) -> 0 | I32: =IF(G32>0,VLOOKUP(A32,Wechsel!$A$11:$E$31,4),I31) -> 0 | J32: =IF(G32>0,VLOOKUP(A32,Wechsel!$A$11:$E$31,5),J31) -> 1 | K32: 0 | L32: 0 | M32: 0 | N32: 1 | O32: 0 | P32: =MAX(P31-Eingabe!$E$28,0) -> 1602 | Q32: 0 | R32: 0 | S32: =Eingabe!$C$25+Eingabe!$E$25*'Berechnung Ratierlich heute'!F32 -> 39 | T32: -39
A33: 23 | B33: 0.01 | C33: 0 | D33: 0 | E33: 0 | F33: 0 | G33: =IF(VLOOKUP(A33,Wechsel!$A$11:$E$31,1)=A33,VLOOKUP(A33,Wechsel!$A$11:$E$31,1),0) -> 0 | H33: =IF(G33>0,VLOOKUP(A33,Wechsel!$A$11:$E$31,3),H32) -> 0 | I33: =IF(G33>0,VLOOKUP(A33,Wechsel!$A$11:$E$31,4),I32) -> 0 | J33: =IF(G33>0,VLOOKUP(A33,Wechsel!$A$11:$E$31,5),J32) -> 1 | K33: 0 | L33: 0 | M33: 0 | N33: 1 | O33: 0 | P33: =MAX(P32-Eingabe!$E$28,0) -> 1602 | Q33: =MAX(0,K33+O33*$M$2-P33-IF(G33>0,-(L32+K33),0)) -> 0 | R33: 0 | S33: =Eingabe!$C$25+Eingabe!$E$25*'Berechnung Ratierlich heute'!F33 -> 39 | T33: -39
A34: 24 | B34: 0.01 | C34: 0 | D34: 0 | E34: 0 | F34: 0 | G34: =IF(VLOOKUP(A34,Wechsel!$A$11:$E$31,1)=A34,VLOOKUP(A34,Wechsel!$A$11:$E$31,1),0) -> 0 | H34: =IF(G34>0,VLOOKUP(A34,Wechsel!$A$11:$E$31,3),H33) -> 0 | I34: =IF(G34>0,VLOOKUP(A34,Wechsel!$A$11:$E$31,4),I33) -> 0 | J34: =IF(G34>0,VLOOKUP(A34,Wechsel!$A$11:$E$31,5),J33) -> 1 | K34: 0 | L34: 0 | M34: 0 | N34: 1 | O34: 0 | P34: =MAX(P33-Eingabe!$E$28,0) -> 1602 | Q34: 0 | R34: 0 | S34: =Eingabe!$C$25+Eingabe!$E$25*'Berechnung Ratierlich heute'!F34 -> 39 | T34: -39
A35: 25 | B35: 0.01 | C35: 0 | D35: 0 | E35: 0 | F35: 0 | G35: =IF(VLOOKUP(A35,Wechsel!$A$11:$E$31,1)=A35,VLOOKUP(A35,Wechsel!$A$11:$E$31,1),0) -> 0 | H35: =IF(G35>0,VLOOKUP(A35,Wechsel!$A$11:$E$31,3),H34) -> 0 | I35: =IF(G35>0,VLOOKUP(A35,Wechsel!$A$11:$E$31,4),I34) -> 0 | J35: =IF(G35>0,VLOOKUP(A35,Wechsel!$A$11:$E$31,5),J34) -> 1 | K35: 0 | L35: 0 | M35: 0 | N35: 1 | O35: 0 | P35: =MAX(P34-Eingabe!$E$28,0) -> 1602 | Q35: 0 | R35: 0 | S35: =Eingabe!$C$25+Eingabe!$E$25*'Berechnung Ratierlich heute'!F35 -> 39 | T35: -39
A36: 26 | B36: 0.01 | C36: 0 | D36: 0 | E36: 0 | F36: 0 | G36: =IF(VLOOKUP(A36,Wechsel!$A$11:$E$31,1)=A36,VLOOKUP(A36,Wechsel!$A$11:$E$31,1),0) -> 0 | H36: =IF(G36>0,VLOOKUP(A36,Wechsel!$A$11:$E$31,3),H35) -> 0 | I36: =IF(G36>0,VLOOKUP(A36,Wechsel!$A$11:$E$31,4),I35) -> 0 | J36: =IF(G36>0,VLOOKUP(A36,Wechsel!$A$11:$E$31,5),J35) -> 1 | K36: 0 | L36: 0 | M36: 0 | N36: 1 | O36: 0 | P36: =MAX(P35-Eingabe!$E$28,0) -> 1602 | Q36: 0 | R36: 0 | S36: =Eingabe!$C$25+Eingabe!$E$25*'Berechnung Ratierlich heute'!F36 -> 39 | T36: -39
A37: 27 | B37: 0.01 | C37: 0 | D37: 0 | E37: 0 | F37: 0 | G37: =IF(VLOOKUP(A37,Wechsel!$A$11:$E$31,1)=A37,VLOOKUP(A37,Wechsel!$A$11:$E$31,1),0) -> 0 | H37: =IF(G37>0,VLOOKUP(A37,Wechsel!$A$11:$E$31,3),H36) -> 0 | I37: =IF(G37>0,VLOOKUP(A37,Wechsel!$A$11:$E$31,4),I36) -> 0 | J37: =IF(G37>0,VLOOKUP(A37,Wechsel!$A$11:$E$31,5),J36) -> 1 | K37: 0 | L37: 0 | M37: 0 | N37: 1 | O37: 0 | P37: =MAX(P36-Eingabe!$E$28,0) -> 1602 | Q37: 0 | R37: 0 | S37: =Eingabe!$C$25+Eingabe!$E$25*'Berechnung Ratierlich heute'!F37 -> 39 | T37: -39
A38: 28 | B38: 0.01 | C38: 0 | D38: 0 | E38: 0 | F38: 0 | G38: =IF(VLOOKUP(A38,Wechsel!$A$11:$E$31,1)=A38,VLOOKUP(A38,Wechsel!$A$11:$E$31,1),0) -> 0 | H38: =IF(G38>0,VLOOKUP(A38,Wechsel!$A$11:$E$31,3),H37) -> 0 | I38: =IF(G38>0,VLOOKUP(A38,Wechsel!$A$11:$E$31,4),I37) -> 0 | J38: =IF(G38>0,VLOOKUP(A38,Wechsel!$A$11:$E$31,5),J37) -> 1 | K38: 0 | L38: 0 | M38: 0 | N38: 1 | O38: 0 | P38: =MAX(P37-Eingabe!$E$28,0) -> 1602 | Q38: 0 | R38: 0 | S38: =Eingabe!$C$25+Eingabe!$E$25*'Berechnung Ratierlich heute'!F38 -> 39 | T38: -39
A39: 29 | B39: 0.01 | C39: 0 | D39: 0 | E39: 0 | F39: 0 | G39: =IF(VLOOKUP(A39,Wechsel!$A$11:$E$31,1)=A39,VLOOKUP(A39,Wechsel!$A$11:$E$31,1),0) -> 0 | H39: =IF(G39>0,VLOOKUP(A39,Wechsel!$A$11:$E$31,3),H38) -> 0 | I39: =IF(G39>0,VLOOKUP(A39,Wechsel!$A$11:$E$31,4),I38) -> 0 | J39: =IF(G39>0,VLOOKUP(A39,Wechsel!$A$11:$E$31,5),J38) -> 1 | K39: 0 | L39: 0 | M39: 0 | N39: =1-(H39*$G$5+I39*$H$5+J39*$I$5) -> 1 | O39: 0 | P39: =MAX(P38-Eingabe!$E$28,0) -> 1602 | Q39: 0 | R39: 0 | S39: =Eingabe!$C$25+Eingabe!$E$25*'Berechnung Ratierlich heute'!F39 -> 39 | T39: -39
A40: 30 | B40: 0.01 | C40: 0 | D40: 0 | E40: 0 | F40: 0 | G40: =IF(VLOOKUP(A40,Wechsel!$A$11:$E$31,1)=A40,VLOOKUP(A40,Wechsel!$A$11:$E$31,1),0) -> 0 | H40: =IF(G40>0,VLOOKUP(A40,Wechsel!$A$11:$E$31,3),H39) -> 0 | I40: =IF(G40>0,VLOOKUP(A40,Wechsel!$A$11:$E$31,4),I39) -> 0 | J40: =IF(G40>0,VLOOKUP(A40,Wechsel!$A$11:$E$31,5),J39) -> 1 | K40: 0 | L40: 0 | M40: 0 | N40: 1 | O40: 0 | P40: =MAX(P39-Eingabe!$E$28,0) -> 1602 | Q40: 0 | R40: 0 | S40: =Eingabe!$C$25+Eingabe!$E$25*'Berechnung Ratierlich heute'!F40 -> 39 | T40: -39
A41: 31 | B41: 0.01 | C41: 0 | D41: 0 | E41: 0 | F41: 0 | G41: =IF(VLOOKUP(A41,Wechsel!$A$11:$E$31,1)=A41,VLOOKUP(A41,Wechsel!$A$11:$E$31,1),0) -> 0 | H41: =IF(G41>0,VLOOKUP(A41,Wechsel!$A$11:$E$31,3),H40) -> 0 | I41: =IF(G41>0,VLOOKUP(A41,Wechsel!$A$11:$E$31,4),I40) -> 0 | J41: =IF(G41>0,VLOOKUP(A41,Wechsel!$A$11:$E$31,5),J40) -> 1 | K41: 0 | L41: 0 | M41: 0 | N41: 1 | O41: 0 | P41: =MAX(P40-Eingabe!$E$28,0) -> 1602 | Q41: 0 | R41: 0 | S41: =Eingabe!$C$25+Eingabe!$E$25*'Berechnung Ratierlich heute'!F41 -> 39 | T41: -39
A42: 32 | B42: 0.01 | C42: 0 | D42: 0 | E42: 0 | F42: 0 | G42: =IF(VLOOKUP(A42,Wechsel!$A$11:$E$31,1)=A42,VLOOKUP(A42,Wechsel!$A$11:$E$31,1),0) -> 0 | H42: =IF(G42>0,VLOOKUP(A42,Wechsel!$A$11:$E$31,3),H41) -> 0 | I42: =IF(G42>0,VLOOKUP(A42,Wechsel!$A$11:$E$31,4),I41) -> 0 | J42: =IF(G42>0,VLOOKUP(A42,Wechsel!$A$11:$E$31,5),J41) -> 1 | K42: 0 | L42: 0 | M42: 0 | N42: 1 | O42: 0 | P42: =MAX(P41-Eingabe!$E$28,0) -> 1602 | Q42: 0 | R42: 0 | S42: =Eingabe!$C$25+Eingabe!$E$25*'Berechnung Ratierlich heute'!F42 -> 39 | T42: -39
A43: 33 | B43: 0.01 | C43: =IF($B$3>=A43,$B$2,0)/(1+B43) -> 0 | D43: 0 | E43: 0 | F43: 0 | G43: =IF(VLOOKUP(A43,Wechsel!$A$11:$E$31,1)=A43,VLOOKUP(A43,Wechsel!$A$11:$E$31,1),0) -> 0 | H43: =IF(G43>0,VLOOKUP(A43,Wechsel!$A$11:$E$31,3),H42) -> 0 | I43: =IF(G43>0,VLOOKUP(A43,Wechsel!$A$11:$E$31,4),I42) -> 0 | J43: =IF(G43>0,VLOOKUP(A43,Wechsel!$A$11:$E$31,5),J42) -> 1 | K43: 0 | L43: 0 | M43: 0 | N43: 1 | O43: 0 | P43: =MAX(P42-Eingabe!$E$28,0) -> 1602 | Q43: 0 | R43: 0 | S43: =Eingabe!$C$25+Eingabe!$E$25*'Berechnung Ratierlich heute'!F43 -> 39 | T43: -39
A44: 34 | B44: 0.01 | C44: 0 | D44: =MAX(IF(A44>$B$3,0,T43),0) -> 0 | E44: =(C44+D44)*$B$1 -> 0 | F44: =IF(A44>$B$3,0,C44+E44+D44) -> 0 | G44: =IF(VLOOKUP(A44,Wechsel!$A$11:$E$31,1)=A44,VLOOKUP(A44,Wechsel!$A$11:$E$31,1),0) -> 0 | H44: =IF(G44>0,VLOOKUP(A44,Wechsel!$A$11:$E$31,3),H43) -> 0 | I44: =IF(G44>0,VLOOKUP(A44,Wechsel!$A$11:$E$31,4),I43) -> 0 | J44: =IF(G44>0,VLOOKUP(A44,Wechsel!$A$11:$E$31,5),J43) -> 1 | K44: 0 | L44: 0 | M44: =IF(A44>$B$3,0,IF(G43>0,T43,C44+M43)) -> 0 | N44: 1 | O44: 0 | P44: =MAX(P43-Eingabe!$E$28,0) -> 1602 | Q44: 0 | R44: 0 | S44: =Eingabe!$C$25+Eingabe!$E$25*'Berechnung Ratierlich heute'!F44 -> 39 | T44: -39
A45: 35 | B45: 0.01 | C45: 0 | D45: 0 | E45: 0 | F45: 0 | G45: =IF(VLOOKUP(A45,Wechsel!$A$11:$E$31,1)=A45,VLOOKUP(A45,Wechsel!$A$11:$E$31,1),0) -> 0 | H45: =IF(G45>0,VLOOKUP(A45,Wechsel!$A$11:$E$31,3),H44) -> 0 | I45: =IF(G45>0,VLOOKUP(A45,Wechsel!$A$11:$E$31,4),I44) -> 0 | J45: =IF(G45>0,VLOOKUP(A45,Wechsel!$A$11:$E$31,5),J44) -> 1 | K45: 0 | L45: 0 | M45: 0 | N45: 1 | O45: 0 | P45: =MAX(P44-Eingabe!$E$28,0) -> 1602 | Q45: 0 | R45: 0 | S45: =Eingabe!$C$25+Eingabe!$E$25*'Berechnung Ratierlich heute'!F45 -> 39 | T45: -39
A46: 36 | B46: 0.01 | C46: 0 | D46: 0 | E46: 0 | F46: 0 | G46: =IF(VLOOKUP(A46,Wechsel!$A$11:$E$31,1)=A46,VLOOKUP(A46,Wechsel!$A$11:$E$31,1),0) -> 0 | H46: =IF(G46>0,VLOOKUP(A46,Wechsel!$A$11:$E$31,3),H45) -> 0 | I46: =IF(G46>0,VLOOKUP(A46,Wechsel!$A$11:$E$31,4),I45) -> 0 | J46: =IF(G46>0,VLOOKUP(A46,Wechsel!$A$11:$E$31,5),J45) -> 1 | K46: 0 | L46: 0 | M46: 0 | N46: 1 | O46: 0 | P46: =MAX(P45-Eingabe!$E$28,0) -> 1602 | Q46: 0 | R46: 0 | S46: =Eingabe!$C$25+Eingabe!$E$25*'Berechnung Ratierlich heute'!F46 -> 39 | T46: -39
A47: 37 | B47: 0.01 | C47: 0 | D47: 0 | E47: 0 | F47: 0 | G47: =IF(VLOOKUP(A47,Wechsel!$A$11:$E$31,1)=A47,VLOOKUP(A47,Wechsel!$A$11:$E$31,1),0) -> 0 | H47: =IF(G47>0,VLOOKUP(A47,Wechsel!$A$11:$E$31,3),H46) -> 0 | I47: =IF(G47>0,VLOOKUP(A47,Wechsel!$A$11:$E$31,4),I46) -> 0 | J47: =IF(G47>0,VLOOKUP(A47,Wechsel!$A$11:$E$31,5),J46) -> 1 | K47: 0 | L47: 0 | M47: 0 | N47: 1 | O47: 0 | P47: =MAX(P46-Eingabe!$E$28,0) -> 1602 | Q47: 0 | R47: 0 | S47: =Eingabe!$C$25+Eingabe!$E$25*'Berechnung Ratierlich heute'!F47 -> 39 | T47: -39
A48: 38 | B48: 0.01 | C48: 0 | D48: 0 | E48: 0 | F48: 0 | G48: =IF(VLOOKUP(A48,Wechsel!$A$11:$E$31,1)=A48,VLOOKUP(A48,Wechsel!$A$11:$E$31,1),0) -> 0 | H48: =IF(G48>0,VLOOKUP(A48,Wechsel!$A$11:$E$31,3),H47) -> 0 | I48: =IF(G48>0,VLOOKUP(A48,Wechsel!$A$11:$E$31,4),I47) -> 0 | J48: =IF(G48>0,VLOOKUP(A48,Wechsel!$A$11:$E$31,5),J47) -> 1 | K48: 0 | L48: 0 | M48: 0 | N48: 1 | O48: 0 | P48: =MAX(P47-Eingabe!$E$28,0) -> 1602 | Q48: 0 | R48: 0 | S48: =Eingabe!$C$25+Eingabe!$E$25*'Berechnung Ratierlich heute'!F48 -> 39 | T48: -39
A49: 39 | B49: 0.01 | C49: 0 | D49: 0 | E49: 0 | F49: 0 | G49: =IF(VLOOKUP(A49,Wechsel!$A$11:$E$31,1)=A49,VLOOKUP(A49,Wechsel!$A$11:$E$31,1),0) -> 0 | H49: =IF(G49>0,VLOOKUP(A49,Wechsel!$A$11:$E$31,3),H48) -> 0 | I49: =IF(G49>0,VLOOKUP(A49,Wechsel!$A$11:$E$31,4),I48) -> 0 | J49: =IF(G49>0,VLOOKUP(A49,Wechsel!$A$11:$E$31,5),J48) -> 1 | K49: 0 | L49: 0 | M49: 0 | N49: 1 | O49: 0 | P49: =MAX(P48-Eingabe!$E$28,0) -> 1602 | Q49: 0 | R49: 0 | S49: =Eingabe!$C$25+Eingabe!$E$25*'Berechnung Ratierlich heute'!F49 -> 39 | T49: -39
A50: 40 | B50: 0.01 | C50: 0 | D50: 0 | E50: 0 | F50: 0 | G50: =IF(VLOOKUP(A50,Wechsel!$A$11:$E$31,1)=A50,VLOOKUP(A50,Wechsel!$A$11:$E$31,1),0) -> 0 | H50: =IF(G50>0,VLOOKUP(A50,Wechsel!$A$11:$E$31,3),H49) -> 0 | I50: =IF(G50>0,VLOOKUP(A50,Wechsel!$A$11:$E$31,4),I49) -> 0 | J50: =IF(G50>0,VLOOKUP(A50,Wechsel!$A$11:$E$31,5),J49) -> 1 | K50: 0 | L50: 0 | M50: 0 | N50: 1 | O50: 0 | P50: =MAX(P49-Eingabe!$E$28,0) -> 1602 | Q50: 0 | R50: 0 | S50: =Eingabe!$C$25+Eingabe!$E$25*'Berechnung Ratierlich heute'!F50 -> 39 | T50: -39
A51: 41 | B51: 0.01 | C51: 0 | D51: 0 | E51: 0 | F51: 0 | G51: =IF(VLOOKUP(A51,Wechsel!$A$11:$E$31,1)=A51,VLOOKUP(A51,Wechsel!$A$11:$E$31,1),0) -> 0 | H51: =IF(G51>0,VLOOKUP(A51,Wechsel!$A$11:$E$31,3),H50) -> 0 | I51: =IF(G51>0,VLOOKUP(A51,Wechsel!$A$11:$E$31,4),I50) -> 0 | J51: =IF(G51>0,VLOOKUP(A51,Wechsel!$A$11:$E$31,5),J50) -> 1 | K51: 0 | L51: 0 | M51: 0 | N51: 1 | O51: 0 | P51: =MAX(P50-Eingabe!$E$28,0) -> 1602 | Q51: 0 | R51: 0 | S51: =Eingabe!$C$25+Eingabe!$E$25*'Berechnung Ratierlich heute'!F51 -> 39 | T51: -39
A52: 42 | B52: 0.01 | C52: 0 | D52: 0 | E52: 0 | F52: 0 | G52: =IF(VLOOKUP(A52,Wechsel!$A$11:$E$31,1)=A52,VLOOKUP(A52,Wechsel!$A$11:$E$31,1),0) -> 0 | H52: =IF(G52>0,VLOOKUP(A52,Wechsel!$A$11:$E$31,3),H51) -> 0 | I52: =IF(G52>0,VLOOKUP(A52,Wechsel!$A$11:$E$31,4),I51) -> 0 | J52: =IF(G52>0,VLOOKUP(A52,Wechsel!$A$11:$E$31,5),J51) -> 1 | K52: 0 | L52: 0 | M52: 0 | N52: 1 | O52: 0 | P52: =MAX(P51-Eingabe!$E$28,0) -> 1602 | Q52: 0 | R52: 0 | S52: =Eingabe!$C$25+Eingabe!$E$25*'Berechnung Ratierlich heute'!F52 -> 39 | T52: -39
A53: 43 | B53: 0.01 | C53: 0 | D53: 0 | E53: 0 | F53: 0 | G53: =IF(VLOOKUP(A53,Wechsel!$A$11:$E$31,1)=A53,VLOOKUP(A53,Wechsel!$A$11:$E$31,1),0) -> 0 | H53: =IF(G53>0,VLOOKUP(A53,Wechsel!$A$11:$E$31,3),H52) -> 0 | I53: =IF(G53>0,VLOOKUP(A53,Wechsel!$A$11:$E$31,4),I52) -> 0 | J53: =IF(G53>0,VLOOKUP(A53,Wechsel!$A$11:$E$31,5),J52) -> 1 | K53: 0 | L53: 0 | M53: 0 | N53: 1 | O53: 0 | P53: =MAX(P52-Eingabe!$E$28,0) -> 1602 | Q53: 0 | R53: 0 | S53: =Eingabe!$C$25+Eingabe!$E$25*'Berechnung Ratierlich heute'!F53 -> 39 | T53: -39
A54: 44 | B54: 0.01 | C54: 0 | D54: 0 | E54: 0 | F54: 0 | G54: =IF(VLOOKUP(A54,Wechsel!$A$11:$E$31,1)=A54,VLOOKUP(A54,Wechsel!$A$11:$E$31,1),0) -> 0 | H54: =IF(G54>0,VLOOKUP(A54,Wechsel!$A$11:$E$31,3),H53) -> 0 | I54: =IF(G54>0,VLOOKUP(A54,Wechsel!$A$11:$E$31,4),I53) -> 0 | J54: =IF(G54>0,VLOOKUP(A54,Wechsel!$A$11:$E$31,5),J53) -> 1 | K54: 0 | L54: 0 | M54: 0 | N54: 1 | O54: 0 | P54: =MAX(P53-Eingabe!$E$28,0) -> 1602 | Q54: 0 | R54: 0 | S54: =Eingabe!$C$25+Eingabe!$E$25*'Berechnung Ratierlich heute'!F54 -> 39 | T54: -39
A55: 45 | B55: 0.01 | C55: 0 | D55: 0 | E55: 0 | F55: 0 | G55: =IF(VLOOKUP(A55,Wechsel!$A$11:$E$31,1)=A55,VLOOKUP(A55,Wechsel!$A$11:$E$31,1),0) -> 0 | H55: =IF(G55>0,VLOOKUP(A55,Wechsel!$A$11:$E$31,3),H54) -> 0 | I55: =IF(G55>0,VLOOKUP(A55,Wechsel!$A$11:$E$31,4),I54) -> 0 | J55: =IF(G55>0,VLOOKUP(A55,Wechsel!$A$11:$E$31,5),J54) -> 1 | K55: 0 | L55: 0 | M55: 0 | N55: 1 | O55: 0 | P55: =MAX(P54-Eingabe!$E$28,0) -> 1602 | Q55: 0 | R55: 0 | S55: =Eingabe!$C$25+Eingabe!$E$25*'Berechnung Ratierlich heute'!F55 -> 39 | T55: -39
A56: 46 | B56: 0.01 | C56: 0 | D56: 0 | E56: 0 | F56: 0 | G56: =IF(VLOOKUP(A56,Wechsel!$A$11:$E$31,1)=A56,VLOOKUP(A56,Wechsel!$A$11:$E$31,1),0) -> 0 | H56: =IF(G56>0,VLOOKUP(A56,Wechsel!$A$11:$E$31,3),H55) -> 0 | I56: =IF(G56>0,VLOOKUP(A56,Wechsel!$A$11:$E$31,4),I55) -> 0 | J56: =IF(G56>0,VLOOKUP(A56,Wechsel!$A$11:$E$31,5),J55) -> 1 | K56: 0 | L56: 0 | M56: 0 | N56: 1 | O56: 0 | P56: =MAX(P55-Eingabe!$E$28,0) -> 1602 | Q56: 0 | R56: 0 | S56: =Eingabe!$C$25+Eingabe!$E$25*'Berechnung Ratierlich heute'!F56 -> 39 | T56: -39
A57: 47 | B57: 0.01 | C57: 0 | D57: 0 | E57: 0 | F57: 0 | G57: =IF(VLOOKUP(A57,Wechsel!$A$11:$E$31,1)=A57,VLOOKUP(A57,Wechsel!$A$11:$E$31,1),0) -> 0 | H57: =IF(G57>0,VLOOKUP(A57,Wechsel!$A$11:$E$31,3),H56) -> 0 | I57: =IF(G57>0,VLOOKUP(A57,Wechsel!$A$11:$E$31,4),I56) -> 0 | J57: =IF(G57>0,VLOOKUP(A57,Wechsel!$A$11:$E$31,5),J56) -> 1 | K57: 0 | L57: 0 | M57: 0 | N57: 1 | O57: 0 | P57: =MAX(P56-Eingabe!$E$28,0) -> 1602 | Q57: 0 | R57: 0 | S57: =Eingabe!$C$25+Eingabe!$E$25*'Berechnung Ratierlich heute'!F57 -> 39 | T57: -39
A58: 48 | B58: 0.01 | C58: 0 | D58: 0 | E58: 0 | F58: 0 | G58: =IF(VLOOKUP(A58,Wechsel!$A$11:$E$31,1)=A58,VLOOKUP(A58,Wechsel!$A$11:$E$31,1),0) -> 0 | H58: =IF(G58>0,VLOOKUP(A58,Wechsel!$A$11:$E$31,3),H57) -> 0 | I58: =IF(G58>0,VLOOKUP(A58,Wechsel!$A$11:$E$31,4),I57) -> 0 | J58: =IF(G58>0,VLOOKUP(A58,Wechsel!$A$11:$E$31,5),J57) -> 1 | K58: 0 | L58: 0 | M58: 0 | N58: 1 | O58: 0 | P58: =MAX(P57-Eingabe!$E$28,0) -> 1602 | Q58: 0 | R58: 0 | S58: =Eingabe!$C$25+Eingabe!$E$25*'Berechnung Ratierlich heute'!F58 -> 39 | T58: -39
A59: 49 | B59: 0.01 | C59: 0 | D59: 0 | E59: 0 | F59: 0 | G59: =IF(VLOOKUP(A59,Wechsel!$A$11:$E$31,1)=A59,VLOOKUP(A59,Wechsel!$A$11:$E$31,1),0) -> 0 | H59: =IF(G59>0,VLOOKUP(A59,Wechsel!$A$11:$E$31,3),H58) -> 0 | I59: =IF(G59>0,VLOOKUP(A59,Wechsel!$A$11:$E$31,4),I58) -> 0 | J59: =IF(G59>0,VLOOKUP(A59,Wechsel!$A$11:$E$31,5),J58) -> 1 | K59: 0 | L59: 0 | M59: 0 | N59: 1 | O59: 0 | P59: =MAX(P58-Eingabe!$E$28,0) -> 1602 | Q59: 0 | R59: 0 | S59: =Eingabe!$C$25+Eingabe!$E$25*'Berechnung Ratierlich heute'!F59 -> 39 | T59: -39
A60: 50 | B60: 0.01 | C60: 0 | D60: 0 | E60: 0 | F60: 0 | G60: =IF(VLOOKUP(A60,Wechsel!$A$11:$E$31,1)=A60,VLOOKUP(A60,Wechsel!$A$11:$E$31,1),0) -> 0 | H60: =IF(G60>0,VLOOKUP(A60,Wechsel!$A$11:$E$31,3),H59) -> 0 | I60: =IF(G60>0,VLOOKUP(A60,Wechsel!$A$11:$E$31,4),I59) -> 0 | J60: =IF(G60>0,VLOOKUP(A60,Wechsel!$A$11:$E$31,5),J59) -> 1 | K60: 0 | L60: 0 | M60: 0 | N60: 1 | O60: 0 | P60: =MAX(P59-Eingabe!$E$28,0) -> 1602 | Q60: 0 | R60: 0 | S60: =Eingabe!$C$25+Eingabe!$E$25*'Berechnung Ratierlich heute'!F60 -> 39 | T60: -39
A61: 51 | B61: =$G$3*H60+$H$3*I60+$I$3*J60 -> 0.01 | C61: =IF($B$3>=A61,$B$2,0)/(1+B61) -> 0 | D61: =MAX(IF(A61>$B$3,0,T60),0) -> 0 | E61: =(C61+D61)*$B$1 -> 0 | F61: =IF(A61>$B$3,0,C61+E61+D61) -> 0 | G61: =IF(VLOOKUP(A61,Wechsel!$A$11:$E$31,1)=A61,VLOOKUP(A61,Wechsel!$A$11:$E$31,1),0) -> 0 | H61: =IF(G61>0,VLOOKUP(A61,Wechsel!$A$11:$E$31,3),H60) -> 0 | I61: =IF(G61>0,VLOOKUP(A61,Wechsel!$A$11:$E$31,4),I60) -> 0 | J61: =IF(G61>0,VLOOKUP(A61,Wechsel!$A$11:$E$31,5),J60) -> 1 | K61: =D61*$M$1*0.7*0.7*$M$2*H61+D61*$M$1*0.85*0.7*$M$2*I61+D61*$M$1*0.7*$M$2*J61 -> 0 | L61: =IF(G60>0,K61,K61+L60) -> 0 | M61: =IF(A61>$B$3,0,IF(G60>0,T60,C61+M60)) -> 0 | N61: =1-(H61*$G$5+I61*$H$5+J61*$I$5) -> 1 | O61: =IF(G61>0,(F61-M61)*N60,0) -> 0 | P61: =MAX(P60-Eingabe!$E$28,0) -> 1602 | Q61: =MAX(0,K61+O61*$M$2-P61-IF(G61>0,-(L60+K61),0)) -> 0 | R61: =MAX(IF(G61>0,(H61*$G$4+I61*$H$4+J61*$I$4)*(F61-Q61),0),0) -> 0 | S61: =Eingabe!$C$25+Eingabe!$E$25*'Berechnung Ratierlich heute'!F61 -> 39 | T61: =F61-Q61-R61-S61 -> -39
A62: 52 | B62: 0.01 | C62: 0 | D62: 0 | E62: 0 | F62: 0 | G62: =IF(VLOOKUP(A62,Wechsel!$A$11:$E$31,1)=A62,VLOOKUP(A62,Wechsel!$A$11:$E$31,1),0) -> 0 | H62: =IF(G62>0,VLOOKUP(A62,Wechsel!$A$11:$E$31,3),H61) -> 0 | I62: =IF(G62>0,VLOOKUP(A62,Wechsel!$A$11:$E$31,4),I61) -> 0 | J62: =IF(G62>0,VLOOKUP(A62,Wechsel!$A$11:$E$31,5),J61) -> 1 | K62: 0 | L62: 0 | M62: 0 | N62: 1 | O62: 0 | P62: =MAX(P61-Eingabe!$E$28,0) -> 1602 | Q62: 0 | R62: 0 | S62: =Eingabe!$C$25+Eingabe!$E$25*'Berechnung Ratierlich heute'!F62 -> 39 | T62: -39
A63: 53 | B63: 0.01 | C63: 0 | D63: 0 | E63: 0 | F63: 0 | G63: =IF(VLOOKUP(A63,Wechsel!$A$11:$E$31,1)=A63,VLOOKUP(A63,Wechsel!$A$11:$E$31,1),0) -> 0 | H63: =IF(G63>0,VLOOKUP(A63,Wechsel!$A$11:$E$31,3),H62) -> 0 | I63: =IF(G63>0,VLOOKUP(A63,Wechsel!$A$11:$E$31,4),I62) -> 0 | J63: =IF(G63>0,VLOOKUP(A63,Wechsel!$A$11:$E$31,5),J62) -> 1 | K63: 0 | L63: 0 | M63: 0 | N63: 1 | O63: 0 | P63: =MAX(P62-Eingabe!$E$28,0) -> 1602 | Q63: 0 | R63: 0 | S63: =Eingabe!$C$25+Eingabe!$E$25*'Berechnung Ratierlich heute'!F63 -> 39 | T63: -39
A64: 54 | B64: 0.01 | C64: 0 | D64: 0 | E64: 0 | F64: 0 | G64: =IF(VLOOKUP(A64,Wechsel!$A$11:$E$31,1)=A64,VLOOKUP(A64,Wechsel!$A$11:$E$31,1),0) -> 0 | H64: =IF(G64>0,VLOOKUP(A64,Wechsel!$A$11:$E$31,3),H63) -> 0 | I64: =IF(G64>0,VLOOKUP(A64,Wechsel!$A$11:$E$31,4),I63) -> 0 | J64: =IF(G64>0,VLOOKUP(A64,Wechsel!$A$11:$E$31,5),J63) -> 1 | K64: 0 | L64: 0 | M64: 0 | N64: 1 | O64: 0 | P64: =MAX(P63-Eingabe!$E$28,0) -> 1602 | Q64: 0 | R64: 0 | S64: =Eingabe!$C$25+Eingabe!$E$25*'Berechnung Ratierlich heute'!F64 -> 39 | T64: -39
A65: 55 | B65: 0.01 | C65: 0 | D65: 0 | E65: 0 | F65: 0 | G65: =IF(VLOOKUP(A65,Wechsel!$A$11:$E$31,1)=A65,VLOOKUP(A65,Wechsel!$A$11:$E$31,1),0) -> 0 | H65: =IF(G65>0,VLOOKUP(A65,Wechsel!$A$11:$E$31,3),H64) -> 0 | I65: =IF(G65>0,VLOOKUP(A65,Wechsel!$A$11:$E$31,4),I64) -> 0 | J65: =IF(G65>0,VLOOKUP(A65,Wechsel!$A$11:$E$31,5),J64) -> 1 | K65: 0 | L65: 0 | M65: 0 | N65: 1 | O65: 0 | P65: =MAX(P64-Eingabe!$E$28,0) -> 1602 | Q65: 0 | R65: 0 | S65: =Eingabe!$C$25+Eingabe!$E$25*'Berechnung Ratierlich heute'!F65 -> 39 | T65: -39
A66: 56 | B66: 0.01 | C66: 0 | D66: 0 | E66: 0 | F66: 0 | G66: =IF(VLOOKUP(A66,Wechsel!$A$11:$E$31,1)=A66,VLOOKUP(A66,Wechsel!$A$11:$E$31,1),0) -> 0 | H66: =IF(G66>0,VLOOKUP(A66,Wechsel!$A$11:$E$31,3),H65) -> 0 | I66: =IF(G66>0,VLOOKUP(A66,Wechsel!$A$11:$E$31,4),I65) -> 0 | J66: =IF(G66>0,VLOOKUP(A66,Wechsel!$A$11:$E$31,5),J65) -> 1 | K66: 0 | L66: 0 | M66: 0 | N66: 1 | O66: 0 | P66: =MAX(P65-Eingabe!$E$28,0) -> 1602 | Q66: 0 | R66: 0 | S66: =Eingabe!$C$25+Eingabe!$E$25*'Berechnung Ratierlich heute'!F66 -> 39 | T66: -39
A67: 57 | B67: 0.01 | C67: 0 | D67: 0 | E67: 0 | F67: 0 | G67: =IF(VLOOKUP(A67,Wechsel!$A$11:$E$31,1)=A67,VLOOKUP(A67,Wechsel!$A$11:$E$31,1),0) -> 0 | H67: =IF(G67>0,VLOOKUP(A67,Wechsel!$A$11:$E$31,3),H66) -> 0 | I67: =IF(G67>0,VLOOKUP(A67,Wechsel!$A$11:$E$31,4),I66) -> 0 | J67: =IF(G67>0,VLOOKUP(A67,Wechsel!$A$11:$E$31,5),J66) -> 1 | K67: 0 | L67: 0 | M67: 0 | N67: 1 | O67: 0 | P67: =MAX(P66-Eingabe!$E$28,0) -> 1602 | Q67: 0 | R67: 0 | S67: =Eingabe!$C$25+Eingabe!$E$25*'Berechnung Ratierlich heute'!F67 -> 39 | T67: -39
A68: 58 | B68: 0.01 | C68: 0 | D68: 0 | E68: 0 | F68: 0 | G68: =IF(VLOOKUP(A68,Wechsel!$A$11:$E$31,1)=A68,VLOOKUP(A68,Wechsel!$A$11:$E$31,1),0) -> 0 | H68: =IF(G68>0,VLOOKUP(A68,Wechsel!$A$11:$E$31,3),H67) -> 0 | I68: =IF(G68>0,VLOOKUP(A68,Wechsel!$A$11:$E$31,4),I67) -> 0 | J68: =IF(G68>0,VLOOKUP(A68,Wechsel!$A$11:$E$31,5),J67) -> 1 | K68: 0 | L68: 0 | M68: 0 | N68: 1 | O68: 0 | P68: =MAX(P67-Eingabe!$E$28,0) -> 1602 | Q68: 0 | R68: 0 | S68: =Eingabe!$C$25+Eingabe!$E$25*'Berechnung Ratierlich heute'!F68 -> 39 | T68: -39
A69: 59 | B69: 0.01 | C69: 0 | D69: 0 | E69: 0 | F69: 0 | G69: =IF(VLOOKUP(A69,Wechsel!$A$11:$E$31,1)=A69,VLOOKUP(A69,Wechsel!$A$11:$E$31,1),0) -> 0 | H69: =IF(G69>0,VLOOKUP(A69,Wechsel!$A$11:$E$31,3),H68) -> 0 | I69: =IF(G69>0,VLOOKUP(A69,Wechsel!$A$11:$E$31,4),I68) -> 0 | J69: =IF(G69>0,VLOOKUP(A69,Wechsel!$A$11:$E$31,5),J68) -> 1 | K69: 0 | L69: 0 | M69: 0 | N69: 1 | O69: 0 | P69: =MAX(P68-Eingabe!$E$28,0) -> 1602 | Q69: 0 | R69: 0 | S69: =Eingabe!$C$25+Eingabe!$E$25*'Berechnung Ratierlich heute'!F69 -> 39 | T69: -39
A70: 60 | B70: =$G$3*H69+$H$3*I69+$I$3*J69 -> 0.01 | C70: =IF($B$3>=A70,$B$2,0)/(1+B70) -> 0 | D70: =MAX(IF(A70>$B$3,0,T69),0) -> 0 | E70: =(C70+D70)*$B$1 -> 0 | F70: =IF(A70>$B$3,0,C70+E70+D70) -> 0 | G70: =IF(VLOOKUP(A70,Wechsel!$A$11:$E$31,1)=A70,VLOOKUP(A70,Wechsel!$A$11:$E$31,1),0) -> 0 | H70: =IF(G70>0,VLOOKUP(A70,Wechsel!$A$11:$E$31,3),H69) -> 0 | I70: =IF(G70>0,VLOOKUP(A70,Wechsel!$A$11:$E$31,4),I69) -> 0 | J70: =IF(G70>0,VLOOKUP(A70,Wechsel!$A$11:$E$31,5),J69) -> 1 | K70: =D70*$M$1*0.7*0.7*$M$2*H70+D70*$M$1*0.85*0.7*$M$2*I70+D70*$M$1*0.7*$M$2*J70 -> 0 | L70: =IF(G69>0,K70,K70+L69) -> 0 | M70: =IF(A70>$B$3,0,IF(G69>0,T69,C70+M69)) -> 0 | N70: =1-(H70*$G$5+I70*$H$5+J70*$I$5) -> 1 | O70: =IF(G70>0,(F70-M70)*N69,0) -> 0 | P70: =MAX(P69-Eingabe!$E$28,0) -> 1602 | Q70: =MAX(0,K70+O70*$M$2-P70-IF(G70>0,-(L69+K70),0)) -> 0 | R70: =MAX(IF(G70>0,(H70*$G$4+I70*$H$4+J70*$I$4)*(F70-Q70),0),0) -> 0 | S70: =Eingabe!$C$25+Eingabe!$E$25*'Berechnung Ratierlich heute'!F70 -> 39 | T70: =F70-Q70-R70-S70 -> -39

Sheet Berechnung Ratierlich 2% (hidden)
A1: Rendite | B1: =Hilfe!E3-Hilfe!G16 -> 0.06 | F1: Ausgabeaufschlag | L1: Basiszins | M1: =MIN(2%,B1) -> 0.02
A2: Beitrag p.a. | B2: =Eingabe!C10*Hilfe!B4 -> 0 | G2: Aktienfonds | H2: Mischfonds | I2: Rentenfonds / VVW | L2: Abgeltungssteuer | M2: ='Berechnung Ratierlich heute'!M2 -> 0.26375
A3: Laufzeit | B3: =Eingabe!C9 -> 12 | F3: Ausgabeaufschlag | G3: =Eingabe!C21 -> 0.01 | H3: =Eingabe!E21 -> 0.01 | I3: =Eingabe!G21 -> 0.01
F4: Wechselgebühr | G4: =Eingabe!C22 -> 0.01 | H4: =Eingabe!E22 -> 0.01 | I4: =Eingabe!G22 -> 0.01 | J4: Ausgabe
F5: Freistellung | G5: 0.3 | H5: 0.15 | I5: 0 | J5: Jahr | K5: Jahresabschluss | L5: Beitragssumme | M5: zu versteuern % | N5: zu versteuern | O5: kumulierte Vorabpauschale | P5: Freistellungsauftrag | Q5: Auszahlung
J6: =B3 -> 12 | K6: =MAX(VLOOKUP(J6,A11:AD70,20),0) -> 0 | L6: =MAX(VLOOKUP(J6,A11:AD60,13),0) -> 0 | M6: =VLOOKUP(J6,A11:AD60,14) -> 1 | N6: =(K6-L6)*M6 -> 0 | O6: =VLOOKUP(J6,A11:AD60,12) -> 0 | P6: =VLOOKUP(J6,A11:AD60,16) -> 1602 | Q6: =K6-(N6-P6-O6)*M2 -> 422.5275
A9: Jahr | B9: Ausgabeaufschlag | C9: Beitrag | D9: Vermögen Jahresanfang | E9: Rendite | F9: Gesamtvermögen | G9: Wechsel | H9: Anteil Aktienfonds | I9: Anteil Mischfonds | J9: Rentenfonds / VVW | K9: Vorabpauschale | L9: kumulierte Vorabpauschale | M9: Beitragssumme | N9: Freistellung | O9: Wechselbesteuerunganteil | P9: Freistellungsauftrag | Q9: Steuer | R9: Wechselkosten | S9: Depotkosten | T9: Jahresabschluss
A10: 0 | H10: =Eingabe!C18 -> 0.5 | I10: =Eingabe!E18 -> 0.5 | J10: =Eingabe!G18 -> 0
A11: 1 | B11: =$G$3*H10+$H$3*I10+$I$3*J10 -> 0.01 | C11: =IF($B$3>=A11,$B$2,0)/(1+B11) -> 0 | D11: =C11 -> 0 | E11: =C11*$B$1 -> 0 | F11: =C11+E11 -> 0 | G11: =VLOOKUP(A11,Wechsel!$A$11:$E$31,1) -> 0 | H11: =IF(G11>0,VLOOKUP(A11,Wechsel!$A$11:$E$31,3),H10) -> 0.5 | I11: =IF(G11>0,VLOOKUP(A11,Wechsel!$A$11:$E$31,4),I10) -> 0.5 | J11: =IF(G11>0,VLOOKUP(A11,Wechsel!$A$11:$E$31,5),J10) -> 0 | K11: =D11*$M$1*0.7*0.7*$M$2*H11+D11*$M$1*0.85*0.7*$M$2*I11+D11*$M$1*0.7*$M$2*J11 -> 0 | L11: =K11+L10 -> 0 | M11: =C11 -> 0 | N11: =1-(H11*$G$5+I11*$H$5+J11*$I$5) -> 0.775 | O11: =IF(G11>0,(F11-M11)*N11,0) -> 0 | P11: =MAX(Eingabe!C28,0) -> 1602 | Q11: =MAX(0,K11+O11*$M$2-P11-IF(G11>0,-(L10+K11),0)) -> 0 | R11: =MAX(IF(G11>0,(H11*$G$4+I11*$H$4+J11*$I$4)*F11,0),0) -> 0 | S11: =Eingabe!$C$25+Eingabe!$E$25*'Berechnung Ratierlich 2%'!F11 -> 39 | T11: =F11-Q11-R11-S11 -> -39
A12: 2 | B12: =$G$3*H11+$H$3*I11+$I$3*J11 -> 0.01 | C12: 0 | D12: =MAX(IF(A12>$B$3,0,T11),0) -> 0 | E12: =(C12+D12)*$B$1 -> 0 | F12: =IF(A12>$B$3,0,C12+E12+D12) -> 0 | G12: =IF(VLOOKUP(A12,Wechsel!$A$11:$E$31,1)=A12,VLOOKUP(A12,Wechsel!$A$11:$E$31,1),0) -> 0 | H12: =IF(G12>0,VLOOKUP(A12,Wechsel!$A$11:$E$31,3),H11) -> 0.5 | I12: =IF(G12>0,VLOOKUP(A12,Wechsel!$A$11:$E$31,4),I11) -> 0.5 | J12: =IF(G12>0,VLOOKUP(A12,Wechsel!$A$11:$E$31,5),J11) -> 0 | K12: =D12*$M$1*0.7*0.7*$M$2*H12+D12*$M$1*0.85*0.7*$M$2*I12+D12*$M$1*0.7*$M$2*J12 -> 0 | L12: =IF(G11>0,K12,K12+L11) -> 0 | M12: =IF(A12>$B$3,0,IF(G11>0,T11,C12+M11)) -> 0 | N12: =1-(H12*$G$5+I12*$H$5+J12*$I$5) -> 0.775 | O12: =IF(G12>0,(F12-M12)*N11,0) -> 0 | P12: =MAX(P11-Eingabe!$E$28,0) -> 1602 | Q12: =MAX(0,K12+O12*$M$2-P12-IF(G12>0,-(L11+K12),0)) -> 0 | R12: =MAX(IF(G12>0,(H12*$G$4+I12*$H$4+J12*$I$4)*(F12-Q12),0),0) -> 0 | S12: =Eingabe!$C$25+Eingabe!$E$25*'Berechnung Ratierlich 2%'!F12 -> 39 | T12: =F12-Q12-R12-S12 -> -39
A13: 3 | B13: 0.01 | C13: 0 | D13: 0 | E13: 0 | F13: 0 | G13: =IF(VLOOKUP(A13,Wechsel!$A$11:$E$31,1)=A13,VLOOKUP(A13,Wechsel!$A$11:$E$31,1),0) -> 3 | H13: =IF(G13>0,VLOOKUP(A13,Wechsel!$A$11:$E$31,3),H12) -> 0.3333333333 | I13: =IF(G13>0,VLOOKUP(A13,Wechsel!$A$11:$E$31,4),I12) -> 0.3333333333 | J13: =IF(G13>0,VLOOKUP(A13,Wechsel!$A$11:$E$31,5),J12) -> 0.3333333333 | K13: =D13*$M$1*0.7*0.7*$M$2*H13+D13*$M$1*0.85*0.7*$M$2*I13+D13*$M$1*0.7*$M$2*J13 -> 0 | L13: =IF(G12>0,K13,K13+L12) -> 0 | M13: 0 | N13: 0.85 | O13: =IF(G13>0,(F13-M13)*N12,0) -> 0 | P13: =MAX(P12-Eingabe!$E$28,0) -> 1602 | Q13: 0 | R13: 0 | S13: =Eingabe!$C$25+Eingabe!$E$25*'Berechnung Ratierlich 2%'!F13 -> 39 | T13: -39
A14: 4 | B14: 0.01 | C14: 0 | D14: 0 | E14: 0 | F14: 0 | G14: =IF(VLOOKUP(A14,Wechsel!$A$11:$E$31,1)=A14,VLOOKUP(A14,Wechsel!$A$11:$E$31,1),0) -> 0 | H14: =IF(G14>0,VLOOKUP(A14,Wechsel!$A$11:$E$31,3),H13) -> 0.3333333333 | I14: =IF(G14>0,VLOOKUP(A14,Wechsel!$A$11:$E$31,4),I13) -> 0.3333333333 | J14: =IF(G14>0,VLOOKUP(A14,Wechsel!$A$11:$E$31,5),J13) -> 0.3333333333 | K14: 0 | L14: 0 | M14: -39 | N14: 0.85 | O14: 0 | P14: =MAX(P13-Eingabe!$E$28,0) -> 1602 | Q14: 0 | R14: 0 | S14: =Eingabe!$C$25+Eingabe!$E$25*'Berechnung Ratierlich 2%'!F14 -> 39 | T14: -39
A15: 5 | B15: 0.01 | C15: 0 | D15: 0 | E15: 0 | F15: 0 | G15: =IF(VLOOKUP(A15,Wechsel!$A$11:$E$31,1)=A15,VLOOKUP(A15,Wechsel!$A$11:$E$31,1),0) -> 0 | H15: =IF(G15>0,VLOOKUP(A15,Wechsel!$A$11:$E$31,3),H14) -> 0.3333333333 | I15: =IF(G15>0,VLOOKUP(A15,Wechsel!$A$11:$E$31,4),I14) -> 0.3333333333 | J15: =IF(G15>0,VLOOKUP(A15,Wechsel!$A$11:$E$31,5),J14) -> 0.3333333333 | K15: 0 | L15: 0 | M15: -39 | N15: 0.85 | O15: 0 | P15: =MAX(P14-Eingabe!$E$28,0) -> 1602 | Q15: 0 | R15: 0 | S15: =Eingabe!$C$25+Eingabe!$E$25*'Berechnung Ratierlich 2%'!F15 -> 39 | T15: -39
A16: 6 | B16: 0.01 | C16: 0 | D16: 0 | E16: 0 | F16: 0 | G16: =IF(VLOOKUP(A16,Wechsel!$A$11:$E$31,1)=A16,VLOOKUP(A16,Wechsel!$A$11:$E$31,1),0) -> 6 | H16: =IF(G16>0,VLOOKUP(A16,Wechsel!$A$11:$E$31,3),H15) -> 0.1666666667 | I16: =IF(G16>0,VLOOKUP(A16,Wechsel!$A$11:$E$31,4),I15) -> 0.1666666667 | J16: =IF(G16>0,VLOOKUP(A16,Wechsel!$A$11:$E$31,5),J15) -> 0.6666666667 | K16: 0 | L16: 0 | M16: -39 | N16: 0.925 | O16: 33.15 | P16: =MAX(P15-Eingabe!$E$28,0) -> 1602 | Q16: 0 | R16: 0 | S16: =Eingabe!$C$25+Eingabe!$E$25*'Berechnung Ratierlich 2%'!F16 -> 39 | T16: -39
A17: 7 | B17: 0.01 | C17: 0 | D17: 0 | E17: 0 | F17: 0 | G17: =IF(VLOOKUP(A17,Wechsel!$A$11:$E$31,1)=A17,VLOOKUP(A17,Wechsel!$A$11:$E$31,1),0) -> 0 | H17: =IF(G17>0,VLOOKUP(A17,Wechsel!$A$11:$E$31,3),H16) -> 0.1666666667 | I17: =IF(G17>0,VLOOKUP(A17,Wechsel!$A$11:$E$31,4),I16) -> 0.1666666667 | J17: =IF(G17>0,VLOOKUP(A17,Wechsel!$A$11:$E$31,5),J16) -> 0.6666666667 | K17: 0 | L17: 0 | M17: -39 | N17: 0.925 | O17: 0 | P17: =MAX(P16-Eingabe!$E$28,0) -> 1602 | Q17: 0 | R17: 0 | S17: =Eingabe!$C$25+Eingabe!$E$25*'Berechnung Ratierlich 2%'!F17 -> 39 | T17: -39
A18: 8 | B18: 0.01 | C18: 0 | D18: 0 | E18: 0 | F18: 0 | G18: =IF(VLOOKUP(A18,Wechsel!$A$11:$E$31,1)=A18,VLOOKUP(A18,Wechsel!$A$11:$E$31,1),0) -> 0 | H18: =IF(G18>0,VLOOKUP(A18,Wechsel!$A$11:$E$31,3),H17) -> 0.1666666667 | I18: =IF(G18>0,VLOOKUP(A18,Wechsel!$A$11:$E$31,4),I17) -> 0.1666666667 | J18: =IF(G18>0,VLOOKUP(A18,Wechsel!$A$11:$E$31,5),J17) -> 0.6666666667 | K18: 0 | L18: 0 | M18: -39 | N18: 0.925 | O18: 0 | P18: =MAX(P17-Eingabe!$E$28,0) -> 1602 | Q18: 0 | R18: 0 | S18: =Eingabe!$C$25+Eingabe!$E$25*'Berechnung Ratierlich 2%'!F18 -> 39 | T18: -39
A19: 9 | B19: 0.01 | C19: 0 | D19: 0 | E19: 0 | F19: 0 | G19: =IF(VLOOKUP(A19,Wechsel!$A$11:$E$31,1)=A19,VLOOKUP(A19,Wechsel!$A$11:$E$31,1),0) -> 9 | H19: =IF(G19>0,VLOOKUP(A19,Wechsel!$A$11:$E$31,3),H18) -> 0 | I19: =IF(G19>0,VLOOKUP(A19,Wechsel!$A$11:$E$31,4),I18) -> 0 | J19: =IF(G19>0,VLOOKUP(A19,Wechsel!$A$11:$E$31,5),J18) -> 1 | K19: 0 | L19: 0 | M19: -39 | N19: 1 | O19: 36.075 | P19: =MAX(P18-Eingabe!$E$28,0) -> 1602 | Q19: 0 | R19: =MAX(IF(G19>0,(H19*$G$4+I19*$H$4+J19*$I$4)*(F19-Q19),0),0) -> 0 | S19: =Eingabe!$C$25+Eingabe!$E$25*'Berechnung Ratierlich 2%'!F19 -> 39 | T19: -39
A20: 10 | B20: 0.01 | C20: 0 | D20: 0 | E20: 0 | F20: 0 | G20: =IF(VLOOKUP(A20,Wechsel!$A$11:$E$31,1)=A20,VLOOKUP(A20,Wechsel!$A$11:$E$31,1),0) -> 0 | H20: =IF(G20>0,VLOOKUP(A20,Wechsel!$A$11:$E$31,3),H19) -> 0 | I20: =IF(G20>0,VLOOKUP(A20,Wechsel!$A$11:$E$31,4),I19) -> 0 | J20: =IF(G20>0,VLOOKUP(A20,Wechsel!$A$11:$E$31,5),J19) -> 1 | K20: 0 | L20: 0 | M20: -39 | N20: 1 | O20: 0 | P20: =MAX(P19-Eingabe!$E$28,0) -> 1602 | Q20: 0 | R20: =MAX(IF(G20>0,(H20*$G$4+I20*$H$4+J20*$I$4)*(F20-Q20),0),0) -> 0 | S20: =Eingabe!$C$25+Eingabe!$E$25*'Berechnung Ratierlich 2%'!F20 -> 39 | T20: -39
A21: 11 | B21: 0.01 | C21: 0 | D21: 0 | E21: 0 | F21: 0 | G21: =IF(VLOOKUP(A21,Wechsel!$A$11:$E$31,1)=A21,VLOOKUP(A21,Wechsel!$A$11:$E$31,1),0) -> 0 | H21: =IF(G21>0,VLOOKUP(A21,Wechsel!$A$11:$E$31,3),H20) -> 0 | I21: =IF(G21>0,VLOOKUP(A21,Wechsel!$A$11:$E$31,4),I20) -> 0 | J21: =IF(G21>0,VLOOKUP(A21,Wechsel!$A$11:$E$31,5),J20) -> 1 | K21: 0 | L21: 0 | M21: -39 | N21: 1 | O21: 0 | P21: =MAX(P20-Eingabe!$E$28,0) -> 1602 | Q21: 0 | R21: 0 | S21: =Eingabe!$C$25+Eingabe!$E$25*'Berechnung Ratierlich 2%'!F21 -> 39 | T21: -39
A22: 12 | B22: 0.01 | C22: 0 | D22: 0 | E22: 0 | F22: 0 | G22: =IF(VLOOKUP(A22,Wechsel!$A$11:$E$31,1)=A22,VLOOKUP(A22,Wechsel!$A$11:$E$31,1),0) -> 0 | H22: =IF(G22>0,VLOOKUP(A22,Wechsel!$A$11:$E$31,3),H21) -> 0 | I22: =IF(G22>0,VLOOKUP(A22,Wechsel!$A$11:$E$31,4),I21) -> 0 | J22: =IF(G22>0,VLOOKUP(A22,Wechsel!$A$11:$E$31,5),J21) -> 1 | K22: 0 | L22: 0 | M22: -39 | N22: 1 | O22: 0 | P22: =MAX(P21-Eingabe!$E$28,0) -> 1602 | Q22: 0 | R22: 0 | S22: =Eingabe!$C$25+Eingabe!$E$25*'Berechnung Ratierlich 2%'!F22 -> 39 | T22: -39
A23: 13 | B23: 0.01 | C23: 0 | D23: 0 | E23: 0 | F23: 0 | G23: =IF(VLOOKUP(A23,Wechsel!$A$11:$E$31,1)=A23,VLOOKUP(A23,Wechsel!$A$11:$E$31,1),0) -> 0 | H23: =IF(G23>0,VLOOKUP(A23,Wechsel!$A$11:$E$31,3),H22) -> 0 | I23: =IF(G23>0,VLOOKUP(A23,Wechsel!$A$11:$E$31,4),I22) -> 0 | J23: =IF(G23>0,VLOOKUP(A23,Wechsel!$A$11:$E$31,5),J22) -> 1 | K23: 0 | L23: 0 | M23: 0 | N23: 1 | O23: 0 | P23: =MAX(P22-Eingabe!$E$28,0) -> 1602 | Q23: 0 | R23: 0 | S23: =Eingabe!$C$25+Eingabe!$E$25*'Berechnung Ratierlich 2%'!F23 -> 39 | T23: -39
A24: 14 | B24: 0.01 | C24: 0 | D24: 0 | E24: 0 | F24: 0 | G24: =IF(VLOOKUP(A24,Wechsel!$A$11:$E$31,1)=A24,VLOOKUP(A24,Wechsel!$A$11:$E$31,1),0) -> 0 | H24: =IF(G24>0,VLOOKUP(A24,Wechsel!$A$11:$E$31,3),H23) -> 0 | I24: =IF(G24>0,VLOOKUP(A24,Wechsel!$A$11:$E$31,4),I23) -> 0 | J24: =IF(G24>0,VLOOKUP(A24,Wechsel!$A$11:$E$31,5),J23) -> 1 | K24: 0 | L24: 0 | M24: 0 | N24: 1 | O24: 0 | P24: =MAX(P23-Eingabe!$E$28,0) -> 1602 | Q24: 0 | R24: 0 | S24: =Eingabe!$C$25+Eingabe!$E$25*'Berechnung Ratierlich 2%'!F24 -> 39 | T24: -39
A25: 15 | B25: 0.01 | C25: 0 | D25: 0 | E25: 0 | F25: 0 | G25: =IF(VLOOKUP(A25,Wechsel!$A$11:$E$31,1)=A25,VLOOKUP(A25,Wechsel!$A$11:$E$31,1),0) -> 0 | H25: =IF(G25>0,VLOOKUP(A25,Wechsel!$A$11:$E$31,3),H24) -> 0 | I25: =IF(G25>0,VLOOKUP(A25,Wechsel!$A$11:$E$31,4),I24) -> 0 | J25: =IF(G25>0,VLOOKUP(A25,Wechsel!$A$11:$E$31,5),J24) -> 1 | K25: 0 | L25: 0 | M25: 0 | N25: 1 | O25: 0 | P25: =MAX(P24-Eingabe!$E$28,0) -> 1602 | Q25: 0 | R25: 0 | S25: =Eingabe!$C$25+Eingabe!$E$25*'Berechnung Ratierlich 2%'!F25 -> 39 | T25: -39
A26: 16 | B26: 0.01 | C26: 0 | D26: 0 | E26: 0 | F26: 0 | G26: =IF(VLOOKUP(A26,Wechsel!$A$11:$E$31,1)=A26,VLOOKUP(A26,Wechsel!$A$11:$E$31,1),0) -> 0 | H26: =IF(G26>0,VLOOKUP(A26,Wechsel!$A$11:$E$31,3),H25) -> 0 | I26: =IF(G26>0,VLOOKUP(A26,Wechsel!$A$11:$E$31,4),I25) -> 0 | J26: =IF(G26>0,VLOOKUP(A26,Wechsel!$A$11:$E$31,5),J25) -> 1 | K26: 0 | L26: 0 | M26: 0 | N26: 1 | O26: 0 | P26: =MAX(P25-Eingabe!$E$28,0) -> 1602 | Q26: 0 | R26: 0 | S26: =Eingabe!$C$25+Eingabe!$E$25*'Berechnung Ratierlich 2%'!F26 -> 39 | T26: -39
A27: 17 | B27: 0.01 | C27: 0 | D27: 0 | E27: 0 | F27: 0 | G27: =IF(VLOOKUP(A27,Wechsel!$A$11:$E$31,1)=A27,VLOOKUP(A27,Wechsel!$A$11:$E$31,1),0) -> 0 | H27: =IF(G27>0,VLOOKUP(A27,Wechsel!$A$11:$E$31,3),H26) -> 0 | I27: =IF(G27>0,VLOOKUP(A27,Wechsel!$A$11:$E$31,4),I26) -> 0 | J27: =IF(G27>0,VLOOKUP(A27,Wechsel!$A$11:$E$31,5),J26) -> 1 | K27: 0 | L27: 0 | M27: 0 | N27: 1 | O27: 0 | P27: =MAX(P26-Eingabe!$E$28,0) -> 1602 | Q27: 0 | R27: 0 | S27: =Eingabe!$C$25+Eingabe!$E$25*'Berechnung Ratierlich 2%'!F27 -> 39 | T27: -39
A28: 18 | B28: 0.01 | C28: 0 | D28: 0 | E28: 0 | F28: 0 | G28: =IF(VLOOKUP(A28,Wechsel!$A$11:$E$31,1)=A28,VLOOKUP(A28,Wechsel!$A$11:$E$31,1),0) -> 0 | H28: =IF(G28>0,VLOOKUP(A28,Wechsel!$A$11:$E$31,3),H27) -> 0 | I28: =IF(G28>0,VLOOKUP(A28,Wechsel!$A$11:$E$31,4),I27) -> 0 | J28: =IF(G28>0,VLOOKUP(A28,Wechsel!$A$11:$E$31,5),J27) -> 1 | K28: 0 | L28: 0 | M28: 0 | N28: 1 | O28: 0 | P28: =MAX(P27-Eingabe!$E$28,0) -> 1602 | Q28: 0 | R28: 0 | S28: =Eingabe!$C$25+Eingabe!$E$25*'Berechnung Ratierlich 2%'!F28 -> 39 | T28: -39
